Workbook

Sheet RESUMO MODULO TOTAL
B1: Item 02: Pavimentação em Concreto Betuminoso Usinado a Quente (CBUQ) na sede do município de Santa Maria da Vitória, dentro da área de abrangência da 2ª Superintendência Regional da Codevasf, no estado da Bahia.
M2: SICRO: | N2: ='SINTÉTICO SICRO'!B2 -> Bahia - Julho/2023
M3: SINAPI: | N3: =RIGHT('INSUMOS SINAPI'!A3,7) -> 09/2023
M4: Data Base do Orçamento | N4: 2023-11-03
B5: =B1 -> Item 02: Pavimentação em Concreto Betuminoso Usinado a Quente (CBUQ) na sede do município de Santa Maria da Vitória, dentro da área de abrangência da 2ª Superintendência Regional da Codevasf, no estado da Bahia.
B6: ITEM | C6: ORIGEM COMPOSIÇÃO | D6: CÓDIGO COMPOSIÇÃO | E6: DISCRIMINAÇÃO DOS SERVIÇOS | I6: BDI % = | J6: =BDI!C25 -> 0.2143 | K6: BDI DIFERENCIADO% = | L6: =BDI!C55 -> 0.1507 | M6: R$/m² | N6: =N46/I8 -> 145.0564637
I7: Total de m² | J7: Encargos Sociais: | K7: Horista | L7: Mensalista | M7: PREÇO UNITÁRIO COM BDI | N7: PREÇO TOTAL COM BDI
I8: ='MC MODULO'!I23 -> 13165.005 | K8: ='ENC. SOCIAIS'!$E$51 -> 115.15 | L8: ='ENC. SOCIAIS'!$F$51 -> 71.22 | P8: =N11/21 -> 575.2152381
I9: UND | J9: QTDE. | K9: BDI | L9: PREÇO UNITÁRIO | P9: =N12/(N46-N12) -> 0.02164605987 | AA9: TOTAL
B10: 1 | E10: SERVIÇOS PRELIMINARES | S10: Índices de reajustamento
A11: =VLOOKUP(O11,'RESUMO MODULO TOTAL'!$O$11:$P$45,2,0) -> 16 | B11: 1.1 | C11: Codevasf | D11: ='CPU CODEVASF'!A23 -> CPU-02 | E11: MOBILIZAÇÃO E DESMOBILIZAÇÃO | I11: t x km | J11: ='MC MODULO'!F41 -> 17506.55 | K11: =$J$6 -> 0.2143 | L11: =ROUND(IF(C11="CODEVASF",VLOOKUP(D11,'CPU CODEVASF'!E:I,5,FALSE),VLOOKUP(D11,sintético_sicro,4,FALSE)),6) -> 0.57 | M11: =ROUND(IF(C11="CODEVASF",VLOOKUP(D11,'CPU CODEVASF'!E:H,4,FALSE),VLOOKUP(D11,'SINTÉTICO SICRO'!A:D,4,FALSE)*(1+$J$6)),6) -> 0.69 | N11: =ROUND(ROUND(J11,2)*ROUND(M11,6),2) -> 12079.52 | O11: =N11 -> 12079.52 | P11: =_xlfn.RANK.EQ(O11,$O$11:$O$45) -> 16 | Q11: INCC | R11: =SUMIF(Q11:Q45,"INCC",N11:N45) -> 242154.29 | S11: =R11/N46 -> 0.1268043211 | T11: INCC | AA11: 57163.47
A12: =VLOOKUP(O12,'RESUMO MODULO TOTAL'!$O$11:$P$45,2,0) -> 9 | B12: 1.2 | C12: Codevasf | D12: ='CPU CODEVASF'!A31 -> CPU-03 | E12: ADMINISTRAÇÃO DA OBRA | I12: % | J12: 1 | K12: =$J$6 -> 0.2143 | L12: ='CPU CODEVASF'!H40*'MC MODULO'!F6 -> 33320.42 | M12: ='CPU CODEVASF'!H43*'MC MODULO'!F6 -> 40460.99 | N12: =ROUND(ROUND(J12,2)*ROUND(M12,6),2) -> 40460.99 | O12: 40460.99 | P12: =_xlfn.RANK.EQ(O12,$O$11:$O$45) -> 9 | Q12: INCC | R12: =SUMIF(Q11:Q45,"P",N11:N45) -> 1224243.57 | S12: =R12/N46 -> 0.6410762939 | T12: P | U12: =N12/N46 -> 0.02118743537 | AA12: 190291.53
A13: =VLOOKUP(O13,'RESUMO MODULO TOTAL'!$O$11:$P$45,2,0) -> 14 | B13: 1.3 | C13: Codevasf | D13: CPU-04 | E13: CANTEIRO DE OBRAS E ALMOXARIFADO | I13: mês | J13: ='MC MODULO'!D51 -> 4 | K13: 0.2143 | L13: =ROUND(IF(C13="CODEVASF",VLOOKUP(D13,'CPU CODEVASF'!E:I,5,FALSE),VLOOKUP(D13,sintético_sicro,FALSE)),6) -> 2850 | M13: =ROUND(IF(C13="CODEVASF",VLOOKUP(D13,'CPU CODEVASF'!E:H,4,FALSE),VLOOKUP(D13,'SINTÉTICO SICRO'!A:D,4,FALSE)*(1+$J$6)),6) -> 3460.76 | N13: 13843.04 | O13: 13843.04 | P13: =_xlfn.RANK.EQ(O13,$O$11:$O$45) -> 14 | Q13: INCC | R13: =SUMIF(Q11:Q46,"D",N11:N45) -> 366072.62 | S13: =R13/N46 -> 0.1916942709 | T13: D
A14: =VLOOKUP(O14,'RESUMO MODULO TOTAL'!$O$11:$P$45,2,0) -> 25 | B14: 1.4 | C14: Codevasf | D14: CPU-01 | E14: PLACA DE OBRA EM CHAPA DE AÇO GALVANIZADO | I14: m² | J14: ='MC MODULO'!H56 -> 2.88 | K14: 0.2143 | L14: =ROUND(IF(C14="CODEVASF",VLOOKUP(D14,'CPU CODEVASF'!E:I,5,FALSE),VLOOKUP(D14,sintético_sicro,FALSE)),6) -> 386.87 | M14: =ROUND(IF(C14="CODEVASF",VLOOKUP(D14,'CPU CODEVASF'!E:H,4,FALSE),VLOOKUP(D14,'SINTÉTICO SICRO'!A:D,4,FALSE)*(1+$J$6)),6) -> 469.78 | N14: 1352.97 | O14: 1352.97 | P14: =_xlfn.RANK.EQ(O14,$O$11:$O$45) -> 25 | Q14: INCC | R14: =SUMIF(Q11:Q46,"T",N11:N45) -> 77198.59 | S14: =R14/N46 -> 0.04042511407 | T14: T | AA14: 17815.2
B15: 2 | E15: TERRAPLANAGEM | S15: =SUM(S11:S14) -> 1
A16: =VLOOKUP(O16,'RESUMO MODULO TOTAL'!$O$11:$P$45,2,0) -> 20 | B16: 2.1 | C16: Codevasf | D16: CPU-16 | E16: SERVIÇOS TOPOGRÁFICOS PARA PAVIMENTAÇÃO, INCLUSIVE NOTAS DE SERVIÇOS, ACOMPANHAMENTO E GREIDE | I16: m² | J16: ='MC MODULO'!J62 -> 14235.255 | K16: 0.2143 | L16: =ROUND(IF(C16="CODEVASF",VLOOKUP(D16,'CPU CODEVASF'!E:I,5,FALSE),VLOOKUP(D16,sintético_sicro,FALSE)),6) -> 0.56 | M16: =ROUND(IF(C16="CODEVASF",VLOOKUP(D16,'CPU CODEVASF'!E:H,4,FALSE),VLOOKUP(D16,'SINTÉTICO SICRO'!A:D,4,FALSE)*(1+$J$6)),6) -> 0.68 | N16: =ROUND(ROUND(J16,2)*ROUND(M16,6),2) -> 9679.98 | O16: 9679.98 | P16: =_xlfn.RANK.EQ(O16,$O$11:$O$45) -> 20 | Q16: T | AA16: 278460
A17: =VLOOKUP(O17,'RESUMO MODULO TOTAL'!$O$11:$P$45,2,0) -> 8 | B17: 2.2 | C17: SICRO | D17: 5502171 | E17: ESCAVAÇÃO, CARGA E TRANSPORTE DE MATERIAL DE 1ª CATEGORIA - DMT DE 2.000 A 2.500 M - CAMINHO DE SERVIÇO PAVIMENTADO - COM ESCAVADEIRA E CAMINHÃO BASCULANTE DE 14 M³ | I17: m³ | J17: ='MC MODULO'!J67 -> 4982.33925 | K17: 0.2143 | L17: =ROUND(IF(C17="CODEVASF",VLOOKUP(D17,'CPU CODEVASF'!E:I,5,FALSE),VLOOKUP(D17,sintético_sicro,4,FALSE)),6) -> 7.12 | M17: =ROUND(IF(C17="CODEVASF",VLOOKUP(D17,'CPU CODEVASF'!E:H,4,FALSE),VLOOKUP(D17,'SINTÉTICO SICRO'!A:D,4,FALSE)*(1+$J$6)),6) -> 8.645816 | N17: 43076.39 | O17: 43076.39 | P17: =_xlfn.RANK.EQ(O17,$O$11:$O$45) -> 8 | Q17: T | AA17: 366912
A18: =VLOOKUP(O18,'RESUMO MODULO TOTAL'!$O$11:$P$45,2,0) -> 13 | B18: 2.3 | C18: SICRO | D18: 5915319 | E18: TRANSPORTE COM CAMINHÃO BASCULANTE DE 14 M³ - RODOVIA EM LEITO NATURAL | I18: t x km | J18: ='MC MODULO'!J72 -> 14947.01775 | K18: 0.2143 | L18: =ROUND(IF(C18="CODEVASF",VLOOKUP(D18,'CPU CODEVASF'!E:I,5,FALSE),VLOOKUP(D18,sintético_sicro,4,FALSE)),6) -> 0.81 | M18: =ROUND(IF(C18="CODEVASF",VLOOKUP(D18,'CPU CODEVASF'!E:H,4,FALSE),VLOOKUP(D18,'SINTÉTICO SICRO'!A:D,4,FALSE)*(1+$J$6)),6) -> 0.983583 | N18: 14701.63 | O18: 14701.63 | P18: =_xlfn.RANK.EQ(O18,$O$11:$O$45) -> 13 | Q18: T
A19: =VLOOKUP(O19,'RESUMO MODULO TOTAL'!$O$11:$P$45,2,0) -> 19 | B19: 2.4 | C19: SICRO | D19: 4413942 | E19: ESPALHAMENTO DE MATERIAL EM BOTA-FORA | I19: m³ | J19: ='MC MODULO'!J80 -> 4982.33925 | K19: 0.2143 | L19: =ROUND(IF(C19="CODEVASF",VLOOKUP(D19,'CPU CODEVASF'!E:I,5,FALSE),VLOOKUP(D19,sintético_sicro,4,FALSE)),6) -> 1.61 | M19: =ROUND(IF(C19="CODEVASF",VLOOKUP(D19,'CPU CODEVASF'!E:H,4,FALSE),VLOOKUP(D19,'SINTÉTICO SICRO'!A:D,4,FALSE)*(1+$J$6)),6) -> 1.955023 | N19: 9740.59 | O19: 9740.59 | P19: =_xlfn.RANK.EQ(O19,$O$11:$O$45) -> 19 | Q19: T | AA19: 84084 | AF19: 1
B20: 3 | E20: PAVIMENTAÇÃO | S20: 0.3 | T20: 0.15
A21: =VLOOKUP(O21,'RESUMO MODULO TOTAL'!$O$11:$P$45,2,0) -> 2 | B21: 3.1 | C21: SICRO | D21: 4011463 | E21: CONCRETO ASFÁLTICO - FAIXA C - AREIA E BRITA COMERCIAIS | I21: t | J21: ='MC MODULO'!J86 -> 1579.8006 | K21: 0.2143 | L21: =ROUND(IF(C21="CODEVASF",VLOOKUP(D21,'CPU CODEVASF'!E:I,5,FALSE),VLOOKUP(D21,sintético_sicro,4,FALSE)),6) -> 207.79 | M21: =ROUND(IF(C21="CODEVASF",VLOOKUP(D21,'CPU CODEVASF'!E:H,4,FALSE),VLOOKUP(D21,'SINTÉTICO SICRO'!A:D,4,FALSE)*(1+$J$6)),6) -> 252.319397 | N21: =ROUND(ROUND(J21,2)*ROUND(M21,6),2) -> 398614.18 | O21: 398614.18 | P21: 2 | Q21: P | S21: =J21*S20 -> 473.94018 | AA21: 13037300.31
A22: =VLOOKUP(O22,'RESUMO MODULO TOTAL'!$O$11:$P$45,2,0) -> 23 | B22: 3.2 | C22: SICRO | D22: 4011352 | E22: IMPRIMAÇÃO COM EMULSÃO ASFÁLTICA | I22: m² | J22: ='MC MODULO'!J92 -> 13165.005 | K22: 0.2143 | L22: =ROUND(IF(C22="CODEVASF",VLOOKUP(D22,'CPU CODEVASF'!E:I,5,FALSE),VLOOKUP(D22,sintético_sicro,4,FALSE)),6) -> 0.38 | M22: =ROUND(IF(C22="CODEVASF",VLOOKUP(D22,'CPU CODEVASF'!E:H,4,FALSE),VLOOKUP(D22,'SINTÉTICO SICRO'!A:D,4,FALSE)*(1+$J$6)),6) -> 0.461434 | N22: =ROUND(ROUND(J22,2)*ROUND(M22,6),2) -> 6074.78 | O22: 6074.78 | P22: 23 | Q22: P | AA22: 223860
A23: =VLOOKUP(O23,'RESUMO MODULO TOTAL'!$O$11:$P$45,2,0) -> 4 | B23: 3.3 | C23: SICRO | D23: 4011256 | E23: BASE ESTABILIZADA GRANULOMETRICAMENTE COM MISTURA SOLO BRITA (70% - 30%) NA PISTA COM MATERIAL DE JAZIDA E BRITA COMERCIAL | I23: m³ | J23: ='MC MODULO'!J97 -> 1974.75075 | K23: 0.2143 | L23: =ROUND(IF(C23="CODEVASF",VLOOKUP(D23,'CPU CODEVASF'!E:I,5,FALSE),VLOOKUP(D23,sintético_sicro,4,FALSE)),6) -> 66.38 | M23: =ROUND(IF(C23="CODEVASF",VLOOKUP(D23,'CPU CODEVASF'!E:H,4,FALSE),VLOOKUP(D23,'SINTÉTICO SICRO'!A:D,4,FALSE)*(1+$J$6)),6) -> 80.605234 | N23: =ROUND(ROUND(J23,2)*ROUND(M23,6),2) -> 159175.19 | O23: =N23 -> 159175.19 | P23: 4 | Q23: P | R23: 4011256 | S23: =J23*S20 -> 592.425225 | AA23: 15919722
A24: =VLOOKUP(O24,'RESUMO MODULO TOTAL'!$O$11:$P$45,2,0) -> 10 | B24: 3.4 | C24: SICRO | D24: 4011228 | E24: SUB-BASE ESTABILIZADA GRANULOMETRICAMENTE COM MISTURA DE SOLOS NA PISTA COM MATERIAL DE JAZIDA | I24: m³ | J24: ='MC MODULO'!J103 -> 1974.75075 | K24: 0.2143 | L24: =ROUND(IF(C24="CODEVASF",VLOOKUP(D24,'CPU CODEVASF'!E:I,5,FALSE),VLOOKUP(D24,sintético_sicro,4,FALSE)),6) -> 11.99 | M24: =ROUND(IF(C24="CODEVASF",VLOOKUP(D24,'CPU CODEVASF'!E:H,4,FALSE),VLOOKUP(D24,'SINTÉTICO SICRO'!A:D,4,FALSE)*(1+$J$6)),6) -> 14.559457 | N24: =ROUND(ROUND(J24,2)*ROUND(M24,6),2) -> 28751.29 | O24: 28751.29 | P24: 10 | Q24: P | AA24: 2045862
A25: =VLOOKUP(O25,'RESUMO MODULO TOTAL'!$O$11:$P$45,2,0) -> 12 | B25: 3.5 | C25: SICRO | D25: 4011209 | E25: REGULARIZAÇÃO DO SUBLEITO | I25: m² | J25: ='MC MODULO'!J109 -> 14235.255 | K25: 0.2143 | L25: =ROUND(IF(C25="CODEVASF",VLOOKUP(D25,'CPU CODEVASF'!E:I,5,FALSE),VLOOKUP(D25,sintético_sicro,4,FALSE)),6) -> 1.08 | M25: =ROUND(IF(C25="CODEVASF",VLOOKUP(D25,'CPU CODEVASF'!E:H,4,FALSE),VLOOKUP(D25,'SINTÉTICO SICRO'!A:D,4,FALSE)*(1+$J$6)),6) -> 1.311444 | N25: =ROUND(ROUND(J25,2)*ROUND(M25,6),2) -> 18668.75 | O25: 18668.75 | P25: 12 | Q25: P | AA25: 540540
B26: 4 | E26: AQUISIÇÃO E TRANSPORTE DO MATERIAL BETUMINOSO
A27: =VLOOKUP(O27,'RESUMO MODULO TOTAL'!$O$11:$P$45,2,0) -> 1 | B27: 4.1 | C27: CODEVASF | D27: CPU-13 | E27: AQUISIÇÃO DE CIMENTO ASFALTICO CAP 50/70 | I27: t | J27: =' CONSUMO DE MAT. B TOTAL'!P11 -> 99.89 | K27: =$L$6 -> 0.1507 | L27: =ROUND(IF(C27="CODEVASF",VLOOKUP(D27,'CPU CODEVASF'!E:I,5,FALSE),VLOOKUP(D27,sintético_sicro,4,FALSE)),6) -> 4063.29 | M27: =ROUND(IF(C27="CODEVASF",VLOOKUP(D27,'CPU CODEVASF'!E:H,4,FALSE),VLOOKUP(D27,'SINTÉTICO SICRO'!A:D,4,FALSE)*(1+$L$6)),6) -> 4675.63 | N27: =ROUND(ROUND(J27,2)*ROUND(M27,6),2) -> 467048.68 | O27: 467048.68 | P27: 1 | Q27: P | R27: =(M27/L27)-1 -> 0.1507005407 | AA27: 16687334.66
A28: =VLOOKUP(O28,'RESUMO MODULO TOTAL'!$O$11:$P$45,2,0) -> 6 | B28: 4.2 | C28: CODEVASF | D28: CPU-17 | E28: TRANSPORTE CAP 50/70 | I28: t x km | J28: =' CONSUMO DE MAT. B TOTAL'!P11*RESUMO_Transp!M17 -> 91199.57 | K28: =$L$6 -> 0.1507 | L28: =ROUND(IF(C28="CODEVASF",VLOOKUP(D28,'CPU CODEVASF'!E:I,5,FALSE),VLOOKUP(D28,sintético_sicro,4,FALSE)),6) -> 0.74 | M28: =ROUND(IF(C28="CODEVASF",VLOOKUP(D28,'CPU CODEVASF'!E:H,4,FALSE),VLOOKUP(D28,'SINTÉTICO SICRO'!A:D,4,FALSE)*(1+$L$6)),6) -> 0.85 | N28: =ROUND(ROUND(J28,2)*ROUND(M28,6),2) -> 77519.63 | O28: 77519.63 | P28: 6 | Q28: P | R28: =(M28/L28)-1 -> 0.1486486486 | AA28: 553873.32
A29: =VLOOKUP(O29,'RESUMO MODULO TOTAL'!$O$11:$P$45,2,0) -> 7 | B29: 4.3 | C29: CODEVASF | D29: CPU-14 | E29: AQUISIÇÃO DE EAI | I29: t | J29: =' CONSUMO DE MAT. B TOTAL'!P8 -> 17.11 | K29: 0.1507 | L29: =ROUND(IF(C29="CODEVASF",VLOOKUP(D29,'CPU CODEVASF'!E:I,5,FALSE),VLOOKUP(D29,sintético_sicro,4,FALSE)),6) -> 2874.26 | M29: =ROUND(IF(C29="CODEVASF",VLOOKUP(D29,'CPU CODEVASF'!E:H,4,FALSE),VLOOKUP(D29,'SINTÉTICO SICRO'!A:D,4,FALSE)*(1+$L$6)),6) -> 3307.41 | N29: =ROUND(ROUND(J29,2)*ROUND(M29,6),2) -> 56589.79 | O29: 56589.79 | P29: 7 | Q29: P | R29: =(M29/L29)-1 -> 0.1506996583 | AA29: 3101079.07
A30: =VLOOKUP(O30,'RESUMO MODULO TOTAL'!$O$11:$P$45,2,0) -> 17 | B30: 4.4 | C30: CODEVASF | D30: CPU-18 | E30: TRANSPORTE DE EAI | I30: t x km | J30: =' CONSUMO DE MAT. B TOTAL'!P8*RESUMO_Transp!M35 -> 14218.41 | K30: 0.1507 | L30: =ROUND(IF(C30="CODEVASF",VLOOKUP(D30,'CPU CODEVASF'!E:I,5,FALSE),VLOOKUP(D30,sintético_sicro,4,FALSE)),6) -> 0.72 | M30: =ROUND(IF(C30="CODEVASF",VLOOKUP(D30,'CPU CODEVASF'!E:H,4,FALSE),VLOOKUP(D30,'SINTÉTICO SICRO'!A:D,4,FALSE)*(1+$L$6)),6) -> 0.83 | N30: =ROUND(ROUND(J30,2)*ROUND(M30,6),2) -> 11801.28 | O30: 11801.28 | P30: 17 | Q30: P | R30: =(M30/L30)-1 -> 0.1527777778 | AA30: 1243849.15
B31: 5 | E31: SINALIZAÇÃO
A32: =VLOOKUP(O32,'RESUMO MODULO TOTAL'!$O$11:$P$45,2,0) -> 22 | B32: 5.1 | C32: SICRO | D32: 5213440 | E32: FORNECIMENTO E IMPLANTAÇÃO DE PLACA DE REGULAMENTAÇÃO EM AÇO D = 0,60 M - PELÍCULA RETRORREFLETIVA TIPO I + SI | I32: und | J32: ='MC MODULO'!J115 -> 23 | K32: =$J$6 -> 0.2143 | L32: =ROUND(IF(C32="CODEVASF",VLOOKUP(D32,'CPU CODEVASF'!E:I,5,FALSE),VLOOKUP(D32,sintético_sicro,4,FALSE)),6) -> 254.09 | M32: =ROUND(IF(C32="CODEVASF",VLOOKUP(D32,'CPU CODEVASF'!E:H,4,FALSE),VLOOKUP(D32,'SINTÉTICO SICRO'!A:D,4,FALSE)*(1+$J$6)),6) -> 308.541487 | N32: =ROUND(ROUND(J32,2)*ROUND(M32,6),2) -> 7096.45 | O32: 7096.45 | P32: =_xlfn.RANK.EQ(O32,$O$11:$O$45) -> 22 | Q32: INCC | AA32: 9985.95
A33: =VLOOKUP(O33,'RESUMO MODULO TOTAL'!$O$11:$P$45,2,0) -> 15 | B33: 5.2 | C33: SICRO | D33: 5213863 | E33: SUPORTE METÁLICO GALVANIZADO PARA PLACA DE ADVERTÊNCIA OU REGULAMENTAÇÃO - LADO OU DIÂMETRO DE 0,60 M - FORNECIMENTO E IMPLANTAÇÃO | I33: und | J33: ='MC MODULO'!J121 -> 23 | K33: 0.2143 | L33: =ROUND(IF(C33="CODEVASF",VLOOKUP(D33,'CPU CODEVASF'!E:I,5,FALSE),VLOOKUP(D33,sintético_sicro,4,FALSE)),6) -> 435.1 | M33: =ROUND(IF(C33="CODEVASF",VLOOKUP(D33,'CPU CODEVASF'!E:H,4,FALSE),VLOOKUP(D33,'SINTÉTICO SICRO'!A:D,4,FALSE)*(1+$J$6)),6) -> 528.34193 | N33: 12151.86 | O33: 12151.86 | P33: =_xlfn.RANK.EQ(O33,$O$11:$O$45) -> 15 | Q33: INCC | AA33: 13086.06
A34: =VLOOKUP(O34,'RESUMO MODULO TOTAL'!$O$11:$P$45,2,0) -> 11 | B34: 5.3 | C34: SICRO | D34: 5213400 | E34: PINTURA DE FAIXA COM TINTA ACRÍLICA - ESPESSURA DE 0,4 MM | I34: m² | J34: ='MC MODULO'!J126+'MC MODULO'!J131 -> 642.15 | K34: 0.2143 | L34: =ROUND(IF(C34="CODEVASF",VLOOKUP(D34,'CPU CODEVASF'!E:I,5,FALSE),VLOOKUP(D34,sintético_sicro,4,FALSE)),6) -> 30.48 | M34: =ROUND(IF(C34="CODEVASF",VLOOKUP(D34,'CPU CODEVASF'!E:H,4,FALSE),VLOOKUP(D34,'SINTÉTICO SICRO'!A:D,4,FALSE)*(1+$J$6)),6) -> 37.011864 | N34: 23767.17 | O34: 23767.17 | P34: =_xlfn.RANK.EQ(O34,$O$11:$O$45) -> 11 | Q34: INCC
B35: 6 | E35: DRENAGEM
A36: =VLOOKUP(O36,'RESUMO MODULO TOTAL'!$O$11:$P$45,2,0) -> 3 | B36: 6.1 | C36: SICRO | D36: 2003373 | E36: MEIO-FIO DE CONCRETO - MFC 03 - AREIA E BRITA COMERCIAIS - FÔRMA DE MADEIRA | I36: m | J36: ='MC MODULO'!J137 -> 4281 | K36: 0.2143 | L36: =ROUND(IF(C36="CODEVASF",VLOOKUP(D36,'CPU CODEVASF'!E:I,5,FALSE),VLOOKUP(D36,sintético_sicro,4,FALSE)),6) -> 70.42 | M36: =ROUND(IF(C36="CODEVASF",VLOOKUP(D36,'CPU CODEVASF'!E:H,4,FALSE),VLOOKUP(D36,'SINTÉTICO SICRO'!A:D,4,FALSE)*(1+$J$6)),6) -> 85.511006 | N36: =ROUND(ROUND(J36,2)*ROUND(M36,6),2) -> 366072.62 | O36: 366072.62 | P36: =_xlfn.RANK.EQ(O36,$O$11:$O$45) -> 3 | Q36: D | S36: =J36*T20 -> 642.15 | AA36: 4514640
B37: 7 | E37: SERVIÇOS COMPLEMENTARES
A38: =VLOOKUP(O38,'RESUMO MODULO TOTAL'!$O$11:$P$45,2,0) -> 24 | B38: 7.1 | C38: Codevasf | D38: CPU-12 | E38: CONSERTO DE QUEBRA NO RAMAL NA RUA SEM PAVIMENTO COM FORNECIMENTO DE MATERIAL HIDRÁULICO | I38: m | J38: ='MC MODULO'!J143 -> 214.05 | K38: 0.2143 | L38: =ROUND(IF(C38="CODEVASF",VLOOKUP(D38,'CPU CODEVASF'!E:I,5,FALSE),VLOOKUP(D38,sintético_sicro,4,FALSE)),6) -> 15.6 | M38: =ROUND(IF(C38="CODEVASF",VLOOKUP(D38,'CPU CODEVASF'!E:H,4,FALSE),VLOOKUP(D38,'SINTÉTICO SICRO'!A:D,4,FALSE)*(1+$J$6)),6) -> 18.94 | N38: =ROUND(ROUND(J38,2)*ROUND(M38,6),2) -> 4054.11 | O38: 4054.11 | P38: =_xlfn.RANK.EQ(O38,$O$11:$O$45) -> 24 | Q38: INCC | AA38: 139854
B39: 8 | E39: PROJETO EXECUTIVO
A40: =VLOOKUP(O40,'RESUMO MODULO TOTAL'!$O$11:$P$45,2,0) -> 18 | B40: 8.1 | C40: Codevasf | D40: Composição Própria | E40: PROJETO EXECUTIVO | I40: m² | J40: ='MC MODULO'!J150 -> 14235.255 | K40: 0.2143 | L40: =ROUND(M40/(1+$J$6),6) -> 0.671079 | M40: =ROUND(('Projeto Executivo'!G34),6) -> 0.814891 | N40: =ROUND(ROUND(J40,2)*ROUND(M40,6),2) -> 11600.19 | O40: 11600.19 | P40: =_xlfn.RANK.EQ(O40,$O$11:$O$45) -> 18 | Q40: INCC | AA40: 763671.38
B41: 9 | E41: CONTROLE TECNOLÓGICO - OBRA
A42: =VLOOKUP(O42,'RESUMO MODULO TOTAL'!$O$11:$P$45,2,0) -> 21 | B42: 9.1 | C42: Codevasf | D42: CPU-21 | E42: CONTROLE TECNOLÓGICO - OBRA | I42: m² | J42: ='MC MODULO'!J156 -> 13165.005 | K42: 0.2143 | L42: =ROUND(IF(C42="CODEVASF",VLOOKUP(D42,'CPU CODEVASF'!E:I,5,FALSE),VLOOKUP(D42,sintético_sicro,4,FALSE)),6) -> 0.55 | M42: =ROUND(IF(C42="CODEVASF",VLOOKUP(D42,'CPU CODEVASF'!E:H,4,FALSE),VLOOKUP(D42,'SINTÉTICO SICRO'!A:D,4,FALSE)*(1+$J$6)),6) -> 0.67 | N42: 8820.56 | O42: 8820.56 | P42: 21 | Q42: INCC
B43: 10 | E43: MOMENTO DE TRANSPORTE
A44: =VLOOKUP(O44,'RESUMO MODULO TOTAL'!$O$11:$P$45,2,0) -> 5 | B44: 10.1 | C44: SICRO | D44: 5914389 | E44: TRANSPORTE COM CAMINHÃO BASCULANTE DE 10 M³ - RODOVIA PAVIMENTADA | I44: tkm | J44: =ROUND(SUMIF('MOMENTO DE TRANSPORTE - PRINC'!A:A,'RESUMO MODULO TOTAL'!D44,'MOMENTO DE TRANSPORTE - PRINC'!K:K)+SUMIF('MOMENTO DE TRANSPORTE - AUX'!A:A,'RESUMO MODULO TOTAL'!D44,'MOMENTO DE TRANSPORTE - AUX'!L:L),2) -> 121787.5 | K44: 0.2143 | L44: =ROUND(IF(C44="CODEVASF",VLOOKUP(D44,'CPU CODEVASF'!E:I,5,FALSE),VLOOKUP(D44,sintético_sicro,4,FALSE)),6) -> 0.72 | M44: =ROUND(IF(C44="CODEVASF",VLOOKUP(D44,'CPU CODEVASF'!E:H,4,FALSE),VLOOKUP(D44,'SINTÉTICO SICRO'!A:D,4,FALSE)*(1+$J$6)),6) -> 0.874296 | N44: 106478.32 | O44: =N44 -> 106478.32 | P44: 5 | Q44: INCC | R44: 2661529.15 | S44: 2660947.11 | T44: =R44-S44 -> 582.04
A45: =VLOOKUP(O45,'RESUMO MODULO TOTAL'!$O$11:$P$45,2,0) -> 26 | B45: 10.2 | C45: SICRO | D45: 5914479 | E45: TRANSPORTE COM CAMINHÃO DE CARROCERIA DE 15 t - RODOVIA PAVIMENTADA | I45: tkm | J45: =ROUND(SUMIF('MOMENTO DE TRANSPORTE - PRINC'!A:A,'RESUMO MODULO TOTAL'!D45,'MOMENTO DE TRANSPORTE - PRINC'!K:K)+SUMIF('MOMENTO DE TRANSPORTE - AUX'!A:A,'RESUMO MODULO TOTAL'!D45,'MOMENTO DE TRANSPORTE - AUX'!L:L),2) -> 560.38 | K45: 0.2143 | L45: =ROUND(IF(C45="CODEVASF",VLOOKUP(D45,'CPU CODEVASF'!E:I,5,FALSE),VLOOKUP(D45,sintético_sicro,4,FALSE)),6) -> 0.66 | M45: =ROUND(IF(C45="CODEVASF",VLOOKUP(D45,'CPU CODEVASF'!E:H,4,FALSE),VLOOKUP(D45,'SINTÉTICO SICRO'!A:D,4,FALSE)*(1+$J$6)),6) -> 0.801438 | N45: 449.11 | O45: =N45 -> 449.11 | P45: 26 | Q45: INCC | R45: 2661529.15 | S45: 2660947.11 | T45: =R45-S45 -> 582.04
B46: VALOR TOTAL | N46: =SUM(N11:N45) -> 1909669.07 | AA46: =SUM(AA11:AA40) -> 59789384.1
N47: =N46+263598.61 -> 2173267.68
P48: 1909349.98
N50: =2000000 -> 2000000
N51: =1-(N50/N46) -> -0.04730187624
N53: 1910000 | P53: =N46/J25 -> 134.1506752
P54: =N53/P53 -> 14237.72185 | R54: 14353.68618
N55: =N46-N53 -> -330.93
N57: =N53/N6 -> 13167.28639
N58: ='MC MODULO'!I23-'RESUMO MODULO TOTAL'!N57 -> -2.281387479
N59: =N58/6 -> -0.3802312464

Sheet CRONOGRAMA TOTAL
A2: ='RESUMO MODULO TOTAL'!B1 -> Item 02: Pavimentação em Concreto Betuminoso Usinado a Quente (CBUQ) na sede do município de Santa Maria da Vitória, dentro da área de abrangência da 2ª Superintendência Regional da Codevasf, no estado da Bahia.
A3: Cronograma Físico e Financeiro
A4: Item | B4: Descrição | C4: Total Por Etapa | D4: Mês 01 | E4: Mês 02 | F4: Mês 03 | G4: Mês 04 | H4: Mês 05
B5: ='RESUMO MODULO TOTAL'!E10 -> SERVIÇOS PRELIMINARES | C5: 1 | E5: =1/4 -> 0.25 | F5: =1/4 -> 0.25 | G5: 0.25 | H5: 0.25 | K5: =SUM(D5:I5) -> 1
C6: =SUM('RESUMO MODULO TOTAL'!N11:N14) -> 67736.52 | E6: =$C$6*E5 -> 16934.13 | F6: =$C$6*F5 -> 16934.13 | G6: 16934.13 | H6: 16934.13 | K6: =SUM(D6:I6) -> 67736.52 | L6: =C6 -> 67736.52 | M6: =K6-L6 -> 0
B7: ='RESUMO MODULO TOTAL'!E15 -> TERRAPLANAGEM | C7: 1 | E7: =1/2 -> 0.5 | F7: =1/2 -> 0.5 | K7: =SUM(D7:I7) -> 1
C8: =SUM('RESUMO MODULO TOTAL'!N16:N19) -> 77198.59 | E8: =$C$8*E7 -> 38599.295 | F8: =$C$8*F7 -> 38599.295 | K8: =SUM(D8:I8) -> 77198.59 | L8: =C8 -> 77198.59 | M8: =K8-L8 -> 0
B9: ='RESUMO MODULO TOTAL'!E20 -> PAVIMENTAÇÃO | C9: 1 | F9: =1/3 -> 0.3333333333 | G9: =1/3 -> 0.3333333333 | H9: 0.3333333333 | K9: =SUM(F9:I9) -> 1
C10: =SUM('RESUMO MODULO TOTAL'!N21:N25) -> 611284.19 | F10: =$C$10*F9 -> 203761.3967 | G10: =$C$10*G9 -> 203761.3967 | H10: =$C$10*H9 -> 203761.3967 | K10: =SUM(F10:I10) -> 611284.19 | L10: =C10 -> 611284.19 | M10: =K10-L10 -> 0
B11: AQUISIÇÃO E TRANSPORTE DE MATERIAL BETUMINOSO | C11: 1 | F11: =1/3 -> 0.3333333333 | G11: =1/3 -> 0.3333333333 | H11: =1/3 -> 0.3333333333
C12: =SUM('RESUMO MODULO TOTAL'!N27:N30) -> 612959.38 | F12: =$C$12*F11 -> 204319.7933 | G12: =$C$12*G11 -> 204319.7933 | H12: =$C$12*H11 -> 204319.7933
B13: ='RESUMO MODULO TOTAL'!E31 -> SINALIZAÇÃO | C13: 1 | H13: =1 -> 1 | K13: =SUM(F13:I13) -> 1
C14: =SUM('RESUMO MODULO TOTAL'!N32:N34) -> 43015.48 | H14: =$C$14*H13 -> 43015.48 | K14: =SUM(F14:I14) -> 43015.48 | L14: =C14 -> 43015.48 | M14: =K14-L14 -> 0
B15: ='RESUMO MODULO TOTAL'!E35 -> DRENAGEM | C15: 1 | G15: =1/2 -> 0.5 | H15: =1/2 -> 0.5 | K15: =SUM(D15:I15) -> 1
C16: ='RESUMO MODULO TOTAL'!N36 -> 366072.62 | G16: =$C$16*G15 -> 183036.31 | H16: =$C$16*H15 -> 183036.31 | K16: 366072.62 | L16: =C16 -> 366072.62 | M16: =K16-L16 -> 0
B17: ='RESUMO MODULO TOTAL'!E37 -> SERVIÇOS COMPLEMENTARES | C17: 1 | F17: =1/3 -> 0.3333333333 | G17: =1/3 -> 0.3333333333 | H17: =1/3 -> 0.3333333333 | K17: 1
C18: =SUM('RESUMO MODULO TOTAL'!N38) -> 4054.11 | F18: =$C$18*F17 -> 1351.37 | G18: =$C$18*G17 -> 1351.37 | H18: =$C$18*H17 -> 1351.37 | K18: 4054.11 | L18: =C18 -> 4054.11 | M18: =K18-L18 -> 0
B19: ='RESUMO MODULO TOTAL'!E39 -> PROJETO EXECUTIVO | C19: 1 | D19: =1 -> 1 | K19: 1
C20: =SUM('RESUMO MODULO TOTAL'!N40) -> 11600.19 | D20: =$C$20*D19 -> 11600.19 | K20: 11600.19 | L20: =C20 -> 11600.19 | M20: =K20-L20 -> 0
B21: ='RESUMO MODULO TOTAL'!E41 -> CONTROLE TECNOLÓGICO - OBRA | C21: 1 | E21: =1/4 -> 0.25 | F21: =1/4 -> 0.25 | G21: 0.25 | H21: 0.25 | K21: 1
C22: =SUM('RESUMO MODULO TOTAL'!N42) -> 8820.56 | E22: =$C$22*E21 -> 2205.14 | F22: =$C$22*F21 -> 2205.14 | G22: =$C$22*G21 -> 2205.14 | H22: =$C$22*H21 -> 2205.14 | K22: 8820.56 | L22: =C22 -> 8820.56 | M22: =K22-L22 -> 0
B23: ='RESUMO MODULO TOTAL'!E43 -> MOMENTO DE TRANSPORTE | C23: 1 | F23: =1/3 -> 0.3333333333 | G23: =1/3 -> 0.3333333333 | H23: =1/3 -> 0.3333333333 | K23: 1
C24: =SUM('RESUMO MODULO TOTAL'!N44:N45) -> 106927.43 | F24: =$C$24*F23 -> 35642.47667 | G24: =$C$24*G23 -> 35642.47667 | H24: =$C$24*H23 -> 35642.47667 | K24: 106927.43 | L24: =C24 -> 106927.43 | M24: =K24-L24 -> 0
A26: Porcentagem | D26: =SUM(D6+D10+D14+D16+D12+D8+D18+D20+D22+D24)/$H$31 -> 0.006074450376 | E26: =SUM(E6+E10+E14+E16+E12+E8+E18+E20+E22+E24)/$H$31 -> 0.03023485373 | F26: =SUM(F6+F10+F14+F16+F12+F8+F18+F20+F22+F24)/$H$31 -> 0.2632988142 | G26: =SUM(G6+G10+G14+G16+G12+G8+G18+G20+G22+G24)/$H$31 -> 0.3389333926 | H26: =SUM(H6+H10+H14+H16+H12+H8+H18+H20+H22+H24)/$H$31 -> 0.3614584891
A27: Custo | D27: =$H$31*D26 -> 11600.19 | E27: =$H$31*E26 -> 57738.565 | F27: =$H$31*F26 -> 502813.6017 | G27: =$H$31*G26 -> 647250.6167 | H27: =$H$31*H26 -> 690266.0967
A28: Porcentagem Acumulado | D28: =D26 -> 0.006074450376 | E28: =D28+E26 -> 0.0363093041 | F28: =E28+F26 -> 0.2996081183 | G28: 0.6385415109 | H28: 1
A29: Custo Acumulado | D29: =D27 -> 11600.19 | E29: =D29+E27 -> 69338.755 | F29: 572152.3567 | G29: 1219402.973 | H29: 1909669.07
D31: Total Geral | H31: ='RESUMO MODULO TOTAL'!$N$46 -> 1909669.07
B46: VALOR TOTAL

Sheet MC MODULO
C4: DADOS DO PROJETO
E6: Nº de municípios (módulos) | F6: 1 | J6: LEGENDA
E7: Nº de ruas | F7: 4
J8: ENTRADA DE DADOS
D9: REBAIXAMENTO DE GREIDE (m) | E9: ESPESSURA CBUQ (m) | F9: LARGURA DA SARJETA (m) | G9: ESPESSURA DA BASE (m) | H9: ESPESSURA DA SUB-BASE (m)
D10: =E10+G10+H10 -> 0.35 | E10: 0.05 | F10: 0.25 | G10: 0.15 | H10: 0.15
D12: RUAS | E12: EXTENSÃO (m) | F12: LARGURA TOTAL (m) | G12: ÁREA TOTAL (m²) | H12: LARGURA EFETIVA (m) | I12: ÁREA EFETIVA (m²) | J12: PLACA DE REGULAMENTAÇÃO (un.) | K12: SINALIZAÇÃO HORIZONTAL
D13: RUA SANTA RITA | E13: 732.29 | F13: 8 | G13: =E13*F13 -> 5858.32 | H13: =F13-2*$F$10 -> 7.5 | I13: =E13*H13 -> 5492.175 | J13: 1 | K13: Faixa de separação contínua
D14: RUA PROJETADA 2 | E14: =413.75 -> 413.75 | F14: 6 | G14: =E14*F14 -> 2482.5 | H14: =F14-2*$F$10 -> 5.5 | I14: =E14*H14 -> 2275.625 | J14: 8 | K14: Faixa de separação contínua
D15: TV EUSEBIO DE QUEIROZ - TRECHO 1 | E15: 287.27 | F15: 6 | G15: 1723.62 | H15: 5.5 | I15: 1579.985 | J15: 4 | K15: Faixa de separação contínua
D16: TV EUSEBIO DE QUEIROZ - TRECHO 2 | E16: 65.03 | F16: 5 | G16: 325.15 | H16: 4.5 | I16: 292.635 | J16: 2 | K16: Faixa de separação contínua
D17: TV EUSEBIO DE QUEIROZ - TRECHO 3 | E17: 51.57 | F17: 6 | G17: 309.42 | H17: 5.5 | I17: 283.635 | J17: 2 | K17: Faixa de separação contínua
D18: RUA DOIS | E18: 9.03 | F18: 5.5 | G18: 49.665 | H18: 5 | I18: 45.15 | J18: 0 | K18: Faixa de separação contínua
D19: TV EUSEBIO DE QUEIROZ - REDUÇÃO 2 | E19: 5.56 | F19: 5.5 | G19: 30.58 | H19: 5 | I19: 27.8 | J19: 0 | K19: Faixa de separação contínua
D20: RUA 02 | E20: 186.61 | F20: 6 | G20: 1119.66 | H20: 5.5 | I20: 1026.355 | J20: 2 | K20: Faixa de separação contínua
D21: RUA 03 | E21: 192.15 | F21: 6 | G21: 1152.9 | H21: 5.5 | I21: 1056.825 | J21: 2 | K21: Faixa de separação contínua
D22: RUA 04 | E22: 197.24 | F22: 6 | G22: 1183.44 | H22: 5.5 | I22: 1084.82 | J22: 2 | K22: Faixa de separação contínua
D23: TOTAL | E23: =SUM(E13:E22) -> 2140.5 | G23: =SUM(G13:G22) -> 14235.255 | I23: =SUM(I13:I22) -> 13165.005 | J23: =SUM(J13:J22) -> 23
D25: COORDENADAS MÉDIAS
D26: Local de Execução dos Serviços | E26: -13.3889, -44.2102 | F26: Calculado por média ponderada (Fator = Área Total)
E28: COORDENADAS | F28: INÍCIO TRECHO SEM PAVIMENTO | G28: Trecho LEITO NATURAL (km) | H28: Trecho PAVIMENTADO (km) | I28: TOTAL
D29: JAZIDA MATERIAL DE BASE | E29: -13.3891, -44.1261 | F29: -13.3933, -44.1252 | G29: 0 | H29: =I29-G29 -> 11.3 | I29: 11.3
D30: JAZIDA DE BRITA | E30: -13.4334, -44.2137 | F30: -13.4298, -44.2158 | G30: 0 | H30: =I30-G30 -> 7.8 | I30: 7.8
D31: JAZIDA DE AREIA MÉDIA | E31: -13.4334, -44.2137 | F31: -13.4298, -44.2158 | G31: 0 | H31: =I31-G31 -> 7.8 | I31: 7.8
D32: BOTA-FORA | E32: -13.3664, -44.1928 | F32: -13.3798, -44.1961 | G32: 1.6 | H32: =I32-G32 -> 2.2 | I32: 3.8
C35: MEMÓRIA DE CÁLCULO
C37: 1 | D37: SERVIÇOS PRELIMINARES
C38: 1.1 | D38: Mobilização e Desmobilização
D40: Mobilização e Desmobilização (t x Km)
D41: =SUM('Mob e Desmob'!E33,'Mob e Desmob'!E32) -> 17506.55 | E41: = | F41: =D41 -> 17506.55
C43: 1.2 | D43: Administração da obra
D45: Módulos(un) | F45: Módulos(un)
B46: VALOR TOTAL | D46: 1 | E46: = | F46: =D46 -> 1
C48: 1.3 | D48: Canteiro de Obras e Almoxarifado
D50: Prazo de Execução da Obra (meses) | F50: Prazo de Execução da Obra (meses)
D51: 4 | E51: = | F51: =D51 -> 4
C53: 1.4 | D53: Placa de Obra de Aço Galvanizado
D55: Comprimento | E55: Largura | F55: Módulos(un) | H55: Área (m²)
D56: 2.4 | E56: 1.2 | F56: 1 | G56: = | H56: =D56*E56*F56 -> 2.88
C58: 2 | D58: TERRAPLENAGEM
C59: 2.1 | D59: Serviços topográficos para pavimentação, inclusive notas de serviços, acompanhamento e greide
D61: Extensão (m) | F61: Largura média (m) | J61: Área (m²)
D62: =E23 -> 2140.5 | E62: x | F62: =G23/E23 -> 6.650434478 | I62: = | J62: =D62*F62 -> 14235.255
C64: 2.2 | D64: Escavação, carga e transporte de material de 1ª categoria - DMT de 2.000 a 2.500 m - caminho de serviço pavimentado - com escavadeira e caminhão basculante de 14 m³
D66: Extensão (m) | F66: Largura média (m) | H66: Espessura (m) | J66: Volume (m³)
D67: =E23 -> 2140.5 | E67: x | F67: =G23/E23 -> 6.650434478 | G67: x | H67: =D10 -> 0.35 | I67: = | J67: =D67*F67*H67 -> 4982.33925
C69: 2.3 | D69: Transporte com caminhão basculante de 14 m³ - rodovia em leito natural
D71: Extensão (m) | E71: Largura média (m) | F71: Espessura (m) | G71: Massa transportada (t) | H71: Distância (km) | J71: Massa (t) x Distância (km)
D72: =E23 -> 2140.5 | E72: =G23/E23 -> 6.650434478 | F72: =D10 -> 0.35 | G72: =G75*E75 -> 9341.886094 | H72: =G32 -> 1.6 | I72: = | J72: =G72*H72 -> 14947.01775
D74: Densidade do solo in situ (t/m³) | E74: Densidade do solo transportado (t/m³) | F74: Fator empolamento solo transportado | G74: Volume transportado (m³)
D75: 1.875 | E75: 1.5 | F75: =D75/E75 -> 1.25 | G75: =D72*E72*F72*F75 -> 6227.924062
C77: 2.4 | D77: Espalhamento de material em bota-fora
D79: Extensão (m) | F79: Largura média (m) | H79: Espessura (m) | J79: Volume (m³)
D80: =E23 -> 2140.5 | E80: x | F80: =J80/(D80*H80) -> 6.650434478 | G80: x | H80: =D10 -> 0.35 | I80: = | J80: =G23*H80 -> 4982.33925
C82: 3 | D82: PAVIMENTAÇÃO
C83: 3.1 | D83: Concreto asfáltico - faixa C - areia e brita comerciais
D85: Extensão (m) | E85: Largura média efetiva (m) | F85: Espessura (m) | G85: Densidade (t/m³) | J85: Massa (t)
D86: =E23 -> 2140.5 | E86: =I23/E23 -> 6.150434478 | F86: =E10 -> 0.05 | G86: 2.4 | I86: = | J86: =D86*E86*F86*G86 -> 1579.8006
C89: 3.2 | D89: Imprimação com emulsão asfáltica
D91: Extensão (m) | F91: Largura média efetiva (m) | J91: Área (m²)
D92: =E23 -> 2140.5 | E92: x | F92: =I23/E23 -> 6.150434478 | I92: = | J92: =D92*F92 -> 13165.005
C94: 3.3 | D94: Base estabilizada granulometricamente com mistura solo brita (70% - 30%) em usina com material de jazida e brita comercial
D96: Extensão (m) | F96: Largura média efetiva (m) | H96: Espessura (m) | J96: Volume (m³)
D97: =E23 -> 2140.5 | E97: x | F97: =I23/E23 -> 6.150434478 | G97: x | H97: =G10 -> 0.15 | I97: = | J97: =I23*H97 -> 1974.75075
C100: 3.4 | D100: Sub-base estabilizada granulometricamente com mistura de solos na pista com material de jazida
D102: Extensão (m) | F102: Largura média efetiva (m) | H102: Espessura (m) | J102: Volume (m³)
D103: =E23 -> 2140.5 | E103: x | F103: =I23/E23 -> 6.150434478 | G103: x | H103: =H10 -> 0.15 | I103: = | J103: =D103*F103*H103 -> 1974.75075
C106: 3.5 | D106: Regularização do subleito
D108: Extensão (m) | F108: Largura média (m) | J108: Área (m²)
D109: =E23 -> 2140.5 | E109: x | F109: =G23/E23 -> 6.650434478 | I109: = | J109: =D109*F109 -> 14235.255
C111: 5 | D111: SINALIZAÇÃO
C112: 5.1 | D112: Fornecimento e implantação de placa de regulamentação em aço D = 0,60 m - película retrorrefletiva tipo I + SI
D114: Extensão (km) | F114: Quant. (un) | J114: Quant. (un)
D115: =E23/1000 -> 2.1405 | F115: =J23 -> 23 | I115: = | J115: =F115 -> 23
C118: 5.2 | D118: Fornecimento e implantação de suporte metálico galvanizado para placa de regulamentação - D = 0,60 m
D120: Extensão (km) | F120: Quant. (un) | J120: Quant. (un)
D121: =E23/1000 -> 2.1405 | F121: =J23 -> 23 | I121: = | J121: =F121 -> 23
C123: 5.3 | D123: Pintura de faixa com tinta acrílica - espessura de 0,4 mm (bordos)
D125: Extensão (m) | F125: Espessura (m) | J125: Quant. (m²)
D126: =E23 -> 2140.5 | E126: x | F126: 0.1 | I126: = | J126: =D126*F126*2 -> 428.1
C128: 5.4 | D128: Pintura de faixa com tinta acrílica - espessura de 0,4 mm (faixa central)
D130: Extensão (m) | F130: Espessura (m) | J130: Quant. (m²)
D131: =E23 -> 2140.5 | E131: x | F131: 0.1 | J131: =D131*F131 -> 214.05
C133: 6 | D133: DRENAGEM
C134: 6.1 | D134: Meio-fio de concreto - MFC 03 - areia e brita comerciais - fôrma de madeira
D136: Extensão (m) | F136: Quant. (un) | J136: Extensão(m)
D137: =E23 -> 2140.5 | E137: x | F137: 2 | I137: = | J137: =D137*F137 -> 4281
C139: 7 | D139: SERVIÇOS COMPLEMENTARES
C140: 7.1 | D140: Conserto de Quebra de Ramal
D142: Extensão (m) | F142: Quantidade (10%) | I142: 0.1 | J142: Extensão (m)
D143: =E23 -> 2140.5 | E143: x | F143: =0.1 -> 0.1 | G143: x | I143: = | J143: =D143*F143 -> 214.05
C146: 8 | D146: PROJETO EXECUTIVO
C147: 8.1 | D147: Projeto Executivo
D149: Extensão (m) | F149: Largura média (m) | H149: Quant. (un) | J149: Área (m²)
D150: =E23 -> 2140.5 | E150: x | F150: =G23/E23 -> 6.650434478 | G150: x | H150: 1 | I150: = | J150: =D150*F150*H150 -> 14235.255
C152: 9 | D152: CONTROLE TECNOLOGICO - OBRA E PROJETO
C153: 9.1 | D153: Controle Tecnológico - Obra
D155: Extensão (m) | E155: x | F155: Largura média efetiva (m) | G155: x | H155: Quant. (un) | J155: Área (m²)
D156: =E23 -> 2140.5 | F156: =I23/E23 -> 6.150434478 | H156: 1 | I156: = | J156: =D156*F156*H156 -> 13165.005

Sheet CONSUMO DE MAT. B TOTAL
B3: CONSUMO DO MATERIAL BETUMINOSO TOTAL
B5: TRECHO | D5: QUANTIDADES | M5: MAT. BETUMINOSO
B6: Inicio (km) | C6: Fim (km) | D6: Extensão (m) | E6: Largura (m) | F6: Espess. (m) | G6: Área (m²) | H6: Volume (m³) | I6: Densidade (t/m³) | J6: Massa (t) | K6: Unid | L6: Quant. | M6: Tipo | N6: Consumo Taxa de Aplicação | O6: Unid. | P6: Quant.
B7: IMPRIMAÇÃO
F8: 1 | G8: ='MC MODULO'!J92 -> 13165.005 | H8: =G8*F8 -> 13165.005 | M8: EAI | N8: 1,3 l/m² | O8: t | P8: =ROUND((G8*1.3*1)/1000,2) -> 17.11
F9: 1 | G9: 0 | H9: 0 | M9: RR-1C | N9: 1,2 l/m2 | O9: t | P9: =ROUND((G9*1.2*1)/1000,2) -> 0
B10: CBUQ FAIXA "C"
H11: =G11*F11 -> 0 | J11: ='MC MODULO'!J86 -> 1579.8006 | M11: CAP-50/70 | N11: 63,23 t/t | O11: t | P11: =ROUND((J11*63.23*1)/1000,2) -> 99.89
B12: CBUQ FAIXA "B"
H13: =G13*F13 -> 0 | M13: CAP-50/70 | N13: 56,60 t/m3 | O13: t | P13: =ROUND((J13*56.6)/1000,2) -> 0
H15: =G15*F15 -> 0
B46: VALOR TOTAL

Sheet CPU CODEVASF
A4: ='RESUMO MODULO TOTAL'!B1 -> Item 02: Pavimentação em Concreto Betuminoso Usinado a Quente (CBUQ) na sede do município de Santa Maria da Vitória, dentro da área de abrangência da 2ª Superintendência Regional da Codevasf, no estado da Bahia.
F5: BDI %: | G5: =BDI!$C$25 -> 0.2143
E6: Encargos Sociais: | G6: Horista | H6: Mensalista
G7: ='ENC. SOCIAIS'!E51/100 -> 1.1515 | H7: ='ENC. SOCIAIS'!F51/100 -> 0.7122
A8: COMPOSIÇÕES DE CUSTO UNITARIO
A9: CPU-01 | B9: SINAPI | C9: 103689 (modificada) | D9: PLACA DE OBRA EM CHAPA DE ACO GALVANIZADO | E9: m² | F9: COEF. | G9: PRECO UNITÁRIO (R$) | H9: TOTAL (R$)
A11: INS. SINAPI | B11: SINAPI | C11: 4509 | D11: =VLOOKUP(C11,'INSUMOS SINAPI'!A:E,2,0) -> SARRAFO *2,5 X 10* CM EM PINUS, MISTA OU EQUIVALENTE DA REGIAO - BRUTA | E11: kg | F11: 3,2083000 | G11: =IFERROR(VLOOKUP(C11,'INSUMOS SINAPI'!A:E,5,FALSE),VLOOKUP(C11,'COMP Sint. Sinapi'!G:K,5,FALSE)) -> 4,74 | H11: =F11*G11 -> 15.207342
A12: INS. SINAPI | B12: SINAPI | C12: 4813 | D12: =VLOOKUP(C12,'INSUMOS SINAPI'!A:E,2,0) -> PLACA DE OBRA (PARA CONSTRUCAO CIVIL) EM CHAPA GALVANIZADA *N. 22*, ADESIVADA, DE *2,4 X 1,2* M (SEM POSTES PARA FIXACAO) | E12: m² | F12: 1,0000000 | G12: =IFERROR(VLOOKUP(C12,'INSUMOS SINAPI'!A:E,5,FALSE),VLOOKUP(C12,'COMP Sint. Sinapi'!G:K,5,FALSE)) -> 325,00 | H12: =F12*G12 -> 325
A13: INS. SINAPI | B13: SINAPI | C13: 5065 | D13: =VLOOKUP(C13,'INSUMOS SINAPI'!A:E,2,0) -> PREGO DE ACO POLIDO COM CABECA 10 X 10 (7/8 X 17) | E13: m | F13: 0,0113000 | G13: =IFERROR(VLOOKUP(C13,'INSUMOS SINAPI'!A:E,5,FALSE),VLOOKUP(C13,'COMP Sint. Sinapi'!G:K,5,FALSE)) -> 36,47 | H13: 0.412111
A14: INS. SINAPI | B14: SINAPI | C14: 5069 | D14: =VLOOKUP(C14,'INSUMOS SINAPI'!A:E,2,0) -> PREGO DE ACO POLIDO COM CABECA 17 X 27 (2 1/2 X 11) | E14: m² | F14: 0,0132000 | G14: =IFERROR(VLOOKUP(C14,'INSUMOS SINAPI'!A:E,5,FALSE),VLOOKUP(C14,'COMP Sint. Sinapi'!G:K,5,FALSE)) -> 19,54 | H14: 0.257928
A15: COMP. SINAPI | B15: SINAPI | C15: 102234 | D15: =VLOOKUP(C15,'COMP Sint. Sinapi'!G:K,2,0) -> PINTURA IMUNIZANTE PARA MADEIRA, 2 DEMÃOS. AF_01/2021 | E15: h | F15: 0,5000000 | G15: =IFERROR(VLOOKUP(C15,'INSUMOS SINAPI'!A:E,5,FALSE),VLOOKUP(C15,'COMP Sint. Sinapi'!G:K,5,FALSE)) -> 23,99 | H15: 11.995
A16: INS. SICRO | B16: SICRO | C16: P9808 | D16: =IFERROR(VLOOKUP(C16,'MO SICRO'!A:G,2,0),VLOOKUP(C16,'COMP Sint. Sinapi'!G:K,2,0)) -> Carpinteiro | E16: h | F16: 0,3729000 | G16: =IFERROR(VLOOKUP(C16,'MO SICRO'!A:G,6,0),IFERROR(VLOOKUP(C16,'INSUMOS SINAPI'!A:E,5,FALSE),VLOOKUP(C16,'COMP Sint. Sinapi'!G:K,5,FALSE))) -> 29.1205 | H16: 10.85903445
A17: INS. SICRO | B17: SICRO | C17: P9824 | D17: =IFERROR(VLOOKUP(C17,'MO SICRO'!A:G,2,0),VLOOKUP(C17,'COMP Sint. Sinapi'!G:K,2,0)) -> Servente | E17: h | F17: 1,1186000 | G17: =IFERROR(VLOOKUP(C17,'MO SICRO'!A:G,6,0),IFERROR(VLOOKUP(C17,'INSUMOS SINAPI'!A:E,5,FALSE),VLOOKUP(C17,'COMP Sint. Sinapi'!G:K,5,FALSE))) -> 20.681 | H17: 23.1337666
E18: Sub total: | H18: =ROUND(SUM(H11:H17),2) -> 386.87
F19: BDI | G19: =BDI!$C$25 -> 0.2143 | H19: =H18*G19 -> 82.906241
G20: Total Serviços: | H20: =H18+H19 -> 469.776241
E21: =A9 -> CPU-01 | F21: PREÇO UNITÁRIO TOTAL: | H21: =ROUND(H20,2) -> 469.78 | I21: =H18 -> 386.87
A23: CPU-02 | B23: CODEVASF | C23: Propria | D23: MOBILIZAÇÃO E DESMOBILIZAÇÃO | E23: T x km | F23: COEF. | G23: PRECO UNITÁRIO (R$) | H23: TOTAL (R$)
A25: COMP. SICRO | B25: SICRO | C25: 5914640 | D25: TRANSPORTE COM CAVALO MECÂNICO COM SEMIRREBOQUE COM CAPACIDADE DE 30 T - RODOVIA PAVIMENTADA | E25: T x km | F25: 1 | G25: 0.57 | H25: =F25*G25 -> 0.57
E26: Sub total: | H26: =ROUND(SUM(H25:H25),2) -> 0.57
F27: BDI | G27: =BDI!$C$25 -> 0.2143 | H27: =H26*G27 -> 0.122151
G28: Total Serviços: | H28: =H26+H27 -> 0.692151
E29: =A23 -> CPU-02 | F29: PREÇO UNITÁRIO TOTAL: | H29: =ROUND(H28,2) -> 0.69 | I29: =H26 -> 0.57
A31: CPU-03 | B31: CODEVASF | D31: ADMINISTRAÇÃO LOCAL | E31: % | F31: COEF. | G31: PRECO UNITÁRIO (R$) | H31: TOTAL (R$)
A33: COMP. SINAPI | B33: SINAPI | C33: 90777 | D33: =VLOOKUP(C33,'COMP Sint. Sinapi'!G:K,2,0) -> ENGENHEIRO CIVIL DE OBRA JUNIOR COM ENCARGOS COMPLEMENTARES | E33: H | F33: 85 | G33: =IFERROR(VLOOKUP(C33,'INSUMOS SINAPI'!A:E,5,FALSE),VLOOKUP(C33,'COMP Sint. Sinapi'!G:K,5,FALSE)) -> 113,34 | H33: =F33*G33 -> 9633.9 | I33: =F33/8 -> 10.625 | J33: 20 | K33: =J33*5 -> 100
A34: COMP. SINAPI | B34: SINAPI | C34: 90780 | D34: =VLOOKUP(C34,'COMP Sint. Sinapi'!G:K,2,0) -> MESTRE DE OBRAS COM ENCARGOS COMPLEMENTARES | E34: H | F34: 180 | G34: =IFERROR(VLOOKUP(C34,'INSUMOS SINAPI'!A:E,5,FALSE),VLOOKUP(C34,'COMP Sint. Sinapi'!G:K,5,FALSE)) -> 50,25 | H34: 9045 | J34: 40 | K34: =J34*5 -> 200
A35: COMP. SINAPI | B35: SINAPI | C35: 90772 | D35: =VLOOKUP(C35,'COMP Sint. Sinapi'!G:K,2,0) -> AUXILIAR DE ESCRITORIO COM ENCARGOS COMPLEMENTARES | E35: H | F35: 180 | G35: =IFERROR(VLOOKUP(C35,'INSUMOS SINAPI'!A:E,5,FALSE),VLOOKUP(C35,'COMP Sint. Sinapi'!G:K,5,FALSE)) -> 21,33 | H35: 3839.4 | J35: 40 | K35: 200
A36: COMP. SINAPI | B36: SINAPI | C36: 100309 | D36: =VLOOKUP(C36,'COMP Sint. Sinapi'!G:K,2,0) -> TÉCNICO EM SEGURANÇA DO TRABALHO COM ENCARGOS COMPLEMENTARES | E36: H | F36: 180 | G36: =IFERROR(VLOOKUP(C36,'INSUMOS SINAPI'!A:E,5,FALSE),VLOOKUP(C36,'COMP Sint. Sinapi'!G:K,5,FALSE)) -> 43,09 | H36: 7756.2 | J36: 40 | K36: 200
A37: INS. SINAPI | B37: SINAPI | C37: 14250 | D37: =VLOOKUP(C37,'INSUMOS SINAPI'!A:E,2,0) -> ENERGIA ELETRICA COMERCIAL, BAIXA TENSAO, RELATIVA AO CONSUMO DE ATE 100 KWH, INCLUINDO ICMS, PIS/PASEP E COFINS | E37: KW/H | F37: 500 | G37: =IFERROR(VLOOKUP(C37,'INSUMOS SINAPI'!A:E,5,FALSE),VLOOKUP(C37,'COMP Sint. Sinapi'!G:K,5,FALSE)) -> 1,17 | H37: 585 | J37: 100 | K37: 500
A38: INS. SINAPI | B38: SINAPI | C38: 44480 | D38: =VLOOKUP(C38,'INSUMOS SINAPI'!A:E,2,0) -> TARIFA "A" ENTRE 0 E 20M3 FORNECIMENTO D'AGUA | E38: M3 | F38: 4 | G38: =IFERROR(VLOOKUP(C38,'INSUMOS SINAPI'!A:E,5,FALSE),VLOOKUP(C38,'COMP Sint. Sinapi'!G:K,5,FALSE)) -> 22,13 | H38: 88.52 | J38: 1 | K38: 5
A39: INSUMO | B39: ORSE | C39: 4415 | D39: VEÍCULO LEVE - VOLKSWAGEN:GOL 1000 - AUTOMÓVEL ATÉ 100 HP | E39: h | F39: 180 | G39: 13.18 | H39: 2372.4 | J39: 40 | K39: 200
E40: ADM. LOCAL : | H40: =ROUND(SUM(H33:H39),2) -> 33320.42
G42: =BDI!$C$25 -> 0.2143 | H42: =G42*H40 -> 7140.566006
E43: =A31 -> CPU-03 | F43: PREÇO TOTAL: | H43: =ROUND(H40+H42,2) -> 40460.99 | I43: =H40 -> 33320.42
A45: CPU-04 | B45: CODEVASF | D45: CANTEIRO DE OBRAS E ALMOXARIFADO | E45: mês | F45: COEF. | G45: PRECO UNITÁRIO (R$) | H45: TOTAL (R$)
A47: INS. SINAPI | B47: SINAPI | C47: 10775 | D47: =VLOOKUP(C47,'INSUMOS SINAPI'!A:E,2,0) -> LOCACAO DE CONTAINER 2,30 X 6,00 M, ALT. 2,50 M, COM 1 SANITARIO, PARA ESCRITORIO, COMPLETO, SEM DIVISORIAS INTERNAS (NAO INCLUI MOBILIZACAO/DESMOBILIZACAO) | E47: mês | F47: 1 | G47: =IFERROR(VLOOKUP(C47,'INSUMOS SINAPI'!A:E,5,FALSE),VLOOKUP(C47,'COMP Sint. Sinapi'!G:K,5,FALSE)) -> 1.600,00 | H47: =F47*G47 -> 1600
A48: INS. SINAPI | B48: SINAPI | C48: 10776 | D48: =VLOOKUP(C48,'INSUMOS SINAPI'!A:E,2,0) -> LOCACAO DE CONTAINER 2,30 X 6,00 M, ALT. 2,50 M, PARA ESCRITORIO, SEM DIVISORIAS INTERNAS E SEM SANITARIO (NAO INCLUI MOBILIZACAO/DESMOBILIZACAO) | E48: mês | F48: 1 | G48: =IFERROR(VLOOKUP(C48,'INSUMOS SINAPI'!A:E,5,FALSE),VLOOKUP(C48,'COMP Sint. Sinapi'!G:K,5,FALSE)) -> 1.250,00 | H48: 1250
E49: Sub total: | H49: =ROUND(SUM(H47:H48),2) -> 2850
F50: BDI | G50: =BDI!$C$25 -> 0.2143 | H50: =H49*G50 -> 610.755
G51: Total Serviços: | H51: =H49+H50 -> 3460.755
E52: =A45 -> CPU-04 | F52: PREÇO UNITÁRIO TOTAL: | H52: =ROUND(H51,2) -> 3460.76 | I52: =H49 -> 2850
A54: CPU-11 | B54: CODEVASF | D54: LIMPEZA GERAL | E54: UNID | F54: COEF. | G54: PRECO UNITÁRIO (R$) | H54: TOTAL (R$)
A56: COMP. SINAPI | B56: SINAPI | C56: 88316 | D56: =VLOOKUP(C56,'COMP Sint. Sinapi'!G:K,2,0) -> SERVENTE COM ENCARGOS COMPLEMENTARES | E56: H | F56: 0.05 | G56: =IFERROR(VLOOKUP(C56,'INSUMOS SINAPI'!A:E,5,FALSE),VLOOKUP(C56,'COMP Sint. Sinapi'!G:K,5,FALSE)) -> 21,47 | H56: =F56*G56 -> 1.0735
E57: Sub total: | H57: =ROUND(SUM(H56:H56),2) -> 1.07
F58: BDI | G58: =BDI!$C$25 -> 0.2143 | H58: =H57*G58 -> 0.229301
G59: Total Serviços: | H59: =H57+H58 -> 1.299301
E60: =A54 -> CPU-11 | F60: PREÇO UNITÁRIO TOTAL: | H60: =ROUND(H59,2) -> 1.3 | I60: =H57 -> 1.07
A62: CPU-12 | B62: CODEVASF | D62: Correção de vazamentos no ramal na rua sem pavimento com fornecimento do material hidráulico | E62: M | F62: COEF. | G62: PRECO UNITÁRIO (R$) | H62: TOTAL (R$)
A64: COMP. SINAPI | B64: SINAPI | C64: 88316 | D64: =VLOOKUP(C64,'COMP Sint. Sinapi'!G:K,2,0) -> SERVENTE COM ENCARGOS COMPLEMENTARES | E64: H | F64: 0.2 | G64: =IFERROR(VLOOKUP(C64,'INSUMOS SINAPI'!A:E,5,FALSE),VLOOKUP(C64,'COMP Sint. Sinapi'!G:K,5,FALSE)) -> 21,47 | H64: =F64*G64 -> 4.294
A65: COMP. SINAPI | B65: SINAPI | C65: 88267 | D65: =VLOOKUP(C65,'COMP Sint. Sinapi'!G:K,2,0) -> ENCANADOR OU BOMBEIRO HIDRÁULICO COM ENCARGOS COMPLEMENTARES | E65: H | F65: 0.1 | G65: =IFERROR(VLOOKUP(C65,'INSUMOS SINAPI'!A:E,5,FALSE),VLOOKUP(C65,'COMP Sint. Sinapi'!G:K,5,FALSE)) -> 29,85 | H65: 2.985
A66: INS. SINAPI | B66: SINAPI | C66: 9867 | D66: =VLOOKUP(C66,'INSUMOS SINAPI'!A:E,2,0) -> TUBO PVC, SOLDAVEL, DE 20 MM, AGUA FRIA (NBR-5648) | E66: m | F66: 1 | G66: =IFERROR(VLOOKUP(C66,'INSUMOS SINAPI'!A:E,5,FALSE),VLOOKUP(C66,'COMP Sint. Sinapi'!G:K,5,FALSE)) -> 3,53 | H66: 3.53
A67: INSUMO | B67: ORSE | C67: 10585 | D67: Arco de serra | E67: un | F67: 0.1 | G67: 22.47 | H67: 2.247
A68: INS. SINAPI | B68: SINAPI | C68: 3859 | D68: =VLOOKUP(C68,'INSUMOS SINAPI'!A:E,2,0) -> LUVA SOLDAVEL COM ROSCA, PVC, 20 MM X 1/2", PARA AGUA FRIA PREDIAL | E68: un | F68: 2 | G68: =IFERROR(VLOOKUP(C68,'INSUMOS SINAPI'!A:E,5,FALSE),VLOOKUP(C68,'COMP Sint. Sinapi'!G:K,5,FALSE)) -> 1,27 | H68: 2.54
E69: Sub total: | H69: =ROUND(SUM(H64:H68),2) -> 15.6
F70: BDI | G70: =BDI!$C$25 -> 0.2143 | H70: =H69*G70 -> 3.34308
G71: Total Serviços: | H71: =H69+H70 -> 18.94308
E72: =A62 -> CPU-12 | F72: PREÇO UNITÁRIO TOTAL: | H72: =ROUND(H71,2) -> 18.94 | I72: =H69 -> 15.6
A74: CPU-13 | B74: CODEVASF | D74: AQUISIÇÃO DE CIMENTO ASFALTICO CAP 50/70 | E74: t | F74: COEF. | G74: PRECO UNITÁRIO (R$) | H74: TOTAL (R$)
D76: CIMENTO ASFALTICO 50/70 | E76: t | F76: 1 | G76: =RESUMO_Transp!$V$17 -> 4063.28774 | H76: =F76*G76 -> 4063.28774
E77: Sub total: | H77: =ROUND(SUM(H76),2) -> 4063.29
F78: BDI | G78: =BDI!C55 -> 0.1507 | H78: =H77*G78 -> 612.337803
G79: Total Serviços: | H79: =H77+H78 -> 4675.627803
E80: =A74 -> CPU-13 | F80: PREÇO UNITÁRIO TOTAL: | H80: =ROUND(H79,2) -> 4675.63 | I80: =H77 -> 4063.29
A82: CPU-14 | B82: CODEVASF | D82: AQUISIÇÃO DE CM-30 | E82: t | F82: COEF. | G82: PRECO UNITÁRIO (R$) | H82: TOTAL (R$)
D84: CM-30 | E84: t | F84: 1 | G84: =RESUMO_Transp!$V$35 -> 2874.260076 | H84: =F84*G84 -> 2874.260076
E85: Sub total: | H85: =ROUND(SUM(H84),2) -> 2874.26
F86: BDI | G86: =BDI!C55 -> 0.1507 | H86: =H85*G86 -> 433.150982
G87: Total Serviços: | H87: =H85+H86 -> 3307.410982
E88: =A82 -> CPU-14 | F88: PREÇO UNITÁRIO TOTAL: | H88: =ROUND(H87,2) -> 3307.41 | I88: =H85 -> 2874.26
A90: CPU-16 | B90: CODEVASF | D90: SERVIÇOS TOPOGRÁFICOS PARA PAVIMENTAÇÃO, INCLUSIVE NOTAS DE SERVIÇOS, ACOMPANHAMENTO E GREIDE | E90: M² | F90: COEF. | G90: PRECO UNITÁRIO (R$) | H90: TOTAL (R$)
A92: Composição | B92: SINAPI | C92: 90781 | D92: =VLOOKUP(C92,'COMP Sint. Sinapi'!G:K,2,0) -> TOPOGRAFO COM ENCARGOS COMPLEMENTARES | E92: h | F92: 0.0025 | G92: =IFERROR(VLOOKUP(C92,'INSUMOS SINAPI'!A:E,5,FALSE),VLOOKUP(C92,'COMP Sint. Sinapi'!G:K,5,FALSE)) -> 40,69 | H92: =F92*G92 -> 0.101725
A93: Insumo | B93: SINAPI | C93: 20206 | D93: =VLOOKUP(C93,'INSUMOS SINAPI'!A:E,2,0) -> SARRAFO APARELHADO *2 X 10* CM, EM MACARANDUBA/MASSARANDUBA, ANGELIM OU EQUIVALENTE DA REGIAO | E93: m | F93: 0.002886 | G93: =IFERROR(VLOOKUP(C93,'INSUMOS SINAPI'!A:E,5,FALSE),VLOOKUP(C93,'COMP Sint. Sinapi'!G:K,5,FALSE)) -> 9,36 | H93: 0.02701296
A94: Composição | B94: SINAPI | C94: 88253 | D94: =VLOOKUP(C94,'COMP Sint. Sinapi'!G:K,2,0) -> AUXILIAR DE TOPÓGRAFO COM ENCARGOS COMPLEMENTARES | E94: h | F94: 0.0025 | G94: =IFERROR(VLOOKUP(C94,'INSUMOS SINAPI'!A:E,5,FALSE),VLOOKUP(C94,'COMP Sint. Sinapi'!G:K,5,FALSE)) -> 19,38 | H94: 0.04845
A95: Composição | B95: SINAPI | C95: 88288 | D95: =VLOOKUP(C95,'COMP Sint. Sinapi'!G:K,2,0) -> NIVELADOR COM ENCARGOS COMPLEMENTARES | E95: h | F95: 0.0025 | G95: =IFERROR(VLOOKUP(C95,'INSUMOS SINAPI'!A:E,5,FALSE),VLOOKUP(C95,'COMP Sint. Sinapi'!G:K,5,FALSE)) -> 24,18 | H95: 0.06045
A96: Composição | B96: SINAPI | C96: 88316 | D96: =VLOOKUP(C96,'COMP Sint. Sinapi'!G:K,2,0) -> SERVENTE COM ENCARGOS COMPLEMENTARES | E96: h | F96: 0.0075 | G96: =IFERROR(VLOOKUP(C96,'INSUMOS SINAPI'!A:E,5,FALSE),VLOOKUP(C96,'COMP Sint. Sinapi'!G:K,5,FALSE)) -> 21,47 | H96: 0.161025
A97: Composição | B97: SINAPI | C97: 88597 | D97: =VLOOKUP(C97,'COMP Sint. Sinapi'!G:K,2,0) -> DESENHISTA DETALHISTA COM ENCARGOS COMPLEMENTARES | E97: h | F97: 0.002 | G97: =IFERROR(VLOOKUP(C97,'INSUMOS SINAPI'!A:E,5,FALSE),VLOOKUP(C97,'COMP Sint. Sinapi'!G:K,5,FALSE)) -> 38,55 | H97: 0.0771
A98: Composição | B98: SINAPI | C98: 92145 | D98: =VLOOKUP(C98,'COMP Sint. Sinapi'!G:K,2,0) -> CAMINHONETE CABINE SIMPLES COM MOTOR 1.6 FLEX, CÂMBIO MANUAL, POTÊNCIA 101/104 CV, 2 PORTAS - CHP DIURNO. AF_11/2015 | E98: chp | F98: 0.001 | G98: =IFERROR(VLOOKUP(C98,'INSUMOS SINAPI'!A:E,5,FALSE),VLOOKUP(C98,'COMP Sint. Sinapi'!G:K,5,FALSE)) -> 82,78 | H98: 0.08278
E99: Sub total: | H99: =ROUND(SUM(H92:H98),2) -> 0.56
F100: BDI | G100: =BDI!$C$25 -> 0.2143 | H100: =H99*G100 -> 0.120008
G101: Total Serviços: | H101: =H99+H100 -> 0.680008
E102: =A90 -> CPU-16 | F102: PREÇO UNITÁRIO TOTAL: | H102: =ROUND(H101,2) -> 0.68 | I102: =H99 -> 0.56
A104: CPU-17 | B104: CODEVASF | D104: TRANSPORTE DE CIMENTO ASFALTICO CAP 50/70 | E104: t x km | F104: COEF. | G104: PRECO UNITÁRIO (R$) | H104: TOTAL (R$)
D106: TRANSPORTE DE CIMENTO ASFALTICO 50/70 | E106: t x km | F106: 1 | G106: =RESUMO_Transp!X17 -> 0.74 | H106: =F106*G106 -> 0.74
E107: Sub total: | H107: =ROUND(SUM(H106),2) -> 0.74
F108: BDI | G108: =BDI!C55 -> 0.1507 | H108: =H107*G108 -> 0.111518
G109: Total Serviços: | H109: =H107+H108 -> 0.851518
E110: =A104 -> CPU-17 | F110: PREÇO UNITÁRIO TOTAL: | H110: =ROUND(H109,2) -> 0.85 | I110: =H107 -> 0.74
A112: CPU-18 | B112: CODEVASF | D112: TRANSPORTE DE EAI | E112: t x km | F112: COEF. | G112: PRECO UNITÁRIO (R$) | H112: TOTAL (R$)
D114: TRANSPORTE DE EAI | E114: t x km | F114: 1 | G114: =RESUMO_Transp!X35 -> 0.72 | H114: =ROUND(F114*G114,2) -> 0.72
E115: Sub total: | H115: =ROUND(SUM(H114),2) -> 0.72
F116: BDI | G116: =BDI!C55 -> 0.1507 | H116: =H115*G116 -> 0.108504
G117: Total Serviços: | H117: =H115+H116 -> 0.828504
E118: =A112 -> CPU-18 | F118: PREÇO UNITÁRIO TOTAL: | H118: =ROUND(H117,2) -> 0.83 | I118: =H115 -> 0.72
A120: CPU-20 | B120: CODEVASF | D120: CONTROLE TECNOLÓGICO - PROJETO | E120: mês | F120: COEF. | G120: PRECO UNITÁRIO (R$) | H120: TOTAL (R$)
A122: Insumo | B122: SICRO | C122: P9858 | D122: Laboratorista | E122: mês | F122: =0.15/14000 -> 1.071428571e-05 | G122: 6930.618 | H122: =F122*G122 -> 0.07425662143
A123: Insumo | B123: SICRO | C123: P9833 | D123: Auxiliar de Laboratório | E123: mês | F123: =0.15/14000 -> 1.071428571e-05 | G123: 5305.9744 | H123: 0.05684972571
A124: Composição | B124: SICRO | C124: *B8957 | D124: Laboratório de Solos | E124: mês | F124: 1.071428571e-05 | G124: 4311.34 | H124: 0.04619292857
A125: Composição | B125: SICRO | C125: *B8955 | D125: Laboratório de Asfalto | E125: mês | F125: 1.071428571e-05 | G125: 5400.53 | H125: 0.05786282143
B126: *Relatório de Custos Gerais do DNIT, página 1 | E126: Sub total por mês: | H126: =ROUND(SUM(H122:H125),2) -> 0.24
F127: BDI | G127: =BDI!$C$25 -> 0.2143 | H127: =H126*G127 -> 0.051432
E128: CPU-20 | F128: PREÇO UNITÁRIO TOTAL: | H128: =ROUND(H126+H127,2) -> 0.29 | I128: =H126 -> 0.24
A130: CPU-21 | B130: CODEVASF | D130: CONTROLE TECNOLÓGICO - OBRA | E130: M² | F130: COEF. | G130: PRECO UNITÁRIO (R$) | H130: TOTAL (R$)
A132: Insumo | B132: SICRO | C132: P9858 | D132: Laboratorista | E132: mês | F132: =0.35/14000 -> 2.5e-05 | G132: 6930.618 | H132: =F132*G132 -> 0.17326545
A133: Insumo | B133: SICRO | C133: P9833 | D133: Auxiliar de Laboratório | E133: mês | F133: =0.35/14000 -> 2.5e-05 | G133: 5305.9744 | H133: =F133*G133 -> 0.13264936
A134: Composição | B134: SICRO | C134: *B8957 | D134: Laboratório de Solos | E134: mês | F134: 2.5e-05 | G134: 4311.34 | H134: 0.1077835
A135: Composição | B135: SICRO | C135: *B8955 | D135: Laboratório de Asfalto | E135: mês | F135: 2.5e-05 | G135: 5400.53 | H135: 0.13501325
B136: *Relatório de Custos Gerais do DNIT, página 1 | E136: Sub total por mês: | H136: =ROUND(SUM(H132:H135),2) -> 0.55
F137: BDI | G137: =BDI!$C$25 -> 0.2143 | H137: =H136*G137 -> 0.117865
E138: CPU-21 | F138: PREÇO UNITÁRIO TOTAL: | H138: =ROUND(H136+H137,2) -> 0.67 | I138: =H136 -> 0.55

Sheet Projeto Executivo
A1: COMPOSIÇAO PREÇO PROJETO EXECUTIVO (POR M²)
A3: DISCRIMINAÇAO | F3: Pr. Unit. | G3: Pr. Total
A5: A· EOUIPE TECNICA | G5: =G6+G9 -> 4348.92
B6: A. 1 - Pessoal de Nível Superior | C6: Unidade | D6: Quantitativo | E6: Código SINAPI | G6: =G7+G8 -> 3474.72
B7: Engenheiro | C7: h | D7: 24 | E7: 34780 | F7: =IFERROR(VLOOKUP(E7,'INSUMOS SINAPI'!A:E,5,FALSE),VLOOKUP(E7,'COMP Sint. Sinapi'!G:K,5,FALSE)) -> 125,58 | G7: =F7*D7 -> 3013.92
B8: Topógrafo | C8: h | D8: 12 | E8: 7592 | F8: =IFERROR(VLOOKUP(E8,'INSUMOS SINAPI'!A:E,5,FALSE),VLOOKUP(E8,'COMP Sint. Sinapi'!G:K,5,FALSE)) -> 38,40 | G8: =F8*D8 -> 460.8
B9: A.2 - Pessoal de Nível Técnico e Aux. | G9: =G10+G11 -> 874.2
B10: Auxiliar de topógrafo | C10: h | D10: 12 | E10: 244 | F10: =IFERROR(VLOOKUP(E10,'INSUMOS SINAPI'!A:E,5,FALSE),VLOOKUP(E10,'COMP Sint. Sinapi'!G:K,5,FALSE)) -> 17,27 | G10: =F10*D10 -> 207.24
B11: Cadista/calculista | C11: h | D11: 24 | E11: 2359 | F11: =IFERROR(VLOOKUP(E11,'INSUMOS SINAPI'!A:E,5,FALSE),VLOOKUP(E11,'COMP Sint. Sinapi'!G:K,5,FALSE)) -> 27,79 | G11: =F11*D11 -> 666.96
A12: B - ENCARGOS SOCIAIS | G12: =G13 -> 0
B13: =CONCATENATE("Taxas ",'ENC. SOCIAIS'!E51,"%") -> Taxas 115,15% | C13: JÁ INCLUSAS EM "A"
A14: C - DESPESAS GERAIS | G14: =G15+G16+G17+G18 -> 505.0476
B15: C.1 - MATERIAIS DE CONSUMO | C15: Estimativa % como referência de equipe técnica com encargos sociais | D15: 0.03 | F15: =G5+G13 -> 4348.92 | G15: =F15*D15 -> 130.4676
B16: C.2 - VEÍCULOS | C16: H | D16: 8 | E16: 92144 | F16: =IFERROR(VLOOKUP(E16,'INSUMOS SINAPI'!A:E,5,FALSE),VLOOKUP(E16,'COMP Sint. Sinapi'!G:K,5,FALSE)) -> 40,80 | G16: =F16*D16 -> 326.4
B17: C.3 - COMBUSTÍVEL | C17: L | D17: 2 | E17: 4221 | F17: =IFERROR(VLOOKUP(E17,'INSUMOS SINAPI'!A:E,5,FALSE),VLOOKUP(E17,'COMP Sint. Sinapi'!G:K,5,FALSE)) -> 6,09 | G17: =F17*D17 -> 12.18
B18: C.3 - EQUIPAMENTOS, INSTALAÇÕES E MOBILIÁRIO | C18: H | D18: 16 | E18: 7247 | F18: =IFERROR(VLOOKUP(E18,'INSUMOS SINAPI'!A:E,5,FALSE),VLOOKUP(E18,'COMP Sint. Sinapi'!G:K,5,FALSE)) -> 2,25 | G18: =F18*D18 -> 36
A19: D - ENSAIOS | G19: =G20 -> 3817.85145
B20: D.1 - ENSAIOS | C20: M² | D20: ='MC MODULO'!J156 -> 13165.005 | E20: Composição Ensaios (CPU-20) | F20: ='CPU CODEVASF'!H128 -> 0.29 | G20: =F20*D20 -> 3817.85145
A21: I - SOMA (A+B+C+D) | G21: =G5+G12+G14+G19 -> 8671.81905
A22: II - CUSTOS ADMINISTRATIVOS | D22: =BDI!C25 -> 0.2143 | G22: =D22*G21 -> 1858.370822
A23: II - SOMA | G23: =SUM(G21:G22) -> 10530.18987
A24: VI - RELATÓRIOS | C24: Estimativa % como referência soma II | D24: 0.025 | F24: =G23 -> 10530.18987 | G24: =F24*D24 -> 263.2547468
A25: V - DESPESAS DIRETAS (3,74%) | C25: Percentual VI | D25: 0.0374 | F25: =D25*G24 -> 9.845727531 | G25: =F25 -> 9.845727531
A26: VI - REMUNERAÇAO DA EMPRESA
B27: Taxas 4,75% | D27: 0.0475 | F27: =D27*F25 -> 0.4676720577 | G27: =F27 -> 0.4676720577
A28: VII - CONTIGÊNCIAS | D28: 0.0577 | F28: =F24 -> 10530.18987 | G28: =F28*D28 -> 607.5919556
A29: VIII - SOMA | G29: =SUM(G24:G28) -> 881.160102
A30: IX - CUSTOS ADMINISTRATIVOS | D30: =BDI!C25 -> 0.2143 | G30: =D30*G29 -> 188.8326099
A31: III - SOMA | G31: =SUM(G29:G30) -> 1069.992712
A32: X - TOTAL | G32: =G31+G23 -> 11600.18258
F34: Por m²: | G34: =G32/'MC MODULO'!G23 -> 0.8148910985
B46: VALOR TOTAL

Sheet Mob e Desmob
A5: ='RESUMO MODULO TOTAL'!B1 -> Item 02: Pavimentação em Concreto Betuminoso Usinado a Quente (CBUQ) na sede do município de Santa Maria da Vitória, dentro da área de abrangência da 2ª Superintendência Regional da Codevasf, no estado da Bahia.
A7: MEMÓRIA DE CÁLCULO DOS MOMENTOS DE TRANSPORTE PARA MOBILIZAÇÃO E DESMOBILIZAÇÃO
A10: Deslocamento:
C11: Distancia méd. (Km) | D11: Qtde. | E11: Total (Km)
A12: Mobilização inter-municipal (entre as localidades): | C12: 92.5 | D12: 1 | E12: =C12*D12 -> 92.5 | F12: Cidade-polo: Bom Jesus da Lapa/BA
A13: Desmobilização inter-municipal (entre as localidades): | C13: 92.5 | D13: 1 | E13: =C13*D13 -> 92.5 | F13: Cidade-polo: Bom Jesus da Lapa/BA
A14: Mobilização - Total (km) | E14: =E12 -> 92.5
A15: Desmobilização - Total (km) | E15: =E13 -> 92.5
A18: Peso das máquinas:
E19: Pá carregadeira | H19: 10.1 | I19: ton
E20: Motoniveladora | H20: 12.47 | I20: ton
E21: Trator de pneus | H21: 2.8 | I21: ton
E22: Grade de disco | H22: 1 | I22: ton
E23: Usina misturadora | H23: 20 | I23: ton
E24: Tanque de Armazenamento 30 ton | H24: 5 | I24: ton
E25: Acabadora | H25: 12.6 | I25: ton
E26: Rolo Compactador Vibratório PD | H26: 15.33 | I26: ton
E27: Rolo Compactador Vibratório Liso | H27: 15.33 | I27: ton
E29: Total | H29: =ROUND(SUM(H18:H28),2) -> 94.63 | I29: ton
A31: Portanto: | B31: Portanto
A32: Mobilização - Total (km) | E32: =E14*H29 -> 8753.275 | F32: t x km
A33: Desmobilização - Total (km) | E33: =E15*H29 -> 8753.275 | F33: t x km
A40: E9010 | B40: Balança plataforma digital com mesa de 75 x 75 cm com capacidade de 500 kg | I40: Caminhão carroceria
A41: E9064 | B41: Transportador manual gerica com capacidade de 180 l | I41: Caminhão carroceria
A42: E9066 | B42: Grupo gerador - 13/14 kVA | I42: Caminhão carroceria
A43: E9071 | B43: Transportador manual carrinho de mão com capacidade de 80 l | I43: Caminhão carroceria
A44: E9076 | B44: Equipamento de pintura com cabine de 7,00 kW e estufa de 80.000 kCal para pintura eletrostática | I44: Caminhão carroceria
A45: E9519 | B45: Betoneira com motor a gasolina com capacidade de 600 l - 10 kW | I45: Caminhão carroceria
A46: E9521 | B46: VALOR TOTAL | I46: Caminhão carroceria
A47: E9568 | B47: Furadeira de impacto de 12,5 mm - 0,8 kW | I47: Caminhão carroceria
A48: E9622 | B48: Máquina de bancada universal para corte de chapa - 1,5 kW | I48: Caminhão carroceria
A49: E9623 | B49: Máquina de bancada guilhotina - 4 kW | I49: Caminhão carroceria
A50: E9675 | B50: Martelete perfurador/rompedor elétrico - 1,5 kW | I50: Caminhão carroceria
A51: E9779 | B51: Grupo gerador - 100/110 kVA | I51: Caminhão carroceria
A54: E9506 | B54: Caminhão basculante com capacidade de 6 m³ - 136 kW | I54: Rodoviario
A55: E9571 | B55: Caminhão tanque com capacidade de 10.000 l - 188 kW | I55: Rodoviario
A56: E9579 | B56: Caminhão basculante com capacidade de 10 m³ - 188 kW | I56: Rodoviario
A57: E9592 | B57: Caminhão carroceria com capacidade de 15 t - 188 kW | I57: Rodoviario
A58: E9644 | B58: Caminhão demarcador de faixas com sistema de pintura a frio - 28 kW/115 kW | I58: Rodoviario
A59: E9686 | B59: Caminhão carroceria com guindauto com capacidade de 20 t.m - 136 kW | I59: Rodoviario
A60: E9687 | B60: Caminhão carroceria com capacidade de 5 t - 115 kW | I60: Rodoviario
A61: E9514 | B61: Distribuidor de agregados autopropelido - 130 kW | I61: Rodoviario
A63: E9511 | B63: Carregadeira de pneus com capacidade de 3,40 m³ - 195 kW | I63: TRANSPORTE COM CAVALO MECÂNICO COM SEMIRREBOQUE COM CAPACIDADE DE 30 T - RODOVIA PAVIMENTADA
A64: E9524 | B64: Motoniveladora - 93 kW | I64: TRANSPORTE COM CAVALO MECÂNICO COM SEMIRREBOQUE COM CAPACIDADE DE 30 T - RODOVIA PAVIMENTADA
A65: E9530 | B65: Rolo compactador liso autopropelido vibratório de 11 t - 97 kW | I65: TRANSPORTE COM CAVALO MECÂNICO COM SEMIRREBOQUE COM CAPACIDADE DE 30 T - RODOVIA PAVIMENTADA
A66: E9577 | B66: Trator agrícola - 77 kW | I66: TRANSPORTE COM CAVALO MECÂNICO COM SEMIRREBOQUE COM CAPACIDADE DE 30 T - RODOVIA PAVIMENTADA
A67: E9685 | B67: Rolo compactador pé de carneiro vibratório autopropelido de 11,6 t - 82 kW | I67: TRANSPORTE COM CAVALO MECÂNICO COM SEMIRREBOQUE COM CAPACIDADE DE 30 T - RODOVIA PAVIMENTADA
A68: E9762 | B68: Rolo compactador de pneus autopropelido de 27 t - 85 kW | I68: TRANSPORTE COM CAVALO MECÂNICO COM SEMIRREBOQUE COM CAPACIDADE DE 30 T - RODOVIA PAVIMENTADA
A69: E9518 | B69: Grade de 24 discos rebocável de 24" | I69: TRANSPORTE COM CAVALO MECÂNICO COM SEMIRREBOQUE COM CAPACIDADE DE 30 T - RODOVIA PAVIMENTADA
A70: E9615 | B70: Usina misturadora de solos com capacidade de 300 t/h | I70: TRANSPORTE COM CAVALO MECÂNICO COM SEMIRREBOQUE COM CAPACIDADE DE 30 T - RODOVIA PAVIMENTADA

Sheet Transporte Cap 50-70
D2: MEMÓRIA DE CÁLCULO
D7: REAJUSTE | G7: TIPOLOGIA DO MATERIAL | J7: CIMENTOS ASFÁLTICOS CAP-50-70 | N7: IMPOSTOS | O7: COFINS | P7: 0.0065 | Q7: 0.0065
H8: ÍNDICE DE PAVIMENTAÇÃO DNIT | I8: 2014-07-01 | J8: ÍNDICE INICIAL | K8: 270.237 | O8: PIS | P8: 0.03 | Q8: 0.03 | U8: LEGENDA | AD8: As empresas tributadas pelo Lucro Presumido pagam 0,65% de PIS e 3% de COFINS
I9: set/23 | J9: ÍNDICE FINAL | K9: 555.51 | O9: ICMS | P9: 0.18 | Q9: 0.18 | R9: =1-(P9/1) -> 0.82 | S9: =1-(Q9/1) -> 0.82 | T9: =1-(R9/1) -> 0.18 | U9: ENTRADA DE DADOS | AD9: As empresas tributadas pelo Lucro Real pagam 1,65% de PIS e 7,60% de COFINS
G10: CAP50/70 | H10: Data ANP | I10: 2023-08-01
D11: DATA-BASE | E11: PRODUTOS | F11: LOCALIDADES | K11: CUSTO ANP (R$/Kg) | M11: CUSTO ANP | N11: IMPOSTOS DO PRODUTO | O11: CUSTO DO PRODUTO COM IMPOSTOS | P11: DMT's | Q11: DMT's FLUVIAL | R11: CUSTO DO TRANSPORTE RODOVIA PAVIMENTADA | S11: CUSTO DO TRANSPORTE FLUVIAL | T11: CUSTO DO TRANSPORTE TOTAL | U11: ICMS | V11: ATUALIZAÇÃO DO CUSTO DE TRANSPORTE | W11: CUSTO DO TRANSPORTE RODOVIA PAVIMENTADA COM IMPOSTOS E ATUALIZAÇÃO MONETÁRIA | X11: PEDÁGIO | Z11: TOTAL TRANSPORTE | AA11: AQUISIÇÃO DO PRODUTO | AB11: TOTAL GERAL ( TRANSP + AQUISIÇÃO) | AD11: 1 | AE11: 2 | AF11: 3
A12: COORDENADAS | D12: =I9 -> set/23 | F12: REFINARIAS | G12: ENDEREÇO | H12: ESTADO | I12: CIDADE | J12: DESTINO | K12: ESTADO | L12: REGIÃO | M12: R$/t | N12: R$/t | O12: R$/t | P12: KM | Q12: KM | R12: R$/t | S12: R$/t | T12: R$/t | U12: R$/t | V12: R$/t | W12: R$/t | X12: CUSTO | Y12: R$/t | Z12: R$/t | AA12: R$/t | AB12: R$/t | AD12: TOTAL GERAL ( TRANSP + AQUISIÇÃO) | AE12: TOTAL TRANSPORTE | AF12: AQUISIÇÃO DO PRODUTO
A13: -8.363979165926773, -35.011005040705605 | C13: =AB13 -> 5323.957006 | D13: 1 | E13: =J7 -> CIMENTOS ASFÁLTICOS CAP-50-70 | F13: Refinaria Abreu e Lima | G13: Rodovia PE 60, Km 10 - Ipojuca - PE CEP:55590-000 | H13: Pernambuco | I13: IPOJUCA - PE | J13: Santa Maria da Vitória - BA | K13: =VLOOKUP('Transporte Cap 50-70'!H13,OFFSET('ANP ESTADO'!$A$1,MATCH('Transporte Cap 50-70'!$J$7,'ANP ESTADO'!B:B,0)+MATCH('Transporte Cap 50-70'!$I$10,OFFSET('ANP ESTADO'!$A$1,MATCH('Transporte Cap 50-70'!$J$7,'ANP ESTADO'!B:B,0),0,100000,1),0),2,100000,2),2,FALSE) -> - | L13: =VLOOKUP($I$10,OFFSET('ANP REGIÃO'!$A$9,MATCH('Transporte Cap 50-70'!$J$7,'ANP REGIÃO'!A:A,0),1,10000,10000),MATCH('Transporte Cap 50-70'!AI13,'ANP REGIÃO'!$B$8:$G$8,0),FALSE) -> 3.362851888 | M13: =IF(AND(K13="-",L13="-"),"",IF(AND(K13<>0,L13="-"),K13*1000,IF(AND(K13="-",L13<>0),L13*1000,IF(AND(K13<>0,L13<>0),K13*1000,"")))) -> 3362.851888 | N13: =ROUND(((M13/(1-$P$7-$P$8-$P$9))-M13),2) -> 929.24 | O13: =M13+N13 -> 4292.091888 | P13: 1516 | R13: =ROUND((26.939+0.253*P13),2) -> 410.49 | T13: =R13+S13 -> 410.49 | U13: =TRUNC(T13*($P$9/(1-$P$9)),2) -> 90.1 | V13: =TRUNC(IF($K$8="","",(($K$9-$K$8)/$K$8)*(T13+U13)),2) -> 528.44 | W13: =T13+U13+V13 -> 1029.03 | X13: 35.4 | Y13: =EVEN(' CONSUMO DE MAT. B TOTAL'!$P$11*2/28)*X13/' CONSUMO DE MAT. B TOTAL'!$P$11 -> 2.83511863 | Z13: =IF(AND(R13="",U13=""),"",W13+Y13) -> 1031.865119 | AA13: =IF(OR(M13="",N13=""),"",M13+N13) -> 4292.091888 | AB13: =IF(OR(Z13="",AA13=""),"",Z13+AA13) -> 5323.957006 | AD13: =AB13 -> 5323.957006 | AE13: =Z13 -> 1031.865119 | AF13: =AA13 -> 4292.091888 | AI13: =IF(OR(H13=$E$52,H13=$E$53,H13=$E$55,H13=$E$61,H13=$E$45,H13=$E$41,H13=$E$37,H13=$E$50,H13=$E$40),"NORDESTE",IF(OR(H13=$E$36,H13=$E$38,H13=$E$39,H13=$E$49,H13=$E$57,H13=$E$58,H13=$E$62),"NORTE",IF(OR(H13=$E$42,H13=$E$44,H13=$E$46,H13=$E$47),"CENTRO-OESTE",IF(OR(H13=$E$60,H13=$E$54,H13=$E$48,H13=$E$43),"SUDESTE",IF(OR(H13=$E$59,H13=$E$51,H13=$E$56),"SUL",""))))) -> NORDESTE
A14: -3.135292976436646, -59.95405783169633 | C14: =AB14 -> 7374.36243 | D14: 2 | F14: ISAC SAABA | G14: Rua Rio Quixito, 1, Vila Buriti - Distrito Industrial - Manaus - AM CEP: 69072-070 | H14: Amazonas | I14: MANAUS-AM | J14: Santa Maria da Vitória - BA | K14: =VLOOKUP('Transporte Cap 50-70'!H14,OFFSET('ANP ESTADO'!$A$1,MATCH('Transporte Cap 50-70'!$J$7,'ANP ESTADO'!B:B,0)+MATCH('Transporte Cap 50-70'!$I$10,OFFSET('ANP ESTADO'!$A$1,MATCH('Transporte Cap 50-70'!$J$7,'ANP ESTADO'!B:B,0),0,100000,1),0),2,100000,2),2,FALSE) -> 3.74317243 | L14: =VLOOKUP($I$10,OFFSET('ANP REGIÃO'!$A$9,MATCH('Transporte Cap 50-70'!$J$7,'ANP REGIÃO'!A:A,0),1,10000,10000),MATCH('Transporte Cap 50-70'!AI14,'ANP REGIÃO'!$B$8:$G$8,0),FALSE) -> 3.723584547 | M14: =IF(AND(K14="-",L14=""),"",IF(AND(K14<>0,L14=""),K14*1000,IF(AND(K14="-",L14<>0),L14*1000,IF(AND(K14<>0,L14<>0),K14*1000,"")))) -> 3743.17243 | N14: =ROUND(((M14/(1-$P$7-$P$8-$P$9))-M14),2) -> 1034.33 | O14: =M14+N14 -> 4777.50243 | P14: 3988 | R14: =ROUND((26.939+0.253*P14),2) -> 1035.9 | T14: =R14+S14 -> 1035.9 | U14: =TRUNC(T14*($P$9/(1-$P$9)),2) -> 227.39 | V14: =TRUNC(IF($K$8="","",(($K$9-$K$8)/$K$8)*(T14+U14)),2) -> 1333.57 | W14: =T14+U14+V14 -> 2596.86 | X14: 0 | Y14: =EVEN(' CONSUMO DE MAT. B TOTAL'!$P$11*2/28)*X14/' CONSUMO DE MAT. B TOTAL'!$P$11 -> 0 | Z14: =IF(AND(R14="",U14=""),"",W14+Y14) -> 2596.86 | AA14: =IF(OR(M14="",N14=""),"",M14+N14) -> 4777.50243 | AB14: =IF(OR(Z14="",AA14=""),"",Z14+AA14) -> 7374.36243 | AD14: =AB14 -> 7374.36243 | AE14: =Z14 -> 2596.86 | AF14: =AA14 -> 4777.50243 | AI14: =IF(OR(H14=$E$52,H14=$E$53,H14=$E$55,H14=$E$61,H14=$E$45,H14=$E$41,H14=$E$37,H14=$E$50,H14=$E$40),"NORDESTE",IF(OR(H14=$E$36,H14=$E$38,H14=$E$39,H14=$E$49,H14=$E$57,H14=$E$58,H14=$E$62),"NORTE",IF(OR(H14=$E$42,H14=$E$44,H14=$E$46,H14=$E$47),"CENTRO-OESTE",IF(OR(H14=$E$60,H14=$E$54,H14=$E$48,H14=$E$43),"SUDESTE",IF(OR(H14=$E$59,H14=$E$51,H14=$E$56),"SUL",""))))) -> NORTE
A15: -5.127529963464267, -36.380377519876276 | C15: =AB15 -> 5410.541888 | D15: 2 | F15: Refinaria Potiguar Clara Camarão | G15: Rodovia RN 221, KM 25 - Guamaré - RN CEP:59598-000 | H15: Rio Grande do Norte | I15: GUAMARÉ - RN | J15: Santa Maria da Vitória - BA | K15: =VLOOKUP('Transporte Cap 50-70'!H15,OFFSET('ANP ESTADO'!$A$1,MATCH('Transporte Cap 50-70'!$J$7,'ANP ESTADO'!B:B,0)+MATCH('Transporte Cap 50-70'!$I$10,OFFSET('ANP ESTADO'!$A$1,MATCH('Transporte Cap 50-70'!$J$7,'ANP ESTADO'!B:B,0),0,100000,1),0),2,100000,2),2,FALSE) -> - | L15: =VLOOKUP($I$10,OFFSET('ANP REGIÃO'!$A$9,MATCH('Transporte Cap 50-70'!$J$7,'ANP REGIÃO'!A:A,0),1,10000,10000),MATCH('Transporte Cap 50-70'!AI15,'ANP REGIÃO'!$B$8:$G$8,0),FALSE) -> 3.362851888 | M15: =IF(AND(K15="-",L15=""),"",IF(AND(K15<>0,L15=""),K15*1000,IF(AND(K15="-",L15<>0),L15*1000,IF(AND(K15<>0,L15<>0),K15*1000,"")))) -> 3362.851888 | N15: =ROUND(((M15/(1-$P$7-$P$8-$P$9))-M15),2) -> 929.24 | O15: =M15+N15 -> 4292.091888 | P15: 1657 | R15: =ROUND((26.939+0.253*P15),2) -> 446.16 | T15: 446.16 | U15: 97.93 | V15: 574.36 | W15: 1118.45 | X15: 0 | Y15: =EVEN(' CONSUMO DE MAT. B TOTAL'!$P$11*2/28)*X15/' CONSUMO DE MAT. B TOTAL'!$P$11 -> 0 | Z15: 1118.45 | AA15: 4292.091888 | AB15: =IF(OR(Z15="",AA15=""),"",Z15+AA15) -> 5410.541888 | AD15: =AB15 -> 5410.541888 | AE15: =Z15 -> 1118.45 | AF15: =AA15 -> 4292.091888 | AI15: =IF(OR(H15=$E$52,H15=$E$53,H15=$E$55,H15=$E$61,H15=$E$45,H15=$E$41,H15=$E$37,H15=$E$50,H15=$E$40),"NORDESTE",IF(OR(H15=$E$36,H15=$E$38,H15=$E$39,H15=$E$49,H15=$E$57,H15=$E$58,H15=$E$62),"NORTE",IF(OR(H15=$E$42,H15=$E$44,H15=$E$46,H15=$E$47),"CENTRO-OESTE",IF(OR(H15=$E$60,H15=$E$54,H15=$E$48,H15=$E$43),"SUDESTE",IF(OR(H15=$E$59,H15=$E$51,H15=$E$56),"SUL",""))))) -> NORDESTE
A16: -12.704897926010924, -38.566604553850254 | C16: 5069.626624 | D16: 3 | F16: Refinaria Landulpho Alves (RLAM) | G16: Rodovia BA 523, KM 4 – Mataripe São Francisco do Conde - BA CEP:43900-000 | H16: Bahia | I16: SÃO FRANCISCO DO CONDE - BA | J16: Santa Maria da Vitória - BA | K16: =VLOOKUP('Transporte Cap 50-70'!H16,OFFSET('ANP ESTADO'!$A$1,MATCH('Transporte Cap 50-70'!$J$7,'ANP ESTADO'!B:B,0)+MATCH('Transporte Cap 50-70'!$I$10,OFFSET('ANP ESTADO'!$A$1,MATCH('Transporte Cap 50-70'!$J$7,'ANP ESTADO'!B:B,0),0,100000,1),0),2,100000,2),2,FALSE) -> 3.502745761 | L16: =VLOOKUP($I$10,OFFSET('ANP REGIÃO'!$A$9,MATCH('Transporte Cap 50-70'!$J$7,'ANP REGIÃO'!A:A,0),1,10000,10000),MATCH('Transporte Cap 50-70'!AI16,'ANP REGIÃO'!$B$8:$G$8,0),FALSE) -> 3.362851888 | M16: 3502.745761 | N16: =ROUND(((M16/(1-$P$7-$P$8-$P$9))-M16),2) -> 967.89 | O16: 4470.635761 | P16: 831 | R16: =ROUND((26.939+0.253*P16),2) -> 237.18 | T16: 237.18 | U16: 52.06 | V16: 305.33 | W16: 594.57 | X16: 55.2 | Y16: =EVEN(' CONSUMO DE MAT. B TOTAL'!$P$11*2/28)*X16/' CONSUMO DE MAT. B TOTAL'!$P$11 -> 4.420862949 | Z16: 598.9908629 | AA16: 4470.635761 | AB16: 5069.626624 | AD16: 5069.626624 | AE16: 598.9908629 | AF16: 4470.635761 | AI16: NORDESTE
A17: -3.7166077055860676, -38.47321617360384 | B17: 2403 | C17: 5225.280157 | D17: 4 | F17: Refinaria Lubrificantes e Derivados do Nordeste (Lubnor) | G17: Av. Leite Barbosa, s/nº - Mucuripe Fortaleza - Ceará CEP:60180-420 | H17: Ceará | I17: FORTALEZA - CE | J17: Santa Maria da Vitória - BA | K17: =VLOOKUP('Transporte Cap 50-70'!H17,OFFSET('ANP ESTADO'!$A$1,MATCH('Transporte Cap 50-70'!$J$7,'ANP ESTADO'!B:B,0)+MATCH('Transporte Cap 50-70'!$I$10,OFFSET('ANP ESTADO'!$A$1,MATCH('Transporte Cap 50-70'!$J$7,'ANP ESTADO'!B:B,0),0,100000,1),0),2,100000,2),2,FALSE) -> 3.319560157 | L17: =VLOOKUP($I$10,OFFSET('ANP REGIÃO'!$A$9,MATCH('Transporte Cap 50-70'!$J$7,'ANP REGIÃO'!A:A,0),1,10000,10000),MATCH('Transporte Cap 50-70'!AI17,'ANP REGIÃO'!$B$8:$G$8,0),FALSE) -> 3.362851888 | M17: 3319.560157 | N17: 917.27 | O17: 4236.830157 | P17: 1452 | R17: 394.3 | T17: 394.3 | U17: 86.55 | V17: 507.6 | W17: 988.45 | X17: 0 | Y17: =EVEN(' CONSUMO DE MAT. B TOTAL'!$P$11*2/28)*X17/' CONSUMO DE MAT. B TOTAL'!$P$11 -> 0 | Z17: 988.45 | AA17: 4236.830157 | AB17: 5225.280157 | AD17: 5225.280157 | AE17: 988.45 | AF17: 4236.830157 | AI17: NORDESTE
A18: -23.656231446520625, -46.48169584521767 | C18: 5057.994869 | D18: 5 | F18: Refinaria Capuava (Recap) | G18: Av. Alberto Soares Sampaio, 2122-A Capuava – Mauá - SP | H18: São Paulo | I18: MAUÁ - SP | J18: Santa Maria da Vitória - BA | K18: =VLOOKUP('Transporte Cap 50-70'!H18,OFFSET('ANP ESTADO'!$A$1,MATCH('Transporte Cap 50-70'!$J$7,'ANP ESTADO'!B:B,0)+MATCH('Transporte Cap 50-70'!$I$10,OFFSET('ANP ESTADO'!$A$1,MATCH('Transporte Cap 50-70'!$J$7,'ANP ESTADO'!B:B,0),0,100000,1),0),2,100000,2),2,FALSE) -> 3.097259384 | L18: =VLOOKUP($I$10,OFFSET('ANP REGIÃO'!$A$9,MATCH('Transporte Cap 50-70'!$J$7,'ANP REGIÃO'!A:A,0),1,10000,10000),MATCH('Transporte Cap 50-70'!AI18,'ANP REGIÃO'!$B$8:$G$8,0),FALSE) -> 3.135083935 | M18: 3097.259384 | N18: 855.85 | O18: 3953.109384 | P18: 1579 | R18: 426.43 | T18: 426.43 | U18: 93.6 | V18: 548.96 | W18: 1068.99 | X18: 448.2 | Y18: =EVEN(' CONSUMO DE MAT. B TOTAL'!$P$11*2/28)*X18/' CONSUMO DE MAT. B TOTAL'!$P$11 -> 35.89548503 | Z18: 1104.885485 | AA18: 3953.109384 | AB18: 5057.994869 | AD18: 5057.994869 | AE18: 1104.885485 | AF18: 3953.109384 | AI18: SUDESTE
A19: -22.716079210101125, -43.284493338934155 | C19: 4847.979247 | D19: 6 | F19: Refinaria Duque de Caxias (Reduc) | G19: Rodovia Washington Luiz, km 113,7 Campos Elíseos – Duque de Caxias - RJ CEP:25213-005 | H19: Rio de Janeiro | I19: DUQUE DE CAXIAS - RJ | J19: Santa Maria da Vitória - BA | K19: =VLOOKUP('Transporte Cap 50-70'!H19,OFFSET('ANP ESTADO'!$A$1,MATCH('Transporte Cap 50-70'!$J$7,'ANP ESTADO'!B:B,0)+MATCH('Transporte Cap 50-70'!$I$10,OFFSET('ANP ESTADO'!$A$1,MATCH('Transporte Cap 50-70'!$J$7,'ANP ESTADO'!B:B,0),0,100000,1),0),2,100000,2),2,FALSE) -> 3.049501631 | L19: =VLOOKUP($I$10,OFFSET('ANP REGIÃO'!$A$9,MATCH('Transporte Cap 50-70'!$J$7,'ANP REGIÃO'!A:A,0),1,10000,10000),MATCH('Transporte Cap 50-70'!AI19,'ANP REGIÃO'!$B$8:$G$8,0),FALSE) -> 3.135083935 | M19: 3049.501631 | N19: 842.65 | O19: 3892.151631 | P19: 1318 | R19: 360.39 | T19: 360.39 | U19: 79.11 | V19: 463.95 | W19: 903.45 | X19: 654 | Y19: =EVEN(' CONSUMO DE MAT. B TOTAL'!$P$11*2/28)*X19/' CONSUMO DE MAT. B TOTAL'!$P$11 -> 52.37761538 | Z19: 955.8276154 | AA19: 3892.151631 | AB19: 4847.979247 | AD19: 4847.979247 | AE19: 955.8276154 | AF19: 3892.151631 | AI19: SUDESTE
A20: -29.869712299551573, -51.17766653218008 | C20: 5683.683772 | D20: 7 | F20: Refinaria Alberto Pasqualini (Refap) | G20: Avenida Getúlio Vargas, 11001 - Bairro Brigadeira Canoas - RS - Brasil CEP:92420-221 | H20: Rio grande do sul | I20: CANOAS - RS | J20: Santa Maria da Vitória - BA | K20: =VLOOKUP('Transporte Cap 50-70'!H20,OFFSET('ANP ESTADO'!$A$1,MATCH('Transporte Cap 50-70'!$J$7,'ANP ESTADO'!B:B,0)+MATCH('Transporte Cap 50-70'!$I$10,OFFSET('ANP ESTADO'!$A$1,MATCH('Transporte Cap 50-70'!$J$7,'ANP ESTADO'!B:B,0),0,100000,1),0),2,100000,2),2,FALSE) -> 3.00401269 | L20: =VLOOKUP($I$10,OFFSET('ANP REGIÃO'!$A$9,MATCH('Transporte Cap 50-70'!$J$7,'ANP REGIÃO'!A:A,0),1,10000,10000),MATCH('Transporte Cap 50-70'!AI20,'ANP REGIÃO'!$B$8:$G$8,0),FALSE) -> 2.961474391 | M20: 3004.01269 | N20: 830.08 | O20: 3834.09269 | P20: 2662 | R20: 700.43 | T20: 700.43 | U20: 153.75 | V20: 901.7 | W20: 1755.88 | X20: 1170.1 | Y20: =EVEN(' CONSUMO DE MAT. B TOTAL'!$P$11*2/28)*X20/' CONSUMO DE MAT. B TOTAL'!$P$11 -> 93.71108219 | Z20: 1849.591082 | AA20: 3834.09269 | AB20: 5683.683772 | AD20: 5683.683772 | AE20: 1849.591082 | AF20: 3834.09269 | AI20: SUL
A21: -25.86088407745943, -50.39669916376454 | C21: 5160.460486 | D21: 8 | F21: Unidade de Industrialização do Xisto (SIX) | G21: Rodovia do Xisto, BR 476, km 153 São Mateus do Sul – PR CEP 83900-000 | H21: Paraná | I21: SÃO MATEUS DO SUL - PR | J21: Santa Maria da Vitória - BA | K21: =VLOOKUP('Transporte Cap 50-70'!H21,OFFSET('ANP ESTADO'!$A$1,MATCH('Transporte Cap 50-70'!$J$7,'ANP ESTADO'!B:B,0)+MATCH('Transporte Cap 50-70'!$I$10,OFFSET('ANP ESTADO'!$A$1,MATCH('Transporte Cap 50-70'!$J$7,'ANP ESTADO'!B:B,0),0,100000,1),0),2,100000,2),2,FALSE) -> 2.947215154 | L21: =VLOOKUP($I$10,OFFSET('ANP REGIÃO'!$A$9,MATCH('Transporte Cap 50-70'!$J$7,'ANP REGIÃO'!A:A,0),1,10000,10000),MATCH('Transporte Cap 50-70'!AI21,'ANP REGIÃO'!$B$8:$G$8,0),FALSE) -> 2.961474391 | M21: 2947.215154 | N21: 814.39 | O21: 3761.605154 | P21: 1994 | R21: 531.42 | T21: 531.42 | U21: 116.65 | V21: 684.12 | W21: 1332.19 | X21: 832.4 | Y21: =EVEN(' CONSUMO DE MAT. B TOTAL'!$P$11*2/28)*X21/' CONSUMO DE MAT. B TOTAL'!$P$11 -> 66.66533187 | Z21: 1398.855332 | AA21: 3761.605154 | AB21: 5160.460486 | AD21: 5160.460486 | AE21: 1398.855332 | AF21: 3761.605154 | AI21: SUL
A22: -19.963552900980723, -44.0948967602564 | C22: 4734.999384 | D22: 9 | F22: Refinaria Gabriel Passos (Regap) | G22: Av. Refinaria Gabriel Passos, 690 Distrito Industrial Paulo Camilo Sul Betim - MG CEP:32669-205 | H22: Minas Gerais | I22: BETIM - MG | J22: Santa Maria da Vitória - BA | K22: =VLOOKUP('Transporte Cap 50-70'!H22,OFFSET('ANP ESTADO'!$A$1,MATCH('Transporte Cap 50-70'!$J$7,'ANP ESTADO'!B:B,0)+MATCH('Transporte Cap 50-70'!$I$10,OFFSET('ANP ESTADO'!$A$1,MATCH('Transporte Cap 50-70'!$J$7,'ANP ESTADO'!B:B,0),0,100000,1),0),2,100000,2),2,FALSE) -> 3.18358774 | L22: =VLOOKUP($I$10,OFFSET('ANP REGIÃO'!$A$9,MATCH('Transporte Cap 50-70'!$J$7,'ANP REGIÃO'!A:A,0),1,10000,10000),MATCH('Transporte Cap 50-70'!AI22,'ANP REGIÃO'!$B$8:$G$8,0),FALSE) -> 3.135083935 | M22: 3183.58774 | N22: 879.7 | O22: 4063.28774 | P22: 913 | R22: 257.93 | T22: 257.93 | U22: 56.61 | V22: 332.04 | W22: 646.58 | X22: 313.8 | Y22: =EVEN(' CONSUMO DE MAT. B TOTAL'!$P$11*2/28)*X22/' CONSUMO DE MAT. B TOTAL'!$P$11 -> 25.13164481 | Z22: 671.7116448 | AA22: 4063.28774 | AB22: 4734.999384 | AD22: 4734.999384 | AE22: 671.7116448 | AF22: 4063.28774 | AI22: SUDESTE
A23: -25.56575474963143, -49.36942203073905 | C23: 5142.070486 | D23: 10 | F23: Refinaria Presidente Getúlio Vargas (Repar) | G23: Rodovia do Xisto, BR 476, km 16 Araucária - PR CEP:83707-440 | H23: Paraná | I23: ARAUCÁRIA - PR | J23: Santa Maria da Vitória - BA | K23: =VLOOKUP('Transporte Cap 50-70'!H23,OFFSET('ANP ESTADO'!$A$1,MATCH('Transporte Cap 50-70'!$J$7,'ANP ESTADO'!B:B,0)+MATCH('Transporte Cap 50-70'!$I$10,OFFSET('ANP ESTADO'!$A$1,MATCH('Transporte Cap 50-70'!$J$7,'ANP ESTADO'!B:B,0),0,100000,1),0),2,100000,2),2,FALSE) -> 2.947215154 | L23: =VLOOKUP($I$10,OFFSET('ANP REGIÃO'!$A$9,MATCH('Transporte Cap 50-70'!$J$7,'ANP REGIÃO'!A:A,0),1,10000,10000),MATCH('Transporte Cap 50-70'!AI23,'ANP REGIÃO'!$B$8:$G$8,0),FALSE) -> 2.961474391 | M23: 2947.215154 | N23: 814.39 | O23: 3761.605154 | P23: 1965 | R23: 524.08 | T23: 524.08 | U23: 115.04 | V23: 674.68 | W23: 1313.8 | X23: 832.4 | Y23: =EVEN(' CONSUMO DE MAT. B TOTAL'!$P$11*2/28)*X23/' CONSUMO DE MAT. B TOTAL'!$P$11 -> 66.66533187 | Z23: 1380.465332 | AA23: 3761.605154 | AB23: 5142.070486 | AD23: 5142.070486 | AE23: 1380.465332 | AF23: 3761.605154 | AI23: SUL
A24: -23.872438924387126, -46.43509244085156 | C24: 5127.437349 | D24: 11 | F24: Refinaria Presidente Bernardes (RPBC) | G24: Av. 9 de abril, 777 - Jardim das Indústrias Cubatão - SP CEP:11505-000 | H24: São Paulo | I24: CUBATÃO - SP | J24: Santa Maria da Vitória - BA | K24: =VLOOKUP('Transporte Cap 50-70'!H24,OFFSET('ANP ESTADO'!$A$1,MATCH('Transporte Cap 50-70'!$J$7,'ANP ESTADO'!B:B,0)+MATCH('Transporte Cap 50-70'!$I$10,OFFSET('ANP ESTADO'!$A$1,MATCH('Transporte Cap 50-70'!$J$7,'ANP ESTADO'!B:B,0),0,100000,1),0),2,100000,2),2,FALSE) -> 3.097259384 | L24: =VLOOKUP($I$10,OFFSET('ANP REGIÃO'!$A$9,MATCH('Transporte Cap 50-70'!$J$7,'ANP REGIÃO'!A:A,0),1,10000,10000),MATCH('Transporte Cap 50-70'!AI24,'ANP REGIÃO'!$B$8:$G$8,0),FALSE) -> 3.135083935 | M24: 3097.259384 | N24: 855.85 | O24: 3953.109384 | P24: 1619 | R24: 436.55 | T24: 436.55 | U24: 95.82 | V24: 561.99 | W24: 1094.36 | X24: 998.5 | Y24: =EVEN(' CONSUMO DE MAT. B TOTAL'!$P$11*2/28)*X24/' CONSUMO DE MAT. B TOTAL'!$P$11 -> 79.96796476 | Z24: 1174.327965 | AA24: 3953.109384 | AB24: 5127.437349 | AD24: 5127.437349 | AE24: 1174.327965 | AF24: 3953.109384 | AI24: SUDESTE
A25: -22.72915360558646, -47.14802907881556 | C25: 5004.832381 | D25: 12 | F25: Refinaria de Paulínia (Replan) | G25: Rodovia SP 332 - Km. 130 Bonfim - Paulínia – SP CEP:13140-000 | H25: São Paulo | I25: PAULÍNIA - SP | J25: Santa Maria da Vitória - BA | K25: =VLOOKUP('Transporte Cap 50-70'!H25,OFFSET('ANP ESTADO'!$A$1,MATCH('Transporte Cap 50-70'!$J$7,'ANP ESTADO'!B:B,0)+MATCH('Transporte Cap 50-70'!$I$10,OFFSET('ANP ESTADO'!$A$1,MATCH('Transporte Cap 50-70'!$J$7,'ANP ESTADO'!B:B,0),0,100000,1),0),2,100000,2),2,FALSE) -> 3.097259384 | L25: =VLOOKUP($I$10,OFFSET('ANP REGIÃO'!$A$9,MATCH('Transporte Cap 50-70'!$J$7,'ANP REGIÃO'!A:A,0),1,10000,10000),MATCH('Transporte Cap 50-70'!AI25,'ANP REGIÃO'!$B$8:$G$8,0),FALSE) -> 3.135083935 | M25: 3097.259384 | N25: 855.85 | O25: 3953.109384 | P25: 1450 | R25: 393.79 | T25: 393.79 | U25: 86.44 | V25: 506.95 | W25: 987.18 | X25: 805.9 | Y25: =EVEN(' CONSUMO DE MAT. B TOTAL'!$P$11*2/28)*X25/' CONSUMO DE MAT. B TOTAL'!$P$11 -> 64.5429973 | Z25: 1051.722997 | AA25: 3953.109384 | AB25: 5004.832381 | AD25: 5004.832381 | AE25: 1051.722997 | AF25: 3953.109384 | AI25: SUDESTE
A26: -23.184035809210584, -45.815845810063536 | C26: 4937.898429 | D26: 13 | F26: Refinaria Henrique Lage (Revap) | G26: Rodovia Presidente Dutra, KM 143, S/N Bairro Jardim Diamante - São José dos Campos – SP CEP:12223-900 | H26: São Paulo | I26: SÃO JOSÉ DOS CAMPOS - SP | J26: Santa Maria da Vitória - BA | K26: =VLOOKUP('Transporte Cap 50-70'!H26,OFFSET('ANP ESTADO'!$A$1,MATCH('Transporte Cap 50-70'!$J$7,'ANP ESTADO'!B:B,0)+MATCH('Transporte Cap 50-70'!$I$10,OFFSET('ANP ESTADO'!$A$1,MATCH('Transporte Cap 50-70'!$J$7,'ANP ESTADO'!B:B,0),0,100000,1),0),2,100000,2),2,FALSE) -> 3.097259384 | L26: =VLOOKUP($I$10,OFFSET('ANP REGIÃO'!$A$9,MATCH('Transporte Cap 50-70'!$J$7,'ANP REGIÃO'!A:A,0),1,10000,10000),MATCH('Transporte Cap 50-70'!AI26,'ANP REGIÃO'!$B$8:$G$8,0),FALSE) -> 3.135083935 | M26: 3097.259384 | N26: 855.85 | O26: 3953.109384 | P26: 1396 | R26: 380.13 | T26: 380.13 | U26: 83.44 | V26: 489.36 | W26: 952.93 | X26: 397.8 | Y26: =EVEN(' CONSUMO DE MAT. B TOTAL'!$P$11*2/28)*X26/' CONSUMO DE MAT. B TOTAL'!$P$11 -> 31.85904495 | Z26: 984.7890449 | AA26: 3953.109384 | AB26: 4937.898429 | AD26: 4937.898429 | AE26: 984.7890449 | AF26: 3953.109384 | AI26: SUDESTE
G30: Coordenadas Médias da Obra
G31: 585641,162559234 E | H31: 8519745,73319178 S | I31: 23S UTM
G32: -44.20902731 | H32: -13.38866509 | I32: WGS 84
E36: Acre
E37: Alagoas
E38: Amapá
E39: Amazonas
E40: Bahia
E41: Ceará
E42: Distrito Federal
E43: Espírito Santo
E44: Goiás
E45: Maranhão
B46: VALOR TOTAL | E46: Mato Grosso
E47: Mato Grosso do Sul
E48: Minas Gerais
E49: Pará
E50: Paraíba
E51: Paraná
E52: Pernambuco
E53: Piauí
E54: Rio de Janeiro
E55: Rio Grande do Norte
E56: Rio Grande do Sul
E57: Rondônia
E58: Roraima
E59: Santa Catarina
E60: São Paulo
E61: Sergipe
E62: Tocantins
E66: ASFALTOS DILUÍDOS CM-30
E67: ASFALTOS DILUÍDOS CM-70
E68: ASFALTOS DILUÍDOS CR-250
E69: ASFALTOS DILUÍDOS CR-70
E70: CAP MODIFICADO POR BORRACHA DE PNEU AB22
E71: CAP MODIFICADO POR BORRACHA DE PNEU AB8
E72: CAP MODIFICADO POR POLÍMERO 55-75-E
E73: CAP MODIFICADO POR POLÍMERO 60-85-E
E74: CAP MODIFICADO POR POLÍMERO 65-90-E
E75: CIMENTOS ASFÁLTICOS CAP-150-200
E76: CIMENTOS ASFÁLTICOS CAP-30-45
E77: CIMENTOS ASFÁLTICOS CAP-50-70
E78: CIMENTOS ASFÁLTICOS CAP-85-100
E79: EMULSÃO ASFÁLTICA CATIÔNICA DE RUPTURA CONTROLADA PARA SERVIÇO DE LAMA ASFÁLTICA
E80: EMULSÃO ASFÁLTICA DE RUPTURA LENTA CATIÔNICA PARA SERVIÇO DE LAMA ASFÁLTICA
E81: EMULSÃO ASFÁLTICA DE RUPTURA LENTA DE CARGA NEUTRA PARA SERVIÇO DE LAMA ASFÁLTICA
E82: EMULSÃO ASFÁLTICA PARA SERVIÇO DE IMPRIMAÇÃO
E83: EMULSÕES ASF. MOD. POR POLÍMEROS RC1C-E
E84: EMULSÕES ASF. MOD. POR POLÍMEROS RL1C-E
E85: EMULSÕES ASF. MOD. POR POLÍMEROS RM1C-E
E86: EMULSÕES ASF. MOD. POR POLÍMEROS RR1C-E
E87: EMULSÕES ASF. MOD. POR POLÍMEROS RR2C-E
E88: EMULSÕES ASFÁLTICAS RL-1C
E89: EMULSÕES ASFÁLTICAS RM-1C
E90: EMULSÕES ASFÁLTICAS RM-2C
E91: EMULSÕES ASFÁLTICAS RR-1C
E92: EMULSÕES ASFÁLTICAS RR-2C

Sheet Transporte EAI
C2: MEMÓRIA DE CÁLCULO
C7: REAJUSTE | F7: TIPOLOGIA DO MATERIAL | I7: EMULSÃO ASFÁLTICA PARA SERVIÇO DE IMPRIMAÇÃO | M7: IMPOSTOS | N7: COFINS | O7: 0.0065 | P7: 0.0065
G8: ÍNDICE DE PAVIMENTAÇÃO DNIT | H8: 2014-07-01 | I8: ÍNDICE INICIAL | J8: 270.237 | N8: PIS | O8: 0.03 | P8: 0.03 | T8: LEGENDA | AC8: As empresas tributadas pelo Lucro Presumido pagam 0,65% de PIS e 3% de COFINS
H9: set/23 | I9: ÍNDICE FINAL | J9: 555.51 | N9: ICMS | O9: 0.18 | P9: 0.18 | Q9: =1-(O9/1) -> 0.82 | R9: =1-(P9/1) -> 0.82 | S9: =1-(Q9/1) -> 0.18 | T9: ENTRADA DE DADOS | AC9: As empresas tributadas pelo Lucro Real pagam 1,65% de PIS e 7,60% de COFINS
F10: CAP50/70 | G10: Data ANP | H10: 2023-08-01
C11: DATA-BASE | D11: PRODUTOS | E11: LOCALIDADES | J11: CUSTO ANP (R$/Kg) | L11: CUSTO ANP | M11: IMPOSTOS DO PRODUTO | N11: CUSTO DO PRODUTO COM IMPOSTOS | O11: DMT's | P11: DMT's FLUVIAL | Q11: CUSTO DO TRANSPORTE RODOVIA PAVIMENTADA | R11: CUSTO DO TRANSPORTE FLUVIAL | S11: CUSTO DO TRANSPORTE TOTAL | T11: ICMS | U11: ATUALIZAÇÃO DO CUSTO DE TRANSPORTE | V11: CUSTO DO TRANSPORTE RODOVIA PAVIMENTADA COM IMPOSTOS E ATUALIZAÇÃO MONETÁRIA | W11: PEDÁGIO | Y11: TOTAL TRANSPORTE | Z11: AQUISIÇÃO DO PRODUTO | AA11: TOTAL GERAL ( TRANSP + AQUISIÇÃO) | AC11: 1 | AD11: 2 | AE11: 3
C12: =H9 -> set/23 | E12: REFINARIAS | F12: ENDEREÇO | G12: ESTADO | H12: CIDADE | I12: DESTINO | J12: ESTADO | K12: REGIÃO | L12: R$/t | M12: R$/t | N12: R$/t | O12: KM | P12: KM | Q12: R$/t | R12: R$/t | S12: R$/t | T12: R$/t | U12: R$/t | V12: R$/t | W12: CUSTO | X12: R$/t | Y12: R$/t | Z12: R$/t | AA12: R$/t | AC12: TOTAL GERAL ( TRANSP + AQUISIÇÃO) | AD12: TOTAL TRANSPORTE | AE12: AQUISIÇÃO DO PRODUTO
B13: =AA13 -> 3909.338007 | C13: 1 | D13: =I7 -> EMULSÃO ASFÁLTICA PARA SERVIÇO DE IMPRIMAÇÃO | E13: Refinaria Abreu e Lima | F13: Rodovia PE 60, Km 10 - Ipojuca - PE CEP:55590-000 | G13: Pernambuco | H13: IPOJUCA - PE | I13: Santa Maria da Vitória - BA | J13: =VLOOKUP('Transporte EAI'!G13,OFFSET('ANP ESTADO'!$A$1,MATCH('Transporte EAI'!$I$7,'ANP ESTADO'!B:B,0)+MATCH('Transporte EAI'!$H$10,OFFSET('ANP ESTADO'!$A$1,MATCH('Transporte EAI'!$I$7,'ANP ESTADO'!B:B,0),0,100000,1),0),2,100000,2),2,FALSE) -> - | K13: =VLOOKUP($H$10,OFFSET('ANP REGIÃO'!$A$9,MATCH('Transporte EAI'!$I$7,'ANP REGIÃO'!A:A,0),1,10000,10000),MATCH('Transporte EAI'!AH13,'ANP REGIÃO'!$B$8:$G$8,0),FALSE) -> 2.251980076 | L13: =IF(AND(J13="-",K13="-"),"",IF(AND(J13<>0,K13="-"),J13*1000,IF(AND(J13="-",K13<>0),K13*1000,IF(AND(J13<>0,K13<>0),J13*1000,"")))) -> 2251.980076 | M13: =ROUND(((L13/(1-$O$7-$O$8-$O$9))-L13),2) -> 622.28 | N13: =L13+M13 -> 2874.260076 | O13: 1519 | Q13: =ROUND((26.939+0.253*O13),2) -> 411.25 | S13: =Q13+R13 -> 411.25 | T13: =TRUNC(S13*($O$9/(1-$O$9)),2) -> 90.27 | U13: =TRUNC(IF($J$8="","",(($J$9-$J$8)/$J$8)*(S13+T13)),2) -> 529.42 | V13: =S13+T13+U13 -> 1030.94 | W13: 35.4 | X13: =EVEN(' CONSUMO DE MAT. B TOTAL'!$P$8*2/28)*W13/' CONSUMO DE MAT. B TOTAL'!$P$8 -> 4.137931034 | Y13: =IF(AND(S13="",T13=""),"",V13+X13) -> 1035.077931 | Z13: =IF(OR(L13="",M13=""),"",L13+M13) -> 2874.260076 | AA13: =IF(OR(Y13="",Z13=""),"",Y13+Z13) -> 3909.338007 | AC13: =AA13 -> 3909.338007 | AD13: =Y13 -> 1035.077931 | AE13: =Z13 -> 2874.260076 | AH13: =IF(OR(G13=$D$52,G13=$D$53,G13=$D$55,G13=$D$61,G13=$D$45,G13=$D$41,G13=$D$37,G13=$D$50,G13=$D$40),"NORDESTE",IF(OR(G13=$D$36,G13=$D$38,G13=$D$39,G13=$D$49,G13=$D$57,G13=$D$58,G13=$D$62),"NORTE",IF(OR(G13=$D$42,G13=$D$44,G13=$D$46,G13=$D$47),"CENTRO-OESTE",IF(OR(G13=$D$60,G13=$D$54,G13=$D$48,G13=$D$43),"SUDESTE",IF(OR(G13=$D$59,G13=$D$51,G13=$D$56),"SUL",""))))) -> NORDESTE
B14: =AA14 -> 6119.390778 | C14: 2 | E14: ISAC SAABA | F14: Rua Rio Quixito, 1, Vila Buriti - Distrito Industrial - Manaus - AM CEP: 69072-070 | G14: Amazonas | H14: MANAUS-AM | I14: Santa Maria da Vitória - BA | J14: =VLOOKUP('Transporte EAI'!G14,OFFSET('ANP ESTADO'!$A$1,MATCH('Transporte EAI'!$I$7,'ANP ESTADO'!B:B,0)+MATCH('Transporte EAI'!$H$10,OFFSET('ANP ESTADO'!$A$1,MATCH('Transporte EAI'!$I$7,'ANP ESTADO'!B:B,0),0,100000,1),0),2,100000,2),2,FALSE) -> - | K14: =VLOOKUP($H$10,OFFSET('ANP REGIÃO'!$A$9,MATCH('Transporte EAI'!$I$7,'ANP REGIÃO'!A:A,0),1,10000,10000),MATCH('Transporte EAI'!AH14,'ANP REGIÃO'!$B$8:$G$8,0),FALSE) -> 2.759900778 | L14: =IF(AND(J14="-",K14=""),"",IF(AND(J14<>0,K14=""),J14*1000,IF(AND(J14="-",K14<>0),K14*1000,IF(AND(J14<>0,K14<>0),J14*1000,"")))) -> 2759.900778 | M14: =ROUND(((L14/(1-$O$7-$O$8-$O$9))-L14),2) -> 762.63 | N14: =L14+M14 -> 3522.530778 | O14: 3988 | Q14: =ROUND((26.939+0.253*O14),2) -> 1035.9 | S14: =Q14+R14 -> 1035.9 | T14: =TRUNC(S14*($O$9/(1-$O$9)),2) -> 227.39 | U14: =TRUNC(IF($J$8="","",(($J$9-$J$8)/$J$8)*(S14+T14)),2) -> 1333.57 | V14: =S14+T14+U14 -> 2596.86 | W14: 0 | X14: =EVEN(' CONSUMO DE MAT. B TOTAL'!$P$8*2/28)*W14/' CONSUMO DE MAT. B TOTAL'!$P$8 -> 0 | Y14: =IF(AND(S14="",T14=""),"",V14+X14) -> 2596.86 | Z14: =IF(OR(L14="",M14=""),"",L14+M14) -> 3522.530778 | AA14: =IF(OR(Y14="",Z14=""),"",Y14+Z14) -> 6119.390778 | AC14: =AA14 -> 6119.390778 | AD14: =Y14 -> 2596.86 | AE14: =Z14 -> 3522.530778 | AH14: =IF(OR(G14=$D$52,G14=$D$53,G14=$D$55,G14=$D$61,G14=$D$45,G14=$D$41,G14=$D$37,G14=$D$50,G14=$D$40),"NORDESTE",IF(OR(G14=$D$36,G14=$D$38,G14=$D$39,G14=$D$49,G14=$D$57,G14=$D$58,G14=$D$62),"NORTE",IF(OR(G14=$D$42,G14=$D$44,G14=$D$46,G14=$D$47),"CENTRO-OESTE",IF(OR(G14=$D$60,G14=$D$54,G14=$D$48,G14=$D$43),"SUDESTE",IF(OR(G14=$D$59,G14=$D$51,G14=$D$56),"SUL",""))))) -> NORTE
B15: =AA15 -> 3992.710076 | C15: 2 | E15: Refinaria Potiguar Clara Camarão | F15: Rodovia RN 221, KM 25 - Guamaré - RN CEP:59598-000 | G15: Rio Grande do Norte | H15: GUAMARÉ - RN | I15: Santa Maria da Vitória - BA | J15: =VLOOKUP('Transporte EAI'!G15,OFFSET('ANP ESTADO'!$A$1,MATCH('Transporte EAI'!$I$7,'ANP ESTADO'!B:B,0)+MATCH('Transporte EAI'!$H$10,OFFSET('ANP ESTADO'!$A$1,MATCH('Transporte EAI'!$I$7,'ANP ESTADO'!B:B,0),0,100000,1),0),2,100000,2),2,FALSE) -> - | K15: =VLOOKUP($H$10,OFFSET('ANP REGIÃO'!$A$9,MATCH('Transporte EAI'!$I$7,'ANP REGIÃO'!A:A,0),1,10000,10000),MATCH('Transporte EAI'!AH15,'ANP REGIÃO'!$B$8:$G$8,0),FALSE) -> 2.251980076 | L15: =IF(AND(J15="-",K15=""),"",IF(AND(J15<>0,K15=""),J15*1000,IF(AND(J15="-",K15<>0),K15*1000,IF(AND(J15<>0,K15<>0),J15*1000,"")))) -> 2251.980076 | M15: =ROUND(((L15/(1-$O$7-$O$8-$O$9))-L15),2) -> 622.28 | N15: =L15+M15 -> 2874.260076 | O15: 1657 | Q15: =ROUND((26.939+0.253*O15),2) -> 446.16 | S15: 446.16 | T15: 97.93 | U15: 574.36 | V15: 1118.45 | W15: 0 | X15: =EVEN(' CONSUMO DE MAT. B TOTAL'!$P$8*2/28)*W15/' CONSUMO DE MAT. B TOTAL'!$P$8 -> 0 | Y15: 1118.45 | Z15: 2874.260076 | AA15: =IF(OR(Y15="",Z15=""),"",Y15+Z15) -> 3992.710076 | AC15: =AA15 -> 3992.710076 | AD15: =Y15 -> 1118.45 | AE15: 2874.260076 | AH15: =IF(OR(G15=$D$52,G15=$D$53,G15=$D$55,G15=$D$61,G15=$D$45,G15=$D$41,G15=$D$37,G15=$D$50,G15=$D$40),"NORDESTE",IF(OR(G15=$D$36,G15=$D$38,G15=$D$39,G15=$D$49,G15=$D$57,G15=$D$58,G15=$D$62),"NORTE",IF(OR(G15=$D$42,G15=$D$44,G15=$D$46,G15=$D$47),"CENTRO-OESTE",IF(OR(G15=$D$60,G15=$D$54,G15=$D$48,G15=$D$43),"SUDESTE",IF(OR(G15=$D$59,G15=$D$51,G15=$D$56),"SUL",""))))) -> NORDESTE
B16: 3475.282443 | C16: 3 | E16: Refinaria Landulpho Alves (RLAM) | F16: Rodovia BA 523, KM 4 – Mataripe São Francisco do Conde - BA CEP:43900-000 | G16: Bahia | H16: SÃO FRANCISCO DO CONDE - BA | I16: Santa Maria da Vitória - BA | J16: =VLOOKUP('Transporte EAI'!G16,OFFSET('ANP ESTADO'!$A$1,MATCH('Transporte EAI'!$I$7,'ANP ESTADO'!B:B,0)+MATCH('Transporte EAI'!$H$10,OFFSET('ANP ESTADO'!$A$1,MATCH('Transporte EAI'!$I$7,'ANP ESTADO'!B:B,0),0,100000,1),0),2,100000,2),2,FALSE) -> - | K16: =VLOOKUP($H$10,OFFSET('ANP REGIÃO'!$A$9,MATCH('Transporte EAI'!$I$7,'ANP REGIÃO'!A:A,0),1,10000,10000),MATCH('Transporte EAI'!AH16,'ANP REGIÃO'!$B$8:$G$8,0),FALSE) -> 2.251980076 | L16: 2251.980076 | M16: =ROUND(((L16/(1-$O$7-$O$8-$O$9))-L16),2) -> 622.28 | N16: 2874.260076 | O16: 831 | Q16: =ROUND((26.939+0.253*O16),2) -> 237.18 | S16: 237.18 | T16: 52.06 | U16: 305.33 | V16: 594.57 | W16: 55.2 | X16: =EVEN(' CONSUMO DE MAT. B TOTAL'!$P$8*2/28)*W16/' CONSUMO DE MAT. B TOTAL'!$P$8 -> 6.452367037 | Y16: 601.022367 | Z16: 2874.260076 | AA16: 3475.282443 | AC16: 3475.282443 | AD16: 601.022367 | AE16: 2874.260076 | AH16: NORDESTE
A17: 2403 | B17: 3858.83774 | C17: 4 | E17: Refinaria Lubrificantes e Derivados do Nordeste (Lubnor) | F17: Av. Leite Barbosa, s/nº - Mucuripe Fortaleza - Ceará CEP:60180-420 | G17: Ceará | H17: FORTALEZA - CE | I17: Santa Maria da Vitória - BA | J17: =VLOOKUP('Transporte EAI'!G17,OFFSET('ANP ESTADO'!$A$1,MATCH('Transporte EAI'!$I$7,'ANP ESTADO'!B:B,0)+MATCH('Transporte EAI'!$H$10,OFFSET('ANP ESTADO'!$A$1,MATCH('Transporte EAI'!$I$7,'ANP ESTADO'!B:B,0),0,100000,1),0),2,100000,2),2,FALSE) -> 2.24894774 | K17: =VLOOKUP($H$10,OFFSET('ANP REGIÃO'!$A$9,MATCH('Transporte EAI'!$I$7,'ANP REGIÃO'!A:A,0),1,10000,10000),MATCH('Transporte EAI'!AH17,'ANP REGIÃO'!$B$8:$G$8,0),FALSE) -> 2.251980076 | L17: 2248.94774 | M17: 621.44 | N17: 2870.38774 | O17: 1452 | Q17: 394.3 | S17: 394.3 | T17: 86.55 | U17: 507.6 | V17: 988.45 | W17: 0 | X17: =EVEN(' CONSUMO DE MAT. B TOTAL'!$P$8*2/28)*W17/' CONSUMO DE MAT. B TOTAL'!$P$8 -> 0 | Y17: 988.45 | Z17: 2870.38774 | AA17: 3858.83774 | AC17: 3858.83774 | AD17: 988.45 | AE17: 2870.38774 | AH17: NORDESTE
B18: 4140.955889 | C18: 5 | E18: Refinaria Capuava (Recap) | F18: Av. Alberto Soares Sampaio, 2122-A Capuava – Mauá - SP | G18: São Paulo | H18: MAUÁ - SP | I18: Santa Maria da Vitória - BA | J18: =VLOOKUP('Transporte EAI'!G18,OFFSET('ANP ESTADO'!$A$1,MATCH('Transporte EAI'!$I$7,'ANP ESTADO'!B:B,0)+MATCH('Transporte EAI'!$H$10,OFFSET('ANP ESTADO'!$A$1,MATCH('Transporte EAI'!$I$7,'ANP ESTADO'!B:B,0),0,100000,1),0),2,100000,2),2,FALSE) -> 2.365835474 | K18: =VLOOKUP($H$10,OFFSET('ANP REGIÃO'!$A$9,MATCH('Transporte EAI'!$I$7,'ANP REGIÃO'!A:A,0),1,10000,10000),MATCH('Transporte EAI'!AH18,'ANP REGIÃO'!$B$8:$G$8,0),FALSE) -> 2.248444472 | L18: 2365.835474 | M18: 653.74 | N18: 3019.575474 | O18: 1579 | Q18: 426.43 | S18: 426.43 | T18: 93.6 | U18: 548.96 | V18: 1068.99 | W18: 448.2 | X18: =EVEN(' CONSUMO DE MAT. B TOTAL'!$P$8*2/28)*W18/' CONSUMO DE MAT. B TOTAL'!$P$8 -> 52.39041496 | Y18: 1121.380415 | Z18: 3019.575474 | AA18: 4140.955889 | AC18: 4140.955889 | AD18: 1121.380415 | AE18: 3019.575474 | AH18: SUDESTE
B19: 3849.640995 | C19: 6 | E19: Refinaria Duque de Caxias (Reduc) | F19: Rodovia Washington Luiz, km 113,7 Campos Elíseos – Duque de Caxias - RJ CEP:25213-005 | G19: Rio de Janeiro | H19: DUQUE DE CAXIAS - RJ | I19: Santa Maria da Vitória - BA | J19: =VLOOKUP('Transporte EAI'!G19,OFFSET('ANP ESTADO'!$A$1,MATCH('Transporte EAI'!$I$7,'ANP ESTADO'!B:B,0)+MATCH('Transporte EAI'!$H$10,OFFSET('ANP ESTADO'!$A$1,MATCH('Transporte EAI'!$I$7,'ANP ESTADO'!B:B,0),0,100000,1),0),2,100000,2),2,FALSE) -> - | K19: =VLOOKUP($H$10,OFFSET('ANP REGIÃO'!$A$9,MATCH('Transporte EAI'!$I$7,'ANP REGIÃO'!A:A,0),1,10000,10000),MATCH('Transporte EAI'!AH19,'ANP REGIÃO'!$B$8:$G$8,0),FALSE) -> 2.248444472 | L19: 2248.444472 | M19: 621.3 | N19: 2869.744472 | O19: 1318 | Q19: 360.39 | S19: 360.39 | T19: 79.11 | U19: 463.95 | V19: 903.45 | W19: 654 | X19: =EVEN(' CONSUMO DE MAT. B TOTAL'!$P$8*2/28)*W19/' CONSUMO DE MAT. B TOTAL'!$P$8 -> 76.4465225 | Y19: 979.8965225 | Z19: 2869.744472 | AA19: 3849.640995 | AC19: 3849.640995 | AD19: 979.8965225 | AE19: 2869.744472 | AH19: SUDESTE
B20: 5134.823156 | C20: 7 | E20: Refinaria Alberto Pasqualini (Refap) | F20: Avenida Getúlio Vargas, 11001 - Bairro Brigadeira Canoas - RS - Brasil CEP:92420-221 | G20: Rio grande do sul | H20: CANOAS - RS | I20: Santa Maria da Vitória - BA | J20: =VLOOKUP('Transporte EAI'!G20,OFFSET('ANP ESTADO'!$A$1,MATCH('Transporte EAI'!$I$7,'ANP ESTADO'!B:B,0)+MATCH('Transporte EAI'!$H$10,OFFSET('ANP ESTADO'!$A$1,MATCH('Transporte EAI'!$I$7,'ANP ESTADO'!B:B,0),0,100000,1),0),2,100000,2),2,FALSE) -> - | K20: =VLOOKUP($H$10,OFFSET('ANP REGIÃO'!$A$9,MATCH('Transporte EAI'!$I$7,'ANP REGIÃO'!A:A,0),1,10000,10000),MATCH('Transporte EAI'!AH20,'ANP REGIÃO'!$B$8:$G$8,0),FALSE) -> 2.540239339 | L20: 2540.239339 | M20: 701.93 | N20: 3242.169339 | O20: 2662 | Q20: 700.43 | S20: 700.43 | T20: 153.75 | U20: 901.7 | V20: 1755.88 | W20: 1170.1 | X20: =EVEN(' CONSUMO DE MAT. B TOTAL'!$P$8*2/28)*W20/' CONSUMO DE MAT. B TOTAL'!$P$8 -> 136.7738165 | Y20: 1892.653816 | Z20: 3242.169339 | AA20: 5134.823156 | AC20: 5134.823156 | AD20: 1892.653816 | AE20: 3242.169339 | AH20: SUL
B21: 4644.345141 | C21: 8 | E21: Unidade de Industrialização do Xisto (SIX) | F21: Rodovia do Xisto, BR 476, km 153 São Mateus do Sul – PR CEP 83900-000 | G21: Paraná | H21: SÃO MATEUS DO SUL - PR | I21: Santa Maria da Vitória - BA | J21: =VLOOKUP('Transporte EAI'!G21,OFFSET('ANP ESTADO'!$A$1,MATCH('Transporte EAI'!$I$7,'ANP ESTADO'!B:B,0)+MATCH('Transporte EAI'!$H$10,OFFSET('ANP ESTADO'!$A$1,MATCH('Transporte EAI'!$I$7,'ANP ESTADO'!B:B,0),0,100000,1),0),2,100000,2),2,FALSE) -> 2.518835316 | K21: =VLOOKUP($H$10,OFFSET('ANP REGIÃO'!$A$9,MATCH('Transporte EAI'!$I$7,'ANP REGIÃO'!A:A,0),1,10000,10000),MATCH('Transporte EAI'!AH21,'ANP REGIÃO'!$B$8:$G$8,0),FALSE) -> 2.540239339 | L21: 2518.835316 | M21: 696.02 | N21: 3214.855316 | O21: 1994 | Q21: 531.42 | S21: 531.42 | T21: 116.65 | U21: 684.12 | V21: 1332.19 | W21: 832.4 | X21: =EVEN(' CONSUMO DE MAT. B TOTAL'!$P$8*2/28)*W21/' CONSUMO DE MAT. B TOTAL'!$P$8 -> 97.29982466 | Y21: 1429.489825 | Z21: 3214.855316 | AA21: 4644.345141 | AC21: 4644.345141 | AD21: 1429.489825 | AE21: 3214.855316 | AH21: SUL
B22: 3498.3268 | C22: 9 | E22: Refinaria Gabriel Passos (Regap) | F22: Av. Refinaria Gabriel Passos, 690 Distrito Industrial Paulo Camilo Sul Betim - MG CEP:32669-205 | G22: Minas Gerais | H22: BETIM - MG | I22: Santa Maria da Vitória - BA | J22: =VLOOKUP('Transporte EAI'!G22,OFFSET('ANP ESTADO'!$A$1,MATCH('Transporte EAI'!$I$7,'ANP ESTADO'!B:B,0)+MATCH('Transporte EAI'!$H$10,OFFSET('ANP ESTADO'!$A$1,MATCH('Transporte EAI'!$I$7,'ANP ESTADO'!B:B,0),0,100000,1),0),2,100000,2),2,FALSE) -> 2.205606496 | K22: =VLOOKUP($H$10,OFFSET('ANP REGIÃO'!$A$9,MATCH('Transporte EAI'!$I$7,'ANP REGIÃO'!A:A,0),1,10000,10000),MATCH('Transporte EAI'!AH22,'ANP REGIÃO'!$B$8:$G$8,0),FALSE) -> 2.248444472 | L22: 2205.606496 | M22: 609.46 | N22: 2815.066496 | O22: 913 | Q22: 257.93 | S22: 257.93 | T22: 56.61 | U22: 332.04 | V22: 646.58 | W22: 313.8 | X22: =EVEN(' CONSUMO DE MAT. B TOTAL'!$P$8*2/28)*W22/' CONSUMO DE MAT. B TOTAL'!$P$8 -> 36.68030392 | Y22: 683.2603039 | Z22: 2815.066496 | AA22: 3498.3268 | AC22: 3498.3268 | AD22: 683.2603039 | AE22: 2815.066496 | AH22: SUDESTE
B23: 4625.955141 | C23: 10 | E23: Refinaria Presidente Getúlio Vargas (Repar) | F23: Rodovia do Xisto, BR 476, km 16 Araucária - PR CEP:83707-440 | G23: Paraná | H23: ARAUCÁRIA - PR | I23: Santa Maria da Vitória - BA | J23: =VLOOKUP('Transporte EAI'!G23,OFFSET('ANP ESTADO'!$A$1,MATCH('Transporte EAI'!$I$7,'ANP ESTADO'!B:B,0)+MATCH('Transporte EAI'!$H$10,OFFSET('ANP ESTADO'!$A$1,MATCH('Transporte EAI'!$I$7,'ANP ESTADO'!B:B,0),0,100000,1),0),2,100000,2),2,FALSE) -> 2.518835316 | K23: =VLOOKUP($H$10,OFFSET('ANP REGIÃO'!$A$9,MATCH('Transporte EAI'!$I$7,'ANP REGIÃO'!A:A,0),1,10000,10000),MATCH('Transporte EAI'!AH23,'ANP REGIÃO'!$B$8:$G$8,0),FALSE) -> 2.540239339 | L23: 2518.835316 | M23: 696.02 | N23: 3214.855316 | O23: 1965 | Q23: 524.08 | S23: 524.08 | T23: 115.04 | U23: 674.68 | V23: 1313.8 | W23: 832.4 | X23: =EVEN(' CONSUMO DE MAT. B TOTAL'!$P$8*2/28)*W23/' CONSUMO DE MAT. B TOTAL'!$P$8 -> 97.29982466 | Y23: 1411.099825 | Z23: 3214.855316 | AA23: 4625.955141 | AC23: 4625.955141 | AD23: 1411.099825 | AE23: 3214.855316 | AH23: SUL
B24: 4230.650845 | C24: 11 | E24: Refinaria Presidente Bernardes (RPBC) | F24: Av. 9 de abril, 777 - Jardim das Indústrias Cubatão - SP CEP:11505-000 | G24: São Paulo | H24: CUBATÃO - SP | I24: Santa Maria da Vitória - BA | J24: =VLOOKUP('Transporte EAI'!G24,OFFSET('ANP ESTADO'!$A$1,MATCH('Transporte EAI'!$I$7,'ANP ESTADO'!B:B,0)+MATCH('Transporte EAI'!$H$10,OFFSET('ANP ESTADO'!$A$1,MATCH('Transporte EAI'!$I$7,'ANP ESTADO'!B:B,0),0,100000,1),0),2,100000,2),2,FALSE) -> 2.365835474 | K24: =VLOOKUP($H$10,OFFSET('ANP REGIÃO'!$A$9,MATCH('Transporte EAI'!$I$7,'ANP REGIÃO'!A:A,0),1,10000,10000),MATCH('Transporte EAI'!AH24,'ANP REGIÃO'!$B$8:$G$8,0),FALSE) -> 2.248444472 | L24: 2365.835474 | M24: 653.74 | N24: 3019.575474 | O24: 1619 | Q24: 436.55 | S24: 436.55 | T24: 95.82 | U24: 561.99 | V24: 1094.36 | W24: 998.5 | X24: =EVEN(' CONSUMO DE MAT. B TOTAL'!$P$8*2/28)*W24/' CONSUMO DE MAT. B TOTAL'!$P$8 -> 116.7153711 | Y24: 1211.075371 | Z24: 3019.575474 | AA24: 4230.650845 | AC24: 4230.650845 | AD24: 1211.075371 | AE24: 3019.575474 | AH24: SUDESTE
B25: 4100.957695 | C25: 12 | E25: Refinaria de Paulínia (Replan) | F25: Rodovia SP 332 - Km. 130 Bonfim - Paulínia – SP CEP:13140-000 | G25: São Paulo | H25: PAULÍNIA - SP | I25: Santa Maria da Vitória - BA | J25: =VLOOKUP('Transporte EAI'!G25,OFFSET('ANP ESTADO'!$A$1,MATCH('Transporte EAI'!$I$7,'ANP ESTADO'!B:B,0)+MATCH('Transporte EAI'!$H$10,OFFSET('ANP ESTADO'!$A$1,MATCH('Transporte EAI'!$I$7,'ANP ESTADO'!B:B,0),0,100000,1),0),2,100000,2),2,FALSE) -> 2.365835474 | K25: =VLOOKUP($H$10,OFFSET('ANP REGIÃO'!$A$9,MATCH('Transporte EAI'!$I$7,'ANP REGIÃO'!A:A,0),1,10000,10000),MATCH('Transporte EAI'!AH25,'ANP REGIÃO'!$B$8:$G$8,0),FALSE) -> 2.248444472 | L25: 2365.835474 | M25: 653.74 | N25: 3019.575474 | O25: 1450 | Q25: 393.79 | S25: 393.79 | T25: 86.44 | U25: 506.95 | V25: 987.18 | W25: 805.9 | X25: =EVEN(' CONSUMO DE MAT. B TOTAL'!$P$8*2/28)*W25/' CONSUMO DE MAT. B TOTAL'!$P$8 -> 94.20222092 | Y25: 1081.382221 | Z25: 3019.575474 | AA25: 4100.957695 | AC25: 4100.957695 | AD25: 1081.382221 | AE25: 3019.575474 | AH25: SUDESTE
B26: 4019.004597 | C26: 13 | E26: Refinaria Henrique Lage (Revap) | F26: Rodovia Presidente Dutra, KM 143, S/N Bairro Jardim Diamante - São José dos Campos – SP CEP:12223-900 | G26: São Paulo | H26: SÃO JOSÉ DOS CAMPOS - SP | I26: Santa Maria da Vitória - BA | J26: =VLOOKUP('Transporte EAI'!G26,OFFSET('ANP ESTADO'!$A$1,MATCH('Transporte EAI'!$I$7,'ANP ESTADO'!B:B,0)+MATCH('Transporte EAI'!$H$10,OFFSET('ANP ESTADO'!$A$1,MATCH('Transporte EAI'!$I$7,'ANP ESTADO'!B:B,0),0,100000,1),0),2,100000,2),2,FALSE) -> 2.365835474 | K26: =VLOOKUP($H$10,OFFSET('ANP REGIÃO'!$A$9,MATCH('Transporte EAI'!$I$7,'ANP REGIÃO'!A:A,0),1,10000,10000),MATCH('Transporte EAI'!AH26,'ANP REGIÃO'!$B$8:$G$8,0),FALSE) -> 2.248444472 | L26: 2365.835474 | M26: 653.74 | N26: 3019.575474 | O26: 1396 | Q26: 380.13 | S26: 380.13 | T26: 83.44 | U26: 489.36 | V26: 952.93 | W26: 397.8 | X26: =EVEN(' CONSUMO DE MAT. B TOTAL'!$P$8*2/28)*W26/' CONSUMO DE MAT. B TOTAL'!$P$8 -> 46.49912332 | Y26: 999.4291233 | Z26: 3019.575474 | AA26: 4019.004597 | AC26: 4019.004597 | AD26: 999.4291233 | AE26: 3019.575474 | AH26: SUDESTE
D36: Acre
D37: Alagoas
D38: Amapá
D39: Amazonas
D40: Bahia
D41: Ceará
D42: Distrito Federal
D43: Espírito Santo
D44: Goiás
D45: Maranhão
B46: VALOR TOTAL | D46: Mato Grosso
D47: Mato Grosso do Sul
D48: Minas Gerais
D49: Pará
D50: Paraíba
D51: Paraná
D52: Pernambuco
D53: Piauí
D54: Rio de Janeiro
D55: Rio Grande do Norte
D56: Rio Grande do Sul
D57: Rondônia
D58: Roraima
D59: Santa Catarina
D60: São Paulo
D61: Sergipe
D62: Tocantins
D66: ASFALTOS DILUÍDOS CM-30
D67: ASFALTOS DILUÍDOS CM-70
D68: ASFALTOS DILUÍDOS CR-250
D69: ASFALTOS DILUÍDOS CR-70
D70: CAP MODIFICADO POR BORRACHA DE PNEU AB22
D71: CAP MODIFICADO POR BORRACHA DE PNEU AB8
D72: CAP MODIFICADO POR POLÍMERO 55-75-E
D73: CAP MODIFICADO POR POLÍMERO 60-85-E
D74: CAP MODIFICADO POR POLÍMERO 65-90-E
D75: CIMENTOS ASFÁLTICOS CAP-150-200
D76: CIMENTOS ASFÁLTICOS CAP-30-45
D77: CIMENTOS ASFÁLTICOS CAP-50-70
D78: CIMENTOS ASFÁLTICOS CAP-85-100
D79: EMULSÃO ASFÁLTICA CATIÔNICA DE RUPTURA CONTROLADA PARA SERVIÇO DE LAMA ASFÁLTICA
D80: EMULSÃO ASFÁLTICA DE RUPTURA LENTA CATIÔNICA PARA SERVIÇO DE LAMA ASFÁLTICA
D81: EMULSÃO ASFÁLTICA DE RUPTURA LENTA DE CARGA NEUTRA PARA SERVIÇO DE LAMA ASFÁLTICA
D82: EMULSÃO ASFÁLTICA PARA SERVIÇO DE IMPRIMAÇÃO
D83: EMULSÕES ASF. MOD. POR POLÍMEROS RC1C-E
D84: EMULSÕES ASF. MOD. POR POLÍMEROS RL1C-E
D85: EMULSÕES ASF. MOD. POR POLÍMEROS RM1C-E
D86: EMULSÕES ASF. MOD. POR POLÍMEROS RR1C-E
D87: EMULSÕES ASF. MOD. POR POLÍMEROS RR2C-E
D88: EMULSÕES ASFÁLTICAS RL-1C
D89: EMULSÕES ASFÁLTICAS RM-1C
D90: EMULSÕES ASFÁLTICAS RM-2C
D91: EMULSÕES ASFÁLTICAS RR-1C
D92: EMULSÕES ASFÁLTICAS RR-2C

Sheet RESUMO_Transp
B11: ÍNDICE DE PAVIMENTAÇÃO DNIT | E11: TIPOLOGIA DO MATERIAL | G11: LIGANTE BETUMINOSO | K11: IMPOSTOS | L11: COFINS | M11: ='Transporte Cap 50-70'!P7 -> 0.0065 | N11: ='Transporte Cap 50-70'!Q7 -> 0.0065
C12: DATA INICIAL | F12: 2014-07-01 | G12: ÍNDICE INICIAL | H12: ='Transporte Cap 50-70'!K8 -> 270.237 | L12: PIS | M12: ='Transporte Cap 50-70'!P8 -> 0.03 | N12: ='Transporte Cap 50-70'!Q8 -> 0.03 | P12: LEGENDA
C13: DATA FINAL | F13: 2023-01-01 | G13: ÍNDICE FINAL | H13: ='Transporte Cap 50-70'!K9 -> 555.51 | L13: ICMS | M13: ='Transporte Cap 50-70'!P9 -> 0.18 | N13: ='Transporte Cap 50-70'!Q9 -> 0.18 | P13: ENTRADA DE DADOS
B15: DATA-BASE | C15: PRODUTOS | D15: LOCALIDADES | H15: CUSTO ANP (R$/Kg) | J15: CUSTO ANP | K15: IMPOSTOS DO PRODUTO | L15: CUSTO DO PRODUTO COM IMPOSTOS | M15: DMT's | N15: DMT's | O15: CUSTO DO TRANSPORTE TOTAL | P15: ICMS | Q15: ATUALIZAÇÃO DO CUSTO DE TRANSPORTE | R15: CUSTO DO TRANSPORTE RODOVIA PAVIMENTADA COM IMPOSTOS E ATUALIZAÇÃO MONETÁRIA | S15: PEDÁGIO | U15: TOTAL TRANSPORTE | V15: TOTAL PRODUTO | W15: TOTAL GERAL | X15: Valor Transporte por Km
B16: =F13 -> 2023-01-01 | D16: REFINARIAS | E16: ENDEREÇO | F16: ORIGEM REFINARIAS / DISTRIBUIDORAS | G16: DESTINO | H16: ESTADO | I16: REGIÃO | J16: R$/t | K16: R$/t | L16: R$/t | M16: KM | N16: KM | O16: R$/t | P16: R$/t | Q16: R$/t | R16: R$/t | S16: CUSTO POR EIXO | T16: R$/t | U16: R$/t | V16: R$/t | W16: R$/t | X16: R$/txkm
B17: 1 | C17: CAP 50/70 | D17: Refinaria Abreu e Lima | E17: Rodovia PE 60, Km 10 - Ipojuca - PE CEP:55590-000 | F17: =VLOOKUP($W17,'Transporte Cap 50-70'!$C:$AB,7,FALSE) -> BETIM - MG | G17: =VLOOKUP($W17,'Transporte Cap 50-70'!$C:$AB,8,FALSE) -> Santa Maria da Vitória - BA | H17: =VLOOKUP($W17,'Transporte Cap 50-70'!$C:$AB,9,FALSE) -> 3.18358774 | I17: =VLOOKUP($W17,'Transporte Cap 50-70'!$C:$AB,10,FALSE) -> 3.135083935 | J17: =VLOOKUP($W17,'Transporte Cap 50-70'!$C:$AB,11,FALSE) -> 3183.58774 | K17: =VLOOKUP($W17,'Transporte Cap 50-70'!$C:$AB,12,FALSE) -> 879.7 | L17: =VLOOKUP($W17,'Transporte Cap 50-70'!$C:$AB,13,FALSE) -> 4063.28774 | M17: =VLOOKUP($W17,'Transporte Cap 50-70'!$C$13:$AB$26,14,FALSE) -> 913 | N17: =VLOOKUP($W17,'Transporte Cap 50-70'!$C:$AB,15,FALSE) -> 0 | O17: =VLOOKUP($W17,'Transporte Cap 50-70'!$C:$AB,18,FALSE) -> 257.93 | P17: =VLOOKUP($W17,'Transporte Cap 50-70'!$C:$AB,19,FALSE) -> 56.61 | Q17: =VLOOKUP($W17,'Transporte Cap 50-70'!$C:$AB,20,FALSE) -> 332.04 | R17: =VLOOKUP($W17,'Transporte Cap 50-70'!$C:$AB,21,FALSE) -> 646.58 | S17: =VLOOKUP($W17,'Transporte Cap 50-70'!$C:$AB,22,FALSE) -> 313.8 | T17: =VLOOKUP($W17,'Transporte Cap 50-70'!$C:$AB,23,FALSE) -> 25.13164481 | U17: =VLOOKUP($W17,'Transporte Cap 50-70'!$C:$AB,24,FALSE) -> 671.7116448 | V17: =VLOOKUP($W17,'Transporte Cap 50-70'!$C:$AB,25,FALSE) -> 4063.28774 | W17: =SMALL('Transporte Cap 50-70'!$AB$13:$AB$26,1) -> 4734.999384 | X17: =ROUND(U17/M17,2) -> 0.74
B18: 2 | D18: Refinaria Potiguar Clara Camarão | E18: Rodovia RN 221, KM 25 - Guamaré - RN CEP:59598-000 | F18: =VLOOKUP($W18,'Transporte Cap 50-70'!$C:$AB,7,FALSE) -> DUQUE DE CAXIAS - RJ | G18: =VLOOKUP($W18,'Transporte Cap 50-70'!$C:$AB,8,FALSE) -> Santa Maria da Vitória - BA | H18: =VLOOKUP($W18,'Transporte Cap 50-70'!$C:$AB,9,FALSE) -> 3.049501631 | I18: =VLOOKUP($W18,'Transporte Cap 50-70'!$C:$AB,10,FALSE) -> 3.135083935 | J18: =VLOOKUP($W18,'Transporte Cap 50-70'!$C:$AB,11,FALSE) -> 3049.501631 | K18: =VLOOKUP($W18,'Transporte Cap 50-70'!$C:$AB,12,FALSE) -> 842.65 | L18: =VLOOKUP($W18,'Transporte Cap 50-70'!$C:$AB,13,FALSE) -> 3892.151631 | M18: =VLOOKUP($W18,'Transporte Cap 50-70'!$C$13:$AB$26,14,FALSE) -> 1318 | N18: =VLOOKUP($W18,'Transporte Cap 50-70'!$C:$AB,15,FALSE) -> 0 | O18: =VLOOKUP($W18,'Transporte Cap 50-70'!$C:$AB,18,FALSE) -> 360.39 | P18: =VLOOKUP($W18,'Transporte Cap 50-70'!$C:$AB,19,FALSE) -> 79.11 | Q18: =VLOOKUP($W18,'Transporte Cap 50-70'!$C:$AB,20,FALSE) -> 463.95 | R18: =VLOOKUP($W18,'Transporte Cap 50-70'!$C:$AB,21,FALSE) -> 903.45 | S18: =VLOOKUP($W18,'Transporte Cap 50-70'!$C:$AB,22,FALSE) -> 654 | T18: =VLOOKUP($W18,'Transporte Cap 50-70'!$C:$AB,23,FALSE) -> 52.37761538 | U18: =VLOOKUP($W18,'Transporte Cap 50-70'!$C:$AB,24,FALSE) -> 955.8276154 | V18: =VLOOKUP($W18,'Transporte Cap 50-70'!$C:$AB,25,FALSE) -> 3892.151631 | W18: =SMALL('Transporte Cap 50-70'!$AB$13:$AB$26,2) -> 4847.979247
B19: 3 | D19: Complexo Petroquímico do Rio de Janeiro (Comperj) | E19: Rodovia Estadual RJ-116 - Km 5,2 - Acesso A-1, s/n, Complemento Sambaetiba - Zona Urbana do 4º Distrito de Itaboraí - RJ CEP:24841-203 | F19: =VLOOKUP($W19,'Transporte Cap 50-70'!$C:$AB,7,FALSE) -> SÃO JOSÉ DOS CAMPOS - SP | G19: =VLOOKUP($W19,'Transporte Cap 50-70'!$C:$AB,8,FALSE) -> Santa Maria da Vitória - BA | H19: =VLOOKUP($W19,'Transporte Cap 50-70'!$C:$AB,9,FALSE) -> 3.097259384 | I19: =VLOOKUP($W19,'Transporte Cap 50-70'!$C:$AB,10,FALSE) -> 3.135083935 | J19: =VLOOKUP($W19,'Transporte Cap 50-70'!$C:$AB,11,FALSE) -> 3097.259384 | K19: =VLOOKUP($W19,'Transporte Cap 50-70'!$C:$AB,12,FALSE) -> 855.85 | L19: =VLOOKUP($W19,'Transporte Cap 50-70'!$C:$AB,13,FALSE) -> 3953.109384 | M19: =VLOOKUP($W19,'Transporte Cap 50-70'!$C$13:$AB$26,14,FALSE) -> 1396 | N19: =VLOOKUP($W19,'Transporte Cap 50-70'!$C:$AB,15,FALSE) -> 0 | O19: =VLOOKUP($W19,'Transporte Cap 50-70'!$C:$AB,18,FALSE) -> 380.13 | P19: =VLOOKUP($W19,'Transporte Cap 50-70'!$C:$AB,19,FALSE) -> 83.44 | Q19: =VLOOKUP($W19,'Transporte Cap 50-70'!$C:$AB,20,FALSE) -> 489.36 | R19: =VLOOKUP($W19,'Transporte Cap 50-70'!$C:$AB,21,FALSE) -> 952.93 | S19: =VLOOKUP($W19,'Transporte Cap 50-70'!$C:$AB,22,FALSE) -> 397.8 | T19: =VLOOKUP($W19,'Transporte Cap 50-70'!$C:$AB,23,FALSE) -> 31.85904495 | U19: =VLOOKUP($W19,'Transporte Cap 50-70'!$C:$AB,24,FALSE) -> 984.7890449 | V19: =VLOOKUP($W19,'Transporte Cap 50-70'!$C:$AB,25,FALSE) -> 3953.109384 | W19: =SMALL('Transporte Cap 50-70'!$AB$13:$AB$26,3) -> 4937.898429
B20: 4 | F20: =VLOOKUP($W20,'Transporte Cap 50-70'!$C:$AB,7,FALSE) -> PAULÍNIA - SP | G20: =VLOOKUP($W20,'Transporte Cap 50-70'!$C:$AB,8,FALSE) -> Santa Maria da Vitória - BA | H20: =VLOOKUP($W20,'Transporte Cap 50-70'!$C:$AB,9,FALSE) -> 3.097259384 | I20: =VLOOKUP($W20,'Transporte Cap 50-70'!$C:$AB,10,FALSE) -> 3.135083935 | J20: =VLOOKUP($W20,'Transporte Cap 50-70'!$C:$AB,11,FALSE) -> 3097.259384 | K20: =VLOOKUP($W20,'Transporte Cap 50-70'!$C:$AB,12,FALSE) -> 855.85 | L20: =VLOOKUP($W20,'Transporte Cap 50-70'!$C:$AB,13,FALSE) -> 3953.109384 | M20: =VLOOKUP($W20,'Transporte Cap 50-70'!$C$13:$AB$26,14,FALSE) -> 1450 | N20: =VLOOKUP($W20,'Transporte Cap 50-70'!$C:$AB,15,FALSE) -> 0 | O20: =VLOOKUP($W20,'Transporte Cap 50-70'!$C:$AB,18,FALSE) -> 393.79 | P20: =VLOOKUP($W20,'Transporte Cap 50-70'!$C:$AB,19,FALSE) -> 86.44 | Q20: =VLOOKUP($W20,'Transporte Cap 50-70'!$C:$AB,20,FALSE) -> 506.95 | R20: =VLOOKUP($W20,'Transporte Cap 50-70'!$C:$AB,21,FALSE) -> 987.18 | S20: =VLOOKUP($W20,'Transporte Cap 50-70'!$C:$AB,22,FALSE) -> 805.9 | T20: =VLOOKUP($W20,'Transporte Cap 50-70'!$C:$AB,23,FALSE) -> 64.5429973 | U20: =VLOOKUP($W20,'Transporte Cap 50-70'!$C:$AB,24,FALSE) -> 1051.722997 | V20: =VLOOKUP($W20,'Transporte Cap 50-70'!$C:$AB,25,FALSE) -> 3953.109384 | W20: =SMALL('Transporte Cap 50-70'!$AB$13:$AB$26,4) -> 5004.832381
B21: 5 | F21: =VLOOKUP($W21,'Transporte Cap 50-70'!$C:$AB,7,FALSE) -> MAUÁ - SP | G21: =VLOOKUP($W21,'Transporte Cap 50-70'!$C:$AB,8,FALSE) -> Santa Maria da Vitória - BA | H21: =VLOOKUP($W21,'Transporte Cap 50-70'!$C:$AB,9,FALSE) -> 3.097259384 | I21: =VLOOKUP($W21,'Transporte Cap 50-70'!$C:$AB,10,FALSE) -> 3.135083935 | J21: =VLOOKUP($W21,'Transporte Cap 50-70'!$C:$AB,11,FALSE) -> 3097.259384 | K21: =VLOOKUP($W21,'Transporte Cap 50-70'!$C:$AB,12,FALSE) -> 855.85 | L21: =VLOOKUP($W21,'Transporte Cap 50-70'!$C:$AB,13,FALSE) -> 3953.109384 | M21: =VLOOKUP($W21,'Transporte Cap 50-70'!$C$13:$AB$26,14,FALSE) -> 1579 | N21: =VLOOKUP($W21,'Transporte Cap 50-70'!$C:$AB,15,FALSE) -> 0 | O21: =VLOOKUP($W21,'Transporte Cap 50-70'!$C:$AB,18,FALSE) -> 426.43 | P21: =VLOOKUP($W21,'Transporte Cap 50-70'!$C:$AB,19,FALSE) -> 93.6 | Q21: =VLOOKUP($W21,'Transporte Cap 50-70'!$C:$AB,20,FALSE) -> 548.96 | R21: =VLOOKUP($W21,'Transporte Cap 50-70'!$C:$AB,21,FALSE) -> 1068.99 | S21: =VLOOKUP($W21,'Transporte Cap 50-70'!$C:$AB,22,FALSE) -> 448.2 | T21: =VLOOKUP($W21,'Transporte Cap 50-70'!$C:$AB,23,FALSE) -> 35.89548503 | U21: =VLOOKUP($W21,'Transporte Cap 50-70'!$C:$AB,24,FALSE) -> 1104.885485 | V21: =VLOOKUP($W21,'Transporte Cap 50-70'!$C:$AB,25,FALSE) -> 3953.109384 | W21: =SMALL('Transporte Cap 50-70'!$AB$13:$AB$26,5) -> 5057.994869
B22: 6 | F22: =VLOOKUP($W22,'Transporte Cap 50-70'!$C:$AB,7,FALSE) -> SÃO FRANCISCO DO CONDE - BA | G22: =VLOOKUP($W22,'Transporte Cap 50-70'!$C:$AB,8,FALSE) -> Santa Maria da Vitória - BA | H22: =VLOOKUP($W22,'Transporte Cap 50-70'!$C:$AB,9,FALSE) -> 3.502745761 | I22: =VLOOKUP($W22,'Transporte Cap 50-70'!$C:$AB,10,FALSE) -> 3.362851888 | J22: =VLOOKUP($W22,'Transporte Cap 50-70'!$C:$AB,11,FALSE) -> 3502.745761 | K22: =VLOOKUP($W22,'Transporte Cap 50-70'!$C:$AB,12,FALSE) -> 967.89 | L22: =VLOOKUP($W22,'Transporte Cap 50-70'!$C:$AB,13,FALSE) -> 4470.635761 | M22: =VLOOKUP($W22,'Transporte Cap 50-70'!$C$13:$AB$26,14,FALSE) -> 831 | N22: =VLOOKUP($W22,'Transporte Cap 50-70'!$C:$AB,15,FALSE) -> 0 | O22: =VLOOKUP($W22,'Transporte Cap 50-70'!$C:$AB,18,FALSE) -> 237.18 | P22: =VLOOKUP($W22,'Transporte Cap 50-70'!$C:$AB,19,FALSE) -> 52.06 | Q22: =VLOOKUP($W22,'Transporte Cap 50-70'!$C:$AB,20,FALSE) -> 305.33 | R22: =VLOOKUP($W22,'Transporte Cap 50-70'!$C:$AB,21,FALSE) -> 594.57 | S22: =VLOOKUP($W22,'Transporte Cap 50-70'!$C:$AB,22,FALSE) -> 55.2 | T22: =VLOOKUP($W22,'Transporte Cap 50-70'!$C:$AB,23,FALSE) -> 4.420862949 | U22: =VLOOKUP($W22,'Transporte Cap 50-70'!$C:$AB,24,FALSE) -> 598.9908629 | V22: =VLOOKUP($W22,'Transporte Cap 50-70'!$C:$AB,25,FALSE) -> 4470.635761 | W22: =SMALL('Transporte Cap 50-70'!$AB$13:$AB$26,6) -> 5069.626624
O23: =VLOOKUP($W23,'Transporte Cap 50-70'!$C:$AB,18,FALSE) ->  | R23: =VLOOKUP($W23,'Transporte Cap 50-70'!$C:$AB,21,FALSE) -> 
O24: =VLOOKUP($W24,'Transporte Cap 50-70'!$C:$AB,18,FALSE) ->  | R24: =VLOOKUP($W24,'Transporte Cap 50-70'!$C:$AB,21,FALSE) -> 
O25: =VLOOKUP($W25,'Transporte Cap 50-70'!$C:$AB,18,FALSE) ->  | R25: =VLOOKUP($W25,'Transporte Cap 50-70'!$C:$AB,21,FALSE) -> 
O26: =VLOOKUP($W26,'Transporte Cap 50-70'!$C:$AB,18,FALSE) ->  | R26: =VLOOKUP($W26,'Transporte Cap 50-70'!$C:$AB,21,FALSE) -> 
O27: =VLOOKUP($W27,'Transporte Cap 50-70'!$C:$AB,18,FALSE) ->  | R27: =VLOOKUP($W27,'Transporte Cap 50-70'!$C:$AB,21,FALSE) -> 
B28: 1 | C28: CAP MODIF. C/ POLÍMERO 60/85 | D28: Refinaria Abreu e Lima | E28: Rodovia PE 60, Km 10 - Ipojuca - PE CEP:55590-000 | G28: Palmas - TO | H28: 2.261894948 | I28: 2.353413905 | J28: 2261.894948 | K28: 393.19 | L28: 2655.084948 | M28: 1181 | N28: 1181 | O28: =VLOOKUP($W28,'Transporte Cap 50-70'!$C:$AB,18,FALSE) ->  | P28: 44.41 | Q28: 202.55 | R28: =VLOOKUP($W28,'Transporte Cap 50-70'!$C:$AB,21,FALSE) ->  | S28: 102 | T28: 102 | U28: 674.69 | V28: 2655.084948 | W28: 3329.774948
B29: 2 | D29: Refinaria Potiguar Clara Camarão | E29: Rodovia RN 221, KM 25 - Guamaré - RN CEP:59598-000 | F29: UBERLANDIA - MG | G29: Palmas - TO | H29: 2.261894948 | I29: 2.353413905 | J29: 2261.894948 | K29: 393.19 | L29: 2655.084948 | M29: 1182 | N29: 1182 | O29: =VLOOKUP($W29,'Transporte Cap 50-70'!$C:$AB,18,FALSE) ->  | P29: 44.45 | Q29: 202.71 | R29: =VLOOKUP($W29,'Transporte Cap 50-70'!$C:$AB,21,FALSE) ->  | S29: 102 | T29: 102 | U29: 675.14 | V29: 2655.084948 | W29: 3330.224948
B30: 3 | D30: Complexo Petroquímico do Rio de Janeiro (Comperj) | E30: Rodovia Estadual RJ-116 - Km 5,2 - Acesso A-1, s/n, Complemento Sambaetiba - Zona Urbana do 4º Distrito de Itaboraí - RJ CEP:24841-203 | F30: GOIANIRA - GO | G30: Palmas - TO | I30: 2.555206955 | J30: 2555.206955 | K30: 444.18 | L30: 2999.386955 | M30: 814 | N30: 814 | O30: =VLOOKUP($W30,'Transporte Cap 50-70'!$C:$AB,18,FALSE) ->  | P30: 31.75 | Q30: 144.81 | R30: =VLOOKUP($W30,'Transporte Cap 50-70'!$C:$AB,21,FALSE) ->  | S30: 0 | T30: 0 | U30: 409.44 | V30: 2999.386955 | W30: 3408.826955
B31: 4 | F31: BRASÍLIA - DF | G31: Palmas - TO | I31: 2.555206955 | J31: 2555.206955 | K31: 444.18 | L31: 2999.386955 | M31: 822 | N31: 822 | O31: =VLOOKUP($W31,'Transporte Cap 50-70'!$C:$AB,18,FALSE) ->  | P31: 32.03 | Q31: 146.07 | R31: =VLOOKUP($W31,'Transporte Cap 50-70'!$C:$AB,21,FALSE) ->  | S31: 0 | T31: 0 | U31: 413 | V31: 2999.386955 | W31: 3412.386955
B32: 5 | F32: APARECIDA DE GOIANIA - GO | G32: Palmas - TO | I32: 2.555206955 | J32: 2555.206955 | K32: 444.18 | L32: 2999.386955 | M32: 842 | N32: 842 | O32: =VLOOKUP($W32,'Transporte Cap 50-70'!$C:$AB,18,FALSE) ->  | P32: 32.72 | Q32: 149.22 | R32: =VLOOKUP($W32,'Transporte Cap 50-70'!$C:$AB,21,FALSE) ->  | S32: 0 | T32: 0 | U32: 421.9 | V32: 2999.386955 | W32: 3421.286955
B33: 6 | F33: ANÁPOLIS - GO | G33: Palmas - TO | I33: 2.555206955 | J33: 2555.206955 | K33: 444.18 | L33: 2999.386955 | M33: 950 | N33: 950 | O33: =VLOOKUP($W33,'Transporte Cap 50-70'!$C:$AB,18,FALSE) ->  | P33: 36.44 | Q33: 166.21 | R33: =VLOOKUP($W33,'Transporte Cap 50-70'!$C:$AB,21,FALSE) ->  | S33: 0 | T33: 0 | U33: 469.93 | V33: 2999.386955 | W33: 3469.316955
B35: 1 | C35: EAI | D35: Refinaria Abreu e Lima | E35: Rodovia PE 60, Km 10 - Ipojuca - PE CEP:55590-000 | F35: =VLOOKUP($W35,'Transporte EAI'!$B$13:$AA$26,7,FALSE) -> SÃO FRANCISCO DO CONDE - BA | G35: =VLOOKUP($W35,'Transporte EAI'!$B$13:$AA$26,8,FALSE) -> Santa Maria da Vitória - BA | H35: =VLOOKUP($W35,'Transporte EAI'!$B$13:$AA$26,9,FALSE) -> - | I35: =VLOOKUP($W35,'Transporte EAI'!$B$13:$AA$26,10,FALSE) -> 2.251980076 | J35: =VLOOKUP($W35,'Transporte EAI'!$B$13:$AA$26,11,FALSE) -> 2251.980076 | K35: =VLOOKUP($W35,'Transporte EAI'!$B$13:$AA$26,12,FALSE) -> 622.28 | L35: =VLOOKUP($W35,'Transporte EAI'!$B$13:$AA$26,13,FALSE) -> 2874.260076 | M35: =VLOOKUP($W35,'Transporte EAI'!$B$13:$AA$26,14,FALSE) -> 831 | N35: =VLOOKUP($W35,'Transporte EAI'!$B$13:$AA$26,15,FALSE) -> 0 | O35: =VLOOKUP($W35,'Transporte EAI'!$B$13:$AA$26,18,FALSE) -> 237.18 | P35: =VLOOKUP($W35,'Transporte EAI'!$B$13:$AA$26,19,FALSE) -> 52.06 | Q35: =VLOOKUP($W35,'Transporte EAI'!$B$13:$AA$26,20,FALSE) -> 305.33 | R35: =VLOOKUP($W35,'Transporte EAI'!$B$13:$AA$26,21,FALSE) -> 594.57 | S35: =VLOOKUP($W35,'Transporte EAI'!$B$13:$AA$26,22,FALSE) -> 55.2 | T35: =VLOOKUP($W35,'Transporte EAI'!$B$13:$AA$26,23,FALSE) -> 6.452367037 | U35: =VLOOKUP($W35,'Transporte EAI'!$B$13:$AA$26,24,FALSE) -> 601.022367 | V35: =VLOOKUP($W35,'Transporte EAI'!$B:$AA,25,FALSE) -> 2874.260076 | W35: =SMALL('Transporte EAI'!$AA$13:$AA$26,1) -> 3475.282443 | X35: =ROUND(U35/M35,2) -> 0.72
B36: 2 | D36: Refinaria Potiguar Clara Camarão | E36: Rodovia RN 221, KM 25 - Guamaré - RN CEP:59598-000 | F36: =VLOOKUP($W36,'Transporte EAI'!$B$13:$AA$26,7,FALSE) -> BETIM - MG | G36: =VLOOKUP($W36,'Transporte EAI'!$B$13:$AA$26,8,FALSE) -> Santa Maria da Vitória - BA | H36: =VLOOKUP($W36,'Transporte EAI'!$B$13:$AA$26,9,FALSE) -> 2.205606496 | I36: =VLOOKUP($W36,'Transporte EAI'!$B$13:$AA$26,10,FALSE) -> 2.248444472 | J36: =VLOOKUP($W36,'Transporte EAI'!$B$13:$AA$26,11,FALSE) -> 2205.606496 | K36: =VLOOKUP($W36,'Transporte EAI'!$B$13:$AA$26,12,FALSE) -> 609.46 | L36: =VLOOKUP($W36,'Transporte EAI'!$B$13:$AA$26,13,FALSE) -> 2815.066496 | M36: =VLOOKUP($W36,'Transporte EAI'!$B$13:$AA$26,14,FALSE) -> 913 | N36: =VLOOKUP($W36,'Transporte EAI'!$B$13:$AA$26,15,FALSE) -> 0 | O36: =VLOOKUP($W36,'Transporte EAI'!$B$13:$AA$26,18,FALSE) -> 257.93 | P36: =VLOOKUP($W36,'Transporte EAI'!$B$13:$AA$26,19,FALSE) -> 56.61 | Q36: =VLOOKUP($W36,'Transporte EAI'!$B$13:$AA$26,20,FALSE) -> 332.04 | R36: =VLOOKUP($W36,'Transporte EAI'!$B$13:$AA$26,21,FALSE) -> 646.58 | S36: =VLOOKUP($W36,'Transporte EAI'!$B$13:$AA$26,22,FALSE) -> 313.8 | T36: =VLOOKUP($W36,'Transporte EAI'!$B$13:$AA$26,23,FALSE) -> 36.68030392 | U36: =VLOOKUP($W36,'Transporte EAI'!$B$13:$AA$26,24,FALSE) -> 683.2603039 | V36: =VLOOKUP($W36,'Transporte EAI'!$B:$AA,25,FALSE) -> 2815.066496 | W36: =SMALL('Transporte EAI'!$AA$13:$AA$26,2) -> 3498.3268
B37: 3 | D37: Complexo Petroquímico do Rio de Janeiro (Comperj) | E37: Rodovia Estadual RJ-116 - Km 5,2 - Acesso A-1, s/n, Complemento Sambaetiba - Zona Urbana do 4º Distrito de Itaboraí - RJ CEP:24841-203 | F37: =VLOOKUP($W37,'Transporte EAI'!$B$13:$AA$26,7,FALSE) -> DUQUE DE CAXIAS - RJ | G37: =VLOOKUP($W37,'Transporte EAI'!$B$13:$AA$26,8,FALSE) -> Santa Maria da Vitória - BA | H37: =VLOOKUP($W37,'Transporte EAI'!$B$13:$AA$26,9,FALSE) -> - | I37: =VLOOKUP($W37,'Transporte EAI'!$B$13:$AA$26,10,FALSE) -> 2.248444472 | J37: =VLOOKUP($W37,'Transporte EAI'!$B$13:$AA$26,11,FALSE) -> 2248.444472 | K37: =VLOOKUP($W37,'Transporte EAI'!$B$13:$AA$26,12,FALSE) -> 621.3 | L37: =VLOOKUP($W37,'Transporte EAI'!$B$13:$AA$26,13,FALSE) -> 2869.744472 | M37: =VLOOKUP($W37,'Transporte EAI'!$B$13:$AA$26,14,FALSE) -> 1318 | N37: =VLOOKUP($W37,'Transporte EAI'!$B$13:$AA$26,15,FALSE) -> 0 | O37: =VLOOKUP($W37,'Transporte EAI'!$B$13:$AA$26,18,FALSE) -> 360.39 | P37: =VLOOKUP($W37,'Transporte EAI'!$B$13:$AA$26,19,FALSE) -> 79.11 | Q37: =VLOOKUP($W37,'Transporte EAI'!$B$13:$AA$26,20,FALSE) -> 463.95 | R37: =VLOOKUP($W37,'Transporte EAI'!$B$13:$AA$26,21,FALSE) -> 903.45 | S37: =VLOOKUP($W37,'Transporte EAI'!$B$13:$AA$26,22,FALSE) -> 654 | T37: =VLOOKUP($W37,'Transporte EAI'!$B$13:$AA$26,23,FALSE) -> 76.4465225 | U37: =VLOOKUP($W37,'Transporte EAI'!$B$13:$AA$26,24,FALSE) -> 979.8965225 | V37: =VLOOKUP($W37,'Transporte EAI'!$B:$AA,25,FALSE) -> 2869.744472 | W37: =SMALL('Transporte EAI'!$AA$13:$AA$26,3) -> 3849.640995
B38: 4 | F38: =VLOOKUP($W38,'Transporte EAI'!$B$13:$AA$26,7,FALSE) -> FORTALEZA - CE | G38: =VLOOKUP($W38,'Transporte EAI'!$B$13:$AA$26,8,FALSE) -> Santa Maria da Vitória - BA | H38: =VLOOKUP($W38,'Transporte EAI'!$B$13:$AA$26,9,FALSE) -> 2.24894774 | I38: =VLOOKUP($W38,'Transporte EAI'!$B$13:$AA$26,10,FALSE) -> 2.251980076 | J38: =VLOOKUP($W38,'Transporte EAI'!$B$13:$AA$26,11,FALSE) -> 2248.94774 | K38: =VLOOKUP($W38,'Transporte EAI'!$B$13:$AA$26,12,FALSE) -> 621.44 | L38: =VLOOKUP($W38,'Transporte EAI'!$B$13:$AA$26,13,FALSE) -> 2870.38774 | M38: =VLOOKUP($W38,'Transporte EAI'!$B$13:$AA$26,14,FALSE) -> 1452 | N38: =VLOOKUP($W38,'Transporte EAI'!$B$13:$AA$26,15,FALSE) -> 0 | O38: =VLOOKUP($W38,'Transporte EAI'!$B$13:$AA$26,18,FALSE) -> 394.3 | P38: =VLOOKUP($W38,'Transporte EAI'!$B$13:$AA$26,19,FALSE) -> 86.55 | Q38: =VLOOKUP($W38,'Transporte EAI'!$B$13:$AA$26,20,FALSE) -> 507.6 | R38: =VLOOKUP($W38,'Transporte EAI'!$B$13:$AA$26,21,FALSE) -> 988.45 | S38: =VLOOKUP($W38,'Transporte EAI'!$B$13:$AA$26,22,FALSE) -> 0 | T38: =VLOOKUP($W38,'Transporte EAI'!$B$13:$AA$26,23,FALSE) -> 0 | U38: =VLOOKUP($W38,'Transporte EAI'!$B$13:$AA$26,24,FALSE) -> 988.45 | V38: =VLOOKUP($W38,'Transporte EAI'!$B:$AA,25,FALSE) -> 2870.38774 | W38: =SMALL('Transporte EAI'!$AA$13:$AA$26,4) -> 3858.83774
B39: 5 | F39: =VLOOKUP($W39,'Transporte EAI'!$B$13:$AA$26,7,FALSE) -> IPOJUCA - PE | G39: =VLOOKUP($W39,'Transporte EAI'!$B$13:$AA$26,8,FALSE) -> Santa Maria da Vitória - BA | H39: =VLOOKUP($W39,'Transporte EAI'!$B$13:$AA$26,9,FALSE) -> - | I39: =VLOOKUP($W39,'Transporte EAI'!$B$13:$AA$26,10,FALSE) -> 2.251980076 | J39: =VLOOKUP($W39,'Transporte EAI'!$B$13:$AA$26,11,FALSE) -> 2251.980076 | K39: =VLOOKUP($W39,'Transporte EAI'!$B$13:$AA$26,12,FALSE) -> 622.28 | L39: =VLOOKUP($W39,'Transporte EAI'!$B$13:$AA$26,13,FALSE) -> 2874.260076 | M39: =VLOOKUP($W39,'Transporte EAI'!$B$13:$AA$26,14,FALSE) -> 1519 | N39: =VLOOKUP($W39,'Transporte EAI'!$B$13:$AA$26,15,FALSE) -> 0 | O39: =VLOOKUP($W39,'Transporte EAI'!$B$13:$AA$26,18,FALSE) -> 411.25 | P39: =VLOOKUP($W39,'Transporte EAI'!$B$13:$AA$26,19,FALSE) -> 90.27 | Q39: =VLOOKUP($W39,'Transporte EAI'!$B$13:$AA$26,20,FALSE) -> 529.42 | R39: =VLOOKUP($W39,'Transporte EAI'!$B$13:$AA$26,21,FALSE) -> 1030.94 | S39: =VLOOKUP($W39,'Transporte EAI'!$B$13:$AA$26,22,FALSE) -> 35.4 | T39: =VLOOKUP($W39,'Transporte EAI'!$B$13:$AA$26,23,FALSE) -> 4.137931034 | U39: =VLOOKUP($W39,'Transporte EAI'!$B$13:$AA$26,24,FALSE) -> 1035.077931 | V39: =VLOOKUP($W39,'Transporte EAI'!$B:$AA,25,FALSE) -> 2874.260076 | W39: =SMALL('Transporte EAI'!$AA$13:$AA$26,5) -> 3909.338007
B40: 6 | F40: =VLOOKUP($W40,'Transporte EAI'!$B$13:$AA$26,7,FALSE) -> GUAMARÉ - RN | G40: =VLOOKUP($W40,'Transporte EAI'!$B$13:$AA$26,8,FALSE) -> Santa Maria da Vitória - BA | H40: =VLOOKUP($W40,'Transporte EAI'!$B$13:$AA$26,9,FALSE) -> - | I40: =VLOOKUP($W40,'Transporte EAI'!$B$13:$AA$26,10,FALSE) -> 2.251980076 | J40: =VLOOKUP($W40,'Transporte EAI'!$B$13:$AA$26,11,FALSE) -> 2251.980076 | K40: =VLOOKUP($W40,'Transporte EAI'!$B$13:$AA$26,12,FALSE) -> 622.28 | L40: =VLOOKUP($W40,'Transporte EAI'!$B$13:$AA$26,13,FALSE) -> 2874.260076 | M40: =VLOOKUP($W40,'Transporte EAI'!$B$13:$AA$26,14,FALSE) -> 1657 | N40: =VLOOKUP($W40,'Transporte EAI'!$B$13:$AA$26,15,FALSE) -> 0 | O40: =VLOOKUP($W40,'Transporte EAI'!$B$13:$AA$26,18,FALSE) -> 446.16 | P40: =VLOOKUP($W40,'Transporte EAI'!$B$13:$AA$26,19,FALSE) -> 97.93 | Q40: =VLOOKUP($W40,'Transporte EAI'!$B$13:$AA$26,20,FALSE) -> 574.36 | R40: =VLOOKUP($W40,'Transporte EAI'!$B$13:$AA$26,21,FALSE) -> 1118.45 | S40: =VLOOKUP($W40,'Transporte EAI'!$B$13:$AA$26,22,FALSE) -> 0 | T40: =VLOOKUP($W40,'Transporte EAI'!$B$13:$AA$26,23,FALSE) -> 0 | U40: =VLOOKUP($W40,'Transporte EAI'!$B$13:$AA$26,24,FALSE) -> 1118.45 | V40: =VLOOKUP($W40,'Transporte EAI'!$B:$AA,25,FALSE) -> 2874.260076 | W40: =SMALL('Transporte EAI'!$AA$13:$AA$26,6) -> 3992.710076
B46: VALOR TOTAL

Sheet MOMENTO DE TRANSPORTE - PRINC
B1: ESTADO: | C1: Bahia | D1: DATA BASE: | E1: 2023-09-01
D3: TIPO (P, RP ou LN) | E3: DMT ESTIMADA
D4: P | E4: 10
B6: PRINCIPAL
B8: SISTEMA DE CUSTOS REFERENCIAIS DE OBRAS - SICRO | E8: =$C$1 -> Bahia
B9: Custo Unitário de Referência | E9: =$E$1 -> 2023-09-01 | I9: Quantitativo | K9: t
B10: 4011463 | C10: Concreto asfáltico - faixa C - areia e brita comerciais | I10: =SUMIF('RESUMO MODULO TOTAL'!D:D,B10,'RESUMO MODULO TOTAL'!J:J) -> 1579.8006
B11: D - ATIVIDADES AUXILIARES | D11: Quantidade | E11: Unidade
B12: 6416078 | C12: Usinagem de concreto asfáltico - faixa C - areia e brita comerciais | D12: 1.02 | E12: t
B14: F - MOMENTO DE TRANSPORTE | D14: Quantidade | E14: Unidade | F14: CÓDIGO TRANSPORTE
F15: LN | G15: RP | H15: P | I15: TIPO (P, RP ou LN) | J15: DMT ESTIMADA (km) | K15: QUANTITATIVO TOTAL DE TRANSPORTE (tkm)
A16: =IF(I16="P",H16,IF(I16="RP",G16,IF(I16="LN",F16,""))) -> 5914389 | B16: 6416078 | C16: Usinagem de concreto asfáltico - faixa C - areia e brita comerciais - Caminhão basculante 10 m³ | D16: 1.02 | E16: tkm | F16: 5914359 | G16: 5914374 | H16: 5914389 | I16: P | J16: 10 | K16: =IF(ISBLANK(J16),"",J16*D16)*I10 -> 16113.96612
B18: Obs.
B21: SISTEMA DE CUSTOS REFERENCIAIS DE OBRAS - SICRO | E21: =$C$1 -> Bahia
B22: Custo Unitário de Referência | E22: =$E$1 -> 2023-09-01 | I22: Quantitativo | K22: m³
B23: 4011256 | C23: Base estabilizada granulometricamente com mistura solo brita (70% - 30%) na pista com material de jazida e brita comercial | I23: =SUMIF('RESUMO MODULO TOTAL'!D:D,B23,'RESUMO MODULO TOTAL'!J:J) -> 1974.75075
B24: D - ATIVIDADES AUXILIARES | D24: Quantidade | E24: Unidade
B25: 4016096 | C25: Escavação e carga de material de jazida com escavadeira hidráulica de 1,56 m³ | D25: 0.77019 | E25: m³
B27: F - MOMENTO DE TRANSPORTE | D27: Quantidade | E27: Unidade | F27: CÓDIGO TRANSPORTE
F28: LN | G28: RP | H28: P | I28: TIPO (P, RP ou LN) | J28: DMT ESTIMADA (km) | K28: QUANTITATIVO TOTAL DE TRANSPORTE (tkm)
A29: =IF(I29="P",H29,IF(I29="RP",G29,IF(I29="LN",F29,""))) -> 5914389 | B29: 4016096 | C29: Escavação e carga de material de jazida com escavadeira hidráulica de 1,56 m³ - Caminhão basculante 10 m³ | D29: 1.44411 | E29: tkm | F29: 5914359 | G29: 5914374 | H29: 5914389 | I29: P | J29: ='MC MODULO'!I29 -> 11.3 | K29: =I23*D29*J29 -> 32224.85755
A30: =IF(I30="P",H30,IF(I30="RP",G30,IF(I30="LN",F30,""))) -> 5914389 | B30: M0191 | C30: Brita 1 - Caminhão basculante 10 m³ | D30: 0.6189 | E30: tkm | F30: 5914359 | G30: 5914374 | H30: 5914389 | I30: P | J30: ='MC MODULO'!I30 -> 7.8 | K30: =I23*D30*J30 -> 9532.951266
B32: Obs.
B34: SISTEMA DE CUSTOS REFERENCIAIS DE OBRAS - SICRO | E34: =$C$1 -> Bahia
B35: Custo Unitário de Referência | E35: =$E$1 -> 2023-09-01 | I35: Quantitativo | K35: m³
B36: 4011228 | C36: Sub-base estabilizada granulometricamente com mistura de solos na pista com material de jazida | I36: =SUMIF('RESUMO MODULO TOTAL'!D:D,B36,'RESUMO MODULO TOTAL'!J:J) -> 1974.75075
B37: D - ATIVIDADES AUXILIARES | D37: Quantidade | E37: Unidade
B38: 4016096 | C38: Escavação e carga de material de jazida com escavadeira hidráulica de 1,56 m³ | D38: 1.10027 | E38: m³
B40: F - MOMENTO DE TRANSPORTE | D40: Quantidade | E40: Unidade | F40: CÓDIGO TRANSPORTE
F41: LN | G41: RP | H41: P | I41: TIPO (P, RP ou LN) | J41: DMT ESTIMADA (km) | K41: QUANTITATIVO TOTAL DE TRANSPORTE (tkm)
A42: =IF(I42="P",H42,IF(I42="RP",G42,IF(I42="LN",F42,""))) -> 5914389 | B42: 4016096 | C42: Escavação e carga de material de jazida com escavadeira hidráulica de 1,56 m³ - Caminhão basculante 10 m³ | D42: 2.06301 | E42: tkm | F42: 5914359 | G42: 5914374 | H42: 5914389 | I42: P | J42: ='MC MODULO'!I29 -> 11.3 | K42: =IF(ISBLANK(J42),"",J42*D42)*I36 -> 46035.41516
B44: Obs.
B46: VALOR TOTAL | E46: =$C$1 -> Bahia
B47: Custo Unitário de Referência | E47: =$E$1 -> 2023-09-01 | I47: Quantitativo | K47: m
B48: 2003373 | C48: Meio-fio de concreto - MFC 03 - areia e brita comerciais - fôrma de madeira | I48: =SUMIF('RESUMO MODULO TOTAL'!D:D,B48,'RESUMO MODULO TOTAL'!J:J) -> 4281
B49: D - ATIVIDADES AUXILIARES | D49: Quantidade | E49: Unidade
B50: 1107892 | C50: Concreto fck = 20 MPa - confecção em betoneira e lançamento manual - areia e brita comerciais | D50: 0.042 | E50: m³ | L50: =I48*D50 -> 179.802
B51: 2003842 | C51: Enchimento de junta de concreto com argamassa asfáltica de densidade 1.700 kg/m³ - espessura de 1 cm | D51: 0.0595 | E51: kg | L51: =I48*D51 -> 254.7195
B52: 4805750 | C52: Escavação manual em material de 1ª categoria na profundidade de até 1 m | D52: 0.03 | E52: m³
B53: 3103302 | C53: Fôrmas de tábuas de pinho para dispositivos de drenagem - utilização de 3 vezes - confecção, instalação e retirada | D53: 0.0867 | E53: m² | L53: =D53*I48 -> 371.1627
B55: F - MOMENTO DE TRANSPORTE | D55: Quantidade | E55: Unidade | F55: CÓDIGO TRANSPORTE
F56: LN | G56: RP | H56: P | I56: TIPO (P, RP ou LN) | J56: DMT ESTIMADA (km) | K56: QUANTITATIVO TOTAL DE TRANSPORTE (tkm)
J59: 10m³ | K59: =K42+K29+K16+K30 -> 103907.1901
J60: 10m³ | K60: ='MOMENTO DE TRANSPORTE - AUX'!L56 -> 17880.30608
K61: =K59+K60 -> 121787.4962

Sheet MOMENTO DE TRANSPORTE - AUX
C2: AUXILIAR
C4: SISTEMA DE CUSTOS REFERENCIAIS DE OBRAS - SICRO | F4: ='MOMENTO DE TRANSPORTE - PRINC'!$C$1 -> Bahia | J4: Quantitivo
C5: Custo Unitário de Referência | F5: ='MOMENTO DE TRANSPORTE - PRINC'!$E$1 -> 2023-09-01 | J5: (Coeficiente na composição principal) x (quantidade da principal no orçamento) | L5: t
C6: 6416078 | D6: Usinagem de concreto asfáltico - faixa C - areia e brita comerciais | J6: ='MOMENTO DE TRANSPORTE - PRINC'!D12*VLOOKUP(D15,'RESUMO MODULO TOTAL'!D:O,7,FALSE) -> 1611.396612
C7: F - MOMENTO DE TRANSPORTE | E7: Quantidade | F7: Unidade | G7: DMT
G8: LN | H8: RP | I8: P | J8: TIPO (P, RP ou LN) | K8: DMT ESTIMADA (km) | L8: QUANTITATIVO TOTAL DE TRANSPORTE DE MATERIAL (tkm)
A9: =IF(J9="P",I9,IF(J9="RP",H9,IF(J9="LN",G9,""))) -> 5914389 | C9: M0028 | D9: Areia média - Caminhão basculante 10 m³ | E9: 0.48713 | F9: tkm | G9: 5914359 | H9: 5914374 | I9: 5914389 | J9: P | K9: 10 | L9: =IF(ISBLANK(K9),"",K9*(E9*$J$6)) -> 7849.596316
A10: =IF(J10="P",I10,IF(J10="RP",H10,IF(J10="LN",G10,""))) -> 5914389 | C10: M0005 | D10: Brita 0 - Caminhão basculante 10 m³ | E10: 0.09368 | F10: tkm | G10: 5914359 | H10: 5914374 | I10: 5914389 | J10: P | K10: 10 | L10: =IF(ISBLANK(K10),"",K10*(E10*$J$6)) -> 1509.556346
A11: 5914389 | C11: M0191 | D11: Brita 1 - Caminhão basculante 10 m³ | E11: 0.09368 | F11: tkm | G11: 5914359 | H11: 5914374 | I11: 5914389 | J11: P | K11: 10 | L11: 1509.556346
A12: 5914366 | C12: M0344 | D12: Cal hidratada - a granel - Caminhão silo 30 m³ | E12: 0.0562 | F12: tkm | G12: 5914364 | H12: 5914365 | I12: 5914366 | J12: P | K12: 0 | L12: 0
A13: 5914389 | C13: M1103 | D13: Pedrisco - Caminhão basculante 10 m³ | E13: 0.20609 | F13: tkm | G13: 5914359 | H13: 5914374 | I13: 5914389 | J13: P | K13: 10 | L13: 3320.927278
C15: PRINCIPAL: | D15: 4011463
C18: SISTEMA DE CUSTOS REFERENCIAIS DE OBRAS - SICRO | F18: ='MOMENTO DE TRANSPORTE - PRINC'!$C$1 -> Bahia | J18: Quantitivo
C19: Custo Unitário de Referência | F19: ='MOMENTO DE TRANSPORTE - PRINC'!$E$1 -> 2023-09-01 | J19: (Coeficiente na composição principal) x (quantidade da principal no orçamento) | L19: m³
C20: 1107892 | D20: Concreto fck = 20 MPa - confecção em betoneira e lançamento manual - areia e brita comerciais | J20: ='MOMENTO DE TRANSPORTE - PRINC'!D50*VLOOKUP(D29,'RESUMO MODULO TOTAL'!D:O,7,FALSE) -> 179.802
C21: F - MOMENTO DE TRANSPORTE | E21: Quantidade | F21: Unidade | G21: DMT
G22: LN | H22: RP | I22: P | J22: TIPO (P, RP ou LN) | K22: DMT ESTIMADA (km) | L22: QUANTITATIVO TOTAL DE TRANSPORTE DE MATERIAL (tkm)
A23: =IF(J23="P",I23,IF(J23="RP",H23,IF(J23="LN",G23,""))) -> 5914479 | C23: M0030 | D23: Aditivo plastificante e retardador de pega para concreto e argamassa - Caminhão carroceria 15 t | E23: 0.00085 | F23: tkm | G23: 5914449 | H23: 5914464 | I23: 5914479 | J23: P | K23: 10 | L23: =IF(ISBLANK(K23),"",K23*(E23*$J$20)) -> 1.528317
A24: =IF(J24="P",I24,IF(J24="RP",H24,IF(J24="LN",G24,""))) -> 5914389 | C24: M0082 | D24: Areia média lavada - Caminhão basculante 10 m³ | E24: 0.95001 | F24: tkm | G24: 5914359 | H24: 5914374 | I24: 5914389 | J24: P | K24: 10 | L24: =IF(ISBLANK(K24),"",K24*(E24*$J$20)) -> 1708.13698
A25: 5914389 | C25: M0191 | D25: Brita 1 - Caminhão basculante 10 m³ | E25: 0.55131 | F25: tkm | G25: 5914359 | H25: 5914374 | I25: 5914389 | J25: P | K25: 10 | L25: 991.2664062
A26: 5914389 | C26: M0192 | D26: Brita 2 - Caminhão basculante 10 m³ | E26: 0.55131 | F26: tkm | G26: 5914359 | H26: 5914374 | I26: 5914389 | J26: P | K26: 10 | L26: 991.2664062
A27: 5914479 | C27: M0424 | D27: Cimento Portland CP II - 32 - saco - Caminhão carroceria 15 t | E27: 0.28215 | F27: tkm | G27: 5914449 | H27: 5914464 | I27: 5914479 | J27: P | K27: 10 | L27: 507.311343
C29: PRINCIPAL: | D29: ='MOMENTO DE TRANSPORTE - PRINC'!B48 -> 2003373
C32: SISTEMA DE CUSTOS REFERENCIAIS DE OBRAS - SICRO | F32: =F4 -> Bahia | J32: Quantitivo
C33: Custo Unitário de Referência | F33: 2022-04-01 | I33: m² | J33: (Coeficiente na composição principal) x (quantidade da principal no orçamento) | L33: kg
C34: 2003842 | D34: Enchimento de junta de concreto com argamassa asfáltica de densidade 1.700 kg/m³ - espessura de 1 cm | J34: ='MOMENTO DE TRANSPORTE - PRINC'!D51*VLOOKUP(D39,'RESUMO MODULO TOTAL'!D:O,7,FALSE) -> 254.7195
C35: F - MOMENTO DE TRANSPORTE | E35: Quantidade | F35: Unidade | G35: DMT
G36: LN | H36: RP | I36: P | J36: TIPO (P, RP ou LN) | K36: DMT ESTIMADA (km) | L36: QUANTITATIVO TOTAL DE TRANSPORTE DE MATERIAL (tkm)
A37: =IF(J37="P",I37,IF(J37="RP",H37,IF(J37="LN",G37,""))) -> 5914479 | C37: M2158 | D37: Argamassa asfáltica - Caminhão carroceria com capacidade de 15 t - 188 Kw | E37: 0.001 | F37: tkm | G37: 5914449 | H37: 5914464 | I37: 5914479 | J37: P | K37: 10 | L37: =IF(ISBLANK(K37),"",K37*(E37*$J$34)) -> 2.547195
C39: PRINCIPAL: | D39: ='MOMENTO DE TRANSPORTE - PRINC'!B48 -> 2003373
C41: SISTEMA DE CUSTOS REFERENCIAIS DE OBRAS - SICRO | F41: =F4 -> Bahia | J41: Quantitivo
C42: Custo Unitário de Referência | F42: 2022-04-01 | J42: (Coeficiente na composição principal) x (quantidade da principal no orçamento) | L42: m²
C43: 3103302 | D43: Fôrmas de tábuas de pinho para dispositivos de drenagem - utilização de 3 vezes - confecção, instalação e retirada
C44: F - MOMENTO DE TRANSPORTE | E44: Quantidade | F44: Unidade | G44: DMT | J44: ='MOMENTO DE TRANSPORTE - PRINC'!D53*VLOOKUP(D51,'RESUMO MODULO TOTAL'!D:O,7,FALSE) -> 371.1627
G45: LN | H45: RP | I45: P | J45: TIPO (P, RP ou LN) | K45: DMT ESTIMADA (km) | L45: QUANTITATIVO TOTAL DE TRANSPORTE DE MATERIAL (tkm)
A46: =IF(J46="P",I46,IF(J46="RP",H46,IF(J46="LN",G46,""))) -> 5914479 | B46: VALOR TOTAL | C46: M0560 | D46: Desmoldante para fôrmas de madeira - Caminhão carroceria com capacidade de 15 t - 188 Kw | E46: 2e-05 | F46: tkm | G46: 5914449 | H46: 5914464 | I46: 5914479 | J46: P | K46: 10 | L46: =IF(ISBLANK(K46),"",K46*(E46*$J$44)) -> 0.07423254
A47: 5914479 | C47: M1205 | D47: Prego de ferro - Caminhão carroceria com capacidade de 15 t - 188 kW | E47: 3e-05 | F47: tkm | G47: 5914449 | H47: 5914464 | I47: 5914479 | J47: P | K47: 10 | L47: =IF(ISBLANK(K47),"",K47*(E47*$J$44)) -> 0.11134881
A48: 5914479 | C48: M0290 | D48: Tábua - E = 2,5 cm e L = 10 cm - Caminhão carroceria com capacidade de 15 t - 188 kW | E48: 0.00304 | F48: tkm | G48: 5914449 | H48: 5914464 | I48: 5914479 | J48: P | K48: 10 | L48: 11.28334608
A49: 5914479 | C49: M1429 | D49: Tábua de pinho de terceira - E = 2,5 cm - Caminhão carroceria com capacidade de 15 t - 188 kW | E49: 0.01011 | F49: tkm | G49: 5914449 | H49: 5914464 | I49: 5914479 | J49: P | K49: 10 | L49: 37.52454897
C51: PRINCIPAL: | D51: ='MOMENTO DE TRANSPORTE - PRINC'!B48 -> 2003373
L54: =L23+L27+L37+L46+L47+L48+L49 -> 560.3803314
L55: =L23+L27+L37+L46+L47+L48+L49 -> 560.3803314
L56: =L9+L10+L11+L13+L24+L25+L26 -> 17880.30608

Sheet Curva ABC
B2: Item | C2: Descrição | D2: Total R$ | E2: % individual | F2: % acumul. | G2: Classe | I2: Onde: | J2: A <= | K2: 0.75
A3: 1 | B3: =VLOOKUP(A3,'RESUMO MODULO TOTAL'!A:N,2,0) -> 4.1 | C3: =VLOOKUP(B3,'RESUMO MODULO TOTAL'!B:N,4,0) -> AQUISIÇÃO DE CIMENTO ASFALTICO CAP 50/70 | D3: =VLOOKUP(B3,'RESUMO MODULO TOTAL'!B:N,13,0) -> 467048.68 | E3: =D3/'RESUMO MODULO TOTAL'!$N$46 -> 0.2445704794 | F3: =E3 -> 0.2445704794 | G3: =IF(F3<=$K$2,"A",IF(AND(F3<=$L$3,F3>$J$3),"B",IF(F3>$K$4,"C"))) -> A | J3: 0.75 | K3: < B <= | L3: 0.95
A4: 2 | B4: =VLOOKUP(A4,'RESUMO MODULO TOTAL'!A:N,2,0) -> 3.1 | C4: =VLOOKUP(B4,'RESUMO MODULO TOTAL'!B:N,4,0) -> CONCRETO ASFÁLTICO - FAIXA C - AREIA E BRITA COMERCIAIS | D4: =VLOOKUP(B4,'RESUMO MODULO TOTAL'!B:N,13,0) -> 398614.18 | E4: =D4/'RESUMO MODULO TOTAL'!$N$46 -> 0.2087346893 | F4: =F3+E4 -> 0.4533051687 | G4: =IF(F4<=$K$2,"A",IF(AND(F4<=$L$3,F4>$J$3),"B",IF(F4>$K$4,"C"))) -> A | J4: C > | K4: 0.95
A5: 3 | B5: =VLOOKUP(A5,'RESUMO MODULO TOTAL'!A:N,2,0) -> 6.1 | C5: =VLOOKUP(B5,'RESUMO MODULO TOTAL'!B:N,4,0) -> MEIO-FIO DE CONCRETO - MFC 03 - AREIA E BRITA COMERCIAIS - FÔRMA DE MADEIRA | D5: =VLOOKUP(B5,'RESUMO MODULO TOTAL'!B:N,13,0) -> 366072.62 | E5: =D5/'RESUMO MODULO TOTAL'!$N$46 -> 0.1916942709 | F5: =F4+E5 -> 0.6449994396 | G5: A
A6: 4 | B6: =VLOOKUP(A6,'RESUMO MODULO TOTAL'!A:N,2,0) -> 3.3 | C6: =VLOOKUP(B6,'RESUMO MODULO TOTAL'!B:N,4,0) -> BASE ESTABILIZADA GRANULOMETRICAMENTE COM MISTURA SOLO BRITA (70% - 30%) NA PISTA COM MATERIAL DE JAZIDA E BRITA COMERCIAL | D6: =VLOOKUP(B6,'RESUMO MODULO TOTAL'!B:N,13,0) -> 159175.19 | E6: =D6/'RESUMO MODULO TOTAL'!$N$46 -> 0.08335223757 | F6: 0.7283516772 | G6: A
A7: 5 | B7: =VLOOKUP(A7,'RESUMO MODULO TOTAL'!A:N,2,0) -> 10.1 | C7: =VLOOKUP(B7,'RESUMO MODULO TOTAL'!B:N,4,0) -> TRANSPORTE COM CAMINHÃO BASCULANTE DE 10 M³ - RODOVIA PAVIMENTADA | D7: =VLOOKUP(B7,'RESUMO MODULO TOTAL'!B:N,13,0) -> 106478.32 | E7: =D7/'RESUMO MODULO TOTAL'!$N$46 -> 0.05575747216 | F7: 0.7841091493 | G7: B
A8: 6 | B8: =VLOOKUP(A8,'RESUMO MODULO TOTAL'!A:N,2,0) -> 4.2 | C8: =VLOOKUP(B8,'RESUMO MODULO TOTAL'!B:N,4,0) -> TRANSPORTE CAP 50/70 | D8: =VLOOKUP(B8,'RESUMO MODULO TOTAL'!B:N,13,0) -> 77519.63 | E8: =D8/'RESUMO MODULO TOTAL'!$N$46 -> 0.04059322697 | F8: 0.8247023763 | G8: B
A9: 7 | B9: =VLOOKUP(A9,'RESUMO MODULO TOTAL'!A:N,2,0) -> 4.3 | C9: =VLOOKUP(B9,'RESUMO MODULO TOTAL'!B:N,4,0) -> AQUISIÇÃO DE EAI | D9: =VLOOKUP(B9,'RESUMO MODULO TOTAL'!B:N,13,0) -> 56589.79 | E9: =D9/'RESUMO MODULO TOTAL'!$N$46 -> 0.02963329662 | F9: 0.8543356729 | G9: B
A10: 8 | B10: =VLOOKUP(A10,'RESUMO MODULO TOTAL'!A:N,2,0) -> 2.2 | C10: =VLOOKUP(B10,'RESUMO MODULO TOTAL'!B:N,4,0) -> ESCAVAÇÃO, CARGA E TRANSPORTE DE MATERIAL DE 1ª CATEGORIA - DMT DE 2.000 A 2.500 M - CAMINHO DE SERVIÇO PAVIMENTADO - COM ESCAVADEIRA E CAMINHÃO BASCULANTE DE 14 M³ | D10: =VLOOKUP(B10,'RESUMO MODULO TOTAL'!B:N,13,0) -> 43076.39 | E10: =D10/'RESUMO MODULO TOTAL'!$N$46 -> 0.02255699203 | F10: 0.876892665 | G10: B
A11: 9 | B11: =VLOOKUP(A11,'RESUMO MODULO TOTAL'!A:N,2,0) -> 1.2 | C11: =VLOOKUP(B11,'RESUMO MODULO TOTAL'!B:N,4,0) -> ADMINISTRAÇÃO DA OBRA | D11: =VLOOKUP(B11,'RESUMO MODULO TOTAL'!B:N,13,0) -> 40460.99 | E11: =D11/'RESUMO MODULO TOTAL'!$N$46 -> 0.02118743537 | F11: 0.8980801003 | G11: B
A12: 10 | B12: =VLOOKUP(A12,'RESUMO MODULO TOTAL'!A:N,2,0) -> 3.4 | C12: =VLOOKUP(B12,'RESUMO MODULO TOTAL'!B:N,4,0) -> SUB-BASE ESTABILIZADA GRANULOMETRICAMENTE COM MISTURA DE SOLOS NA PISTA COM MATERIAL DE JAZIDA | D12: =VLOOKUP(B12,'RESUMO MODULO TOTAL'!B:N,13,0) -> 28751.29 | E12: =D12/'RESUMO MODULO TOTAL'!$N$46 -> 0.01505563998 | F12: 0.9131357403 | G12: B
A13: 11 | B13: =VLOOKUP(A13,'RESUMO MODULO TOTAL'!A:N,2,0) -> 5.3 | C13: =VLOOKUP(B13,'RESUMO MODULO TOTAL'!B:N,4,0) -> PINTURA DE FAIXA COM TINTA ACRÍLICA - ESPESSURA DE 0,4 MM | D13: =VLOOKUP(B13,'RESUMO MODULO TOTAL'!B:N,13,0) -> 23767.17 | E13: =D13/'RESUMO MODULO TOTAL'!$N$46 -> 0.01244570087 | F13: 0.9255814412 | G13: B
A14: 12 | B14: =VLOOKUP(A14,'RESUMO MODULO TOTAL'!A:N,2,0) -> 3.5 | C14: =VLOOKUP(B14,'RESUMO MODULO TOTAL'!B:N,4,0) -> REGULARIZAÇÃO DO SUBLEITO | D14: =VLOOKUP(B14,'RESUMO MODULO TOTAL'!B:N,13,0) -> 18668.75 | E14: =D14/'RESUMO MODULO TOTAL'!$N$46 -> 0.009775908451 | F14: 0.9353573496 | G14: B
A15: 13 | B15: =VLOOKUP(A15,'RESUMO MODULO TOTAL'!A:N,2,0) -> 2.3 | C15: =VLOOKUP(B15,'RESUMO MODULO TOTAL'!B:N,4,0) -> TRANSPORTE COM CAMINHÃO BASCULANTE DE 14 M³ - RODOVIA EM LEITO NATURAL | D15: =VLOOKUP(B15,'RESUMO MODULO TOTAL'!B:N,13,0) -> 14701.63 | E15: =D15/'RESUMO MODULO TOTAL'!$N$46 -> 0.007698522341 | F15: 0.943055872 | G15: B
A16: 14 | B16: =VLOOKUP(A16,'RESUMO MODULO TOTAL'!A:N,2,0) -> 1.3 | C16: =VLOOKUP(B16,'RESUMO MODULO TOTAL'!B:N,4,0) -> CANTEIRO DE OBRAS E ALMOXARIFADO | D16: =VLOOKUP(B16,'RESUMO MODULO TOTAL'!B:N,13,0) -> 13843.04 | E16: =D16/'RESUMO MODULO TOTAL'!$N$46 -> 0.007248920882 | F16: 0.9503047929 | G16: C
A17: 15 | B17: =VLOOKUP(A17,'RESUMO MODULO TOTAL'!A:N,2,0) -> 5.2 | C17: =VLOOKUP(B17,'RESUMO MODULO TOTAL'!B:N,4,0) -> SUPORTE METÁLICO GALVANIZADO PARA PLACA DE ADVERTÊNCIA OU REGULAMENTAÇÃO - LADO OU DIÂMETRO DE 0,60 M - FORNECIMENTO E IMPLANTAÇÃO | D17: =VLOOKUP(B17,'RESUMO MODULO TOTAL'!B:N,13,0) -> 12151.86 | E17: =D17/'RESUMO MODULO TOTAL'!$N$46 -> 0.006363332889 | F17: 0.9566681258 | G17: C
A18: 16 | B18: =VLOOKUP(A18,'RESUMO MODULO TOTAL'!A:N,2,0) -> 1.1 | C18: =VLOOKUP(B18,'RESUMO MODULO TOTAL'!B:N,4,0) -> MOBILIZAÇÃO E DESMOBILIZAÇÃO | D18: =VLOOKUP(B18,'RESUMO MODULO TOTAL'!B:N,13,0) -> 12079.52 | E18: =D18/'RESUMO MODULO TOTAL'!$N$46 -> 0.00632545198 | F18: 0.9629935777 | G18: C
A19: 17 | B19: =VLOOKUP(A19,'RESUMO MODULO TOTAL'!A:N,2,0) -> 4.4 | C19: =VLOOKUP(B19,'RESUMO MODULO TOTAL'!B:N,4,0) -> TRANSPORTE DE EAI | D19: =VLOOKUP(B19,'RESUMO MODULO TOTAL'!B:N,13,0) -> 11801.28 | E19: =D19/'RESUMO MODULO TOTAL'!$N$46 -> 0.006179751343 | F19: 0.9691733291 | G19: C
A20: 18 | B20: =VLOOKUP(A20,'RESUMO MODULO TOTAL'!A:N,2,0) -> 8.1 | C20: =VLOOKUP(B20,'RESUMO MODULO TOTAL'!B:N,4,0) -> PROJETO EXECUTIVO | D20: =VLOOKUP(B20,'RESUMO MODULO TOTAL'!B:N,13,0) -> 11600.19 | E20: =D20/'RESUMO MODULO TOTAL'!$N$46 -> 0.006074450376 | F20: 0.9752477794 | G20: C
A21: 19 | B21: =VLOOKUP(A21,'RESUMO MODULO TOTAL'!A:N,2,0) -> 2.4 | C21: =VLOOKUP(B21,'RESUMO MODULO TOTAL'!B:N,4,0) -> ESPALHAMENTO DE MATERIAL EM BOTA-FORA | D21: =VLOOKUP(B21,'RESUMO MODULO TOTAL'!B:N,13,0) -> 9740.59 | E21: =D21/'RESUMO MODULO TOTAL'!$N$46 -> 0.005100669091 | F21: 0.9803484485 | G21: C
A22: 20 | B22: =VLOOKUP(A22,'RESUMO MODULO TOTAL'!A:N,2,0) -> 2.1 | C22: =VLOOKUP(B22,'RESUMO MODULO TOTAL'!B:N,4,0) -> SERVIÇOS TOPOGRÁFICOS PARA PAVIMENTAÇÃO, INCLUSIVE NOTAS DE SERVIÇOS, ACOMPANHAMENTO E GREIDE | D22: =VLOOKUP(B22,'RESUMO MODULO TOTAL'!B:N,13,0) -> 9679.98 | E22: =D22/'RESUMO MODULO TOTAL'!$N$46 -> 0.005068930608 | F22: 0.9854173791 | G22: C
A23: 21 | B23: =VLOOKUP(A23,'RESUMO MODULO TOTAL'!A:N,2,0) -> 9.1 | C23: =VLOOKUP(B23,'RESUMO MODULO TOTAL'!B:N,4,0) -> CONTROLE TECNOLÓGICO - OBRA | D23: =VLOOKUP(B23,'RESUMO MODULO TOTAL'!B:N,13,0) -> 8820.56 | E23: =D23/'RESUMO MODULO TOTAL'!$N$46 -> 0.004618894519 | F23: 0.9900362737 | G23: C
A24: 22 | B24: =VLOOKUP(A24,'RESUMO MODULO TOTAL'!A:N,2,0) -> 5.1 | C24: =VLOOKUP(B24,'RESUMO MODULO TOTAL'!B:N,4,0) -> FORNECIMENTO E IMPLANTAÇÃO DE PLACA DE REGULAMENTAÇÃO EM AÇO D = 0,60 M - PELÍCULA RETRORREFLETIVA TIPO I + SI | D24: =VLOOKUP(B24,'RESUMO MODULO TOTAL'!B:N,13,0) -> 7096.45 | E24: =D24/'RESUMO MODULO TOTAL'!$N$46 -> 0.0037160627 | F24: 0.9937523364 | G24: C
A25: 23 | B25: =VLOOKUP(A25,'RESUMO MODULO TOTAL'!A:N,2,0) -> 3.2 | C25: =VLOOKUP(B25,'RESUMO MODULO TOTAL'!B:N,4,0) -> IMPRIMAÇÃO COM EMULSÃO ASFÁLTICA | D25: =VLOOKUP(B25,'RESUMO MODULO TOTAL'!B:N,13,0) -> 6074.78 | E25: =D25/'RESUMO MODULO TOTAL'!$N$46 -> 0.003181064246 | F25: 0.9969334006 | G25: C
A26: 24 | B26: =VLOOKUP(A26,'RESUMO MODULO TOTAL'!A:N,2,0) -> 7.1 | C26: =VLOOKUP(B26,'RESUMO MODULO TOTAL'!B:N,4,0) -> CONSERTO DE QUEBRA NO RAMAL NA RUA SEM PAVIMENTO COM FORNECIMENTO DE MATERIAL HIDRÁULICO | D26: =VLOOKUP(B26,'RESUMO MODULO TOTAL'!B:N,13,0) -> 4054.11 | E26: =D26/'RESUMO MODULO TOTAL'!$N$46 -> 0.002122938505 | F26: 0.9990563391 | G26: C
A27: 25 | B27: =VLOOKUP(A27,'RESUMO MODULO TOTAL'!A:N,2,0) -> 1.4 | C27: =VLOOKUP(B27,'RESUMO MODULO TOTAL'!B:N,4,0) -> PLACA DE OBRA EM CHAPA DE AÇO GALVANIZADO | D27: =VLOOKUP(B27,'RESUMO MODULO TOTAL'!B:N,13,0) -> 1352.97 | E27: =D27/'RESUMO MODULO TOTAL'!$N$46 -> 0.0007084840097 | F27: 0.9997648231 | G27: C
A28: 26 | B28: =VLOOKUP(A28,'RESUMO MODULO TOTAL'!A:N,2,0) -> 10.2 | C28: =VLOOKUP(B28,'RESUMO MODULO TOTAL'!B:N,4,0) -> TRANSPORTE COM CAMINHÃO DE CARROCERIA DE 15 t - RODOVIA PAVIMENTADA | D28: =VLOOKUP(B28,'RESUMO MODULO TOTAL'!B:N,13,0) -> 449.11 | E28: =D28/'RESUMO MODULO TOTAL'!$N$46 -> 0.0002351768728 | F28: =F27+E28 -> 1 | G28: C
A29: 27 | B29: =VLOOKUP(A29,'RESUMO MODULO TOTAL'!A:N,2,0) ->  | C29: =VLOOKUP(B29,'RESUMO MODULO TOTAL'!B:N,4,0) ->  | D29: =VLOOKUP(B29,'RESUMO MODULO TOTAL'!B:N,13,0) ->  | E29: =D29/'RESUMO MODULO TOTAL'!$N$46 -> 
A30: 28 | B30: =VLOOKUP(A30,'RESUMO MODULO TOTAL'!A:N,2,0) ->  | C30: =VLOOKUP(B30,'RESUMO MODULO TOTAL'!B:N,4,0) ->  | D30: =VLOOKUP(B30,'RESUMO MODULO TOTAL'!B:N,13,0) ->  | E30: =D30/'RESUMO MODULO TOTAL'!$N$46 -> 
A31: 29 | B31: =VLOOKUP(A31,'RESUMO MODULO TOTAL'!A:N,2,0) ->  | C31: =VLOOKUP(B31,'RESUMO MODULO TOTAL'!B:N,4,0) ->  | D31: =VLOOKUP(B31,'RESUMO MODULO TOTAL'!B:N,13,0) ->  | E31: =D31/'RESUMO MODULO TOTAL'!$N$46 -> 
A32: 30 | B32: =VLOOKUP(A32,'RESUMO MODULO TOTAL'!A:N,2,0) ->  | C32: =VLOOKUP(B32,'RESUMO MODULO TOTAL'!B:N,4,0) ->  | D32: =VLOOKUP(B32,'RESUMO MODULO TOTAL'!B:N,13,0) ->  | E32: =D32/'RESUMO MODULO TOTAL'!$N$46 -> 
A33: 31 | B33: =VLOOKUP(A33,'RESUMO MODULO TOTAL'!A:N,2,0) ->  | C33: =VLOOKUP(B33,'RESUMO MODULO TOTAL'!B:N,4,0) ->  | D33: =VLOOKUP(B33,'RESUMO MODULO TOTAL'!B:N,13,0) ->  | E33: =D33/'RESUMO MODULO TOTAL'!$N$46 -> 
A34: 32 | B34: =VLOOKUP(A34,'RESUMO MODULO TOTAL'!A:N,2,0) ->  | C34: =VLOOKUP(B34,'RESUMO MODULO TOTAL'!B:N,4,0) ->  | D34: =VLOOKUP(B34,'RESUMO MODULO TOTAL'!B:N,13,0) ->  | E34: =D34/'RESUMO MODULO TOTAL'!$N$46 -> 
B46: VALOR TOTAL

Sheet ENC. SOCIAIS
A6: NOME DA CONCORRENTE:
A7: EDITAL:
A8: FOLHA:
A9: ='RESUMO MODULO TOTAL'!B1 -> Item 02: Pavimentação em Concreto Betuminoso Usinado a Quente (CBUQ) na sede do município de Santa Maria da Vitória, dentro da área de abrangência da 2ª Superintendência Regional da Codevasf, no estado da Bahia.
A11: DETALHAMENTO DOS ENCARGOS SOCIAIS (%)
A12: VIGÊNCIA A PARTIR DE 12/2022 | C12: COM DESONERAÇÃO | E12: SEM DESONERAÇÃO
C14: HORISTA | D14: MENSALISTA | E14: HORISTA | F14: MENSALISTA
A16: GRUPO A
A17: A1 | B17: INSS | C17: 0 | D17: 0 | E17: 20 | F17: 20
A18: A2 | B18: SESI | C18: 1.5 | D18: 1.5 | E18: 1.5 | F18: 1.5
A19: A3 | B19: SENAI | C19: 1 | D19: 1 | E19: 1 | F19: 1
A20: A4 | B20: INCRA | C20: 0.2 | D20: 0.2 | E20: 0.2 | F20: 0.2
A21: A5 | B21: SEBRAE | C21: 0.6 | D21: 0.6 | E21: 0.6 | F21: 0.6
A22: A6 | B22: Salário Educação | C22: 2.5 | D22: 2.5 | E22: 2.5 | F22: 2.5
A23: A7 | B23: Seguro Contra Acidentes de Trabalho | C23: 3 | D23: 3 | E23: 3 | F23: 3
A24: A8 | B24: FGTS | C24: 8 | D24: 8 | E24: 8 | F24: 8
A25: A9 | B25: SECONCI | C25: 1 | D25: 1 | E25: 0 | F25: 0
A26: A | B26: Total | C26: =SUM(C17:C25) -> 17.8 | D26: =SUM(D17:D25) -> 17.8 | E26: =SUM(E17:E25) -> 36.8 | F26: =SUM(F17:F25) -> 36.8
A27: GRUPO B
A28: B1 | B28: Repouso Semanal Remunerado | C28: 17.88 | D28: - | E28: 17.97 | F28: -
A29: B2 | B29: Feriados | C29: 3.94 | D29: - | E29: 3.97 | F29: -
A30: B3 | B30: Auxílio-enfermidade | C30: 0.91 | D30: 0.69 | E30: 0.87 | F30: 0.66
A31: B4 | B31: 13° salário | C31: 10.98 | D31: 8.33 | E31: 11.02 | F31: 8.33
A32: B5 | B32: Licença-paternidade | C32: 0.07 | D32: 0.06 | E32: 0.07 | F32: 0.05
A33: B6 | B33: Faltas Justificadas | C33: 0.73 | D33: 0.56 | E33: 0.73 | F33: 0.56
A34: B7 | B34: Dias de chuva | C34: 1.45 | D34: - | E34: 2.05 | F34: -
A35: B8 | B35: Auxílio Acidente de Trabalho | C35: 0.11 | D35: 0.09 | E35: 0.11 | F35: 0.08
A36: B9 | B36: Férias Gozadas | C36: 11.35 | D36: 8.62 | E36: 11.21 | F36: 8.47
A37: B10 | B37: Salário Maternidade | C37: 0.03 | D37: 0.03 | E37: 0.04 | F37: 0.03
A38: B | B38: Total | C38: =SUM(C28:C37) -> 47.45 | D38: =SUM(D28:D37) -> 18.38 | E38: =SUM(E28:E37) -> 48.04 | F38: =SUM(F28:F37) -> 18.18
A39: GRUPO C
A40: C1 | B40: Aviso Prévio Indenizado | C40: 6.76 | D40: 5.14 | E40: 5.47 | F40: 4.13
A41: C2 | B41: Aviso Prévio Trabalhado | C41: 0.16 | D41: 0.12 | E41: 0.13 | F41: 0.1
A42: C3 | B42: Férias Indenizadas | C42: 2.28 | D42: 1.73 | E42: 2.95 | F42: 2.23
A43: C4 | B43: Depósito Rescisão Sem Justa Causa | C43: 3.81 | D43: 2.89 | E43: 3.13 | F43: 2.37
A44: C5 | B44: Indenização Adicional | C44: 0.57 | D44: 0.43 | E44: 0.46 | F44: 0.35
A45: C | B45: Total | C45: =SUM(C40:C44) -> 13.58 | D45: =SUM(D40:D44) -> 10.31 | E45: =SUM(E40:E44) -> 12.14 | F45: =SUM(F40:F44) -> 9.18
A46: GRUPO D
A47: D1 | B47: Reincidência de A sobre B | C47: 8.45 | D47: 3.27 | E47: 17.68 | F47: 6.69
A48: D2 | B48: Reincidência de Grupo A sobre Aviso Prévio Trabalhado e Reincidência do FGTS sobre Aviso Prévio Indenizado | C48: 0.57 | D48: 0.43 | E48: 0.49 | F48: 0.37
A49: D | B49: Total | C49: =SUM(C47:C48) -> 9.02 | D49: =SUM(D47:D48) -> 3.7 | E49: =SUM(E47:E48) -> 18.17 | F49: =SUM(F47:F48) -> 7.06
A51: T O T A L (%) | C51: =C26+C38+C45+C49 -> 87.85 | D51: =D26+D38+D45+D49 -> 50.19 | E51: =E26+E38+E45+E49 -> 115.15 | F51: =F26+F38+F45+F49 -> 71.22

Sheet BDI
A2: OBRA:
A3: LOCAL:
A4: DETALHAMENTO DO BDI - SEM DESONERAÇÃO
A5: Serviços
A6: Data-base: nov/2023
A8: Descrição dos serviços | B8: Preço de Venda (%) | C8: Custo Direto (%)
A10: Administração Central (A) | C10: 0.0405
A12: Impostos e Taxas (I) | B12: =B13+B14+B15 -> 0.0665
A13: ISS (60% de 5%) | B13: 0.03
A14: PIS | B14: 0.0065
A15: Cofins | B15: 0.03
A17: Risco, seguro e garantia (R) | C17: =C18+C19 -> 0.0082
A18: Seguro e Garantia | C18: 0.0032
A19: Riscos | C19: 0.005
A21: Despesas Financeiras (AP) | C21: 0.0102
A23: Lucro (L) | C23: 0.07
B25: BDI | C25: =ROUND(((((1+C10+C17)*(1+C21)*(1+C23))/(1-B12))-1),4) -> 0.2143
A26: Considerações:
A27: Acórdão Nº 2622/2013 – TCU – Plenário
A29: ISS - Considerado 60% serviços e 40% material (0,60 x 5,00% = 3,00%)
A32: OBRA:
A33: LOCAL:
A34: DETALHAMENTO DO BDI
A35: Materiais
A36: =A6 -> Data-base: nov/2023
A38: DESCRIÇÃO DOS SERVIÇOS | B38: PREÇO DE VENDA (%) | C38: CUSTO DIRETO (%)
A40: Administração Central (A) | C40: 0.0377
A42: Impostos e Taxas (I) | B42: =B43+B44+B45 -> 0.0365
A43: ISS | B43: 0
A44: PIS | B44: 0.0065
A45: Cofins | B45: 0.03
B46: VALOR TOTAL
A47: Risco, seguro e garantia (R) | C47: =C48+C49 -> 0.0075
A48: Seguro e Garantia | C48: 0.0025
A49: Riscos | C49: 0.005
A51: Despesas Financeiras (AP) | C51: 0.0102
A53: Lucro (L) | C53: 0.05
B55: BDI | C55: =ROUND(((((1+C40+C47)*(1+C51)*(1+C53))/(1-B42))-1),4) -> 0.1507
A56: Fonte da composição, valores de referência e fórmula do BDI: Instrução Normativa N° 62/DNIT SEDE

Sheet ANP ESTADO (hidden)
A1: Agência Nacional do Petróleo, Gás Natural e Biocombustíveis
A2: Superintendência de Defesa da Concorrência
A5: PREÇO MÉDIO MENSAL PONDERADO PRATICADO PELOS DISTRIBUIDORES DE PRODUTOS ASFÁLTICOS (R$/KG)
A7: Importante: | B7: Quando não houver declaração de venda do produto selecionado, ou quando a declaração de venda do produto ocorrer por menos de 03 (três) distribuidoras, a tabela indicará campo vazio.
A8: Mês | B8: Produto | C8: Estado | D8: Preço
A9: 2013-01-01 | B9: ASFALTOS DILUÍDOS CM-30 | C9: Acre | D9: -
A10: 2013-01-01 | B10: ASFALTOS DILUÍDOS CM-30 | C10: Alagoas | D10: -
A11: 2013-01-01 | B11: ASFALTOS DILUÍDOS CM-30 | C11: Amapá | D11: -
A12: 2013-01-01 | B12: ASFALTOS DILUÍDOS CM-30 | C12: Amazonas | D12: 1.453527021
A13: 2013-01-01 | B13: ASFALTOS DILUÍDOS CM-30 | C13: Bahia | D13: 1.464044142
A14: 2013-01-01 | B14: ASFALTOS DILUÍDOS CM-30 | C14: Ceará | D14: 1.447997934
A15: 2013-01-01 | B15: ASFALTOS DILUÍDOS CM-30 | C15: Distrito Federal | D15: -
A16: 2013-01-01 | B16: ASFALTOS DILUÍDOS CM-30 | C16: Espírito Santo | D16: -
A17: 2013-01-01 | B17: ASFALTOS DILUÍDOS CM-30 | C17: Goiás | D17: 1.686383065
A18: 2013-01-01 | B18: ASFALTOS DILUÍDOS CM-30 | C18: Maranhão | D18: -
A19: 2013-01-01 | B19: ASFALTOS DILUÍDOS CM-30 | C19: Mato Grosso | D19: -
A20: 2013-01-01 | B20: ASFALTOS DILUÍDOS CM-30 | C20: Mato Grosso do Sul | D20: -
A21: 2013-01-01 | B21: ASFALTOS DILUÍDOS CM-30 | C21: Minas Gerais | D21: 1.451106114
A22: 2013-01-01 | B22: ASFALTOS DILUÍDOS CM-30 | C22: Pará | D22: -
A23: 2013-01-01 | B23: ASFALTOS DILUÍDOS CM-30 | C23: Paraíba | D23: -
A24: 2013-01-01 | B24: ASFALTOS DILUÍDOS CM-30 | C24: Paraná | D24: 1.520125031
A25: 2013-01-01 | B25: ASFALTOS DILUÍDOS CM-30 | C25: Pernambuco | D25: -
A26: 2013-01-01 | B26: ASFALTOS DILUÍDOS CM-30 | C26: Piauí | D26: -
A27: 2013-01-01 | B27: ASFALTOS DILUÍDOS CM-30 | C27: Rio de Janeiro | D27: 1.330475106
A28: 2013-01-01 | B28: ASFALTOS DILUÍDOS CM-30 | C28: Rio Grande do Norte | D28: -
A29: 2013-01-01 | B29: ASFALTOS DILUÍDOS CM-30 | C29: Rio Grande do Sul | D29: 1.598611074
A30: 2013-01-01 | B30: ASFALTOS DILUÍDOS CM-30 | C30: Rondônia | D30: -
A31: 2013-01-01 | B31: ASFALTOS DILUÍDOS CM-30 | C31: Roraima | D31: -
A32: 2013-01-01 | B32: ASFALTOS DILUÍDOS CM-30 | C32: Santa Catarina | D32: -
A33: 2013-01-01 | B33: ASFALTOS DILUÍDOS CM-30 | C33: São Paulo | D33: 1.471008423
A34: 2013-01-01 | B34: ASFALTOS DILUÍDOS CM-30 | C34: Sergipe | D34: -
A35: 2013-01-01 | B35: ASFALTOS DILUÍDOS CM-30 | C35: Tocantins | D35: -
A36: 2013-02-01 | B36: ASFALTOS DILUÍDOS CM-30 | C36: Acre | D36: -
A37: 2013-02-01 | B37: ASFALTOS DILUÍDOS CM-30 | C37: Alagoas | D37: -
A38: 2013-02-01 | B38: ASFALTOS DILUÍDOS CM-30 | C38: Amapá | D38: -
A39: 2013-02-01 | B39: ASFALTOS DILUÍDOS CM-30 | C39: Amazonas | D39: 1.485578179
A40: 2013-02-01 | B40: ASFALTOS DILUÍDOS CM-30 | C40: Bahia | D40: 1.457014101
A41: 2013-02-01 | B41: ASFALTOS DILUÍDOS CM-30 | C41: Ceará | D41: 1.413192336
A42: 2013-02-01 | B42: ASFALTOS DILUÍDOS CM-30 | C42: Distrito Federal | D42: -
A43: 2013-02-01 | B43: ASFALTOS DILUÍDOS CM-30 | C43: Espírito Santo | D43: -
A44: 2013-02-01 | B44: ASFALTOS DILUÍDOS CM-30 | C44: Goiás | D44: 1.667459711
A45: 2013-02-01 | B45: ASFALTOS DILUÍDOS CM-30 | C45: Maranhão | D45: -
A46: 2013-02-01 | B46: ASFALTOS DILUÍDOS CM-30 | C46: Mato Grosso | D46: -
A47: 2013-02-01 | B47: ASFALTOS DILUÍDOS CM-30 | C47: Mato Grosso do Sul | D47: -
A48: 2013-02-01 | B48: ASFALTOS DILUÍDOS CM-30 | C48: Minas Gerais | D48: 1.452121117
A49: 2013-02-01 | B49: ASFALTOS DILUÍDOS CM-30 | C49: Pará | D49: -
A50: 2013-02-01 | B50: ASFALTOS DILUÍDOS CM-30 | C50: Paraíba | D50: -
A51: 2013-02-01 | B51: ASFALTOS DILUÍDOS CM-30 | C51: Paraná | D51: 1.493783173
A52: 2013-02-01 | B52: ASFALTOS DILUÍDOS CM-30 | C52: Pernambuco | D52: -
A53: 2013-02-01 | B53: ASFALTOS DILUÍDOS CM-30 | C53: Piauí | D53: -
A54: 2013-02-01 | B54: ASFALTOS DILUÍDOS CM-30 | C54: Rio de Janeiro | D54: 1.418234901
A55: 2013-02-01 | B55: ASFALTOS DILUÍDOS CM-30 | C55: Rio Grande do Norte | D55: -
A56: 2013-02-01 | B56: ASFALTOS DILUÍDOS CM-30 | C56: Rio Grande do Sul | D56: 1.435861782
A57: 2013-02-01 | B57: ASFALTOS DILUÍDOS CM-30 | C57: Rondônia | D57: -
A58: 2013-02-01 | B58: ASFALTOS DILUÍDOS CM-30 | C58: Roraima | D58: -
A59: 2013-02-01 | B59: ASFALTOS DILUÍDOS CM-30 | C59: Santa Catarina | D59: -
A60: 2013-02-01 | B60: ASFALTOS DILUÍDOS CM-30 | C60: São Paulo | D60: 1.434190204
A61: 2013-02-01 | B61: ASFALTOS DILUÍDOS CM-30 | C61: Sergipe | D61: -
A62: 2013-02-01 | B62: ASFALTOS DILUÍDOS CM-30 | C62: Tocantins | D62: -
A63: 2013-03-01 | B63: ASFALTOS DILUÍDOS CM-30 | C63: Acre | D63: -
A64: 2013-03-01 | B64: ASFALTOS DILUÍDOS CM-30 | C64: Alagoas | D64: -
A65: 2013-03-01 | B65: ASFALTOS DILUÍDOS CM-30 | C65: Amapá | D65: -
A66: 2013-03-01 | B66: ASFALTOS DILUÍDOS CM-30 | C66: Amazonas | D66: 1.507923921
A67: 2013-03-01 | B67: ASFALTOS DILUÍDOS CM-30 | C67: Bahia | D67: 1.449440325
A68: 2013-03-01 | B68: ASFALTOS DILUÍDOS CM-30 | C68: Ceará | D68: 1.401607485
A69: 2013-03-01 | B69: ASFALTOS DILUÍDOS CM-30 | C69: Distrito Federal | D69: -
A70: 2013-03-01 | B70: ASFALTOS DILUÍDOS CM-30 | C70: Espírito Santo | D70: -
A71: 2013-03-01 | B71: ASFALTOS DILUÍDOS CM-30 | C71: Goiás | D71: 1.661758701
A72: 2013-03-01 | B72: ASFALTOS DILUÍDOS CM-30 | C72: Maranhão | D72: -
A73: 2013-03-01 | B73: ASFALTOS DILUÍDOS CM-30 | C73: Mato Grosso | D73: -
A74: 2013-03-01 | B74: ASFALTOS DILUÍDOS CM-30 | C74: Mato Grosso do Sul | D74: -
A75: 2013-03-01 | B75: ASFALTOS DILUÍDOS CM-30 | C75: Minas Gerais | D75: 1.44324333
A76: 2013-03-01 | B76: ASFALTOS DILUÍDOS CM-30 | C76: Pará | D76: -
A77: 2013-03-01 | B77: ASFALTOS DILUÍDOS CM-30 | C77: Paraíba | D77: -
A78: 2013-03-01 | B78: ASFALTOS DILUÍDOS CM-30 | C78: Paraná | D78: 1.468995996
A79: 2013-03-01 | B79: ASFALTOS DILUÍDOS CM-30 | C79: Pernambuco | D79: -
A80: 2013-03-01 | B80: ASFALTOS DILUÍDOS CM-30 | C80: Piauí | D80: -
A81: 2013-03-01 | B81: ASFALTOS DILUÍDOS CM-30 | C81: Rio de Janeiro | D81: 1.438055574
A82: 2013-03-01 | B82: ASFALTOS DILUÍDOS CM-30 | C82: Rio Grande do Norte | D82: -
A83: 2013-03-01 | B83: ASFALTOS DILUÍDOS CM-30 | C83: Rio Grande do Sul | D83: 1.581425878
A84: 2013-03-01 | B84: ASFALTOS DILUÍDOS CM-30 | C84: Rondônia | D84: -
A85: 2013-03-01 | B85: ASFALTOS DILUÍDOS CM-30 | C85: Roraima | D85: -
A86: 2013-03-01 | B86: ASFALTOS DILUÍDOS CM-30 | C86: Santa Catarina | D86: -
A87: 2013-03-01 | B87: ASFALTOS DILUÍDOS CM-30 | C87: São Paulo | D87: 1.466061702
A88: 2013-03-01 | B88: ASFALTOS DILUÍDOS CM-30 | C88: Sergipe | D88: -
A89: 2013-03-01 | B89: ASFALTOS DILUÍDOS CM-30 | C89: Tocantins | D89: -
A90: 2013-04-01 | B90: ASFALTOS DILUÍDOS CM-30 | C90: Acre | D90: -
A91: 2013-04-01 | B91: ASFALTOS DILUÍDOS CM-30 | C91: Alagoas | D91: -
A92: 2013-04-01 | B92: ASFALTOS DILUÍDOS CM-30 | C92: Amapá | D92: -
A93: 2013-04-01 | B93: ASFALTOS DILUÍDOS CM-30 | C93: Amazonas | D93: 1.484796656
A94: 2013-04-01 | B94: ASFALTOS DILUÍDOS CM-30 | C94: Bahia | D94: 1.454836546
A95: 2013-04-01 | B95: ASFALTOS DILUÍDOS CM-30 | C95: Ceará | D95: 1.387073962
A96: 2013-04-01 | B96: ASFALTOS DILUÍDOS CM-30 | C96: Distrito Federal | D96: -
A97: 2013-04-01 | B97: ASFALTOS DILUÍDOS CM-30 | C97: Espírito Santo | D97: -
A98: 2013-04-01 | B98: ASFALTOS DILUÍDOS CM-30 | C98: Goiás | D98: 1.673481836
A99: 2013-04-01 | B99: ASFALTOS DILUÍDOS CM-30 | C99: Maranhão | D99: -
A100: 2013-04-01 | B100: ASFALTOS DILUÍDOS CM-30 | C100: Mato Grosso | D100: 1.921938422
A101: 2013-04-01 | B101: ASFALTOS DILUÍDOS CM-30 | C101: Mato Grosso do Sul | D101: -
A102: 2013-04-01 | B102: ASFALTOS DILUÍDOS CM-30 | C102: Minas Gerais | D102: 1.456556683
A103: 2013-04-01 | B103: ASFALTOS DILUÍDOS CM-30 | C103: Pará | D103: -
A104: 2013-04-01 | B104: ASFALTOS DILUÍDOS CM-30 | C104: Paraíba | D104: -
A105: 2013-04-01 | B105: ASFALTOS DILUÍDOS CM-30 | C105: Paraná | D105: 1.534419498
A106: 2013-04-01 | B106: ASFALTOS DILUÍDOS CM-30 | C106: Pernambuco | D106: -
A107: 2013-04-01 | B107: ASFALTOS DILUÍDOS CM-30 | C107: Piauí | D107: -
A108: 2013-04-01 | B108: ASFALTOS DILUÍDOS CM-30 | C108: Rio de Janeiro | D108: 1.418419516
A109: 2013-04-01 | B109: ASFALTOS DILUÍDOS CM-30 | C109: Rio Grande do Norte | D109: -
A110: 2013-04-01 | B110: ASFALTOS DILUÍDOS CM-30 | C110: Rio Grande do Sul | D110: 1.572582456
A111: 2013-04-01 | B111: ASFALTOS DILUÍDOS CM-30 | C111: Rondônia | D111: -
A112: 2013-04-01 | B112: ASFALTOS DILUÍDOS CM-30 | C112: Roraima | D112: -
A113: 2013-04-01 | B113: ASFALTOS DILUÍDOS CM-30 | C113: Santa Catarina | D113: -
A114: 2013-04-01 | B114: ASFALTOS DILUÍDOS CM-30 | C114: São Paulo | D114: 1.475764348
A115: 2013-04-01 | B115: ASFALTOS DILUÍDOS CM-30 | C115: Sergipe | D115: -
A116: 2013-04-01 | B116: ASFALTOS DILUÍDOS CM-30 | C116: Tocantins | D116: -
A117: 2013-05-01 | B117: ASFALTOS DILUÍDOS CM-30 | C117: Acre | D117: -
A118: 2013-05-01 | B118: ASFALTOS DILUÍDOS CM-30 | C118: Alagoas | D118: -
A119: 2013-05-01 | B119: ASFALTOS DILUÍDOS CM-30 | C119: Amapá | D119: -
A120: 2013-05-01 | B120: ASFALTOS DILUÍDOS CM-30 | C120: Amazonas | D120: -
A121: 2013-05-01 | B121: ASFALTOS DILUÍDOS CM-30 | C121: Bahia | D121: 1.492587424
A122: 2013-05-01 | B122: ASFALTOS DILUÍDOS CM-30 | C122: Ceará | D122: 1.376263021
A123: 2013-05-01 | B123: ASFALTOS DILUÍDOS CM-30 | C123: Distrito Federal | D123: -
A124: 2013-05-01 | B124: ASFALTOS DILUÍDOS CM-30 | C124: Espírito Santo | D124: -
A125: 2013-05-01 | B125: ASFALTOS DILUÍDOS CM-30 | C125: Goiás | D125: 1.668214819
A126: 2013-05-01 | B126: ASFALTOS DILUÍDOS CM-30 | C126: Maranhão | D126: -
A127: 2013-05-01 | B127: ASFALTOS DILUÍDOS CM-30 | C127: Mato Grosso | D127: 1.903098159
A128: 2013-05-01 | B128: ASFALTOS DILUÍDOS CM-30 | C128: Mato Grosso do Sul | D128: -
A129: 2013-05-01 | B129: ASFALTOS DILUÍDOS CM-30 | C129: Minas Gerais | D129: 1.464709716
A130: 2013-05-01 | B130: ASFALTOS DILUÍDOS CM-30 | C130: Pará | D130: -
A131: 2013-05-01 | B131: ASFALTOS DILUÍDOS CM-30 | C131: Paraíba | D131: -
A132: 2013-05-01 | B132: ASFALTOS DILUÍDOS CM-30 | C132: Paraná | D132: 1.489027849
A133: 2013-05-01 | B133: ASFALTOS DILUÍDOS CM-30 | C133: Pernambuco | D133: -
A134: 2013-05-01 | B134: ASFALTOS DILUÍDOS CM-30 | C134: Piauí | D134: -
A135: 2013-05-01 | B135: ASFALTOS DILUÍDOS CM-30 | C135: Rio de Janeiro | D135: 1.399256048
A136: 2013-05-01 | B136: ASFALTOS DILUÍDOS CM-30 | C136: Rio Grande do Norte | D136: -
A137: 2013-05-01 | B137: ASFALTOS DILUÍDOS CM-30 | C137: Rio Grande do Sul | D137: 1.539636961
A138: 2013-05-01 | B138: ASFALTOS DILUÍDOS CM-30 | C138: Rondônia | D138: -
A139: 2013-05-01 | B139: ASFALTOS DILUÍDOS CM-30 | C139: Roraima | D139: -
A140: 2013-05-01 | B140: ASFALTOS DILUÍDOS CM-30 | C140: Santa Catarina | D140: -
A141: 2013-05-01 | B141: ASFALTOS DILUÍDOS CM-30 | C141: São Paulo | D141: 1.451215936
A142: 2013-05-01 | B142: ASFALTOS DILUÍDOS CM-30 | C142: Sergipe | D142: -
A143: 2013-05-01 | B143: ASFALTOS DILUÍDOS CM-30 | C143: Tocantins | D143: -
A144: 2013-06-01 | B144: ASFALTOS DILUÍDOS CM-30 | C144: Acre | D144: -
A145: 2013-06-01 | B145: ASFALTOS DILUÍDOS CM-30 | C145: Alagoas | D145: -
A146: 2013-06-01 | B146: ASFALTOS DILUÍDOS CM-30 | C146: Amapá | D146: -
A147: 2013-06-01 | B147: ASFALTOS DILUÍDOS CM-30 | C147: Amazonas | D147: 1.586325818
A148: 2013-06-01 | B148: ASFALTOS DILUÍDOS CM-30 | C148: Bahia | D148: 1.44812907
A149: 2013-06-01 | B149: ASFALTOS DILUÍDOS CM-30 | C149: Ceará | D149: 1.382700989
A150: 2013-06-01 | B150: ASFALTOS DILUÍDOS CM-30 | C150: Distrito Federal | D150: -
A151: 2013-06-01 | B151: ASFALTOS DILUÍDOS CM-30 | C151: Espírito Santo | D151: -
A152: 2013-06-01 | B152: ASFALTOS DILUÍDOS CM-30 | C152: Goiás | D152: 1.699613867
A153: 2013-06-01 | B153: ASFALTOS DILUÍDOS CM-30 | C153: Maranhão | D153: -
A154: 2013-06-01 | B154: ASFALTOS DILUÍDOS CM-30 | C154: Mato Grosso | D154: 1.915975658
A155: 2013-06-01 | B155: ASFALTOS DILUÍDOS CM-30 | C155: Mato Grosso do Sul | D155: -
A156: 2013-06-01 | B156: ASFALTOS DILUÍDOS CM-30 | C156: Minas Gerais | D156: 1.475366896
A157: 2013-06-01 | B157: ASFALTOS DILUÍDOS CM-30 | C157: Pará | D157: -
A158: 2013-06-01 | B158: ASFALTOS DILUÍDOS CM-30 | C158: Paraíba | D158: -
A159: 2013-06-01 | B159: ASFALTOS DILUÍDOS CM-30 | C159: Paraná | D159: 1.432166974
A160: 2013-06-01 | B160: ASFALTOS DILUÍDOS CM-30 | C160: Pernambuco | D160: -
A161: 2013-06-01 | B161: ASFALTOS DILUÍDOS CM-30 | C161: Piauí | D161: -
A162: 2013-06-01 | B162: ASFALTOS DILUÍDOS CM-30 | C162: Rio de Janeiro | D162: 1.527420226
A163: 2013-06-01 | B163: ASFALTOS DILUÍDOS CM-30 | C163: Rio Grande do Norte | D163: -
A164: 2013-06-01 | B164: ASFALTOS DILUÍDOS CM-30 | C164: Rio Grande do Sul | D164: 1.59868349
A165: 2013-06-01 | B165: ASFALTOS DILUÍDOS CM-30 | C165: Rondônia | D165: -
A166: 2013-06-01 | B166: ASFALTOS DILUÍDOS CM-30 | C166: Roraima | D166: -
A167: 2013-06-01 | B167: ASFALTOS DILUÍDOS CM-30 | C167: Santa Catarina | D167: -
A168: 2013-06-01 | B168: ASFALTOS DILUÍDOS CM-30 | C168: São Paulo | D168: 1.432748187
A169: 2013-06-01 | B169: ASFALTOS DILUÍDOS CM-30 | C169: Sergipe | D169: -
A170: 2013-06-01 | B170: ASFALTOS DILUÍDOS CM-30 | C170: Tocantins | D170: -
A171: 2013-07-01 | B171: ASFALTOS DILUÍDOS CM-30 | C171: Acre | D171: -
A172: 2013-07-01 | B172: ASFALTOS DILUÍDOS CM-30 | C172: Alagoas | D172: -
A173: 2013-07-01 | B173: ASFALTOS DILUÍDOS CM-30 | C173: Amapá | D173: -
A174: 2013-07-01 | B174: ASFALTOS DILUÍDOS CM-30 | C174: Amazonas | D174: 1.509890931
A175: 2013-07-01 | B175: ASFALTOS DILUÍDOS CM-30 | C175: Bahia | D175: 1.436150016
A176: 2013-07-01 | B176: ASFALTOS DILUÍDOS CM-30 | C176: Ceará | D176: 1.424835845
A177: 2013-07-01 | B177: ASFALTOS DILUÍDOS CM-30 | C177: Distrito Federal | D177: -
A178: 2013-07-01 | B178: ASFALTOS DILUÍDOS CM-30 | C178: Espírito Santo | D178: -
A179: 2013-07-01 | B179: ASFALTOS DILUÍDOS CM-30 | C179: Goiás | D179: 1.663778454
A180: 2013-07-01 | B180: ASFALTOS DILUÍDOS CM-30 | C180: Maranhão | D180: -
A181: 2013-07-01 | B181: ASFALTOS DILUÍDOS CM-30 | C181: Mato Grosso | D181: 1.930589551
A182: 2013-07-01 | B182: ASFALTOS DILUÍDOS CM-30 | C182: Mato Grosso do Sul | D182: -
A183: 2013-07-01 | B183: ASFALTOS DILUÍDOS CM-30 | C183: Minas Gerais | D183: 1.476572352
A184: 2013-07-01 | B184: ASFALTOS DILUÍDOS CM-30 | C184: Pará | D184: -
A185: 2013-07-01 | B185: ASFALTOS DILUÍDOS CM-30 | C185: Paraíba | D185: -
A186: 2013-07-01 | B186: ASFALTOS DILUÍDOS CM-30 | C186: Paraná | D186: 1.477167274
A187: 2013-07-01 | B187: ASFALTOS DILUÍDOS CM-30 | C187: Pernambuco | D187: -
A188: 2013-07-01 | B188: ASFALTOS DILUÍDOS CM-30 | C188: Piauí | D188: -
A189: 2013-07-01 | B189: ASFALTOS DILUÍDOS CM-30 | C189: Rio de Janeiro | D189: 1.584464713
A190: 2013-07-01 | B190: ASFALTOS DILUÍDOS CM-30 | C190: Rio Grande do Norte | D190: -
A191: 2013-07-01 | B191: ASFALTOS DILUÍDOS CM-30 | C191: Rio Grande do Sul | D191: 1.612487925
A192: 2013-07-01 | B192: ASFALTOS DILUÍDOS CM-30 | C192: Rondônia | D192: -
A193: 2013-07-01 | B193: ASFALTOS DILUÍDOS CM-30 | C193: Roraima | D193: -
A194: 2013-07-01 | B194: ASFALTOS DILUÍDOS CM-30 | C194: Santa Catarina | D194: -
A195: 2013-07-01 | B195: ASFALTOS DILUÍDOS CM-30 | C195: São Paulo | D195: 1.507844909
A196: 2013-07-01 | B196: ASFALTOS DILUÍDOS CM-30 | C196: Sergipe | D196: -
A197: 2013-07-01 | B197: ASFALTOS DILUÍDOS CM-30 | C197: Tocantins | D197: -
A198: 2013-08-01 | B198: ASFALTOS DILUÍDOS CM-30 | C198: Acre | D198: -
A199: 2013-08-01 | B199: ASFALTOS DILUÍDOS CM-30 | C199: Alagoas | D199: -
A200: 2013-08-01 | B200: ASFALTOS DILUÍDOS CM-30 | C200: Amapá | D200: -
A201: 2013-08-01 | B201: ASFALTOS DILUÍDOS CM-30 | C201: Amazonas | D201: 1.509275641
A202: 2013-08-01 | B202: ASFALTOS DILUÍDOS CM-30 | C202: Bahia | D202: 1.416699323
A203: 2013-08-01 | B203: ASFALTOS DILUÍDOS CM-30 | C203: Ceará | D203: 1.447403364
... 4297 more rows

Sheet ANP REGIÃO (hidden)
A1: Agência Nacional do Petróleo, Gás Natural e Biocombustíveis
A2: Superintendência de Defesa da Concorrência
A6: PREÇO MÉDIO MENSAL PONDERADO PRATICADO PELOS DISTRIBUIDORES DE PRODUTOS ASFÁLTICOS (R$/KG)
A8: Produto | B8: Mês | C8: Norte | D8: Nordeste | E8: Centro-Oeste | F8: Sudeste | G8: Sul | H8: Brasil
A9: ASFALTOS DILUÍDOS CM-30 | B9: 2008-11-01 | C9: 1.775468292 | D9: 1.55087853 | E9: 2.022143291 | F9: 1.55449367 | G9: 1.584532899 | H9: 1.64286837
A10: ASFALTOS DILUÍDOS CM-30 | B10: 2008-12-01 | C10: 1.806837667 | D10: 1.509118192 | E10: 2.013020124 | F10: 1.610902223 | G10: 1.607187591 | H10: 1.637581471
A11: ASFALTOS DILUÍDOS CM-30 | B11: 2009-01-01 | C11: 1.497052858 | D11: 1.504296346 | E11: 1.963097671 | F11: 1.524672247 | G11: 1.585137209 | H11: 1.564945876
A12: ASFALTOS DILUÍDOS CM-30 | B12: 2009-02-01 | C12: 1.42787112 | D12: 1.497693283 | E12: 1.981065098 | F12: 1.583490231 | G12: 1.595924062 | H12: 1.565451036
A13: ASFALTOS DILUÍDOS CM-30 | B13: 2009-03-01 | C13: 1.404941405 | D13: 1.497647987 | E13: 1.893430263 | F13: 1.52754782 | G13: 1.588720029 | H13: 1.532713147
A14: ASFALTOS DILUÍDOS CM-30 | B14: 2009-04-01 | C14: 1.410510748 | D14: 1.484826261 | E14: 1.909226429 | F14: 1.464149371 | G14: 1.553831928 | H14: 1.516717648
A15: ASFALTOS DILUÍDOS CM-30 | B15: 2009-05-01 | C15: 1.480355678 | D15: 1.466898928 | E15: 1.891590435 | F15: 1.435443718 | G15: 1.54161118 | H15: 1.537574371
A16: ASFALTOS DILUÍDOS CM-30 | B16: 2009-06-01 | C16: 1.580751039 | D16: 1.444888837 | E16: 1.842074119 | F16: 1.424264315 | G16: 1.501526696 | H16: 1.541315575
A17: ASFALTOS DILUÍDOS CM-30 | B17: 2009-07-01 | C17: 1.905432476 | D17: 1.482618211 | E17: 1.949046345 | F17: 1.584435299 | G17: 1.610310436 | H17: 1.651032523
A18: ASFALTOS DILUÍDOS CM-30 | B18: 2009-08-01 | C18: 1.716995184 | D18: 1.423854915 | E18: 1.712385478 | F18: 1.418000805 | G18: 1.520643497 | H18: 1.504911469
A19: ASFALTOS DILUÍDOS CM-30 | B19: 2009-09-01 | C19: 1.64329494 | D19: 1.445317761 | E19: 1.731518803 | F19: 1.419374251 | G19: 1.500735895 | H19: 1.50552312
A20: ASFALTOS DILUÍDOS CM-30 | B20: 2009-10-01 | C20: 1.588031924 | D20: 1.458932649 | E20: 1.762015056 | F20: 1.429024419 | G20: 1.513753831 | H20: 1.511681904
A21: ASFALTOS DILUÍDOS CM-30 | B21: 2009-11-01 | C21: 1.639348604 | D21: 1.449059777 | E21: 1.772650817 | F21: 1.434122677 | G21: 1.526043188 | H21: 1.499657392
A22: ASFALTOS DILUÍDOS CM-30 | B22: 2009-12-01 | C22: 1.664266853 | D22: 1.441966636 | E22: 1.890574802 | F22: 1.429077727 | G22: 1.520539334 | H22: 1.508864598
A23: ASFALTOS DILUÍDOS CM-30 | B23: 2010-01-01 | C23: 1.842506144 | D23: 1.454977129 | E23: 1.865022447 | F23: 1.414817608 | G23: 1.474450765 | H23: 1.497735227
A24: ASFALTOS DILUÍDOS CM-30 | B24: 2010-02-01 | C24: 1.709886915 | D24: 1.442956487 | E24: 1.919844741 | F24: 1.433146251 | G24: 1.500882448 | H24: 1.496542251
A25: ASFALTOS DILUÍDOS CM-30 | B25: 2010-03-01 | C25: 1.535743416 | D25: 1.448880499 | E25: 1.935062728 | F25: 1.435026116 | G25: 1.480618635 | H25: 1.486789802
A26: ASFALTOS DILUÍDOS CM-30 | B26: 2010-04-01 | C26: 1.710046479 | D26: 1.440300254 | E26: 1.911935961 | F26: 1.421102153 | G26: 1.481270937 | H26: 1.511086431
A27: ASFALTOS DILUÍDOS CM-30 | B27: 2010-05-01 | C27: 1.755610465 | D27: 1.435277221 | E27: 1.873293889 | F27: 1.406944432 | G27: 1.48177605 | H27: 1.537170565
A28: ASFALTOS DILUÍDOS CM-30 | B28: 2010-06-01 | C28: 1.602224314 | D28: 1.396004336 | E28: 1.731734721 | F28: 1.399996227 | G28: 1.49193962 | H28: 1.498073418
A29: ASFALTOS DILUÍDOS CM-30 | B29: 2010-07-01 | C29: 1.559901627 | D29: 1.381016708 | E29: 1.732688214 | F29: 1.402904856 | G29: 1.473854427 | H29: 1.490075269
A30: ASFALTOS DILUÍDOS CM-30 | B30: 2010-08-01 | C30: 1.526639389 | D30: 1.38817836 | E30: 1.738946087 | F30: 1.398751236 | G30: 1.455749849 | H30: 1.495828516
A31: ASFALTOS DILUÍDOS CM-30 | B31: 2010-09-01 | C31: 1.565378829 | D31: 1.408204664 | E31: 1.757027378 | F31: 1.411642875 | G31: 1.487257745 | H31: 1.512257128
A32: ASFALTOS DILUÍDOS CM-30 | B32: 2010-10-01 | C32: 1.481711294 | D32: 1.404357715 | E32: 1.751159947 | F32: 1.403489437 | G32: 1.469340847 | H32: 1.49988826
A33: ASFALTOS DILUÍDOS CM-30 | B33: 2010-11-01 | C33: 1.519267672 | D33: 1.410130904 | E33: 1.779405625 | F33: 1.421283822 | G33: 1.458559112 | H33: 1.481658635
A34: ASFALTOS DILUÍDOS CM-30 | B34: 2010-12-01 | C34: 1.559287556 | D34: 1.40982051 | E34: 1.825185618 | F34: 1.417673572 | G34: 1.473243884 | H34: 1.469113031
A35: ASFALTOS DILUÍDOS CM-30 | B35: 2011-01-01 | C35: 1.525923305 | D35: 1.445794092 | E35: 1.774600924 | F35: 1.403274235 | G35: 1.466002814 | H35: 1.457256066
A36: ASFALTOS DILUÍDOS CM-30 | B36: 2011-02-01 | C36: 1.552825112 | D36: 1.392094259 | E36: 1.763836123 | F36: 1.385194937 | G36: 1.44955884 | H36: 1.426250478
A37: ASFALTOS DILUÍDOS CM-30 | B37: 2011-03-01 | C37: 1.469219693 | D37: 1.369442916 | E37: 1.696017922 | F37: 1.353812804 | G37: 1.435170694 | H37: 1.400130249
A38: ASFALTOS DILUÍDOS CM-30 | B38: 2011-04-01 | C38: 1.470570262 | D38: 1.373220492 | E38: 1.650829394 | F38: 1.345928103 | G38: 1.42199894 | H38: 1.400493522
A39: ASFALTOS DILUÍDOS CM-30 | B39: 2011-05-01 | C39: 1.428528955 | D39: 1.322646267 | E39: 1.700380913 | F39: 1.345068163 | G39: 1.439361431 | H39: 1.428058019
A40: ASFALTOS DILUÍDOS CM-30 | B40: 2011-06-01 | C40: 1.407622163 | D40: 1.305708657 | E40: 1.741843669 | F40: 1.354620495 | G40: 1.399501693 | H40: 1.44029982
A41: ASFALTOS DILUÍDOS CM-30 | B41: 2011-07-01 | C41: 1.259234065 | D41: 1.312033305 | E41: 1.737489696 | F41: 1.33656388 | G41: 1.422474887 | H41: 1.420839252
A42: ASFALTOS DILUÍDOS CM-30 | B42: 2011-08-01 | C42: 1.470680061 | D42: 1.299778765 | E42: 1.727443485 | F42: 1.341477821 | G42: 1.353018352 | H42: 1.425675534
A43: ASFALTOS DILUÍDOS CM-30 | B43: 2011-09-01 | C43: 1.56132872 | D43: 1.321196084 | E43: 1.729821548 | F43: 1.357451483 | G43: 1.395684798 | H43: 1.455202413
A44: ASFALTOS DILUÍDOS CM-30 | B44: 2011-10-01 | C44: 1.520569722 | D44: 1.326218736 | E44: 1.71738046 | F44: 1.332691392 | G44: 1.3577774 | H44: 1.442295871
A45: ASFALTOS DILUÍDOS CM-30 | B45: 2011-11-01 | C45: 1.465886334 | D45: 1.337041154 | E45: 1.741004886 | F45: 1.345486103 | G45: 1.447580565 | H45: 1.445354137
A46: ASFALTOS DILUÍDOS CM-30 | B46: 2011-12-01 | C46: 1.470883899 | D46: 1.335587636 | E46: 1.778724141 | F46: 1.408293068 | G46: 1.428112306 | H46: 1.422418604
A47: ASFALTOS DILUÍDOS CM-30 | B47: 2012-01-01 | C47: 1.384955015 | D47: 1.350130156 | E47: 1.780783883 | F47: 1.421354107 | G47: 1.430352474 | H47: 1.394658167
A48: ASFALTOS DILUÍDOS CM-30 | B48: 2012-02-01 | C48: 1.332181678 | D48: 1.368143891 | E48: 1.741020394 | F48: 1.400200985 | G48: 1.425400986 | H48: 1.410605707
A49: ASFALTOS DILUÍDOS CM-30 | B49: 2012-03-01 | C49: 1.411621867 | D49: 1.349122214 | E49: 1.620096006 | F49: 1.393295764 | G49: 1.406130569 | H49: 1.409768786
A50: ASFALTOS DILUÍDOS CM-30 | B50: 2012-04-01 | C50: 1.549007912 | D50: 1.383976456 | E50: 1.640712752 | F50: 1.404716397 | G50: 1.440617793 | H50: 1.45608482
A51: ASFALTOS DILUÍDOS CM-30 | B51: 2012-05-01 | C51: 1.596178941 | D51: 1.386362272 | E51: 1.712061183 | F51: 1.39923955 | G51: 1.448350887 | H51: 1.498461969
A52: ASFALTOS DILUÍDOS CM-30 | B52: 2012-06-01 | C52: 1.701432576 | D52: 1.388053518 | E52: 1.740352007 | F52: 1.422118749 | G52: 1.449196072 | H52: 1.527722717
A53: ASFALTOS DILUÍDOS CM-30 | B53: 2012-07-01 | C53: 1.652026742 | D53: 1.39436857 | E53: 1.718644846 | F53: 1.439670261 | G53: 1.46187567 | H53: 1.523069159
A54: ASFALTOS DILUÍDOS CM-30 | B54: 2012-08-01 | C54: 1.689998835 | D54: 1.40333785 | E54: 1.741895041 | F54: 1.421723369 | G54: 1.445685799 | H54: 1.536533078
A55: ASFALTOS DILUÍDOS CM-30 | B55: 2012-09-01 | C55: 1.690177972 | D55: 1.421500003 | E55: 1.780920724 | F55: 1.445180432 | G55: 1.483645866 | H55: 1.549410653
A56: ASFALTOS DILUÍDOS CM-30 | B56: 2012-10-01 | C56: 1.574840342 | D56: 1.417066109 | E56: 1.794832036 | F56: 1.451304526 | G56: 1.482037109 | H56: 1.550631802
A57: ASFALTOS DILUÍDOS CM-30 | B57: 2012-11-01 | C57: 1.655163526 | D57: 1.455878748 | E57: 1.840129766 | F57: 1.461204615 | G57: 1.483499722 | H57: 1.552500776
A58: ASFALTOS DILUÍDOS CM-30 | B58: 2012-12-01 | C58: 1.714876125 | D58: 1.435854741 | E58: 1.804066573 | F58: 1.45222765 | G58: 1.509417648 | H58: 1.523411999
A59: ASFALTOS DILUÍDOS CM-30 | B59: 2013-01-01 | C59: 1.495776335 | D59: 1.449494588 | E59: 1.854050525 | F59: 1.44638752 | G59: 1.563753675 | H59: 1.502137259
A60: ASFALTOS DILUÍDOS CM-30 | B60: 2013-02-01 | C60: 1.635067666 | D60: 1.420609638 | E60: 1.731071498 | F60: 1.442746356 | G60: 1.461828405 | H60: 1.4739561
A61: ASFALTOS DILUÍDOS CM-30 | B61: 2013-03-01 | C61: 1.646229098 | D61: 1.413299983 | E61: 1.83828087 | F61: 1.450015152 | G61: 1.525760413 | H61: 1.506542904
A62: ASFALTOS DILUÍDOS CM-30 | B62: 2013-04-01 | C62: 1.581864474 | D62: 1.399189564 | E62: 1.793825113 | F62: 1.458704755 | G62: 1.551913702 | H62: 1.523623636
A63: ASFALTOS DILUÍDOS CM-30 | B63: 2013-05-01 | C63: 1.815646773 | D63: 1.390143517 | E63: 1.812783313 | F63: 1.44951052 | G63: 1.504233457 | H63: 1.549918592
A64: ASFALTOS DILUÍDOS CM-30 | B64: 2013-06-01 | C64: 1.631101583 | D64: 1.383186536 | E64: 1.816642105 | F64: 1.474232641 | G64: 1.503043689 | H64: 1.581049429
A65: ASFALTOS DILUÍDOS CM-30 | B65: 2013-07-01 | C65: 1.86596563 | D65: 1.422051117 | E65: 1.793072753 | F65: 1.498018808 | G65: 1.533391901 | H65: 1.59880513
A66: ASFALTOS DILUÍDOS CM-30 | B66: 2013-08-01 | C66: 1.700325546 | D66: 1.435094415 | E66: 1.821452614 | F66: 1.511722868 | G66: 1.530793596 | H66: 1.606176585
A67: ASFALTOS DILUÍDOS CM-30 | B67: 2013-09-01 | C67: 1.562873733 | D67: 1.472197748 | E67: 1.879842712 | F67: 1.542652867 | G67: 1.490667543 | H67: 1.627945893
A68: ASFALTOS DILUÍDOS CM-30 | B68: 2013-10-01 | C68: 1.648504013 | D68: 1.472152345 | E68: 1.825494997 | F68: 1.501177682 | G68: 1.48378912 | H68: 1.597538775
A69: ASFALTOS DILUÍDOS CM-30 | B69: 2013-11-01 | C69: 1.619179062 | D69: 1.486413317 | E69: 1.844012679 | F69: 1.496326809 | G69: 1.506096878 | H69: 1.581665844
A70: ASFALTOS DILUÍDOS CM-30 | B70: 2013-12-01 | C70: 1.633358293 | D70: 1.494818097 | E70: 1.897197176 | F70: 1.502864538 | G70: 1.517074296 | H70: 1.572475244
A71: ASFALTOS DILUÍDOS CM-30 | B71: 2014-01-01 | C71: 1.688311265 | D71: 1.494181305 | E71: 1.798355903 | F71: 1.484202293 | G71: 1.533353813 | H71: 1.542909737
A72: ASFALTOS DILUÍDOS CM-30 | B72: 2014-02-01 | C72: 1.598304434 | D72: 1.479706587 | E72: 1.814390215 | F72: 1.514829392 | G72: 1.522800588 | H72: 1.528970287
A73: ASFALTOS DILUÍDOS CM-30 | B73: 2014-03-01 | C73: 1.648287687 | D73: 1.472852501 | E73: 1.76657319 | F73: 1.513020673 | G73: 1.506185248 | H73: 1.530181178
A74: ASFALTOS DILUÍDOS CM-30 | B74: 2014-04-01 | C74: 1.534459987 | D74: 1.493898767 | E74: 1.757271278 | F74: 1.533021309 | G74: 1.524275274 | H74: 1.550566305
A75: ASFALTOS DILUÍDOS CM-30 | B75: 2014-05-01 | C75: 1.58658327 | D75: 1.490834685 | E75: 1.804339251 | F75: 1.501138131 | G75: 1.567043824 | H75: 1.586452272
A76: ASFALTOS DILUÍDOS CM-30 | B76: 2014-06-01 | C76: 1.658277164 | D76: 1.505801121 | E76: 1.839593445 | F76: 1.5068632 | G76: 1.523776953 | H76: 1.636070702
A77: ASFALTOS DILUÍDOS CM-30 | B77: 2014-07-01 | C77: 1.890299542 | D77: 1.500730514 | E77: 1.708277865 | F77: 1.487293964 | G77: 1.505956069 | H77: 1.587065158
A78: ASFALTOS DILUÍDOS CM-30 | B78: 2014-08-01 | C78: 1.632741832 | D78: 1.501945324 | E78: 1.671203189 | F78: 1.482359341 | G78: 1.506327366 | H78: 1.557910377
A79: ASFALTOS DILUÍDOS CM-30 | B79: 2014-09-01 | C79: 1.66956717 | D79: 1.546830427 | E79: 1.864797016 | F79: 1.496764585 | G79: 1.570533242 | H79: 1.639281057
A80: ASFALTOS DILUÍDOS CM-30 | B80: 2014-10-01 | C80: 1.742876916 | D80: 1.508978569 | E80: 1.746650466 | F80: 1.470773645 | G80: 1.454273462 | H80: 1.57912022
A81: ASFALTOS DILUÍDOS CM-30 | B81: 2014-11-01 | C81: 1.864723419 | D81: 1.57943059 | E81: 1.749156218 | F81: 1.465084479 | G81: 1.529147988 | H81: 1.601359821
A82: ASFALTOS DILUÍDOS CM-30 | B82: 2014-12-01 | C82: 1.812671914 | D82: 1.704844348 | E82: 1.963310066 | F82: 1.623676702 | G82: 1.649644659 | H82: 1.718826981
A83: ASFALTOS DILUÍDOS CM-30 | B83: 2015-01-01 | C83: 2.154807062 | D83: 2.023760447 | E83: 2.318863736 | F83: 1.866588967 | G83: 1.898380434 | H83: 2.007792032
A84: ASFALTOS DILUÍDOS CM-30 | B84: 2015-02-01 | C84: 2.260238625 | D84: 2.005673765 | E84: 2.393875762 | F84: 1.854519766 | G84: 1.927395107 | H84: 2.007653781
A85: ASFALTOS DILUÍDOS CM-30 | B85: 2015-03-01 | C85: 2.124176462 | D85: 1.968822849 | E85: 2.279643254 | F85: 1.887760911 | G85: 1.930217145 | H85: 1.984816916
A86: ASFALTOS DILUÍDOS CM-30 | B86: 2015-04-01 | C86: 2.030049505 | D86: 2.001506448 | E86: 2.379118903 | F86: 1.85245167 | G86: 1.949025254 | H86: 1.98064321
A87: ASFALTOS DILUÍDOS CM-30 | B87: 2015-05-01 | C87: 2.507271651 | D87: 1.946869908 | E87: 2.254758192 | F87: 1.807470001 | G87: 2.016929536 | H87: 2.005474234
A88: ASFALTOS DILUÍDOS CM-30 | B88: 2015-06-01 | C88: 2.248320042 | D88: 1.944259736 | E88: 2.314331796 | F88: 1.846998595 | G88: 1.968565125 | H88: 2.042581344
A89: ASFALTOS DILUÍDOS CM-30 | B89: 2015-07-01 | C89: 1.992222758 | D89: 1.992791635 | E89: 2.046769953 | F89: 1.782648603 | G89: 1.931671385 | H89: 1.942627362
A90: ASFALTOS DILUÍDOS CM-30 | B90: 2015-08-01 | C90: 2.307605931 | D90: 2.038089127 | E90: 2.252748105 | F90: 1.828097705 | G90: 1.939824481 | H90: 2.08193616
A91: ASFALTOS DILUÍDOS CM-30 | B91: 2015-09-01 | C91: 2.314289704 | D91: 2.095307531 | E91: 2.344561987 | F91: 1.942551091 | G91: 2.005352614 | H91: 2.168175541
A92: ASFALTOS DILUÍDOS CM-30 | B92: 2015-10-01 | C92: 2.329456663 | D92: 2.170570012 | E92: 2.43273012 | F92: 2.035624751 | G92: 2.110261148 | H92: 2.237533782
A93: ASFALTOS DILUÍDOS CM-30 | B93: 2015-11-01 | C93: 2.606056566 | D93: 2.437098304 | E93: 2.711612141 | F93: 2.280113896 | G93: 2.326446297 | H93: 2.474998781
A94: ASFALTOS DILUÍDOS CM-30 | B94: 2015-12-01 | C94: 2.635374006 | D94: 2.395920309 | E94: 2.693528386 | F94: 2.272528129 | G94: 2.330740659 | H94: 2.452848156
A95: ASFALTOS DILUÍDOS CM-30 | B95: 2016-01-01 | C95: 2.715863993 | D95: 2.373861647 | E95: 2.844670602 | F95: 2.263650658 | G95: 2.232631691 | H95: 2.400563394
A96: ASFALTOS DILUÍDOS CM-30 | B96: 2016-02-01 | C96: 2.80468316 | D96: 2.466846816 | E96: 2.791787007 | F96: 2.295637115 | G96: 2.346556173 | H96: 2.464348548
A97: ASFALTOS DILUÍDOS CM-30 | B97: 2016-03-01 | C97: 2.5805021 | D97: 2.470678753 | E97: 2.707688025 | F97: 2.235301999 | G97: 2.383115972 | H97: 2.423563924
A98: ASFALTOS DILUÍDOS CM-30 | B98: 2016-04-01 | C98: 2.942006312 | D98: 2.740742032 | E98: 2.759071855 | F98: 2.544439178 | G98: 2.710751632 | H98: 2.680274833
A99: ASFALTOS DILUÍDOS CM-30 | B99: 2016-05-01 | C99: 3.010579472 | D99: 2.650277047 | E99: 2.857121361 | F99: 2.575583152 | G99: 2.770413362 | H99: 2.70973327
A100: ASFALTOS DILUÍDOS CM-30 | B100: 2016-06-01 | C100: 2.909179844 | D100: 2.621385041 | E100: 2.943487281 | F100: 2.659109515 | G100: 2.684759555 | H100: 2.743619517
A101: ASFALTOS DILUÍDOS CM-30 | B101: 2016-07-01 | C101: 2.985740381 | D101: 2.591644045 | E101: 2.98927803 | F101: 2.604396599 | G101: 2.660884423 | H101: 2.745135539
A102: ASFALTOS DILUÍDOS CM-30 | B102: 2016-08-01 | C102: 2.935243919 | D102: 2.623917329 | E102: 2.970490854 | F102: 2.679486504 | G102: 2.727025649 | H102: 2.781385962
A103: ASFALTOS DILUÍDOS CM-30 | B103: 2016-09-01 | C103: 2.649136821 | D103: 2.521054851 | E103: 2.781583925 | F103: 2.51393313 | G103: 2.371271501 | H103: 2.595617128
A104: ASFALTOS DILUÍDOS CM-30 | B104: 2016-10-01 | C104: 2.626109257 | D104: 2.444469093 | E104: 2.781617873 | F104: 2.507383127 | G104: 2.38325399 | H104: 2.566999037
A105: ASFALTOS DILUÍDOS CM-30 | B105: 2016-11-01 | C105: 2.535087408 | D105: 2.374145527 | E105: 2.952768674 | F105: 2.481263765 | G105: 2.382206771 | H105: 2.542842366
A106: ASFALTOS DILUÍDOS CM-30 | B106: 2016-12-01 | C106: 2.50039107 | D106: 2.253413483 | E106: 3.038519458 | F106: 2.589438892 | G106: 2.395593424 | H106: 2.476439295
A107: ASFALTOS DILUÍDOS CM-30 | B107: 2017-01-01 | C107: 2.392875504 | D107: 2.232695674 | E107: 3.089080971 | F107: 2.535744039 | G107: 2.378694833 | H107: 2.374216192
A108: ASFALTOS DILUÍDOS CM-30 | B108: 2017-02-01 | C108: 2.68039414 | D108: 2.271897225 | E108: 2.764408032 | F108: 2.573933685 | G108: 2.384644398 | H108: 2.470721466
A109: ASFALTOS DILUÍDOS CM-30 | B109: 2017-03-01 | C109: 2.23884121 | D109: 2.386958079 | E109: 2.667220252 | F109: 2.372165947 | G109: 2.30121887 | H109: 2.378796986
A110: ASFALTOS DILUÍDOS CM-30 | B110: 2017-04-01 | C110: 2.420191398 | D110: 2.307969596 | E110: 2.794093014 | F110: 2.258409912 | G110: 2.256434297 | H110: 2.380268484
A111: ASFALTOS DILUÍDOS CM-30 | B111: 2017-05-01 | C111: 2.432106692 | D111: 2.167919128 | E111: 2.699836936 | F111: 2.255387192 | G111: 2.204026958 | H111: 2.361515909
A112: ASFALTOS DILUÍDOS CM-30 | B112: 2017-06-01 | C112: 2.428301776 | D112: 2.181938689 | E112: 2.756672055 | F112: 2.234549022 | G112: 2.305778546 | H112: 2.44553453
A113: ASFALTOS DILUÍDOS CM-30 | B113: 2017-07-01 | C113: 2.453752061 | D113: 2.218075334 | E113: 2.694625022 | F113: 2.414329247 | G113: 2.269601102 | H113: 2.473436106
A114: ASFALTOS DILUÍDOS CM-30 | B114: 2017-08-01 | C114: 2.447930976 | D114: 2.153112031 | E114: 2.595349952 | F114: 2.302919065 | G114: 2.170148667 | H114: 2.380876423
A115: ASFALTOS DILUÍDOS CM-30 | B115: 2017-09-01 | C115: 2.494551504 | D115: 2.14243989 | E115: 2.623166503 | F115: 2.371308095 | G115: 2.303698507 | H115: 2.393542204
A116: ASFALTOS DILUÍDOS CM-30 | B116: 2017-10-01 | C116: 2.349953944 | D116: 2.18056004 | E116: 2.614160957 | F116: 2.415254962 | G116: 2.20079573 | H116: 2.367947121
A117: ASFALTOS DILUÍDOS CM-30 | B117: 2017-11-01 | C117: 2.670126991 | D117: 2.433169195 | E117: 2.908627464 | F117: 2.58469482 | G117: 2.415192709 | H117: 2.602101348
A118: ASFALTOS DILUÍDOS CM-30 | B118: 2017-12-01 | C118: 2.587352645 | D118: 2.425358882 | E118: 2.906633765 | F118: 2.602890298 | G118: 2.42288976 | H118: 2.531764464
A119: ASFALTOS DILUÍDOS CM-30 | B119: 2018-01-01 | C119: 2.950360755 | D119: 2.662862923 | E119: 2.875953993 | F119: 2.620738484 | G119: 2.646955252 | H119: 2.735956369
A120: ASFALTOS DILUÍDOS CM-30 | B120: 2018-02-01 | C120: 2.677899567 | D120: 2.672498164 | E120: 2.942595474 | F120: 2.62043113 | G120: 2.567885662 | H120: 2.668369933
A121: ASFALTOS DILUÍDOS CM-30 | B121: 2018-03-01 | C121: 2.733363025 | D121: 2.589050022 | E121: 2.809172556 | F121: 2.561928393 | G121: 2.575946067 | H121: 2.634876584
A122: ASFALTOS DILUÍDOS CM-30 | B122: 2018-04-01 | C122: 2.75780112 | D122: 2.669553602 | E122: 2.773908242 | F122: 2.59547006 | G122: 2.556042394 | H122: 2.6643302
A123: ASFALTOS DILUÍDOS CM-30 | B123: 2018-05-01 | C123: 2.841213362 | D123: 2.672025877 | E123: 2.884501482 | F123: 2.686718021 | G123: 2.736485103 | H123: 2.77737896
A124: ASFALTOS DILUÍDOS CM-30 | B124: 2018-06-01 | C124: 3.008444789 | D124: 2.919605178 | E124: 3.158454886 | F124: 2.84673108 | G124: 2.953523993 | H124: 2.982291635
A125: ASFALTOS DILUÍDOS CM-30 | B125: 2018-07-01 | C125: 3.268237549 | D125: 3.036524094 | E125: 3.399360399 | F125: 3.026467598 | G125: 3.19779631 | H125: 3.164126546
A126: ASFALTOS DILUÍDOS CM-30 | B126: 2018-08-01 | C126: 3.56441315 | D126: 3.415193769 | E126: 3.707706206 | F126: 3.425079349 | G126: 3.356722461 | H126: 3.515558112
A127: ASFALTOS DILUÍDOS CM-30 | B127: 2018-09-01 | C127: 3.173913778 | D127: 3.445064118 | E127: 3.73526324 | F127: 3.385816186 | G127: 3.607309454 | H127: 3.483238429
A128: ASFALTOS DILUÍDOS CM-30 | B128: 2018-10-01 | C128: 3.487778119 | D128: 3.460508804 | E128: 3.721444057 | F128: 3.432525565 | G128: 3.60602088 | H128: 3.545390344
A129: ASFALTOS DILUÍDOS CM-30 | B129: 2018-11-01 | C129: 4.047272484 | D129: 3.814893312 | E129: 4.280131586 | F129: 4.178126777 | G129: 3.967681367 | H129: 3.990147183
A130: ASFALTOS DILUÍDOS CM-30 | B130: 2018-12-01 | C130: 3.951491146 | D130: 3.967113195 | E130: 4.341144202 | F130: 3.916766066 | G130: 3.911993357 | H130: 3.999742654
A131: ASFALTOS DILUÍDOS CM-30 | B131: 2019-01-01 | C131: 3.796855325 | D131: 3.870018889 | E131: 4.201901762 | F131: 3.954196997 | G131: 3.976786028 | H131: 3.933951911
A132: ASFALTOS DILUÍDOS CM-30 | B132: 2019-02-01 | C132: 3.516584073 | D132: 4.090361178 | E132: 4.498422953 | F132: 4.469942475 | G132: 4.254590254 | H132: 4.188544679
A133: ASFALTOS DILUÍDOS CM-30 | B133: 2019-03-01 | C133: 4.216758117 | D133: 4.361910728 | E133: 4.907194889 | F133: 4.398717729 | G133: 4.290823922 | H133: 4.360295279
A134: ASFALTOS DILUÍDOS CM-30 | B134: 2019-04-01 | C134: 4.281648205 | D134: 4.234661428 | E134: 4.531627215 | F134: 4.43722653 | G134: 4.466881471 | H134: 4.38082044
A135: ASFALTOS DILUÍDOS CM-30 | B135: 2019-05-01 | C135: 4.287644659 | D135: 4.190699738 | E135: 4.857910872 | F135: 4.267461963 | G135: 4.633806379 | H135: 4.366402151
A136: ASFALTOS DILUÍDOS CM-30 | B136: 2019-06-01 | C136: 4.475609892 | D136: 3.965052934 | E136: 4.66272934 | F136: 4.350600604 | G136: 4.211229921 | H136: 4.319323669
A137: ASFALTOS DILUÍDOS CM-30 | B137: 2019-07-01 | C137: 4.394498989 | D137: 4.058039305 | E137: 4.834221945 | F137: 4.094659414 | G137: 4.233003281 | H137: 4.346977757
A138: ASFALTOS DILUÍDOS CM-30 | B138: 2019-08-01 | C138: 4.48173504 | D138: 3.910662496 | E138: 4.576329081 | F138: 4.11161654 | G138: 4.255419985 | H138: 4.258345083
A139: ASFALTOS DILUÍDOS CM-30 | B139: 2019-09-01 | C139: 4.439578796 | D139: 3.859904896 | E139: 4.495256968 | F139: 4.111321475 | G139: 4.117359152 | H139: 4.251607085
A140: ASFALTOS DILUÍDOS CM-30 | B140: 2019-10-01 | C140: 4.335888631 | D140: 3.772324962 | E140: 4.459242357 | F140: 4.056084115 | G140: 3.942458011 | H140: 4.07740702
A141: ASFALTOS DILUÍDOS CM-30 | B141: 2019-11-01 | C141: 4.316238692 | D141: 3.910245509 | E141: 4.581841077 | F141: 4.07902404 | G141: 4.106621274 | H141: 4.094561212
A142: ASFALTOS DILUÍDOS CM-30 | B142: 2019-12-01 | C142: 4.199435972 | D142: 3.980119663 | E142: 4.673774805 | F142: 4.434268142 | G142: 3.986410312 | H142: 4.164691616
A143: ASFALTOS DILUÍDOS CM-30 | B143: 2020-01-01 | C143: 3.59298003 | D143: 3.895320617 | E143: 4.685420623 | F143: 4.387074674 | G143: 4.124467668 | H143: 4.053338937
A144: ASFALTOS DILUÍDOS CM-30 | B144: 2020-02-01 | C144: 3.642667016 | D144: 3.877395187 | E144: 4.438194543 | F144: 3.699944607 | G144: 3.778164011 | H144: 3.839010438
A145: ASFALTOS DILUÍDOS CM-30 | B145: 2020-03-01 | C145: 4.676668339 | D145: 3.791138977 | E145: 4.289222343 | F145: 3.718402734 | G145: 3.60908619 | H145: 3.93117068
A146: ASFALTOS DILUÍDOS CM-30 | B146: 2020-04-01 | C146: 4.313362837 | D146: 3.6957655 | E146: 4.255395321 | F146: 3.865895531 | G146: 3.732253382 | H146: 3.964125211
A147: ASFALTOS DILUÍDOS CM-30 | B147: 2020-05-01 | C147: 3.249134658 | D147: 3.637769912 | E147: 4.113544882 | F147: 3.760550026 | G147: 3.710618099 | H147: 3.65617504
A148: ASFALTOS DILUÍDOS CM-30 | B148: 2020-06-01 | C148: 4.017903076 | D148: 3.567031492 | E148: 4.277369171 | F148: 3.937886485 | G148: 3.625830069 | H148: 3.924524506
A149: ASFALTOS DILUÍDOS CM-30 | B149: 2020-07-01 | C149: 3.840497509 | D149: 3.51327048 | E149: 4.21549069 | F149: 3.954223886 | G149: 3.688841275 | H149: 3.843774448
A150: ASFALTOS DILUÍDOS CM-30 | B150: 2020-08-01 | C150: 4.174467203 | D150: 3.465394219 | E150: 4.277710211 | F150: 4.06746494 | G150: 3.62858863 | H150: 3.947166917
A151: ASFALTOS DILUÍDOS CM-30 | B151: 2020-09-01 | C151: 4.167371331 | D151: 3.746360816 | E151: 4.167424356 | F151: 3.795621791 | G151: 3.627729935 | H151: 3.973129945
A152: ASFALTOS DILUÍDOS CM-30 | B152: 2020-10-01 | C152: 4.408099527 | D152: 3.718989878 | E152: 4.278979192 | F152: 4.008746906 | G152: 3.591048183 | H152: 4.03964377
A153: ASFALTOS DILUÍDOS CM-30 | B153: 2020-11-01 | C153: 4.056306006 | D153: 3.969209281 | E153: 4.547900893 | F153: 4.27945542 | G153: 3.973347244 | H153: 4.175826149
A154: ASFALTOS DILUÍDOS CM-30 | B154: 2020-12-01 | C154: 4.132064138 | D154: 3.851632751 | E154: 4.426704386 | F154: 3.906236422 | G154: 3.8709398 | H154: 4.035347374
A155: ASFALTOS DILUÍDOS CM-30 | B155: 2021-01-01 | C155: 3.489836333 | D155: 3.951525937 | E155: 4.628269702 | F155: 4.011577011 | G155: 3.935136638 | H155: 3.917092391
A156: ASFALTOS DILUÍDOS CM-30 | B156: 2021-02-01 | C156: 4.099318116 | D156: 4.267109523 | E156: 4.832061615 | F156: 4.414202706 | G156: 4.149048932 | H156: 4.26819704
A157: ASFALTOS DILUÍDOS CM-30 | B157: 2021-03-01 | C157: 4.528355792 | D157: 4.239831731 | E157: 4.926314562 | F157: 4.269697839 | G157: 4.130655409 | H157: 4.377833785
A158: ASFALTOS DILUÍDOS CM-30 | B158: 2021-04-01 | C158: 4.349271867 | D158: 4.086995154 | E158: 4.477597522 | F158: 4.156113398 | G158: 4.044189822 | H158: 4.253361798
A159: ASFALTOS DILUÍDOS CM-30 | B159: 2021-05-01 | C159: 4.488889413 | D159: 4.707945815 | E159: 5.101489686 | F159: 4.784034896 | G159: 4.523986615 | H159: 4.790548085
A160: ASFALTOS DILUÍDOS CM-30 | B160: 2021-06-01 | C160: 4.010467711 | D160: 4.479592126 | E160: 5.113041212 | F160: 4.779739905 | G160: 4.721214307 | H160: 4.764890884
A161: ASFALTOS DILUÍDOS CM-30 | B161: 2021-07-01 | C161: 4.752234128 | D161: 4.559350506 | E161: 5.004758283 | F161: 4.80272972 | G161: 4.748550678 | H161: 4.817586047
A162: ASFALTOS DILUÍDOS CM-30 | B162: 2021-08-01 | C162: 5.085284532 | D162: 4.772501255 | E162: 5.198537142 | F162: 5.244735259 | G162: 4.76131175 | H162: 5.0981692
A163: ASFALTOS DILUÍDOS CM-30 | B163: 2021-09-01 | C163: 5.110300267 | D163: 4.538072365 | E163: 5.241721185 | F163: 5.017144197 | G163: 4.862861245 | H163: 5.016958886
A164: ASFALTOS DILUÍDOS CM-30 | B164: 2021-10-01 | C164: 5.080697261 | D164: 4.66826742 | E164: 5.119544199 | F164: 5.384779065 | G164: 4.658516432 | H164: 5.021294312
A165: ASFALTOS DILUÍDOS CM-30 | B165: 2021-11-01 | C165: 5.436518753 | D165: 5.08776781 | E165: 5.150063985 | F165: 5.634257884 | G165: 5.174530131 | H165: 5.228141289
A166: ASFALTOS DILUÍDOS CM-30 | B166: 2021-12-01 | C166: 5.184291386 | D166: 4.975486975 | E166: 5.572122251 | F166: 6.135655205 | G166: 5.01180992 | H166: 5.339565801
A167: ASFALTOS DILUÍDOS CM-30 | B167: 2022-01-01 | C167: 4.928191974 | D167: 5.023555623 | E167: 6.018407512 | F167: 5.214773026 | G167: 5.481979244 | H167: 5.250789679
A168: ASFALTOS DILUÍDOS CM-30 | B168: 2022-02-01 | C168: 5.545684189 | D168: 5.708628413 | E168: 6.011065894 | F168: 4.8651 | G168: 5.763367147 | H168: 5.736057428
A169: ASFALTOS DILUÍDOS CM-30 | B169: 2022-03-01 | C169: 6.326844735 | D169: 5.644687904 | E169: 5.930807225 | F169: 6.181141143 | G169: 5.498041682 | H169: 5.922781038
A170: ASFALTOS DILUÍDOS CM-30 | B170: 2022-04-01 | C170: 5.974220681 | D170: 5.832747324 | E170: 6.206692615 | F170: 5.720329997 | G170: 6.17800291 | H170: 6.012354229
A171: ASFALTOS DILUÍDOS CM-30 | B171: 2022-05-01 | C171: 5.354015586 | D171: 5.464335309 | E171: 6.007611639 | F171: 5.995095583 | G171: 5.49095009 | H171: 5.670722744
A172: ASFALTOS DILUÍDOS CM-30 | B172: 2022-06-01 | C172: 5.802443798 | D172: 5.316964203 | E172: 5.25267889 | F172: 5.813931518 | G172: 5.644996328 | H172: 5.469498687
A173: ASFALTOS DILUÍDOS CM-30 | B173: 2022-07-01 | C173: 5.965614765 | D173: 5.829314879 | E173: 5.919099711 | F173: 5.742484775 | G173: 5.674430543 | H173: 5.862020702
A174: ASFALTOS DILUÍDOS CM-30 | B174: 2022-08-01 | C174: 6.424230463 | D174: 5.758256878 | E174: 5.752352843 | F174: 5.791905352 | G174: 5.31271724 | H174: 5.823186051
A175: ASFALTOS DILUÍDOS CM-30 | B175: 2022-09-01 | C175: 5.540097074 | D175: 5.609921619 | E175: 5.963592489 | F175: 5.302181194 | G175: 4.977929161 | H175: 5.699429921
A176: ASFALTOS DILUÍDOS CM-30 | B176: 2022-10-01 | C176: 4.785670999 | D176: 4.727521094 | E176: 5.339105147 | F176: 4.851160007 | G176: 4.532580513 | H176: 5.041661715
A177: ASFALTOS DILUÍDOS CM-30 | B177: 2022-11-01 | C177: 7.765855923 | D177: 4.775654982 | E177: 5.237626127 | F177: 4.636383138 | G177: 4.460593179 | H177: 5.074993862
A178: ASFALTOS DILUÍDOS CM-30 | B178: 2022-12-01 | C178: 4.65725 | D178: 4.966905362 | E178: 5.655161554 | F178: 4.840935672 | G178: 4.661007861 | H178: 5.11324949
A179: ASFALTOS DILUÍDOS CM-30 | B179: 2023-01-01 | C179: 4.948950319 | D179: 5.056264922 | E179: 5.359597966 | F179: 4.426497959 | G179: 4.103267888 | H179: 4.715605129
A180: ASFALTOS DILUÍDOS CM-30 | B180: 2023-02-01 | C180: 5.407494667 | D180: 4.335771195 | E180: 4.746646601 | F180: 4.674884727 | G180: 4.014547173 | H180: 4.417800736
A181: ASFALTOS DILUÍDOS CM-30 | B181: 2023-03-01 | C181: 4.99131 | D181: 4.01354912 | E181: 4.74625028 | F181: 4.08071937 | G181: 4.082484954 | H181: 4.270345723
A182: ASFALTOS DILUÍDOS CM-30 | B182: 2023-04-01 | C182: 4.438479015 | D182: 4.094201354 | E182: 5.135816186 | F182: 4.368265095 | G182: 3.859308149 | H182: 4.153818797
A183: ASFALTOS DILUÍDOS CM-30 | B183: 2023-05-01 | C183: 5.018589297 | D183: 4.506282643 | E183: 5.616638293 | F183: 4.034756925 | G183: 4.063701717 | H183: 4.686492725
A184: ASFALTOS DILUÍDOS CM-30 | B184: 2023-06-01 | C184: 4.439644526 | D184: 4.495805354 | E184: 5.228174524 | F184: 3.772028745 | G184: 4.009042073 | H184: 4.588045148
A185: ASFALTOS DILUÍDOS CM-30 | B185: 2023-07-01 | C185: 4.360399352 | D185: 4.250187634 | E185: 6.188049155 | F185: 3.699216781 | G185: 4.315773768 | H185: 4.790717553
A186: ASFALTOS DILUÍDOS CM-30 | B186: 2023-08-01 | C186: 4.043215999 | D186: 4.100901709 | E186: 5.414198228 | F186: 3.964297949 | G186: 4.055989778 | H186: 4.607810697
A187: ASFALTOS DILUÍDOS CM-70 | B187: 2008-11-01 | C187: *** | D187: *** | E187: *** | F187: *** | G187: *** | H187: ***
A188: ASFALTOS DILUÍDOS CM-70 | B188: 2008-12-01 | C188: *** | D188: *** | E188: *** | F188: *** | G188: *** | H188: ***
A189: ASFALTOS DILUÍDOS CM-70 | B189: 2009-01-01 | C189: *** | D189: *** | E189: *** | F189: *** | G189: *** | H189: ***
A190: ASFALTOS DILUÍDOS CM-70 | B190: 2009-02-01 | C190: *** | D190: *** | E190: *** | F190: *** | G190: *** | H190: ***
A191: ASFALTOS DILUÍDOS CM-70 | B191: 2009-03-01 | C191: *** | D191: *** | E191: *** | F191: *** | G191: *** | H191: ***
A192: ASFALTOS DILUÍDOS CM-70 | B192: 2009-04-01 | C192: *** | D192: *** | E192: *** | F192: *** | G192: *** | H192: ***
A193: ASFALTOS DILUÍDOS CM-70 | B193: 2009-05-01 | C193: *** | D193: *** | E193: *** | F193: *** | G193: *** | H193: ***
A194: ASFALTOS DILUÍDOS CM-70 | B194: 2009-06-01 | C194: *** | D194: *** | E194: *** | F194: *** | G194: *** | H194: ***
A195: ASFALTOS DILUÍDOS CM-70 | B195: 2009-07-01 | C195: *** | D195: *** | E195: *** | F195: *** | G195: *** | H195: ***
A196: ASFALTOS DILUÍDOS CM-70 | B196: 2009-08-01 | C196: *** | D196: *** | E196: *** | F196: *** | G196: *** | H196: ***
A197: ASFALTOS DILUÍDOS CM-70 | B197: 2009-09-01 | C197: *** | D197: *** | E197: *** | F197: *** | G197: *** | H197: ***
A198: ASFALTOS DILUÍDOS CM-70 | B198: 2009-10-01 | C198: *** | D198: *** | E198: *** | F198: *** | G198: *** | H198: ***
A199: ASFALTOS DILUÍDOS CM-70 | B199: 2009-11-01 | C199: *** | D199: *** | E199: *** | F199: *** | G199: *** | H199: ***
A200: ASFALTOS DILUÍDOS CM-70 | B200: 2009-12-01 | C200: *** | D200: *** | E200: *** | F200: *** | G200: *** | H200: ***
A201: ASFALTOS DILUÍDOS CM-70 | B201: 2010-01-01 | C201: *** | D201: *** | E201: *** | F201: *** | G201: *** | H201: ***
A202: ASFALTOS DILUÍDOS CM-70 | B202: 2010-02-01 | C202: *** | D202: *** | E202: *** | F202: *** | G202: *** | H202: ***
A203: ASFALTOS DILUÍDOS CM-70 | B203: 2010-03-01 | C203: *** | D203: *** | E203: *** | F203: *** | G203: *** | H203: ***
A204: ASFALTOS DILUÍDOS CM-70 | B204: 2010-04-01 | C204: *** | D204: *** | E204: *** | F204: *** | G204: *** | H204: ***
... 4303 more rows

Sheet SINTÉTICO SICRO (hidden)
A1: CGCIT | B1: SISTEMA DE CUSTOS REFERENCIAIS DE OBRAS - SICRO | D1: DNIT
B2: Bahia - Julho/2023
A3: Código | B3: Descrição do Serviço | C3: Unidade | D3: Custo Unitário (R$)
A4: 307731 | B4: Aparelho de apoio de neoprene fretado para estruturas moldadas no local - fornecimento e instalação | C4: dm³ | D4: 119.77
A5: 307732 | B5: Aparelho de apoio de neoprene fretado para estruturas pré-moldadas - fornecimento e instalação | C5: dm³ | D5: 92.12
A6: 308308 | B6: Aparelho de apoio metálico elastomérico fixo com capacidade de 1.500 kN - fornecimento e instalação | C6: un | D6: 14237.98
A7: 308313 | B7: Aparelho de apoio metálico elastomérico fixo com capacidade de 10.000 kN - fornecimento e instalação | C7: un | D7: 93208.6
A8: 308309 | B8: Aparelho de apoio metálico elastomérico fixo com capacidade de 2.500 kN - fornecimento e instalação | C8: un | D8: 23247.54
A9: 308310 | B9: Aparelho de apoio metálico elastomérico fixo com capacidade de 4.000 kN - fornecimento e instalação | C9: un | D9: 37430.74
A10: 308311 | B10: Aparelho de apoio metálico elastomérico fixo com capacidade de 5.500 kN - fornecimento e instalação | C10: un | D10: 50227.37
A11: 308312 | B11: Aparelho de apoio metálico elastomérico fixo com capacidade de 7.500 kN - fornecimento e instalação | C11: un | D11: 68893.38
A12: 308307 | B12: Aparelho de apoio metálico elastomérico fixo com capacidade de 700 kN - fornecimento e instalação | C12: un | D12: 10163.37
A13: 308322 | B13: Aparelho de apoio metálico elastomérico multidirecional com capacidade de 1.500 kN - fornecimento e instalação | C13: un | D13: 9171.06
A14: 308327 | B14: Aparelho de apoio metálico elastomérico multidirecional com capacidade de 10.000 kN - fornecimento e instalação | C14: un | D14: 59619.43
A15: 308323 | B15: Aparelho de apoio metálico elastomérico multidirecional com capacidade de 2.500 kN - fornecimento e instalação | C15: un | D15: 12743.25
A16: 308324 | B16: Aparelho de apoio metálico elastomérico multidirecional com capacidade de 4.000 kN - fornecimento e instalação | C16: un | D16: 21217.96
A17: 308325 | B17: Aparelho de apoio metálico elastomérico multidirecional com capacidade de 5.500 kN - fornecimento e instalação | C17: un | D17: 30466.88
A18: 308326 | B18: Aparelho de apoio metálico elastomérico multidirecional com capacidade de 7.500 kN - fornecimento e instalação | C18: un | D18: 43085.63
A19: 308321 | B19: Aparelho de apoio metálico elastomérico multidirecional com capacidade de 700 kN - fornecimento e instalação | C19: un | D19: 5304.87
A20: 308315 | B20: Aparelho de apoio metálico elastomérico unidirecional com capacidade de 1.500 kN - fornecimento e instalação | C20: un | D20: 10849.26
A21: 308320 | B21: Aparelho de apoio metálico elastomérico unidirecional com capacidade de 10.000 kN - fornecimento e instalação | C21: un | D21: 63386.84
A22: 308316 | B22: Aparelho de apoio metálico elastomérico unidirecional com capacidade de 2.500 kN - fornecimento e instalação | C22: un | D22: 14871.89
A23: 308317 | B23: Aparelho de apoio metálico elastomérico unidirecional com capacidade de 4.000 kN - fornecimento e instalação | C23: un | D23: 26586.97
A24: 308318 | B24: Aparelho de apoio metálico elastomérico unidirecional com capacidade de 5.500 kN - fornecimento e instalação | C24: un | D24: 34543.91
A25: 308319 | B25: Aparelho de apoio metálico elastomérico unidirecional com capacidade de 7.500 kN - fornecimento e instalação | C25: un | D25: 47928.43
A26: 308314 | B26: Aparelho de apoio metálico elastomérico unidirecional com capacidade de 700 kN - fornecimento e instalação | C26: un | D26: 6714.61
A27: 308250 | B27: Aparelho de apoio metálico esférico fixo com capacidade de 1.000 kN - fornecimento e instalação | C27: un | D27: 5815.76
A28: 308251 | B28: Aparelho de apoio metálico esférico fixo com capacidade de 1.500 kN - fornecimento e instalação | C28: un | D28: 8640.17
A29: 308268 | B29: Aparelho de apoio metálico esférico fixo com capacidade de 10.000 kN - fornecimento e instalação | C29: un | D29: 128990.84
A30: 308252 | B30: Aparelho de apoio metálico esférico fixo com capacidade de 2.000 kN - fornecimento e instalação | C30: un | D30: 10925.75
A31: 308253 | B31: Aparelho de apoio metálico esférico fixo com capacidade de 2.500 kN - fornecimento e instalação | C31: un | D31: 13776.69
A32: 308254 | B32: Aparelho de apoio metálico esférico fixo com capacidade de 3.000 kN - fornecimento e instalação | C32: un | D32: 15819.88
A33: 308255 | B33: Aparelho de apoio metálico esférico fixo com capacidade de 3.500 kN - fornecimento e instalação | C33: un | D33: 19103.29
A34: 308256 | B34: Aparelho de apoio metálico esférico fixo com capacidade de 4.000 kN - fornecimento e instalação | C34: un | D34: 22515
A35: 308257 | B35: Aparelho de apoio metálico esférico fixo com capacidade de 4.500 kN - fornecimento e instalação | C35: un | D35: 57079.05
A36: 308258 | B36: Aparelho de apoio metálico esférico fixo com capacidade de 5.000 kN - fornecimento e instalação | C36: un | D36: 63459.08
A37: 308259 | B37: Aparelho de apoio metálico esférico fixo com capacidade de 5.500 kN - fornecimento e instalação | C37: un | D37: 68818
A38: 308260 | B38: Aparelho de apoio metálico esférico fixo com capacidade de 6.000 kN - fornecimento e instalação | C38: un | D38: 74229.18
A39: 308261 | B39: Aparelho de apoio metálico esférico fixo com capacidade de 6.500 kN - fornecimento e instalação | C39: un | D39: 84347.52
A40: 308262 | B40: Aparelho de apoio metálico esférico fixo com capacidade de 7.000 kN - fornecimento e instalação | C40: un | D40: 87040.88
A41: 308263 | B41: Aparelho de apoio metálico esférico fixo com capacidade de 7.500 kN - fornecimento e instalação | C41: un | D41: 97244.25
A42: 308264 | B42: Aparelho de apoio metálico esférico fixo com capacidade de 8.000 kN - fornecimento e instalação | C42: un | D42: 103973.56
A43: 308265 | B43: Aparelho de apoio metálico esférico fixo com capacidade de 8.500 kN - fornecimento e instalação | C43: un | D43: 106500.8
A44: 308266 | B44: Aparelho de apoio metálico esférico fixo com capacidade de 9.000 kN - fornecimento e instalação | C44: un | D44: 115087.75
A45: 308267 | B45: Aparelho de apoio metálico esférico fixo com capacidade de 9.500 kN - fornecimento e instalação | C45: un | D45: 121354.07
A46: 308288 | B46: Aparelho de apoio metálico esférico multidirecional com capacidade de 1.000 kN - fornecimento e instalação | C46: un | D46: 12953.52
A47: 308289 | B47: Aparelho de apoio metálico esférico multidirecional com capacidade de 1.500 kN - fornecimento e instalação | C47: un | D47: 18316.87
A48: 308306 | B48: Aparelho de apoio metálico esférico multidirecional com capacidade de 10.000 kN - fornecimento e instalação | C48: un | D48: 121670.98
A49: 308290 | B49: Aparelho de apoio metálico esférico multidirecional com capacidade de 2.000 kN - fornecimento e instalação | C49: un | D49: 24363.54
A50: 308291 | B50: Aparelho de apoio metálico esférico multidirecional com capacidade de 2.500 kN - fornecimento e instalação | C50: un | D50: 29032.5
A51: 308292 | B51: Aparelho de apoio metálico esférico multidirecional com capacidade de 3.000 kN - fornecimento e instalação | C51: un | D51: 34013.2
A52: 308293 | B52: Aparelho de apoio metálico esférico multidirecional com capacidade de 3.500 kN - fornecimento e instalação | C52: un | D52: 38655.71
A53: 308294 | B53: Aparelho de apoio metálico esférico multidirecional com capacidade de 4.000 kN - fornecimento e instalação | C53: un | D53: 44097.84
A54: 308295 | B54: Aparelho de apoio metálico esférico multidirecional com capacidade de 4.500 kN - fornecimento e instalação | C54: un | D54: 51097.55
A55: 308296 | B55: Aparelho de apoio metálico esférico multidirecional com capacidade de 5.000 kN - fornecimento e instalação | C55: un | D55: 56887.74
A56: 308297 | B56: Aparelho de apoio metálico esférico multidirecional com capacidade de 5.500 kN - fornecimento e instalação | C56: un | D56: 61632.77
A57: 308298 | B57: Aparelho de apoio metálico esférico multidirecional com capacidade de 6.000 kN - fornecimento e instalação | C57: un | D57: 70301.21
A58: 308299 | B58: Aparelho de apoio metálico esférico multidirecional com capacidade de 6.500 kN - fornecimento e instalação | C58: un | D58: 75966.25
A59: 308300 | B59: Aparelho de apoio metálico esférico multidirecional com capacidade de 7.000 kN - fornecimento e instalação | C59: un | D59: 81792.89
A60: 308301 | B60: Aparelho de apoio metálico esférico multidirecional com capacidade de 7.500 kN - fornecimento e instalação | C60: un | D60: 88273.75
A61: 308302 | B61: Aparelho de apoio metálico esférico multidirecional com capacidade de 8.000 kN - fornecimento e instalação | C61: un | D61: 94057.61
A62: 308303 | B62: Aparelho de apoio metálico esférico multidirecional com capacidade de 8.500 kN - fornecimento e instalação | C62: un | D62: 103493.96
A63: 308304 | B63: Aparelho de apoio metálico esférico multidirecional com capacidade de 9.000 kN - fornecimento e instalação | C63: un | D63: 109059.04
A64: 308305 | B64: Aparelho de apoio metálico esférico multidirecional com capacidade de 9.500 kN - fornecimento e instalação | C64: un | D64: 115856.39
A65: 308269 | B65: Aparelho de apoio metálico esférico unidirecional com capacidade de 1.000 kN - fornecimento e instalação | C65: un | D65: 10122.9
A66: 308270 | B66: Aparelho de apoio metálico esférico unidirecional com capacidade de 1.500 kN - fornecimento e instalação | C66: un | D66: 14763.41
A67: 308287 | B67: Aparelho de apoio metálico esférico unidirecional com capacidade de 10.000 kN - fornecimento e instalação | C67: un | D67: 135527.16
A68: 308271 | B68: Aparelho de apoio metálico esférico unidirecional com capacidade de 2.000 kN - fornecimento e instalação | C68: un | D68: 18015.92
A69: 308272 | B69: Aparelho de apoio metálico esférico unidirecional com capacidade de 2.500 kN - fornecimento e instalação | C69: un | D69: 21238.85
A70: 308273 | B70: Aparelho de apoio metálico esférico unidirecional com capacidade de 3.000 kN - fornecimento e instalação | C70: un | D70: 26071.52
A71: 308274 | B71: Aparelho de apoio metálico esférico unidirecional com capacidade de 3.500 kN - fornecimento e instalação | C71: un | D71: 29997.3
A72: 308275 | B72: Aparelho de apoio metálico esférico unidirecional com capacidade de 4.000 kN - fornecimento e instalação | C72: un | D72: 39082.16
A73: 308276 | B73: Aparelho de apoio metálico esférico unidirecional com capacidade de 4.500 kN - fornecimento e instalação | C73: un | D73: 59822.65
A74: 308277 | B74: Aparelho de apoio metálico esférico unidirecional com capacidade de 5.000 kN - fornecimento e instalação | C74: un | D74: 66238.1
A75: 308278 | B75: Aparelho de apoio metálico esférico unidirecional com capacidade de 5.500 kN - fornecimento e instalação | C75: un | D75: 71979.48
A76: 308279 | B76: Aparelho de apoio metálico esférico unidirecional com capacidade de 6.000 kN - fornecimento e instalação | C76: un | D76: 75700.76
A77: 308280 | B77: Aparelho de apoio metálico esférico unidirecional com capacidade de 6.500 kN - fornecimento e instalação | C77: un | D77: 86484.21
A78: 308281 | B78: Aparelho de apoio metálico esférico unidirecional com capacidade de 7.000 kN - fornecimento e instalação | C78: un | D78: 92899.7
A79: 308282 | B79: Aparelho de apoio metálico esférico unidirecional com capacidade de 7.500 kN - fornecimento e instalação | C79: un | D79: 99906.32
A80: 308283 | B80: Aparelho de apoio metálico esférico unidirecional com capacidade de 8.000 kN - fornecimento e instalação | C80: un | D80: 106137.64
A81: 308284 | B81: Aparelho de apoio metálico esférico unidirecional com capacidade de 8.500 kN - fornecimento e instalação | C81: un | D81: 114794.62
A82: 308285 | B82: Aparelho de apoio metálico esférico unidirecional com capacidade de 9.000 kN - fornecimento e instalação | C82: un | D82: 121889.23
A83: 308286 | B83: Aparelho de apoio metálico esférico unidirecional com capacidade de 9.500 kN - fornecimento e instalação | C83: un | D83: 129026.17
A84: 307733 | B84: Junta de dilatação em elastômero e perfil VV - L = 20 mm e H = 40 mm - fornecimento e instalação | C84: m | D84: 461.47
A85: 307734 | B85: Junta de dilatação em elastômero e perfil VV - L = 25 mm e H = 50 mm - fornecimento e instalação | C85: m | D85: 596.6
A86: 307735 | B86: Junta de dilatação em elastômero e perfil VV - L = 35 mm e H = 60 mm - fornecimento e instalação | C86: m | D86: 1004.21
A87: 307736 | B87: Junta de dilatação em elastômero e perfil VV - L = 40 mm e H = 70 mm - fornecimento e instalação | C87: m | D87: 1365.69
A88: 307737 | B88: Junta de dilatação em elastômero e perfil VV - L = 50 mm e H = 80 mm - fornecimento e instalação | C88: m | D88: 1665.73
A89: 307730 | B89: Junta de dilatação em perfil extrudado de borracha vulcanizada | C89: m | D89: 0
A90: 307084 | B90: Lábios poliméricos em junta de pavimento de concreto - L = 20 mm e H = 30 mm - confecção e assentamento | C90: m | D90: 31.16
A91: 407818 | B91: Armação em aço CA-25 - fornecimento, preparo e colocação | C91: kg | D91: 12.11
A92: 407819 | B92: Armação em aço CA-50 - fornecimento, preparo e colocação | C92: kg | D92: 12.02
A93: 407820 | B93: Armação em aço CA-60 - fornecimento, preparo e colocação | C93: kg | D93: 13.02
A94: 407740 | B94: Chumbador tipo espera em aço CA-25 para fixação de estrutura metálica em concreto - fornecimento e instalação | C94: kg | D94: 14.95
A95: 408037 | B95: Luva de emenda com rosca cônica para aço CA-50 - D = 12,5 mm - fornecimento e instalação | C95: un | D95: 22.77
A96: 408038 | B96: Luva de emenda com rosca cônica para aço CA-50 - D = 16 mm - fornecimento e instalação | C96: un | D96: 33.03
A97: 408039 | B97: Luva de emenda com rosca cônica para aço CA-50 - D = 20 mm - fornecimento e instalação | C97: un | D97: 43.41
A98: 408041 | B98: Luva de emenda com rosca cônica para aço CA-50 - D = 25 mm - fornecimento e instalação | C98: un | D98: 60.69
A99: 408042 | B99: Luva de emenda com rosca cônica para aço CA-50 - D = 32 mm - fornecimento e instalação | C99: un | D99: 90.82
A100: 408031 | B100: Luva de emenda prensada para aço CA-50 - D = 12,5 mm - fornecimento e instalação | C100: un | D100: 21.47
A101: 408032 | B101: Luva de emenda prensada para aço CA-50 - D = 16 mm - fornecimento e instalação | C101: un | D101: 29.03
A102: 408033 | B102: Luva de emenda prensada para aço CA-50 - D = 20 mm - fornecimento e instalação | C102: un | D102: 40.68
A103: 408035 | B103: Luva de emenda prensada para aço CA-50 - D = 25 mm - fornecimento e instalação | C103: un | D103: 74.32
A104: 408036 | B104: Luva de emenda prensada para aço CA-50 - D = 32 mm - fornecimento e instalação | C104: un | D104: 143.3
A105: 408067 | B105: Tela de aço eletrossoldada - fornecimento, preparo e colocação | C105: kg | D105: 11.93
A106: 407743 | B106: Treliça nervurada três barras longitudinais interligadas por duas diagonais sinusoidal - fornecimento e instalação | C106: kg | D106: 13.04
A107: 607137 | B107: Arco metálico galvanizado tipo MP 152S - arco alto - vão = 10,08 m e altura = 6,12 m - aterro rodoviário mínimo = 0,90 m e máximo = 5,00 m - areia e brita comerciais | C107: m | D107: 60458.69
A108: 606785 | B108: Arco metálico galvanizado tipo MP 152S - arco alto - vão = 10,08 m e altura = 6,12 m - aterro rodoviário mínimo = 0,90 m e máximo = 5,00 m - areia extraída e brita produzida | C108: m | D108: 59790.81
A109: 607139 | B109: Arco metálico galvanizado tipo MP 152S - arco alto - vão = 10,31 m e altura = 6,17 m - aterro rodoviário mínimo = 0,90 m e máximo = 4,90 m - areia e brita comerciais | C109: m | D109: 61267.87
A110: 606787 | B110: Arco metálico galvanizado tipo MP 152S - arco alto - vão = 10,31 m e altura = 6,17 m - aterro rodoviário mínimo = 0,90 m e máximo = 4,90 m - areia extraída e brita produzida | C110: m | D110: 60281.16
A111: 607140 | B111: Arco metálico galvanizado tipo MP 152S - arco alto - vão = 10,36 m e altura = 5,38 m - aterro rodoviário mínimo = 1,20 m e máximo = 3,60 m - areia e brita comerciais | C111: m | D111: 55975.34
A112: 606788 | B112: Arco metálico galvanizado tipo MP 152S - arco alto - vão = 10,36 m e altura = 5,38 m - aterro rodoviário mínimo = 1,20 m e máximo = 3,60 m - areia extraída e brita produzida | C112: m | D112: 55690.23
A113: 607141 | B113: Arco metálico galvanizado tipo MP 152S - arco alto - vão = 10,54 m e altura = 6,05 m - aterro rodoviário mínimo = 1,20 m e máximo = 4,20 m - areia e brita comerciais | C113: m | D113: 62344.46
A114: 606789 | B114: Arco metálico galvanizado tipo MP 152S - arco alto - vão = 10,54 m e altura = 6,05 m - aterro rodoviário mínimo = 1,20 m e máximo = 4,20 m - areia extraída e brita produzida | C114: m | D114: 61650.36
A115: 607144 | B115: Arco metálico galvanizado tipo MP 152S - arco alto - vão = 10,57 m e altura = 5,41 m - aterro rodoviário mínimo = 1,20 m e máximo = 4,10 m - areia e brita comerciais | C115: m | D115: 73088.56
A116: 606792 | B116: Arco metálico galvanizado tipo MP 152S - arco alto - vão = 10,57 m e altura = 5,41 m - aterro rodoviário mínimo = 1,20 m e máximo = 4,10 m - areia extraída e brita produzida | C116: m | D116: 72454.57
A117: 607142 | B117: Arco metálico galvanizado tipo MP 152S - arco alto - vão = 10,74 m e altura = 6,48 m - aterro rodoviário mínimo = 1,20 m e máximo = 4,70 m - areia e brita comerciais | C117: m | D117: 65395.47
A118: 606790 | B118: Arco metálico galvanizado tipo MP 152S - arco alto - vão = 10,74 m e altura = 6,48 m - aterro rodoviário mínimo = 1,20 m e máximo = 4,70 m - areia extraída e brita produzida | C118: m | D118: 64648.9
A119: 607145 | B119: Arco metálico galvanizado tipo MP 152S - arco alto - vão = 10,77 m e altura = 6,10 m - aterro rodoviário mínimo = 1,20 m e máximo = 4,70 m - areia e brita comerciais | C119: m | D119: 80671.68
A120: 606793 | B120: Arco metálico galvanizado tipo MP 152S - arco alto - vão = 10,77 m e altura = 6,10 m - aterro rodoviário mínimo = 1,20 m e máximo = 4,70 m - areia extraída e brita produzida | C120: m | D120: 79962.62
A121: 607146 | B121: Arco metálico galvanizado tipo MP 152S - arco alto - vão = 10,97 m e altura = 6,53 m - aterro rodoviário mínimo = 1,20 m e máximo = 4,70 m - areia e brita comerciais | C121: m | D121: 84150.7
A122: 606794 | B122: Arco metálico galvanizado tipo MP 152S - arco alto - vão = 10,97 m e altura = 6,53 m - aterro rodoviário mínimo = 1,20 m e máximo = 4,70 m - areia extraída e brita produzida | C122: m | D122: 83381.12
A123: 607143 | B123: Arco metálico galvanizado tipo MP 152S - arco alto - vão = 11,35 m e altura = 7,12 m - aterro rodoviário mínimo = 1,20 m e máximo = 4,70 m - areia e brita comerciais | C123: m | D123: 70639.88
A124: 606791 | B124: Arco metálico galvanizado tipo MP 152S - arco alto - vão = 11,35 m e altura = 7,12 m - aterro rodoviário mínimo = 1,20 m e máximo = 4,70 m - areia extraída e brita produzida | C124: m | D124: 69780.36
A125: 607147 | B125: Arco metálico galvanizado tipo MP 152S - arco alto - vão = 11,58 m e altura = 7,16 m - aterro rodoviário mínimo = 1,20 m e máximo = 6,40 m - areia e brita comerciais | C125: m | D125: 90780.79
A126: 606795 | B126: Arco metálico galvanizado tipo MP 152S - arco alto - vão = 11,58 m e altura = 7,16 m - aterro rodoviário mínimo = 1,20 m e máximo = 6,40 m - areia extraída e brita produzida | C126: m | D126: 89894
A127: 607112 | B127: Arco metálico galvanizado tipo MP 152S - arco alto - vão = 6,12 m e altura = 2,77 m - aterro rodoviário mínimo = 0,75 m e máximo = 5,40 m - areia e brita comerciais | C127: m | D127: 29507.07
A128: 606760 | B128: Arco metálico galvanizado tipo MP 152S - arco alto - vão = 6,12 m e altura = 2,77 m - aterro rodoviário mínimo = 0,75 m e máximo = 5,40 m - areia extraída e brita produzida | C128: m | D128: 29274.61
A129: 607113 | B129: Arco metálico galvanizado tipo MP 152S - arco alto - vão = 6,30 m e altura = 3,68 m - aterro rodoviário mínimo = 0,75 m e máximo = 7,50 m - areia e brita comerciais | C129: m | D129: 34843.82
A130: 606761 | B130: Arco metálico galvanizado tipo MP 152S - arco alto - vão = 6,30 m e altura = 3,68 m - aterro rodoviário mínimo = 0,75 m e máximo = 7,50 m - areia extraída e brita produzida | C130: m | D130: 34576.61
A131: 606762 | B131: Arco metálico galvanizado tipo MP 152S - arco alto - vão = 6,55 m e altura = 3,56 m - aterro rodoviário mínimo = 0,75 m e máximo = 4,9 m - areia extraída e brita produzida | C131: m | D131: 34567.1
A132: 607114 | B132: Arco metálico galvanizado tipo MP 152S - arco alto - vão = 6,55 m e altura = 3,56 m - aterro rodoviário mínimo = 0,75 m e máximo = 4,90 m - areia e brita comerciais | C132: m | D132: 34839.35
A133: 607116 | B133: Arco metálico galvanizado tipo MP 152S - arco alto - vão = 6,78 m e altura = 3,61 m - aterro rodoviário mínimo = 0,75 m e máximo = 4,80 m - areia e brita comerciais | C133: m | D133: 36412.14
A134: 606764 | B134: Arco metálico galvanizado tipo MP 152S - arco alto - vão = 6,78 m e altura = 3,61 m - aterro rodoviário mínimo = 0,75 m e máximo = 4,80 m - areia extraída e brita produzida | C134: m | D134: 36128.42
A135: 607115 | B135: Arco metálico galvanizado tipo MP 152S - arco alto - vão = 6,96 m e altura = 4,42 m - aterro rodoviário mínimo = 0,75 m e máximo = 8,10 m - areia e brita comerciais | C135: m | D135: 41343.58
A136: 606763 | B136: Arco metálico galvanizado tipo MP 152S - arco alto - vão = 6,96 m e altura = 4,42 m - aterro rodoviário mínimo = 0,75 m e máximo = 8,10 m - areia extraída e brita produzida | C136: m | D136: 41002.24
A137: 607117 | B137: Arco metálico galvanizado tipo MP 152S - arco alto - vão = 6,99 m e altura = 4,27 m - aterro rodoviário mínimo = 0,75 m e máximo = 5,70 m - areia e brita comerciais | C137: m | D137: 41329.14
A138: 606765 | B138: Arco metálico galvanizado tipo MP 152S - arco alto - vão = 6,99 m e altura = 4,27 m - aterro rodoviário mínimo = 0,75 m e máximo = 5,70 m - areia extraída e brita produzida | C138: m | D138: 40997.19
A139: 607118 | B139: Arco metálico galvanizado tipo MP 152S - arco alto - vão = 7,01 m e altura = 3,63 m - aterro rodoviário mínimo = 0,75 m e máximo = 4,60 m - areia e brita comerciais | C139: m | D139: 37051.95
A140: 606766 | B140: Arco metálico galvanizado tipo MP 152S - arco alto - vão = 7,01 m e altura = 3,63 m - aterro rodoviário mínimo = 0,75 m e máximo = 4,60 m - areia extraída e brita produzida | C140: m | D140: 36759.05
A141: 607120 | B141: Arco metálico galvanizado tipo MP 152S - arco alto - vão = 7,24 m e altura = 3,68 m - aterro rodoviário mínimo = 0,90 m e máximo = 4,4 m - areia e brita comerciais | C141: m | D141: 37731.03
A142: 606768 | B142: Arco metálico galvanizado tipo MP 152S - arco alto - vão = 7,24 m e altura = 3,68 m - aterro rodoviário mínimo = 0,90 m e máximo = 4,40 m - areia extraída e brita produzida | C142: m | D142: 37422.59
A143: 607119 | B143: Arco metálico galvanizado tipo MP 152S - arco alto - vão = 7,42 m e altura = 4,52 m - aterro rodoviário mínimo = 0,90 m e máximo = 6,40 m - areia e brita comerciais | C143: m | D143: 43359.41
A144: 606767 | B144: Arco metálico galvanizado tipo MP 152S - arco alto - vão = 7,42 m e altura = 4,52 m - aterro rodoviário mínimo = 0,90 m e máximo = 6,40 m - areia extraída e brita produzida | C144: m | D144: 42983.26
A145: 607121 | B145: Arco metálico galvanizado tipo MP 152S - arco alto - vão = 7,47 m e altura = 4,19 m - aterro rodoviário mínimo = 0,90 m e máximo = 4,30 m - areia e brita comerciais | C145: m | D145: 40856.16
A146: 606769 | B146: Arco metálico galvanizado tipo MP 152S - arco alto - vão = 7,47 m e altura = 4,19 m - aterro rodoviário mínimo = 0,90 m e máximo = 4,30 m - areia extraída e brita produzida | C146: m | D146: 40504.51
A147: 607123 | B147: Arco metálico galvanizado tipo MP 152S - arco alto - vão = 7,67 m e altura = 3,99 m - aterro rodoviário mínimo = 0,90 m e máximo = 4,10 m - areia e brita comerciais | C147: m | D147: 40311.19
A148: 606771 | B148: Arco metálico galvanizado tipo MP 152S - arco alto - vão = 7,67 m e altura = 3,99 m - aterro rodoviário mínimo = 0,90 m e máximo = 4,10 m - areia extraída e brita produzida | C148: m | D148: 39960.84
A149: 607122 | B149: Arco metálico galvanizado tipo MP 152S - arco alto - vão = 7,85 m e altura = 4,60 m - aterro rodoviário mínimo = 0,90 m e máximo = 6,00 m - areia e brita comerciais | C149: m | D149: 44709.22
A150: 606770 | B150: Arco metálico galvanizado tipo MP 152S - arco alto - vão = 7,85 m e altura = 4,60 m - aterro rodoviário mínimo = 0,90 m e máximo = 6,00 m - areia extraída e brita produzida | C150: m | D150: 44305.18
A151: 607125 | B151: Arco metálico galvanizado tipo MP 152S - arco alto - vão = 7,90 m e altura = 4,04 m - aterro rodoviário mínimo = 0,90 m e máximo = 4,00 m - areia e brita comerciais | C151: m | D151: 41669.93
A152: 606773 | B152: Arco metálico galvanizado tipo MP 152S - arco alto - vão = 7,90 m e altura = 4,04 m - aterro rodoviário mínimo = 0,90 m e máximo = 4,00 m - areia extraída e brita produzida | C152: m | D152: 41301.31
A153: 607124 | B153: Arco metálico galvanizado tipo MP 152S - arco alto - vão = 8,08 m e altura = 4,65 m - aterro rodoviário mínimo = 0,90 m e máximo = 5,80 m - areia e brita comerciais | C153: m | D153: 45379.71
A154: 606772 | B154: Arco metálico galvanizado tipo MP 152S - arco alto - vão = 8,08 m e altura = 4,65 m - aterro rodoviário mínimo = 0,90 m e máximo = 5,80 m - areia extraída e brita produzida | C154: m | D154: 44962.74
A155: 607126 | B155: Arco metálico galvanizado tipo MP 152S - arco alto - vão = 8,31 m e altura = 4,70 m - aterro rodoviário mínimo = 0,90 m e máximo = 5,60 m - areia e brita comerciais | C155: m | D155: 46640.79
A156: 606774 | B156: Arco metálico galvanizado tipo MP 152S - arco alto - vão = 8,31 m e altura = 4,70 m - aterro rodoviário mínimo = 0,90 m e máximo = 5,60 m - areia extraída e brita produzida | C156: m | D156: 46203.73
A157: 607127 | B157: Arco metálico galvanizado tipo MP 152S - arco alto - vão = 8,36 m e altura = 4,11 m - aterro rodoviário mínimo = 0,90 m e máximo = 3,70 m - areia e brita comerciais | C157: m | D157: 42956.53
A158: 606775 | B158: Arco metálico galvanizado tipo MP 152S - arco alto - vão = 8,36 m e altura = 4,11 m - aterro rodoviário mínimo = 0,90 m e máximo = 3,70 m - areia extraída e brita produzida | C158: m | D158: 42565.77
A159: 607129 | B159: Arco metálico galvanizado tipo MP 152S - arco alto - vão = 8,59 m e altura = 4,39 m - aterro rodoviário mínimo = 0,90 m e máximo = 3,60 m - areia e brita comerciais | C159: m | D159: 44953.58
A160: 606777 | B160: Arco metálico galvanizado tipo MP 152S - arco alto - vão = 8,59 m e altura = 4,39 m - aterro rodoviário mínimo = 0,90 m e máximo = 3,60 m - areia extraída e brita produzida | C160: m | D160: 44525.62
A161: 607128 | B161: Arco metálico galvanizado tipo MP 152S - arco alto - vão = 8,97 m e altura = 5,00 m - aterro rodoviário mínimo = 0,90 m e máximo = 5,80 m - areia e brita comerciais | C161: m | D161: 49422.41
A162: 606776 | B162: Arco metálico galvanizado tipo MP 152S - arco alto - vão = 8,97 m e altura = 5,00 m - aterro rodoviário mínimo = 0,90 m e máximo = 5,80 m - areia extraída e brita produzida | C162: m | D162: 48922.38
A163: 607130 | B163: Arco metálico galvanizado tipo MP 152S - arco alto - vão = 9,17 m e altura = 5,49 m - aterro rodoviário mínimo = 0,90 m e máximo = 5,60 m - areia e brita comerciais | C163: m | D163: 52671.24
A164: 606778 | B164: Arco metálico galvanizado tipo MP 152S - arco alto - vão = 9,17 m e altura = 5,49 m - aterro rodoviário mínimo = 0,90 m e máximo = 5,60 m - areia extraída e brita produzida | C164: m | D164: 52121.62
A165: 607131 | B165: Arco metálico galvanizado tipo MP 152S - arco alto - vão = 9,22 m e altura = 4,70 m - aterro rodoviário mínimo = 0,90 m e máximo = 4,10 m - areia e brita comerciais | C165: m | D165: 49425.19
A166: 606779 | B166: Arco metálico galvanizado tipo MP 152S - arco alto - vão = 9,22 m e altura = 4,70 m - aterro rodoviário mínimo = 0,90 m e máximo = 4,10 m - areia extraída e brita produzida | C166: m | D166: 48938.96
A167: 607133 | B167: Arco metálico galvanizado tipo MP 152S - arco alto - vão = 9,45 m e altura = 4,75 m - aterro rodoviário mínimo = 0,90 m e máximo = 4,00 m - areia e brita comerciais | C167: m | D167: 50171.7
A168: 606781 | B168: Arco metálico galvanizado tipo MP 152S - arco alto - vão = 9,45 m e altura = 4,75 m - aterro rodoviário mínimo = 0,90 m e máximo = 4,00 m - areia extraída e brita produzida | C168: m | D168: 49670.85
A169: 607132 | B169: Arco metálico galvanizado tipo MP 152S - arco alto - vão = 9,63 m e altura = 5,59 m - aterro rodoviário mínimo = 0,90 m e máximo = 5,30 m - areia e brita comerciais | C169: m | D169: 54705.93
A170: 606780 | B170: Arco metálico galvanizado tipo MP 152S - arco alto - vão = 9,63 m e altura = 5,59 m - aterro rodoviário mínimo = 0,90 m e máximo = 5,30 m - areia extraída e brita produzida | C170: m | D170: 54117.78
A171: 607134 | B171: Arco metálico galvanizado tipo MP 152S - arco alto - vão = 9,65 m e altura = 5,41 m - aterro rodoviário mínimo = 0,90 m e máximo = 4,70 m - areia e brita comerciais | C171: m | D171: 54163.92
A172: 606782 | B172: Arco metálico galvanizado tipo MP 152S - arco alto - vão = 9,65 m e altura = 5,41 m - aterro rodoviário mínimo = 0,90 m e máximo = 4,70 m - areia extraída e brita produzida | C172: m | D172: 53589.22
A173: 607136 | B173: Arco metálico galvanizado tipo MP 152S - arco alto - vão = 9,68 m e altura = 5,23 m - aterro rodoviário mínimo = 0,90 m e máximo = 3,90 m - areia e brita comerciais | C173: m | D173: 53440.83
A174: 606784 | B174: Arco metálico galvanizado tipo MP 152S - arco alto - vão = 9,68 m e altura = 5,23 m - aterro rodoviário mínimo = 0,90 m e máximo = 3,90 m - areia extraída e brita produzida | C174: m | D174: 52884.49
A175: 607135 | B175: Arco metálico galvanizado tipo MP 152S - arco alto - vão = 9,86 m e altura = 6,07 m - aterro rodoviário mínimo = 0,90 m e máximo = 5,20 m - areia e brita comerciais | C175: m | D175: 59597.52
A176: 606783 | B176: Arco metálico galvanizado tipo MP 152S - arco alto - vão = 9,86 m e altura = 6,07 m - aterro rodoviário mínimo = 0,90 m e máximo = 5,20 m - areia extraída e brita produzida | C176: m | D176: 58952.57
A177: 607138 | B177: Arco metálico galvanizado tipo MP 152S - arco alto - vão = 9,91 m e altura = 5,28 m - aterro rodoviário mínimo = 0,90 m e máximo = 3,80 m - areia e brita comerciais | C177: m | D177: 54358.8
A178: 606786 | B178: Arco metálico galvanizado tipo MP 152S - arco alto - vão = 9,91 m e altura = 5,28 m - aterro rodoviário mínimo = 0,90 m e máximo = 3,80 m - areia extraída e brita produzida | C178: m | D178: 53766.14
A179: 606842 | B179: Arco metálico galvanizado tipo MP 152S - ovoide - vão = 7,21 m e altura = 7,82 m - aterro rodoviário mínimo = 0,75 m e máximo = 6,70 m - areia e brita comerciais | C179: m | D179: 67524.55
A180: 606832 | B180: Arco metálico galvanizado tipo MP 152S - ovoide - vão = 7,21 m e altura = 7,82 m - aterro rodoviário mínimo = 0,75 m e máximo = 6,70 m - areia extraída e brita produzida | C180: m | D180: 67209.77
A181: 606843 | B181: Arco metálico galvanizado tipo MP 152S - ovoide - vão = 7,31 m e altura = 7,87 m - aterro rodoviário mínimo = 0,90 m e máximo = 6,80 m - areia e brita comerciais | C181: m | D181: 70163.39
A182: 606833 | B182: Arco metálico galvanizado tipo MP 152S - ovoide - vão = 7,31 m e altura = 7,87 m - aterro rodoviário mínimo = 0,90 m e máximo = 6,80 m - areia extraída e brita produzida | C182: m | D182: 69831.82
A183: 606845 | B183: Arco metálico galvanizado tipo MP 152S - ovoide - vão = 7,57 m e altura = 8,44 m - aterro rodoviário mínimo = 0,90 m e máximo = 5,60 m - areia e brita comerciais | C183: m | D183: 72750.81
A184: 606835 | B184: Arco metálico galvanizado tipo MP 152S - ovoide - vão = 7,57 m e altura = 8,44 m - aterro rodoviário mínimo = 0,90 m e máximo = 5,60 m - areia extraída e brita produzida | C184: m | D184: 72421.02
A185: 606844 | B185: Arco metálico galvanizado tipo MP 152S - ovoide - vão = 7,77 m e altura = 7,90 m - aterro rodoviário mínimo = 0,90 m e máximo = 6,80 m - areia e brita comerciais | C185: m | D185: 71742.92
A186: 606834 | B186: Arco metálico galvanizado tipo MP 152S - ovoide - vão = 7,77 m e altura = 7,90 m - aterro rodoviário mínimo = 0,90 m e máximo = 6,80 m - areia extraída e brita produzida | C186: m | D186: 71403.31
A187: 606847 | B187: Arco metálico galvanizado tipo MP 152S - ovoide - vão = 8,13 m e altura = 8,01 m - aterro rodoviário mínimo = 0,90 m e máximo = 3,50 m - areia e brita comerciais | C187: m | D187: 76089.41
A188: 606837 | B188: Arco metálico galvanizado tipo MP 152S - ovoide - vão = 8,13 m e altura = 8,01 m - aterro rodoviário mínimo = 0,90 m e máximo = 3,50 m - areia extraída e brita produzida | C188: m | D188: 75716.99
A189: 606846 | B189: Arco metálico galvanizado tipo MP 152S - ovoide - vão = 8,36 m e altura = 8,23 m - aterro rodoviário mínimo = 0,90 m e máximo = 4,30 m - areia e brita comerciais | C189: m | D189: 77773.08
A190: 606836 | B190: Arco metálico galvanizado tipo MP 152S - ovoide - vão = 8,36 m e altura = 8,23 m - aterro rodoviário mínimo = 0,90 m e máximo = 4,30 m - areia extraída e brita produzida | C190: m | D190: 77396.87
A191: 606848 | B191: Arco metálico galvanizado tipo MP 152S - ovoide - vão = 8,56 m e altura = 8,48 m - aterro rodoviário mínimo = 0,90 m e máximo = 5,30 m - areia e brita comerciais | C191: m | D191: 77115.01
A192: 606838 | B192: Arco metálico galvanizado tipo MP 152S - ovoide - vão = 8,56 m e altura = 8,48 m - aterro rodoviário mínimo = 0,90 m e máximo = 5,30 m - areia extraída e brita produzida | C192: m | D192: 76723.25
A193: 606849 | B193: Arco metálico galvanizado tipo MP 152S - ovoide - vão = 8,71 m e altura = 9,32 m - aterro rodoviário mínimo = 0,90 m e máximo = 6,00 m - areia e brita comerciais | C193: m | D193: 82551.63
A194: 606839 | B194: Arco metálico galvanizado tipo MP 152S - ovoide - vão = 8,71 m e altura = 9,32 m - aterro rodoviário mínimo = 0,90 m e máximo = 6,00 m - areia extraída e brita produzida | C194: m | D194: 82170.46
A195: 606850 | B195: Arco metálico galvanizado tipo MP 152S - ovoide - vão = 9,15 m e altura = 9,04 m - aterro rodoviário mínimo = 0,90 m e máximo = 4,70 m - areia e brita comerciais | C195: m | D195: 83727.03
A196: 606840 | B196: Arco metálico galvanizado tipo MP 152S - ovoide - vão = 9,15 m e altura = 9,04 m - aterro rodoviário mínimo = 0,90 m e máximo = 4,70 m - areia extraída e brita produzida | C196: m | D196: 83308.98
A197: 606851 | B197: Arco metálico galvanizado tipo MP 152S - ovoide - vão = 9,15 m e altura = 9,50 m - aterro rodoviário mínimo = 0,90 m e máximo = 5,70 m - areia e brita comerciais | C197: m | D197: 84465.67
A198: 606841 | B198: Arco metálico galvanizado tipo MP 152S - ovoide - vão = 9,15 m e altura = 9,50 m - aterro rodoviário mínimo = 0,90 m e máximo = 5,70 m - areia extraída e brita produzida | C198: m | D198: 84066.53
A199: 605604 | B199: Argamassa de solo-cimento com 10% de cimento e material de jazida - preparo e injeção em tunnel liner | C199: m³ | D199: 312.57
A200: 605695 | B200: Bueiro metálico com chapas múltiplas MP 100 com revestimento em epóxi - D = 0,60 m - brita comercial | C200: m | D200: 1607.02
... 6173 more rows

Sheet INSUMOS SINAPI (hidden)
A1: PRECOS DE INSUMOS
A3: MES DE COLETA: 09/2023
A4: LOCALIDADE: 1600 - SALVADOR
A5: ENCARGOS SOCIAIS (%) HORISTA 115,15 MENSALISTA 71,22
A7: CODIGO | B7: DESCRICAO DO INSUMO | C7: UNIDADE | D7: ORIGEM DO PRECO | E7: PRECO MEDIANO R$
A8: 38605 | B8: ABERTURA PARA ENCAIXE DE CUBA OU LAVATORIO EM BANCADA DE MARMORE/ GRANITO OU OUTRO TIPO DE PEDRA NATURAL | C8: UN | D8: CR | E8: 103,42
A9: 11270 | B9: ABRACADEIRA DE LATAO PARA FIXACAO DE CABO PARA-RAIO, DIMENSOES 32 X 24 X 24 MM | C9: UN | D9: CR | E9: 3,00
A10: 412 | B10: ABRACADEIRA DE NYLON PARA AMARRACAO DE CABOS, COMPRIMENTO DE *230* X *7,6* MM | C10: UN | D10: CR | E10: 0,97
A11: 414 | B11: ABRACADEIRA DE NYLON PARA AMARRACAO DE CABOS, COMPRIMENTO DE 100 X 2,5 MM | C11: UN | D11: CR | E11: 0,06
A12: 410 | B12: ABRACADEIRA DE NYLON PARA AMARRACAO DE CABOS, COMPRIMENTO DE 150 X *3,6* MM | C12: UN | D12: CR | E12: 0,15
A13: 411 | B13: ABRACADEIRA DE NYLON PARA AMARRACAO DE CABOS, COMPRIMENTO DE 200 X *4,6* MM | C13: UN | D13: C | E13: 0,19
A14: 408 | B14: ABRACADEIRA DE NYLON PARA AMARRACAO DE CABOS, COMPRIMENTO DE 390 X *4,6* MM | C14: UN | D14: CR | E14: 0,94
A15: 39131 | B15: ABRACADEIRA EM ACO PARA AMARRACAO DE ELETRODUTOS, TIPO D, COM 1 1/2" E CUNHA DE FIXACAO | C15: UN | D15: CR | E15: 3,82
A16: 394 | B16: ABRACADEIRA EM ACO PARA AMARRACAO DE ELETRODUTOS, TIPO D, COM 1 1/2" E PARAFUSO DE FIXACAO | C16: UN | D16: CR | E16: 3,87
A17: 39130 | B17: ABRACADEIRA EM ACO PARA AMARRACAO DE ELETRODUTOS, TIPO D, COM 1 1/4" E CUNHA DE FIXACAO | C17: UN | D17: CR | E17: 3,49
A18: 395 | B18: ABRACADEIRA EM ACO PARA AMARRACAO DE ELETRODUTOS, TIPO D, COM 1 1/4" E PARAFUSO DE FIXACAO | C18: UN | D18: CR | E18: 3,73
A19: 39127 | B19: ABRACADEIRA EM ACO PARA AMARRACAO DE ELETRODUTOS, TIPO D, COM 1/2" E CUNHA DE FIXACAO | C19: UN | D19: CR | E19: 1,84
A20: 392 | B20: ABRACADEIRA EM ACO PARA AMARRACAO DE ELETRODUTOS, TIPO D, COM 1/2" E PARAFUSO DE FIXACAO | C20: UN | D20: CR | E20: 1,89
A21: 39129 | B21: ABRACADEIRA EM ACO PARA AMARRACAO DE ELETRODUTOS, TIPO D, COM 1" E CUNHA DE FIXACAO | C21: UN | D21: CR | E21: 2,15
A22: 393 | B22: ABRACADEIRA EM ACO PARA AMARRACAO DE ELETRODUTOS, TIPO D, COM 1" E PARAFUSO DE FIXACAO | C22: UN | D22: C | E22: 2,25
A23: 39133 | B23: ABRACADEIRA EM ACO PARA AMARRACAO DE ELETRODUTOS, TIPO D, COM 2 1/2" E CUNHA DE FIXACAO | C23: UN | D23: CR | E23: 5,02
A24: 397 | B24: ABRACADEIRA EM ACO PARA AMARRACAO DE ELETRODUTOS, TIPO D, COM 2 1/2" E PARAFUSO DE FIXACAO | C24: UN | D24: CR | E24: 5,55
A25: 39132 | B25: ABRACADEIRA EM ACO PARA AMARRACAO DE ELETRODUTOS, TIPO D, COM 2" E CUNHA DE FIXACAO | C25: UN | D25: CR | E25: 4,02
A26: 396 | B26: ABRACADEIRA EM ACO PARA AMARRACAO DE ELETRODUTOS, TIPO D, COM 2" E PARAFUSO DE FIXACAO | C26: UN | D26: CR | E26: 4,30
A27: 39135 | B27: ABRACADEIRA EM ACO PARA AMARRACAO DE ELETRODUTOS, TIPO D, COM 3 1/2" E CUNHA DE FIXACAO | C27: UN | D27: CR | E27: 8,04
A28: 39128 | B28: ABRACADEIRA EM ACO PARA AMARRACAO DE ELETRODUTOS, TIPO D, COM 3/4" E CUNHA DE FIXACAO | C28: UN | D28: CR | E28: 2,01
A29: 400 | B29: ABRACADEIRA EM ACO PARA AMARRACAO DE ELETRODUTOS, TIPO D, COM 3/4" E PARAFUSO DE FIXACAO | C29: UN | D29: CR | E29: 1,96
A30: 39125 | B30: ABRACADEIRA EM ACO PARA AMARRACAO DE ELETRODUTOS, TIPO D, COM 3/8" E PARAFUSO DE FIXACAO | C30: UN | D30: CR | E30: 2,01
A31: 39134 | B31: ABRACADEIRA EM ACO PARA AMARRACAO DE ELETRODUTOS, TIPO D, COM 3" E CUNHA DE FIXACAO | C31: UN | D31: CR | E31: 6,70
A32: 398 | B32: ABRACADEIRA EM ACO PARA AMARRACAO DE ELETRODUTOS, TIPO D, COM 3" E PARAFUSO DE FIXACAO | C32: UN | D32: CR | E32: 6,17
A33: 39126 | B33: ABRACADEIRA EM ACO PARA AMARRACAO DE ELETRODUTOS, TIPO D, COM 4" E CUNHA DE FIXACAO | C33: UN | D33: CR | E33: 9,04
A34: 399 | B34: ABRACADEIRA EM ACO PARA AMARRACAO DE ELETRODUTOS, TIPO D, COM 4" E PARAFUSO DE FIXACAO | C34: UN | D34: CR | E34: 7,97
A35: 39158 | B35: ABRACADEIRA EM ACO PARA AMARRACAO DE ELETRODUTOS, TIPO ECONOMICA (GOTA), COM 8" | C35: UN | D35: CR | E35: 21,39
A36: 39141 | B36: ABRACADEIRA EM ACO PARA AMARRACAO DE ELETRODUTOS, TIPO U SIMPLES, COM 1 1/2" | C36: UN | D36: CR | E36: 1,55
A37: 39140 | B37: ABRACADEIRA EM ACO PARA AMARRACAO DE ELETRODUTOS, TIPO U SIMPLES, COM 1 1/4" | C37: UN | D37: CR | E37: 1,41
A38: 39137 | B38: ABRACADEIRA EM ACO PARA AMARRACAO DE ELETRODUTOS, TIPO U SIMPLES, COM 1/2" | C38: UN | D38: CR | E38: 0,81
A39: 39139 | B39: ABRACADEIRA EM ACO PARA AMARRACAO DE ELETRODUTOS, TIPO U SIMPLES, COM 1" | C39: UN | D39: CR | E39: 1,17
A40: 39143 | B40: ABRACADEIRA EM ACO PARA AMARRACAO DE ELETRODUTOS, TIPO U SIMPLES, COM 2 1/2" | C40: UN | D40: CR | E40: 3,20
A41: 39142 | B41: ABRACADEIRA EM ACO PARA AMARRACAO DE ELETRODUTOS, TIPO U SIMPLES, COM 2" | C41: UN | D41: CR | E41: 2,29
A42: 39138 | B42: ABRACADEIRA EM ACO PARA AMARRACAO DE ELETRODUTOS, TIPO U SIMPLES, COM 3/4" | C42: UN | D42: CR | E42: 0,86
A43: 39136 | B43: ABRACADEIRA EM ACO PARA AMARRACAO DE ELETRODUTOS, TIPO U SIMPLES, COM 3/8" | C43: UN | D43: CR | E43: 0,57
A44: 39144 | B44: ABRACADEIRA EM ACO PARA AMARRACAO DE ELETRODUTOS, TIPO U SIMPLES, COM 3" | C44: UN | D44: CR | E44: 3,73
A45: 39145 | B45: ABRACADEIRA EM ACO PARA AMARRACAO DE ELETRODUTOS, TIPO U SIMPLES, COM 4" | C45: UN | D45: CR | E45: 6,15
A46: 12615 | B46: ABRACADEIRA PVC, PARA CALHA PLUVIAL, DIAMETRO ENTRE *80 E 100* MM, PARA DRENAGEM PLUVIAL PREDIAL | C46: UN | D46: CR | E46: 11,17
A47: 11927 | B47: ABRACADEIRA, GALVANIZADA/ZINCADA, ROSCA SEM FIM, PARAFUSO INOX, LARGURA FITA *12,6 A *14 MM, D = 2" A 2 1/2" | C47: UN | D47: CR | E47: 8,95
A48: 11928 | B48: ABRACADEIRA, GALVANIZADA/ZINCADA, ROSCA SEM FIM, PARAFUSO INOX, LARGURA FITA *12,6 A *14 MM, D = 3" A 3 3/4" | C48: UN | D48: CR | E48: 10,26
A49: 11929 | B49: ABRACADEIRA, GALVANIZADA/ZINCADA, ROSCA SEM FIM, PARAFUSO INOX, LARGURA FITA *12,6 A *14 MM, D = 4" A 4 3/4" | C49: UN | D49: CR | E49: 15,86
A50: 36801 | B50: ACABAMENTO DE METAL CROMADO PARA REGISTRO PEQUENO, DE PAREDE, 1/2 " OU 3/4 " | C50: UN | D50: CR | E50: 34,01
A51: 36246 | B51: ACABAMENTO SIMPLES/CONVENCIONAL PARA FORRO PVC, TIPO "U" OU "C", COR BRANCA, COMPRIMENTO 6 M | C51: M | D51: CR | E51: 4,07
A52: 37600 | B52: ACESSORIO DE LIGACAO NAO ELETRICO PARA CARGAS EXPLOSIVAS, TUBO DE 6 M | C52: UN | D52: AS | E52: 104,86
A53: 37599 | B53: ACESSORIO INICIADOR NAO ELETRICO, TUBO DE 6 M, TEMPO DE RETARDO DE *160* MS | C53: UN | D53: AS | E53: 97,60
A54: 1 | B54: ACETILENO (RECARGA DE GAS ACETILENO PARA CILINDRO DE CONJUNTO OXICORTE GRANDE) NAO INCLUI TROCA/MANUTENCAO DO CILINDRO | C54: KG | D54: C | E54: 107,00
A55: 3 | B55: ACIDO CLORIDRICO / ACIDO MURIATICO, DILUICAO 10% A 12% PARA USO EM LIMPEZA | C55: L | D55: CR | E55: 15,19
A56: 43054 | B56: ACO CA-25, 10,0 MM, OU 12,5 MM, OU 16,0 MM, OU 20,0 MM, OU 25,0 MM, VERGALHAO | C56: KG | D56: CR | E56: 8,63
A57: 42402 | B57: ACO CA-25, 16,0 MM, BARRA DE TRANSFERENCIA | C57: KG | D57: CR | E57: 8,25
A58: 42403 | B58: ACO CA-25, 20,0 MM, BARRA DE TRANSFERENCIA | C58: KG | D58: CR | E58: 10,58
A59: 42404 | B59: ACO CA-25, 25,0 MM, BARRA DE TRANSFERENCIA | C59: KG | D59: CR | E59: 10,52
A60: 42405 | B60: ACO CA-25, 32,0 MM, BARRA DE TRANSFERENCIA | C60: KG | D60: CR | E60: 11,21
A61: 34341 | B61: ACO CA-25, 32,0 MM, VERGALHAO | C61: KG | D61: CR | E61: 9,73
A62: 43053 | B62: ACO CA-25, 6,3 MM OU 8,0 MM, VERGALHAO | C62: KG | D62: CR | E62: 7,71
A63: 43058 | B63: ACO CA-50, 10,0 MM, OU 12,5 MM, OU 16,0 MM, OU 20,0 MM, DOBRADO E CORTADO | C63: KG | D63: CR | E63: 7,99
A64: 34 | B64: ACO CA-50, 10,0 MM, VERGALHAO | C64: KG | D64: CR | E64: 8,03
A65: 43055 | B65: ACO CA-50, 12,5 MM OU 16,0 MM, VERGALHAO | C65: KG | D65: C | E65: 6,96
A66: 43056 | B66: ACO CA-50, 20,0 MM OU 25,0 MM, VERGALHAO | C66: KG | D66: CR | E66: 8,02
A67: 43057 | B67: ACO CA-50, 32,0 MM, VERGALHAO | C67: KG | D67: CR | E67: 8,82
A68: 34449 | B68: ACO CA-50, 6,3 MM, DOBRADO E CORTADO | C68: KG | D68: CR | E68: 9,43
A69: 32 | B69: ACO CA-50, 6,3 MM, VERGALHAO | C69: KG | D69: CR | E69: 8,47
A70: 33 | B70: ACO CA-50, 8,0 MM, VERGALHAO | C70: KG | D70: CR | E70: 8,52
A71: 43061 | B71: ACO CA-60, 4,2 MM OU 5,0 MM, DOBRADO E CORTADO | C71: KG | D71: CR | E71: 7,96
A72: 43059 | B72: ACO CA-60, 4,2 MM, OU 5,0 MM, OU 6,0 MM, OU 7,0 MM, VERGALHAO | C72: KG | D72: CR | E72: 7,60
A73: 43062 | B73: ACO CA-60, 6,0 MM OU 7,0 MM, DOBRADO E CORTADO | C73: KG | D73: CR | E73: 8,43
A74: 43060 | B74: ACO CA-60, 8,0 MM OU 9,5 MM, VERGALHAO | C74: KG | D74: CR | E74: 6,62
A75: 40410 | B75: ACOPLAMENTO RIGIDO EM FERRO FUNDIDO PARA SISTEMA DE TUBULACAO RANHURADA, DN 50 MM (2") | C75: UN | D75: C | E75: 47,40
A76: 40411 | B76: ACOPLAMENTO RIGIDO EM FERRO FUNDIDO PARA SISTEMA DE TUBULACAO RANHURADA, DN 65 MM (2 1/2") | C76: UN | D76: CR | E76: 51,44
A77: 40412 | B77: ACOPLAMENTO RIGIDO EM FERRO FUNDIDO PARA SISTEMA DE TUBULACAO RANHURADA, DN 80 MM (3") | C77: UN | D77: CR | E77: 57,73
A78: 44254 | B78: ADAPTADOR CPVC, ROSCAVEL, COM FLANGES E ANEL DE VEDACAO, 15 MM, CAIXA D'AGUA PARA AGUA QUENTE | C78: UN | D78: CR | E78: 25,42
A79: 44255 | B79: ADAPTADOR CPVC, ROSCAVEL, COM FLANGES E ANEL DE VEDACAO, 22 MM, CAIXA D'AGUA PARA AGUA QUENTE | C79: UN | D79: CR | E79: 28,18
A80: 44256 | B80: ADAPTADOR CPVC, ROSCAVEL, COM FLANGES E ANEL DE VEDACAO, 28 MM, CAIXA D'AGUA PARA AGUA QUENTE | C80: UN | D80: CR | E80: 31,83
A81: 44257 | B81: ADAPTADOR CPVC, ROSCAVEL, COM FLANGES E ANEL DE VEDACAO, 35 MM, CAIXA D'AGUA PARA AGUA QUENTE | C81: UN | D81: CR | E81: 50,35
A82: 44258 | B82: ADAPTADOR CPVC, ROSCAVEL, COM FLANGES E ANEL DE VEDACAO, 42 MM, CAIXA D'AGUA PARA AGUA QUENTE | C82: UN | D82: CR | E82: 57,54
A83: 44259 | B83: ADAPTADOR CPVC, ROSCAVEL, COM FLANGES E ANEL DE VEDACAO, 54 MM, CAIXA D'AGUA PARA AGUA QUENTE | C83: UN | D83: CR | E83: 78,98
A84: 37997 | B84: ADAPTADOR CPVC, SOLDAVEL, 15 MM, PARA AGUA QUENTE | C84: UN | D84: CR | E84: 15,15
A85: 37998 | B85: ADAPTADOR CPVC, SOLDAVEL, 22 MM, PARA AGUA QUENTE | C85: UN | D85: CR | E85: 20,27
A86: 55 | B86: ADAPTADOR DE COMPRESSAO EM POLIPROPILENO (PP), PARA TUBO EM PEAD, 20 MM X 1/2", PARA LIGACAO PREDIAL DE AGUA (NTS 179) | C86: UN | D86: AS | E86: 3,87
A87: 61 | B87: ADAPTADOR DE COMPRESSAO EM POLIPROPILENO (PP), PARA TUBO EM PEAD, 20 MM X 3/4", PARA LIGACAO PREDIAL DE AGUA (NTS 179) | C87: UN | D87: AS | E87: 3,66
A88: 62 | B88: ADAPTADOR DE COMPRESSAO EM POLIPROPILENO (PP), PARA TUBO EM PEAD, 32 MM X 1", PARA LIGACAO PREDIAL DE AGUA (NTS 179) | C88: UN | D88: AS | E88: 7,58
A89: 10899 | B89: ADAPTADOR EM LATAO, ENGATE RAPIDO 2 1/2" X ROSCA INTERNA 5 FIOS 2 1/2", PARA INSTALACAO PREDIAL DE COMBATE A INCENDIO | C89: UN | D89: CR | E89: 96,38
A90: 10900 | B90: ADAPTADOR EM LATAO, ENGATE RAPIDO1 1/2" X ROSCA INTERNA 5 FIOS 2 1/2", PARA INSTALACAO PREDIAL DE COMBATE A INCENDIO | C90: UN | D90: CR | E90: 75,42
A91: 103 | B91: ADAPTADOR PVC SOLDAVEL CURTO COM BOLSA E ROSCA, 110 MM X 4", PARA AGUA FRIA | C91: UN | D91: CR | E91: 41,56
A92: 107 | B92: ADAPTADOR PVC SOLDAVEL CURTO COM BOLSA E ROSCA, 20 MM X 1/2", PARA AGUA FRIA | C92: UN | D92: CR | E92: 0,78
A93: 65 | B93: ADAPTADOR PVC SOLDAVEL CURTO COM BOLSA E ROSCA, 25 MM X 3/4", PARA AGUA FRIA | C93: UN | D93: CR | E93: 0,85
A94: 108 | B94: ADAPTADOR PVC SOLDAVEL CURTO COM BOLSA E ROSCA, 32 MM X 1", PARA AGUA FRIA | C94: UN | D94: CR | E94: 1,72
A95: 110 | B95: ADAPTADOR PVC SOLDAVEL CURTO COM BOLSA E ROSCA, 40 MM X 1 1/2", PARA AGUA FRIA | C95: UN | D95: CR | E95: 5,98
A96: 109 | B96: ADAPTADOR PVC SOLDAVEL CURTO COM BOLSA E ROSCA, 40 MM X 1 1/4", PARA AGUA FRIA | C96: UN | D96: CR | E96: 3,56
A97: 111 | B97: ADAPTADOR PVC SOLDAVEL CURTO COM BOLSA E ROSCA, 50 MM X 1 1/4", PARA AGUA FRIA | C97: UN | D97: CR | E97: 8,09
A98: 112 | B98: ADAPTADOR PVC SOLDAVEL CURTO COM BOLSA E ROSCA, 50 MM X1 1/2", PARA AGUA FRIA | C98: UN | D98: CR | E98: 4,29
A99: 113 | B99: ADAPTADOR PVC SOLDAVEL CURTO COM BOLSA E ROSCA, 60 MM X 2", PARA AGUA FRIA | C99: UN | D99: CR | E99: 10,73
A100: 104 | B100: ADAPTADOR PVC SOLDAVEL CURTO COM BOLSA E ROSCA, 75 MM X 2 1/2", PARA AGUA FRIA | C100: UN | D100: CR | E100: 18,68
A101: 102 | B101: ADAPTADOR PVC SOLDAVEL CURTO COM BOLSA E ROSCA, 85 MM X 3", PARA AGUA FRIA | C101: UN | D101: CR | E101: 25,75
A102: 95 | B102: ADAPTADOR PVC SOLDAVEL, COM FLANGE E ANEL DE VEDACAO, 20 MM X 1/2", PARA CAIXA D'AGUA | C102: UN | D102: CR | E102: 10,88
A103: 96 | B103: ADAPTADOR PVC SOLDAVEL, COM FLANGE E ANEL DE VEDACAO, 25 MM X 3/4", PARA CAIXA D'AGUA | C103: UN | D103: CR | E103: 11,84
A104: 97 | B104: ADAPTADOR PVC SOLDAVEL, COM FLANGE E ANEL DE VEDACAO, 32 MM X 1", PARA CAIXA D'AGUA | C104: UN | D104: CR | E104: 17,81
A105: 98 | B105: ADAPTADOR PVC SOLDAVEL, COM FLANGE E ANEL DE VEDACAO, 40 MM X 1 1/4", PARA CAIXA D'AGUA | C105: UN | D105: CR | E105: 26,66
A106: 99 | B106: ADAPTADOR PVC SOLDAVEL, COM FLANGE E ANEL DE VEDACAO, 50 MM X 1 1/2", PARA CAIXA D'AGUA | C106: UN | D106: CR | E106: 25,19
A107: 100 | B107: ADAPTADOR PVC SOLDAVEL, COM FLANGES E ANEL DE VEDACAO, 60 MM X 2", PARA CAIXA D' AGUA | C107: UN | D107: CR | E107: 44,02
A108: 75 | B108: ADAPTADOR PVC SOLDAVEL, COM FLANGES LIVRES, 110 MM X 4", PARA CAIXA D' AGUA | C108: UN | D108: CR | E108: 256,64
A109: 83 | B109: ADAPTADOR PVC SOLDAVEL, COM FLANGES LIVRES, 75 MM X 2 1/2", PARA CAIXA D' AGUA | C109: UN | D109: CR | E109: 205,17
A110: 74 | B110: ADAPTADOR PVC SOLDAVEL, COM FLANGES LIVRES, 85 MM X 3", PARA CAIXA D' AGUA | C110: UN | D110: CR | E110: 293,34
A111: 106 | B111: ADAPTADOR PVC SOLDAVEL, LONGO, COM FLANGE LIVRE, 110 MM X 4", PARA CAIXA D' AGUA | C111: UN | D111: CR | E111: 370,94
A112: 88 | B112: ADAPTADOR PVC SOLDAVEL, LONGO, COM FLANGE LIVRE, 32 MM X 1", PARA CAIXA D' AGUA | C112: UN | D112: CR | E112: 10,42
A113: 82 | B113: ADAPTADOR PVC SOLDAVEL, LONGO, COM FLANGE LIVRE, 75 MM X 2 1/2", PARA CAIXA D' AGUA | C113: UN | D113: CR | E113: 195,20
A114: 105 | B114: ADAPTADOR PVC SOLDAVEL, LONGO, COM FLANGE LIVRE, 85 MM X 3", PARA CAIXA D' AGUA | C114: UN | D114: CR | E114: 276,60
A115: 60 | B115: ADAPTADOR PVC, COM REGISTRO, PARA PEAD, 20 MM X 3/4", PARA LIGACAO PREDIAL DE AGUA | C115: UN | D115: AS | E115: 5,02
A116: 72 | B116: ADAPTADOR PVC, ROSCAVEL, COM FLANGES E ANEL DE VEDACAO, 1 1/2", PARA CAIXA D'AGUA | C116: UN | D116: CR | E116: 48,32
A117: 67 | B117: ADAPTADOR PVC, ROSCAVEL, COM FLANGES E ANEL DE VEDACAO, 1/2", PARA CAIXA D' AGUA | C117: UN | D117: CR | E117: 15,62
A118: 71 | B118: ADAPTADOR PVC, ROSCAVEL, COM FLANGES E ANEL DE VEDACAO, 1", PARA CAIXA D' AGUA | C118: UN | D118: CR | E118: 29,84
A119: 73 | B119: ADAPTADOR PVC, ROSCAVEL, COM FLANGES E ANEL DE VEDACAO, 3/4", PARA CAIXA D' AGUA | C119: UN | D119: CR | E119: 14,95
A120: 46 | B120: ADAPTADOR, PVC PBA, BOLSA/ROSCA, JE, DN 75 / DE 85 MM | C120: UN | D120: CR | E120: 33,73
A121: 47 | B121: ADAPTADOR, PVC PBA, BOLSA/ROSCA, JE, DN 100 / DE 110 MM | C121: UN | D121: CR | E121: 57,68
A122: 48 | B122: ADAPTADOR, PVC PBA, BOLSA/ROSCA, JE, DN 50 / DE 60 MM | C122: UN | D122: CR | E122: 15,04
A123: 52 | B123: ADAPTADOR, PVC PBA, PONTA/ROSCA, JE, DN 50 / DE 60 MM | C123: UN | D123: CR | E123: 11,43
A124: 43 | B124: ADAPTADOR, PVC PBA, PONTA/ROSCA, JE, DN 75 / DE 85 MM | C124: UN | D124: CR | E124: 38,58
A125: 39719 | B125: ADESIVO / COLA DE CONTATO LIQUIDO, A BASE DE RESINAS, PARA COLAGEM DE ESPUMA PARA ISOLAMENTO TERMICO FLEXIVEL | C125: L | D125: CR | E125: 172,53
A126: 3410 | B126: ADESIVO / COLA PARA EPS (ISOPOR) E OUTROS MATERIAIS | C126: KG | D126: CR | E126: 38,81
A127: 4791 | B127: ADESIVO ACRILICO DE BASE AQUOSA / COLA DE CONTATO | C127: KG | D127: CR | E127: 37,09
A128: 157 | B128: ADESIVO ESTRUTURAL A BASE DE RESINA EPOXI PARA INJECAO EM TRINCAS, BICOMPONENTE, BAIXA VISCOSIDADE | C128: KG | D128: CR | E128: 138,63
A129: 156 | B129: ADESIVO ESTRUTURAL A BASE DE RESINA EPOXI, BICOMPONENTE, FLUIDO | C129: KG | D129: CR | E129: 49,36
A130: 131 | B130: ADESIVO ESTRUTURAL A BASE DE RESINA EPOXI, BICOMPONENTE, PASTOSO (TIXOTROPICO) | C130: KG | D130: CR | E130: 42,21
A131: 21114 | B131: ADESIVO PARA TUBOS CPVC, *75* G | C131: UN | D131: CR | E131: 34,01
A132: 119 | B132: ADESIVO PLASTICO PARA PVC, BISNAGA COM 75 GR | C132: UN | D132: C | E132: 8,62
A133: 122 | B133: ADESIVO PLASTICO PARA PVC, FRASCO COM *850* GR | C133: UN | D133: CR | E133: 66,32
A134: 20080 | B134: ADESIVO PLASTICO PARA PVC, FRASCO COM 175 GR | C134: UN | D134: CR | E134: 21,64
A135: 124 | B135: ADITIVO ACELERADOR DE PEGA E ENDURECIMENTO PARA ARGAMASSAS E CONCRETOS, LIQUIDO E ISENTO DE CLORETOS | C135: L | D135: CR | E135: 16,28
A136: 7334 | B136: ADITIVO ADESIVO LIQUIDO PARA ARGAMASSAS DE REVESTIMENTOS CIMENTICIOS | C136: L | D136: CR | E136: 15,78
A137: 123 | B137: ADITIVO IMPERMEABILIZANTE DE PEGA NORMAL PARA ARGAMASSAS E CONCRETOS SEM ARMACAO, LIQUIDO E ISENTO DE CLORETOS | C137: L | D137: C | E137: 6,66
A138: 127 | B138: ADITIVO IMPERMEABILIZANTE DE PEGA ULTRARRAPIDA, LIQUIDO E ISENTO DE CLORETOS | C138: L | D138: CR | E138: 15,90
A139: 41373 | B139: ADITIVO LIQUIDO IMPERMEABILIZANTE CRISTALIZANTE | C139: L | D139: CR | E139: 22,15
A140: 133 | B140: ADITIVO LIQUIDO INCORPORADOR DE AR PARA CONCRETO E ARGAMASSA, LIQUIDO E ISENTO DE CLORETOS | C140: L | D140: CR | E140: 6,60
A141: 43617 | B141: ADITIVO PLASTIFICANTE E ESTABILIZADOR PARA ARGAMASSAS DE ASSENTAMENTO E REBOCO, LIQUIDO E ISENTO DE CLORETOS | C141: L | D141: CR | E141: 7,38
A142: 132 | B142: ADITIVO PLASTIFICANTE RETARDADOR DE PEGA E REDUTOR DE AGUA PARA CONCRETO, LIQUIDO E ISENTO DE CLORETOS | C142: L | D142: CR | E142: 6,84
A143: 43618 | B143: ADITIVO SUPERPLASTIFICANTE DE PEGA NORMAL PARA CONCRETO, LIQUIDO E ISENTO DE CLORETOS | C143: KG | D143: CR | E143: 17,23
A144: 37476 | B144: ADUELA/ GALERIA PRE-MOLDADA DE CONCRETO ARMADO, SECAO QUADRADA INTERNA DE 1,50 X 1,50 M (L X A), MISULA DE 20 X 20 CM, C = 1,00 M, ESPESSURA MIN = 15 CM, TB-45 E FCK DO CONCRETO = 30 MPA | C144: UN | D144: CR | E144: 3.843,52
A145: 37478 | B145: ADUELA/ GALERIA PRE-MOLDADA DE CONCRETO ARMADO, SECAO RETANGULAR INTERNA DE 2,00 X 2,00 M (L X A), MISULA DE 20 X 20 CM, C = 1,00 M, ESPESSURA MIN = 15 CM, TB-45 E FCK DO CONCRETO = 30 MPA | C145: UN | D145: CR | E145: 4.814,11
A146: 37477 | B146: ADUELA/ GALERIA PRE-MOLDADA DE CONCRETO ARMADO, SECAO RETANGULAR INTERNA DE 2,50 X 2,50 M (L X A), MISULA DE 20 X 20 CM, C = 1,00 M, ESPESSURA MIN = 15 CM, TB-45 E FCK DO CONCRETO = 30 MPA | C146: UN | D146: CR | E146: 6.522,35
A147: 37479 | B147: ADUELA/ GALERIA PRE-MOLDADA DE CONCRETO ARMADO, SECAO RETANGULAR INTERNA DE 3,00 X 3,00 M (L X A), MISULA DE 20 X 20 CM, C = 1.00 M, ESPESSURA MIN = 20 CM, TB-45 E FCK DO CONCRETO = 30 MPA | C147: UN | D147: CR | E147: 7.735,58
A148: 4319 | B148: AFASTADOR PARA TELHA DE FIBROCIMENTO CANALETE 90 OU KALHETAO | C148: UN | D148: CR | E148: 1,90
A149: 42409 | B149: AGENTE DE CURA, PROTETOR DA EVAPORACAO DA AGUA DE HIDRATACAO DO CONCRETO | C149: KG | D149: CR | E149: 10,85
A150: 40553 | B150: AGREGADO RECICLADO, TIPO RACHAO RECICLADO CINZA, CLASSE A | C150: M3 | D150: AS | E150: 52,50
A151: 6114 | B151: AJUDANTE DE ARMADOR (HORISTA) | C151: H | D151: CR | E151: 13,55
A152: 40912 | B152: AJUDANTE DE ARMADOR (MENSALISTA) | C152: MES | D152: CR | E152: 2.375,33
A153: 247 | B153: AJUDANTE DE ELETRICISTA (HORISTA) | C153: H | D153: CR | E153: 13,55
A154: 40919 | B154: AJUDANTE DE ELETRICISTA (MENSALISTA) | C154: MES | D154: CR | E154: 2.375,33
A155: 40984 | B155: AJUDANTE DE ESTRUTURAS METALICAS (MENSALISTA) | C155: MES | D155: CR | E155: 3.312,11
A156: 44499 | B156: AJUDANTE DE ESTRUTURAS METALICAS HORISTA | C156: H | D156: CR | E156: 18,91
A157: 248 | B157: AJUDANTE DE OPERACAO EM GERAL (HORISTA) | C157: H | D157: CR | E157: 19,70
A158: 41086 | B158: AJUDANTE DE OPERACAO EM GERAL (MENSALISTA) | C158: MES | D158: CR | E158: 3.451,40
A159: 34466 | B159: AJUDANTE DE PINTOR (HORISTA) | C159: H | D159: CR | E159: 13,55
A160: 41083 | B160: AJUDANTE DE PINTOR (MENSALISTA) | C160: MES | D160: CR | E160: 2.375,33
A161: 252 | B161: AJUDANTE DE SERRALHEIRO (HORISTA) | C161: H | D161: CR | E161: 13,55
A162: 40909 | B162: AJUDANTE DE SERRALHEIRO (MENSALISTA) | C162: MES | D162: CR | E162: 2.375,33
A163: 242 | B163: AJUDANTE ESPECIALIZADO (HORISTA) | C163: H | D163: CR | E163: 13,72
A164: 41085 | B164: AJUDANTE ESPECIALIZADO (MENSALISTA) | C164: MES | D164: CR | E164: 2.406,17
A165: 427 | B165: ALCA PREFORMADA DE CONTRA POSTE, EM ACO GALVANIZADO, PARA CABO 3/16", COMPRIMENTO *860* MM | C165: UN | D165: CR | E165: 10,91
A166: 417 | B166: ALCA PREFORMADA DE DISTRIBUICAO, EM ACO GALVANIZADO, PARA CABO DE ALUMINIO DIAMETRO 16 A 25 MM | C166: UN | D166: CR | E166: 5,14
A167: 11273 | B167: ALCA PREFORMADA DE DISTRIBUICAO, EM ACO GALVANIZADO, PARA CONDUTORES DE ALUMINIO AWG 1/0 (CAA 6/1 OU CA 7 FIOS) | C167: UN | D167: CR | E167: 15,96
A168: 11272 | B168: ALCA PREFORMADA DE DISTRIBUICAO, EM ACO GALVANIZADO, PARA CONDUTORES DE ALUMINIO AWG 2 (CAA 6/1 OU CA 7 FIOS) | C168: UN | D168: CR | E168: 9,63
A169: 11275 | B169: ALCA PREFORMADA DE SERVICO, EM ACO GALVANIZADO, PARA CONDUTORES DE ALUMINIO AWG 4 (CAA 6/1) | C169: UN | D169: CR | E169: 3,86
A170: 11274 | B170: ALCA PREFORMADA DE SERVICO, EM ACO GALVANIZADO, PARA CONDUTORES DE ALUMINIO AWG 6 (CAA 6/1) | C170: UN | D170: CR | E170: 2,94
A171: 38470 | B171: ALICATE DE CORTE DIAGONAL 6 " COM ISOLAMENTO | C171: UN | D171: C | E171: 40,00
A172: 38547 | B172: ALICATE DE CRIMPAR RJ11, RJ12 E RJ45 | C172: UN | D172: CR | E172: 109,15
A173: 38469 | B173: ALICATE DE PRESSAO PARA SOLDA DE CHAPA 18 " | C173: UN | D173: CR | E173: 117,37
A174: 38467 | B174: ALICATE DE PRESSAO 11 " PARA SOLDA, TIPO C | C174: UN | D174: CR | E174: 66,04
A175: 38468 | B175: ALICATE DE PRESSAO 11 " PARA SOLDA, TIPO U | C175: UN | D175: CR | E175: 72,67
A176: 38471 | B176: ALICATE PARA ANEIS DE PISTAO, CAPACIDADE 50 A 100 MM | C176: UN | D176: CR | E176: 94,37
A177: 37370 | B177: ALIMENTACAO - HORISTA (COLETADO CAIXA - ENCARGOS COMPLEMENTARES) | C177: H | D177: C | E177: 4,28
A178: 40862 | B178: ALIMENTACAO - MENSALISTA (COLETADO CAIXA - ENCARGOS COMPLEMENTARES) | C178: MES | D178: C | E178: 806,41
A179: 10658 | B179: ALISADORA DE CONCRETO COM MOTOR A GASOLINA DE 5,5 HP, PESO COM MOTOR DE 78 KG, 4 PAS | C179: UN | D179: AS | E179: 7.359,00
A180: 253 | B180: ALMOXARIFE (HORISTA) | C180: H | D180: C | E180: 27,60
A181: 40809 | B181: ALMOXARIFE (MENSALISTA) | C181: MES | D181: CR | E181: 4.832,85
A182: 42428 | B182: ALONGADOR COM TRES ALTURAS, EM TUBO DE ACO CARBONO, PINTURA NO PROCESSO ELETROSTATICO - EQUIPAMENTO DE GINASTICA PARA ACADEMIA AO AR LIVRE / ACADEMIA DA TERCEIRA IDADE - ATI | C182: UN | D182: AS | E182: 2.271,00
A183: 301 | B183: ANEL BORRACHA PARA TUBO ESGOTO PREDIAL, DN 100 MM (NBR 5688) | C183: UN | D183: C | E183: 3,33
A184: 296 | B184: ANEL BORRACHA PARA TUBO ESGOTO PREDIAL, DN 50 MM (NBR 5688) | C184: UN | D184: CR | E184: 1,88
A185: 297 | B185: ANEL BORRACHA PARA TUBO ESGOTO PREDIAL, DN 75 MM (NBR 5688) | C185: UN | D185: CR | E185: 2,76
A186: 299 | B186: ANEL BORRACHA, DN 100 MM, PARA TUBO SERIE REFORCADA ESGOTO PREDIAL | C186: UN | D186: CR | E186: 3,91
A187: 300 | B187: ANEL BORRACHA, DN 150 MM, PARA TUBO SERIE REFORCADA ESGOTO PREDIAL | C187: UN | D187: CR | E187: 13,51
A188: 20085 | B188: ANEL BORRACHA, DN 50 MM, PARA TUBO SERIE REFORCADA ESGOTO PREDIAL | C188: UN | D188: CR | E188: 2,47
A189: 298 | B189: ANEL BORRACHA, DN 75 MM, PARA TUBO SERIE REFORCADA ESGOTO PREDIAL | C189: UN | D189: CR | E189: 3,00
A190: 311 | B190: ANEL BORRACHA, PARA TUBO PVC DEFOFO, DN 100 MM (NBR 7665) | C190: UN | D190: CR | E190: 11,15
A191: 318 | B191: ANEL BORRACHA, PARA TUBO PVC DEFOFO, DN 150 MM (NBR 7665) | C191: UN | D191: CR | E191: 22,45
A192: 319 | B192: ANEL BORRACHA, PARA TUBO PVC DEFOFO, DN 200 MM (NBR 7665) | C192: UN | D192: CR | E192: 35,20
A193: 303 | B193: ANEL BORRACHA, PARA TUBO PVC, REDE COLETOR ESGOTO, DN 100 MM (NBR 7362) | C193: UN | D193: CR | E193: 3,69
A194: 305 | B194: ANEL BORRACHA, PARA TUBO PVC, REDE COLETOR ESGOTO, DN 150 MM (NBR 7362) | C194: UN | D194: CR | E194: 11,60
A195: 306 | B195: ANEL BORRACHA, PARA TUBO PVC, REDE COLETOR ESGOTO, DN 200 MM (NBR 7362) | C195: UN | D195: CR | E195: 17,60
A196: 307 | B196: ANEL BORRACHA, PARA TUBO PVC, REDE COLETOR ESGOTO, DN 250 MM (NBR 7362) | C196: UN | D196: CR | E196: 44,46
A197: 309 | B197: ANEL BORRACHA, PARA TUBO PVC, REDE COLETOR ESGOTO, DN 350 MM (NBR 7362) | C197: UN | D197: CR | E197: 72,84
A198: 310 | B198: ANEL BORRACHA, PARA TUBO PVC, REDE COLETOR ESGOTO, DN 400 MM (NBR 7362) | C198: UN | D198: CR | E198: 100,95
A199: 328 | B199: ANEL BORRACHA, PARA TUBO/CONEXAO PVC PBA, DN 100 MM, PARA REDE AGUA | C199: UN | D199: CR | E199: 8,82
A200: 325 | B200: ANEL BORRACHA, PARA TUBO/CONEXAO PVC PBA, DN 50 MM, PARA REDE AGUA | C200: UN | D200: CR | E200: 2,60
A201: 20326 | B201: ANEL BORRACHA, PARA TUBO/CONEXAO PVC PBA, DN 60 MM, PARA REDE AGUA | C201: UN | D201: CR | E201: 4,76
A202: 329 | B202: ANEL BORRACHA, PARA TUBO/CONEXAO PVC PBA, DN 75 MM, PARA REDE AGUA | C202: UN | D202: CR | E202: 7,38
... 4740 more rows

Sheet COMP Sint. Sinapi (hidden)
A1: PCI.817.01 - CUSTO DE COMPOSIÇÕES - SINTÉTICO DATA DE EMISSÃO: 16/10/2023 23:14:05 DATA DE RT: 16/10/2023
A2: ENCARGOS SOCIAIS SOBRE PREÇOS DA MÃO-DE-OBRA: 115,15%(HORA) 71,22%(MÊS)
A3: ABRANGÊNCIA : NACIONAL LOCALIDADE : SALVADOR DATA DE PREÇO : 09/2023 REFERÊNCIA COLETA : MEDIANO
A5: DESCRICAO DA CLASSE | B5: SIGLA DA CLASSE | C5: DESCRICAO DO TIPO 1 | D5: SIGLA DO TIPO 1 | E5: CODIGO DO AGRUPADOR | F5: DESCRICAO DO AGRUPADOR | G5: CODIGO DA COMPOSICAO | H5: DESCRICAO DA COMPOSICAO | I5: UNIDADE | J5: ORIGEM DE PREÇO | K5: CUSTO TOTAL | L5: VINCULO
A7: ASSENTAMENTO DE TUBOS E PECAS | B7: ASTU | C7: FORNEC E/OU ASSENT DE TUBO DE FERRO FUNDIDO JUNTA ELASTICA | D7: 0045 | G7: 97141 | H7: ASSENTAMENTO DE TUBO DE FERRO FUNDIDO PARA REDE DE ÁGUA, DN 80 MM, JUNTA ELÁSTICA, INSTALADO EM LOCAL COM NÍVEL ALTO DE INTERFERÊNCIAS (NÃO INCLUI FORNECIMENTO). AF_11/2017 | I7: M | J7: COEFICIENTE DE REPRESENTATIVIDADE | K7: 12,00 | L7: CAIXA REFERENCIAL
A8: ASSENTAMENTO DE TUBOS E PECAS | B8: ASTU | C8: FORNEC E/OU ASSENT DE TUBO DE FERRO FUNDIDO JUNTA ELASTICA | D8: 0045 | G8: 97142 | H8: ASSENTAMENTO DE TUBO DE FERRO FUNDIDO PARA REDE DE ÁGUA, DN 100 MM, JUNTA ELÁSTICA, INSTALADO EM LOCAL COM NÍVEL ALTO DE INTERFERÊNCIAS (NÃO INCLUI FORNECIMENTO). AF_11/2017 | I8: M | J8: COEFICIENTE DE REPRESENTATIVIDADE | K8: 13,41 | L8: CAIXA REFERENCIAL
A9: ASSENTAMENTO DE TUBOS E PECAS | B9: ASTU | C9: FORNEC E/OU ASSENT DE TUBO DE FERRO FUNDIDO JUNTA ELASTICA | D9: 0045 | G9: 97143 | H9: ASSENTAMENTO DE TUBO DE FERRO FUNDIDO PARA REDE DE ÁGUA, DN 150 MM, JUNTA ELÁSTICA, INSTALADO EM LOCAL COM NÍVEL ALTO DE INTERFERÊNCIAS (NÃO INCLUI FORNECIMENTO). AF_11/2017 | I9: M | J9: COEFICIENTE DE REPRESENTATIVIDADE | K9: 16,99 | L9: CAIXA REFERENCIAL
A10: ASSENTAMENTO DE TUBOS E PECAS | B10: ASTU | C10: FORNEC E/OU ASSENT DE TUBO DE FERRO FUNDIDO JUNTA ELASTICA | D10: 0045 | G10: 97144 | H10: ASSENTAMENTO DE TUBO DE FERRO FUNDIDO PARA REDE DE ÁGUA, DN 200 MM, JUNTA ELÁSTICA, INSTALADO EM LOCAL COM NÍVEL ALTO DE INTERFERÊNCIAS (NÃO INCLUI FORNECIMENTO). AF_11/2017 | I10: M | J10: COEFICIENTE DE REPRESENTATIVIDADE | K10: 20,53 | L10: CAIXA REFERENCIAL
A11: ASSENTAMENTO DE TUBOS E PECAS | B11: ASTU | C11: FORNEC E/OU ASSENT DE TUBO DE FERRO FUNDIDO JUNTA ELASTICA | D11: 0045 | G11: 97145 | H11: ASSENTAMENTO DE TUBO DE FERRO FUNDIDO PARA REDE DE ÁGUA, DN 250 MM, JUNTA ELÁSTICA, INSTALADO EM LOCAL COM NÍVEL ALTO DE INTERFERÊNCIAS (NÃO INCLUI FORNECIMENTO). AF_11/2017 | I11: M | J11: COEFICIENTE DE REPRESENTATIVIDADE | K11: 24,12 | L11: CAIXA REFERENCIAL
A12: ASSENTAMENTO DE TUBOS E PECAS | B12: ASTU | C12: FORNEC E/OU ASSENT DE TUBO DE FERRO FUNDIDO JUNTA ELASTICA | D12: 0045 | G12: 97146 | H12: ASSENTAMENTO DE TUBO DE FERRO FUNDIDO PARA REDE DE ÁGUA, DN 300 MM, JUNTA ELÁSTICA, INSTALADO EM LOCAL COM NÍVEL ALTO DE INTERFERÊNCIAS (NÃO INCLUI FORNECIMENTO). AF_11/2017 | I12: M | J12: COEFICIENTE DE REPRESENTATIVIDADE | K12: 27,69 | L12: CAIXA REFERENCIAL
A13: ASSENTAMENTO DE TUBOS E PECAS | B13: ASTU | C13: FORNEC E/OU ASSENT DE TUBO DE FERRO FUNDIDO JUNTA ELASTICA | D13: 0045 | G13: 97147 | H13: ASSENTAMENTO DE TUBO DE FERRO FUNDIDO PARA REDE DE ÁGUA, DN 350 MM, JUNTA ELÁSTICA, INSTALADO EM LOCAL COM NÍVEL ALTO DE INTERFERÊNCIAS (NÃO INCLUI FORNECIMENTO). AF_11/2017 | I13: M | J13: COEFICIENTE DE REPRESENTATIVIDADE | K13: 31,27 | L13: CAIXA REFERENCIAL
A14: ASSENTAMENTO DE TUBOS E PECAS | B14: ASTU | C14: FORNEC E/OU ASSENT DE TUBO DE FERRO FUNDIDO JUNTA ELASTICA | D14: 0045 | G14: 97148 | H14: ASSENTAMENTO DE TUBO DE FERRO FUNDIDO PARA REDE DE ÁGUA, DN 400 MM, JUNTA ELÁSTICA, INSTALADO EM LOCAL COM NÍVEL ALTO DE INTERFERÊNCIAS (NÃO INCLUI FORNECIMENTO). AF_11/2017 | I14: M | J14: COEFICIENTE DE REPRESENTATIVIDADE | K14: 34,86 | L14: CAIXA REFERENCIAL
A15: ASSENTAMENTO DE TUBOS E PECAS | B15: ASTU | C15: FORNEC E/OU ASSENT DE TUBO DE FERRO FUNDIDO JUNTA ELASTICA | D15: 0045 | G15: 97149 | H15: ASSENTAMENTO DE TUBO DE FERRO FUNDIDO PARA REDE DE ÁGUA, DN 450 MM, JUNTA ELÁSTICA, INSTALADO EM LOCAL COM NÍVEL ALTO DE INTERFERÊNCIAS (NÃO INCLUI FORNECIMENTO). AF_11/2017 | I15: M | J15: COEFICIENTE DE REPRESENTATIVIDADE | K15: 38,46 | L15: CAIXA REFERENCIAL
A16: ASSENTAMENTO DE TUBOS E PECAS | B16: ASTU | C16: FORNEC E/OU ASSENT DE TUBO DE FERRO FUNDIDO JUNTA ELASTICA | D16: 0045 | G16: 97150 | H16: ASSENTAMENTO DE TUBO DE FERRO FUNDIDO PARA REDE DE ÁGUA, DN 500 MM, JUNTA ELÁSTICA, INSTALADO EM LOCAL COM NÍVEL ALTO DE INTERFERÊNCIAS (NÃO INCLUI FORNECIMENTO). AF_11/2017 | I16: M | J16: COEFICIENTE DE REPRESENTATIVIDADE | K16: 46,78 | L16: CAIXA REFERENCIAL
A17: ASSENTAMENTO DE TUBOS E PECAS | B17: ASTU | C17: FORNEC E/OU ASSENT DE TUBO DE FERRO FUNDIDO JUNTA ELASTICA | D17: 0045 | G17: 97151 | H17: ASSENTAMENTO DE TUBO DE FERRO FUNDIDO PARA REDE DE ÁGUA, DN 600 MM, JUNTA ELÁSTICA, INSTALADO EM LOCAL COM NÍVEL ALTO DE INTERFERÊNCIAS (NÃO INCLUI FORNECIMENTO). AF_11/2017 | I17: M | J17: COEFICIENTE DE REPRESENTATIVIDADE | K17: 54,66 | L17: CAIXA REFERENCIAL
A18: ASSENTAMENTO DE TUBOS E PECAS | B18: ASTU | C18: FORNEC E/OU ASSENT DE TUBO DE FERRO FUNDIDO JUNTA ELASTICA | D18: 0045 | G18: 97152 | H18: ASSENTAMENTO DE TUBO DE FERRO FUNDIDO PARA REDE DE ÁGUA, DN 700 MM, JUNTA ELÁSTICA, INSTALADO EM LOCAL COM NÍVEL ALTO DE INTERFERÊNCIAS (NÃO INCLUI FORNECIMENTO). AF_11/2017 | I18: M | J18: COEFICIENTE DE REPRESENTATIVIDADE | K18: 62,28 | L18: CAIXA REFERENCIAL
A19: ASSENTAMENTO DE TUBOS E PECAS | B19: ASTU | C19: FORNEC E/OU ASSENT DE TUBO DE FERRO FUNDIDO JUNTA ELASTICA | D19: 0045 | G19: 97153 | H19: ASSENTAMENTO DE TUBO DE FERRO FUNDIDO PARA REDE DE ÁGUA, DN 800 MM, JUNTA ELÁSTICA, INSTALADO EM LOCAL COM NÍVEL ALTO DE INTERFERÊNCIAS (NÃO INCLUI FORNECIMENTO). AF_11/2017 | I19: M | J19: COEFICIENTE DE REPRESENTATIVIDADE | K19: 70,05 | L19: CAIXA REFERENCIAL
A20: ASSENTAMENTO DE TUBOS E PECAS | B20: ASTU | C20: FORNEC E/OU ASSENT DE TUBO DE FERRO FUNDIDO JUNTA ELASTICA | D20: 0045 | G20: 97154 | H20: ASSENTAMENTO DE TUBO DE FERRO FUNDIDO PARA REDE DE ÁGUA, DN 900 MM, JUNTA ELÁSTICA, INSTALADO EM LOCAL COM NÍVEL ALTO DE INTERFERÊNCIAS (NÃO INCLUI FORNECIMENTO). AF_11/2017 | I20: M | J20: COEFICIENTE DE REPRESENTATIVIDADE | K20: 77,88 | L20: CAIXA REFERENCIAL
A21: ASSENTAMENTO DE TUBOS E PECAS | B21: ASTU | C21: FORNEC E/OU ASSENT DE TUBO DE FERRO FUNDIDO JUNTA ELASTICA | D21: 0045 | G21: 97155 | H21: ASSENTAMENTO DE TUBO DE FERRO FUNDIDO PARA REDE DE ÁGUA, DN 1000 MM, JUNTA ELÁSTICA, INSTALADO EM LOCAL COM NÍVEL ALTO DE INTERFERÊNCIAS (NÃO INCLUI FORNECIMENTO). AF_11/2017 | I21: M | J21: COEFICIENTE DE REPRESENTATIVIDADE | K21: 85,69 | L21: CAIXA REFERENCIAL
A22: ASSENTAMENTO DE TUBOS E PECAS | B22: ASTU | C22: FORNEC E/OU ASSENT DE TUBO DE FERRO FUNDIDO JUNTA ELASTICA | D22: 0045 | G22: 97156 | H22: ASSENTAMENTO DE TUBO DE FERRO FUNDIDO PARA REDE DE ÁGUA, DN 1200 MM, JUNTA ELÁSTICA, INSTALADO EM LOCAL COM NÍVEL ALTO DE INTERFERÊNCIAS (NÃO INCLUI FORNECIMENTO). AF_11/2017 | I22: M | J22: COEFICIENTE DE REPRESENTATIVIDADE | K22: 101,74 | L22: CAIXA REFERENCIAL
A23: ASSENTAMENTO DE TUBOS E PECAS | B23: ASTU | C23: FORNEC E/OU ASSENT DE TUBO DE FERRO FUNDIDO JUNTA ELASTICA | D23: 0045 | G23: 97157 | H23: ASSENTAMENTO DE TUBO DE FERRO FUNDIDO PARA REDE DE ÁGUA, DN 80 MM, JUNTA ELÁSTICA, INSTALADO EM LOCAL COM NÍVEL BAIXO DE INTERFERÊNCIAS (NÃO INCLUI FORNECIMENTO). AF_11/2017 | I23: M | J23: COEFICIENTE DE REPRESENTATIVIDADE | K23: 7,19 | L23: CAIXA REFERENCIAL
A24: ASSENTAMENTO DE TUBOS E PECAS | B24: ASTU | C24: FORNEC E/OU ASSENT DE TUBO DE FERRO FUNDIDO JUNTA ELASTICA | D24: 0045 | G24: 97158 | H24: ASSENTAMENTO DE TUBO DE FERRO FUNDIDO PARA REDE DE ÁGUA, DN 100 MM, JUNTA ELÁSTICA, INSTALADO EM LOCAL COM NÍVEL BAIXO DE INTERFERÊNCIAS (NÃO INCLUI FORNECIMENTO). AF_11/2017 | I24: M | J24: COEFICIENTE DE REPRESENTATIVIDADE | K24: 8,05 | L24: CAIXA REFERENCIAL
A25: ASSENTAMENTO DE TUBOS E PECAS | B25: ASTU | C25: FORNEC E/OU ASSENT DE TUBO DE FERRO FUNDIDO JUNTA ELASTICA | D25: 0045 | G25: 97159 | H25: ASSENTAMENTO DE TUBO DE FERRO FUNDIDO PARA REDE DE ÁGUA, DN 150 MM, JUNTA ELÁSTICA, INSTALADO EM LOCAL COM NÍVEL BAIXO DE INTERFERÊNCIAS (NÃO INCLUI FORNECIMENTO). AF_11/2017 | I25: M | J25: COEFICIENTE DE REPRESENTATIVIDADE | K25: 10,22 | L25: CAIXA REFERENCIAL
A26: ASSENTAMENTO DE TUBOS E PECAS | B26: ASTU | C26: FORNEC E/OU ASSENT DE TUBO DE FERRO FUNDIDO JUNTA ELASTICA | D26: 0045 | G26: 97160 | H26: ASSENTAMENTO DE TUBO DE FERRO FUNDIDO PARA REDE DE ÁGUA, DN 200 MM, JUNTA ELÁSTICA, INSTALADO EM LOCAL COM NÍVEL BAIXO DE INTERFERÊNCIAS (NÃO INCLUI FORNECIMENTO). AF_11/2017 | I26: M | J26: COEFICIENTE DE REPRESENTATIVIDADE | K26: 12,34 | L26: CAIXA REFERENCIAL
A27: ASSENTAMENTO DE TUBOS E PECAS | B27: ASTU | C27: FORNEC E/OU ASSENT DE TUBO DE FERRO FUNDIDO JUNTA ELASTICA | D27: 0045 | G27: 97161 | H27: ASSENTAMENTO DE TUBO DE FERRO FUNDIDO PARA REDE DE ÁGUA, DN 250 MM, JUNTA ELÁSTICA, INSTALADO EM LOCAL COM NÍVEL BAIXO DE INTERFERÊNCIAS (NÃO INCLUI FORNECIMENTO). AF_11/2017 | I27: M | J27: COEFICIENTE DE REPRESENTATIVIDADE | K27: 14,54 | L27: CAIXA REFERENCIAL
A28: ASSENTAMENTO DE TUBOS E PECAS | B28: ASTU | C28: FORNEC E/OU ASSENT DE TUBO DE FERRO FUNDIDO JUNTA ELASTICA | D28: 0045 | G28: 97162 | H28: ASSENTAMENTO DE TUBO DE FERRO FUNDIDO PARA REDE DE ÁGUA, DN 300 MM, JUNTA ELÁSTICA, INSTALADO EM LOCAL COM NÍVEL BAIXO DE INTERFERÊNCIAS (NÃO INCLUI FORNECIMENTO). AF_11/2017 | I28: M | J28: COEFICIENTE DE REPRESENTATIVIDADE | K28: 16,70 | L28: CAIXA REFERENCIAL
A29: ASSENTAMENTO DE TUBOS E PECAS | B29: ASTU | C29: FORNEC E/OU ASSENT DE TUBO DE FERRO FUNDIDO JUNTA ELASTICA | D29: 0045 | G29: 97163 | H29: ASSENTAMENTO DE TUBO DE FERRO FUNDIDO PARA REDE DE ÁGUA, DN 350 MM, JUNTA ELÁSTICA, INSTALADO EM LOCAL COM NÍVEL BAIXO DE INTERFERÊNCIAS (NÃO INCLUI FORNECIMENTO). AF_11/2017 | I29: M | J29: COEFICIENTE DE REPRESENTATIVIDADE | K29: 18,88 | L29: CAIXA REFERENCIAL
A30: ASSENTAMENTO DE TUBOS E PECAS | B30: ASTU | C30: FORNEC E/OU ASSENT DE TUBO DE FERRO FUNDIDO JUNTA ELASTICA | D30: 0045 | G30: 97164 | H30: ASSENTAMENTO DE TUBO DE FERRO FUNDIDO PARA REDE DE ÁGUA, DN 400 MM, JUNTA ELÁSTICA, INSTALADO EM LOCAL COM NÍVEL BAIXO DE INTERFERÊNCIAS (NÃO INCLUI FORNECIMENTO). AF_11/2017 | I30: M | J30: COEFICIENTE DE REPRESENTATIVIDADE | K30: 21,06 | L30: CAIXA REFERENCIAL
A31: ASSENTAMENTO DE TUBOS E PECAS | B31: ASTU | C31: FORNEC E/OU ASSENT DE TUBO DE FERRO FUNDIDO JUNTA ELASTICA | D31: 0045 | G31: 97165 | H31: ASSENTAMENTO DE TUBO DE FERRO FUNDIDO PARA REDE DE ÁGUA, DN 450 MM, JUNTA ELÁSTICA, INSTALADO EM LOCAL COM NÍVEL BAIXO DE INTERFERÊNCIAS (NÃO INCLUI FORNECIMENTO). AF_11/2017 | I31: M | J31: COEFICIENTE DE REPRESENTATIVIDADE | K31: 23,26 | L31: CAIXA REFERENCIAL
A32: ASSENTAMENTO DE TUBOS E PECAS | B32: ASTU | C32: FORNEC E/OU ASSENT DE TUBO DE FERRO FUNDIDO JUNTA ELASTICA | D32: 0045 | G32: 97166 | H32: ASSENTAMENTO DE TUBO DE FERRO FUNDIDO PARA REDE DE ÁGUA, DN 500 MM, JUNTA ELÁSTICA, INSTALADO EM LOCAL COM NÍVEL BAIXO DE INTERFERÊNCIAS (NÃO INCLUI FORNECIMENTO). AF_11/2017 | I32: M | J32: COEFICIENTE DE REPRESENTATIVIDADE | K32: 28,29 | L32: CAIXA REFERENCIAL
A33: ASSENTAMENTO DE TUBOS E PECAS | B33: ASTU | C33: FORNEC E/OU ASSENT DE TUBO DE FERRO FUNDIDO JUNTA ELASTICA | D33: 0045 | G33: 97167 | H33: ASSENTAMENTO DE TUBO DE FERRO FUNDIDO PARA REDE DE ÁGUA, DN 600 MM, JUNTA ELÁSTICA, INSTALADO EM LOCAL COM NÍVEL BAIXO DE INTERFERÊNCIAS (NÃO INCLUI FORNECIMENTO). AF_11/2017 | I33: M | J33: COEFICIENTE DE REPRESENTATIVIDADE | K33: 33,10 | L33: CAIXA REFERENCIAL
A34: ASSENTAMENTO DE TUBOS E PECAS | B34: ASTU | C34: FORNEC E/OU ASSENT DE TUBO DE FERRO FUNDIDO JUNTA ELASTICA | D34: 0045 | G34: 97168 | H34: ASSENTAMENTO DE TUBO DE FERRO FUNDIDO PARA REDE DE ÁGUA, DN 700 MM, JUNTA ELÁSTICA, INSTALADO EM LOCAL COM NÍVEL BAIXO DE INTERFERÊNCIAS (NÃO INCLUI FORNECIMENTO). AF_11/2017 | I34: M | J34: COEFICIENTE DE REPRESENTATIVIDADE | K34: 37,63 | L34: CAIXA REFERENCIAL
A35: ASSENTAMENTO DE TUBOS E PECAS | B35: ASTU | C35: FORNEC E/OU ASSENT DE TUBO DE FERRO FUNDIDO JUNTA ELASTICA | D35: 0045 | G35: 97169 | H35: ASSENTAMENTO DE TUBO DE FERRO FUNDIDO PARA REDE DE ÁGUA, DN 800 MM, JUNTA ELÁSTICA, INSTALADO EM LOCAL COM NÍVEL BAIXO DE INTERFERÊNCIAS (NÃO INCLUI FORNECIMENTO). AF_11/2017 | I35: M | J35: COEFICIENTE DE REPRESENTATIVIDADE | K35: 42,32 | L35: CAIXA REFERENCIAL
A36: ASSENTAMENTO DE TUBOS E PECAS | B36: ASTU | C36: FORNEC E/OU ASSENT DE TUBO DE FERRO FUNDIDO JUNTA ELASTICA | D36: 0045 | G36: 97170 | H36: ASSENTAMENTO DE TUBO DE FERRO FUNDIDO PARA REDE DE ÁGUA, DN 900 MM, JUNTA ELÁSTICA, INSTALADO EM LOCAL COM NÍVEL BAIXO DE INTERFERÊNCIAS (NÃO INCLUI FORNECIMENTO). AF_11/2017 | I36: M | J36: COEFICIENTE DE REPRESENTATIVIDADE | K36: 47,08 | L36: CAIXA REFERENCIAL
A37: ASSENTAMENTO DE TUBOS E PECAS | B37: ASTU | C37: FORNEC E/OU ASSENT DE TUBO DE FERRO FUNDIDO JUNTA ELASTICA | D37: 0045 | G37: 97171 | H37: ASSENTAMENTO DE TUBO DE FERRO FUNDIDO PARA REDE DE ÁGUA, DN 1000 MM, JUNTA ELÁSTICA, INSTALADO EM LOCAL COM NÍVEL BAIXO DE INTERFERÊNCIAS (NÃO INCLUI FORNECIMENTO). AF_11/2017 | I37: M | J37: COEFICIENTE DE REPRESENTATIVIDADE | K37: 51,83 | L37: CAIXA REFERENCIAL
A38: ASSENTAMENTO DE TUBOS E PECAS | B38: ASTU | C38: FORNEC E/OU ASSENT DE TUBO DE FERRO FUNDIDO JUNTA ELASTICA | D38: 0045 | G38: 97172 | H38: ASSENTAMENTO DE TUBO DE FERRO FUNDIDO PARA REDE DE ÁGUA, DN 1200 MM, JUNTA ELÁSTICA, INSTALADO EM LOCAL COM NÍVEL BAIXO DE INTERFERÊNCIAS (NÃO INCLUI FORNECIMENTO). AF_11/2017 | I38: M | J38: COEFICIENTE DE REPRESENTATIVIDADE | K38: 61,72 | L38: CAIXA REFERENCIAL
A39: ASSENTAMENTO DE TUBOS E PECAS | B39: ASTU | C39: FORNEC E/OU ASSENT DE TUBO DE ACO COM JUNTA SOLDADA | D39: 0046 | G39: 97173 | H39: ASSENTAMENTO DE TUBO DE AÇO CARBONO PARA REDE DE ÁGUA, DN 600 MM (24), JUNTA SOLDADA, INSTALADO EM LOCAL COM NÍVEL ALTO DE INTERFERÊNCIAS (NÃO INCLUI FORNECIMENTO). AF_11/2017 | I39: M | J39: COEFICIENTE DE REPRESENTATIVIDADE | K39: 47,69 | L39: CAIXA REFERENCIAL
A40: ASSENTAMENTO DE TUBOS E PECAS | B40: ASTU | C40: FORNEC E/OU ASSENT DE TUBO DE ACO COM JUNTA SOLDADA | D40: 0046 | G40: 97174 | H40: ASSENTAMENTO DE TUBO DE AÇO CARBONO PARA REDE DE ÁGUA, DN 700 MM (28), JUNTA SOLDADA, INSTALADO EM LOCAL COM NÍVEL ALTO DE INTERFERÊNCIAS (NÃO INCLUI FORNECIMENTO). AF_11/2017 | I40: M | J40: COEFICIENTE DE REPRESENTATIVIDADE | K40: 55,09 | L40: CAIXA REFERENCIAL
A41: ASSENTAMENTO DE TUBOS E PECAS | B41: ASTU | C41: FORNEC E/OU ASSENT DE TUBO DE ACO COM JUNTA SOLDADA | D41: 0046 | G41: 97175 | H41: ASSENTAMENTO DE TUBO DE AÇO CARBONO PARA REDE DE ÁGUA, DN 800 MM (32), JUNTA SOLDADA, INSTALADO EM LOCAL COM NÍVEL ALTO DE INTERFERÊNCIAS (NÃO INCLUI FORNECIMENTO). AF_11/2017 | I41: M | J41: COEFICIENTE DE REPRESENTATIVIDADE | K41: 62,49 | L41: CAIXA REFERENCIAL
A42: ASSENTAMENTO DE TUBOS E PECAS | B42: ASTU | C42: FORNEC E/OU ASSENT DE TUBO DE ACO COM JUNTA SOLDADA | D42: 0046 | G42: 97176 | H42: ASSENTAMENTO DE TUBO DE AÇO CARBONO PARA REDE DE ÁGUA, DN 900 MM (36), JUNTA SOLDADA, INSTALADO EM LOCAL COM NÍVEL ALTO DE INTERFERÊNCIAS (NÃO INCLUI FORNECIMENTO). AF_11/2017 | I42: M | J42: COEFICIENTE DE REPRESENTATIVIDADE | K42: 69,86 | L42: CAIXA REFERENCIAL
A43: ASSENTAMENTO DE TUBOS E PECAS | B43: ASTU | C43: FORNEC E/OU ASSENT DE TUBO DE ACO COM JUNTA SOLDADA | D43: 0046 | G43: 97177 | H43: ASSENTAMENTO DE TUBO DE AÇO CARBONO PARA REDE DE ÁGUA, DN 1000 MM (40) OU DN 1100 MM (44), JUNTA SOLDADA, INSTALADO EM LOCAL COM NÍVEL ALTO DE INTERFERÊNCIAS (NÃO INCLUI FORNECIMENTO). AF_11/2017 | I43: M | J43: COEFICIENTE DE REPRESENTATIVIDADE | K43: 84,65 | L43: CAIXA REFERENCIAL
A44: ASSENTAMENTO DE TUBOS E PECAS | B44: ASTU | C44: FORNEC E/OU ASSENT DE TUBO DE ACO COM JUNTA SOLDADA | D44: 0046 | G44: 97178 | H44: ASSENTAMENTO DE TUBO DE AÇO CARBONO PARA REDE DE ÁGUA, DN 1200 MM (48) OU DN 1300 MM (52), JUNTA SOLDADA, INSTALADO EM LOCAL COM NÍVEL ALTO DE INTERFERÊNCIAS (NÃO INCLUI FORNECIMENTO). AF_11/2017 | I44: M | J44: COEFICIENTE DE REPRESENTATIVIDADE | K44: 99,43 | L44: CAIXA REFERENCIAL
A45: ASSENTAMENTO DE TUBOS E PECAS | B45: ASTU | C45: FORNEC E/OU ASSENT DE TUBO DE ACO COM JUNTA SOLDADA | D45: 0046 | G45: 97179 | H45: ASSENTAMENTO DE TUBO DE AÇO CARBONO PARA REDE DE ÁGUA, DN 1400 MM (56'') OU DN 1500 MM (60), JUNTA SOLDADA, INSTALADO EM LOCAL COM NÍVEL ALTO DE INTERFERÊNCIAS (NÃO INCLUI FORNECIMENTO). AF_11/2017 | I45: M | J45: COEFICIENTE DE REPRESENTATIVIDADE | K45: 114,22 | L45: CAIXA REFERENCIAL
A46: ASSENTAMENTO DE TUBOS E PECAS | B46: ASTU | C46: FORNEC E/OU ASSENT DE TUBO DE ACO COM JUNTA SOLDADA | D46: 0046 | G46: 97180 | H46: ASSENTAMENTO DE TUBO DE AÇO CARBONO PARA REDE DE ÁGUA, DN 1600 MM (64) OU DN 1700 MM (68), JUNTA SOLDADA, INSTALADO EM LOCAL COM NÍVEL ALTO DE INTERFERÊNCIAS (NÃO INCLUI FORNECIMENTO). AF_11/2017 | I46: M | J46: COEFICIENTE DE REPRESENTATIVIDADE | K46: 129,00 | L46: CAIXA REFERENCIAL
A47: ASSENTAMENTO DE TUBOS E PECAS | B47: ASTU | C47: FORNEC E/OU ASSENT DE TUBO DE ACO COM JUNTA SOLDADA | D47: 0046 | G47: 97181 | H47: ASSENTAMENTO DE TUBO DE AÇO CARBONO PARA REDE DE ÁGUA, DN 1800 MM (72) OU DN 1900 MM (76), JUNTA SOLDADA, INSTALADO EM LOCAL COM NÍVEL ALTO DE INTERFERÊNCIAS (NÃO INCLUI FORNECIMENTO). AF_11/2017 | I47: M | J47: COEFICIENTE DE REPRESENTATIVIDADE | K47: 148,61 | L47: CAIXA REFERENCIAL
A48: ASSENTAMENTO DE TUBOS E PECAS | B48: ASTU | C48: FORNEC E/OU ASSENT DE TUBO DE ACO COM JUNTA SOLDADA | D48: 0046 | G48: 97182 | H48: ASSENTAMENTO DE TUBO DE AÇO CARBONO PARA REDE DE ÁGUA, DN 2000 MM (80) OU DN 2100 MM (84), JUNTA SOLDADA, INSTALADO EM LOCAL COM NÍVEL ALTO DE INTERFERÊNCIAS (NÃO INCLUI FORNECIMENTO). AF_11/2017 | I48: M | J48: COEFICIENTE DE REPRESENTATIVIDADE | K48: 163,89 | L48: CAIXA REFERENCIAL
A49: ASSENTAMENTO DE TUBOS E PECAS | B49: ASTU | C49: FORNEC E/OU ASSENT DE TUBO DE ACO COM JUNTA SOLDADA | D49: 0046 | G49: 97183 | H49: ASSENTAMENTO DE TUBO DE AÇO CARBONO PARA REDE DE ÁGUA, DN 600 MM (24), JUNTA SOLDADA, INSTALADO EM LOCAL COM NÍVEL BAIXO DE INTERFERÊNCIAS (NÃO INCLUI FORNECIMENTO). AF_11/2017 | I49: M | J49: COEFICIENTE DE REPRESENTATIVIDADE | K49: 38,34 | L49: CAIXA REFERENCIAL
A50: ASSENTAMENTO DE TUBOS E PECAS | B50: ASTU | C50: FORNEC E/OU ASSENT DE TUBO DE ACO COM JUNTA SOLDADA | D50: 0046 | G50: 97184 | H50: ASSENTAMENTO DE TUBO DE AÇO CARBONO PARA REDE DE ÁGUA, DN 700 MM (28), JUNTA SOLDADA, INSTALADO EM LOCAL COM NÍVEL BAIXO DE INTERFERÊNCIAS (NÃO INCLUI FORNECIMENTO). AF_11/2017 | I50: M | J50: COEFICIENTE DE REPRESENTATIVIDADE | K50: 44,38 | L50: CAIXA REFERENCIAL
A51: ASSENTAMENTO DE TUBOS E PECAS | B51: ASTU | C51: FORNEC E/OU ASSENT DE TUBO DE ACO COM JUNTA SOLDADA | D51: 0046 | G51: 97185 | H51: ASSENTAMENTO DE TUBO DE AÇO CARBONO PARA REDE DE ÁGUA, DN 800 MM (32), JUNTA SOLDADA, INSTALADO EM LOCAL COM NÍVEL BAIXO DE INTERFERÊNCIAS (NÃO INCLUI FORNECIMENTO). AF_11/2017 | I51: M | J51: COEFICIENTE DE REPRESENTATIVIDADE | K51: 50,45 | L51: CAIXA REFERENCIAL
A52: ASSENTAMENTO DE TUBOS E PECAS | B52: ASTU | C52: FORNEC E/OU ASSENT DE TUBO DE ACO COM JUNTA SOLDADA | D52: 0046 | G52: 97186 | H52: ASSENTAMENTO DE TUBO DE AÇO CARBONO PARA REDE DE ÁGUA, DN 900 MM (36), JUNTA SOLDADA, INSTALADO EM LOCAL COM NÍVEL BAIXO DE INTERFERÊNCIAS (NÃO INCLUI FORNECIMENTO). AF_11/2017 | I52: M | J52: COEFICIENTE DE REPRESENTATIVIDADE | K52: 56,49 | L52: CAIXA REFERENCIAL
A53: ASSENTAMENTO DE TUBOS E PECAS | B53: ASTU | C53: FORNEC E/OU ASSENT DE TUBO DE ACO COM JUNTA SOLDADA | D53: 0046 | G53: 97187 | H53: ASSENTAMENTO DE TUBO DE AÇO CARBONO PARA REDE DE ÁGUA, DN 1000 MM (40 ) OU DN 1100 MM (44 ), JUNTA SOLDADA, INSTALADO EM LOCAL COM NÍVEL BAIXO DE INTERFERÊNCIAS (NÃO INCLUI FORNECIMENTO). AF_11/2017 | I53: M | J53: COEFICIENTE DE REPRESENTATIVIDADE | K53: 68,60 | L53: CAIXA REFERENCIAL
A54: ASSENTAMENTO DE TUBOS E PECAS | B54: ASTU | C54: FORNEC E/OU ASSENT DE TUBO DE ACO COM JUNTA SOLDADA | D54: 0046 | G54: 97188 | H54: ASSENTAMENTO DE TUBO DE AÇO CARBONO PARA REDE DE ÁGUA, DN 1200 MM (48) OU DN 1300 MM (52), JUNTA SOLDADA, INSTALADO EM LOCAL COM NÍVEL BAIXO DE INTERFERÊNCIAS (NÃO INCLUI FORNECIMENTO). AF_11/2017 | I54: M | J54: COEFICIENTE DE REPRESENTATIVIDADE | K54: 80,69 | L54: CAIXA REFERENCIAL
A55: ASSENTAMENTO DE TUBOS E PECAS | B55: ASTU | C55: FORNEC E/OU ASSENT DE TUBO DE ACO COM JUNTA SOLDADA | D55: 0046 | G55: 97189 | H55: ASSENTAMENTO DE TUBO DE AÇO CARBONO PARA REDE DE ÁGUA, DN 1400 MM (56'') OU DN 1500 MM (60), JUNTA SOLDADA, INSTALADO EM LOCAL COM NÍVEL BAIXO DE INTERFERÊNCIAS (NÃO INCLUI FORNECIMENTO). AF_11/2017 | I55: M | J55: COEFICIENTE DE REPRESENTATIVIDADE | K55: 92,80 | L55: CAIXA REFERENCIAL
A56: ASSENTAMENTO DE TUBOS E PECAS | B56: ASTU | C56: FORNEC E/OU ASSENT DE TUBO DE ACO COM JUNTA SOLDADA | D56: 0046 | G56: 97190 | H56: ASSENTAMENTO DE TUBO DE AÇO CARBONO PARA REDE DE ÁGUA, DN 1600 MM (64) OU DN 1700 MM (68), JUNTA SOLDADA, INSTALADO EM LOCAL COM NÍVEL BAIXO DE INTERFERÊNCIAS (NÃO INCLUI FORNECIMENTO). AF_11/2017 | I56: M | J56: COEFICIENTE DE REPRESENTATIVIDADE | K56: 104,91 | L56: CAIXA REFERENCIAL
A57: ASSENTAMENTO DE TUBOS E PECAS | B57: ASTU | C57: FORNEC E/OU ASSENT DE TUBO DE ACO COM JUNTA SOLDADA | D57: 0046 | G57: 97191 | H57: ASSENTAMENTO DE TUBO DE AÇO CARBONO PARA REDE DE ÁGUA, DN 1800 MM (72) OU DN 1900 MM (76), JUNTA SOLDADA, INSTALADO EM LOCAL COM NÍVEL BAIXO DE INTERFERÊNCIAS (NÃO INCLUI FORNECIMENTO). AF_11/2017 | I57: M | J57: COEFICIENTE DE REPRESENTATIVIDADE | K57: 120,52 | L57: CAIXA REFERENCIAL
A58: ASSENTAMENTO DE TUBOS E PECAS | B58: ASTU | C58: FORNEC E/OU ASSENT DE TUBO DE ACO COM JUNTA SOLDADA | D58: 0046 | G58: 97192 | H58: ASSENTAMENTO DE TUBO DE AÇO CARBONO PARA REDE DE ÁGUA, DN 2000 MM (80) OU DN 2100 MM (84), JUNTA SOLDADA, INSTALADO EM LOCAL COM NÍVEL BAIXO DE INTERFERÊNCIAS (NÃO INCLUI FORNECIMENTO). AF_11/2017 | I58: M | J58: COEFICIENTE DE REPRESENTATIVIDADE | K58: 132,99 | L58: CAIXA REFERENCIAL
A59: ASSENTAMENTO DE TUBOS E PECAS | B59: ASTU | C59: FORNEC E/OU ASSENT DE TUBO DE PVC COM JUNTA ELASTICA | D59: 0048 | G59: 90694 | H59: TUBO DE PVC PARA REDE COLETORA DE ESGOTO DE PAREDE MACIÇA, DN 100 MM, JUNTA ELÁSTICA - FORNECIMENTO E ASSENTAMENTO. AF_01/2021 | I59: M | J59: COEFICIENTE DE REPRESENTATIVIDADE | K59: 43,44 | L59: CAIXA REFERENCIAL
A60: ASSENTAMENTO DE TUBOS E PECAS | B60: ASTU | C60: FORNEC E/OU ASSENT DE TUBO DE PVC COM JUNTA ELASTICA | D60: 0048 | G60: 90695 | H60: TUBO DE PVC PARA REDE COLETORA DE ESGOTO DE PAREDE MACIÇA, DN 150 MM, JUNTA ELÁSTICA - FORNECIMENTO E ASSENTAMENTO. AF_01/2021 | I60: M | J60: COEFICIENTE DE REPRESENTATIVIDADE | K60: 80,73 | L60: CAIXA REFERENCIAL
A61: ASSENTAMENTO DE TUBOS E PECAS | B61: ASTU | C61: FORNEC E/OU ASSENT DE TUBO DE PVC COM JUNTA ELASTICA | D61: 0048 | G61: 90696 | H61: TUBO DE PVC PARA REDE COLETORA DE ESGOTO DE PAREDE MACIÇA, DN 200 MM, JUNTA ELÁSTICA - FORNECIMENTO E ASSENTAMENTO. AF_01/2021 | I61: M | J61: COEFICIENTE DE REPRESENTATIVIDADE | K61: 133,32 | L61: CAIXA REFERENCIAL
A62: ASSENTAMENTO DE TUBOS E PECAS | B62: ASTU | C62: FORNEC E/OU ASSENT DE TUBO DE PVC COM JUNTA ELASTICA | D62: 0048 | G62: 90697 | H62: TUBO DE PVC PARA REDE COLETORA DE ESGOTO DE PAREDE MACIÇA, DN 250 MM, JUNTA ELÁSTICA - FORNECIMENTO E ASSENTAMENTO. AF_01/2021 | I62: M | J62: COEFICIENTE DE REPRESENTATIVIDADE | K62: 205,39 | L62: CAIXA REFERENCIAL
A63: ASSENTAMENTO DE TUBOS E PECAS | B63: ASTU | C63: FORNEC E/OU ASSENT DE TUBO DE PVC COM JUNTA ELASTICA | D63: 0048 | G63: 90698 | H63: TUBO DE PVC PARA REDE COLETORA DE ESGOTO DE PAREDE MACIÇA, DN 300 MM, JUNTA ELÁSTICA, FORNECIMENTO E ASSENTAMENTO. AF_01/2021 | I63: M | J63: COEFICIENTE DE REPRESENTATIVIDADE | K63: 312,32 | L63: CAIXA REFERENCIAL
A64: ASSENTAMENTO DE TUBOS E PECAS | B64: ASTU | C64: FORNEC E/OU ASSENT DE TUBO DE PVC COM JUNTA ELASTICA | D64: 0048 | G64: 90699 | H64: TUBO DE PVC PARA REDE COLETORA DE ESGOTO DE PAREDE MACIÇA, DN 350 MM, JUNTA ELÁSTICA - FORNECIMENTO E ASSENTAMENTO. AF_01/2021 | I64: M | J64: COEFICIENTE DE REPRESENTATIVIDADE | K64: 438,24 | L64: CAIXA REFERENCIAL
A65: ASSENTAMENTO DE TUBOS E PECAS | B65: ASTU | C65: FORNEC E/OU ASSENT DE TUBO DE PVC COM JUNTA ELASTICA | D65: 0048 | G65: 90700 | H65: TUBO DE PVC PARA REDE COLETORA DE ESGOTO DE PAREDE MACIÇA, DN 400 MM, JUNTA ELÁSTICA FORNECIMENTO E ASSENTAMENTO. AF_01/2021 | I65: M | J65: COEFICIENTE DE REPRESENTATIVIDADE | K65: 510,27 | L65: CAIXA REFERENCIAL
A66: ASSENTAMENTO DE TUBOS E PECAS | B66: ASTU | C66: FORNEC E/OU ASSENT DE TUBO DE PVC COM JUNTA ELASTICA | D66: 0048 | G66: 90701 | H66: TUBO DE PVC CORRUGADO DE DUPLA PAREDE PARA REDE COLETORA DE ESGOTO, DN 150 MM, JUNTA ELÁSTICA - FORNECIMENTO E ASSENTAMENTO. AF_01/2021 | I66: M | J66: COEFICIENTE DE REPRESENTATIVIDADE | K66: 64,82 | L66: CAIXA REFERENCIAL
A67: ASSENTAMENTO DE TUBOS E PECAS | B67: ASTU | C67: FORNEC E/OU ASSENT DE TUBO DE PVC COM JUNTA ELASTICA | D67: 0048 | G67: 90702 | H67: TUBO DE PVC CORRUGADO DE DUPLA PAREDE PARA REDE COLETORA DE ESGOTO, DN 200 MM, JUNTA ELÁSTICA - FORNECIMENTO E ASSENTAMENTO. AF_01/2021 | I67: M | J67: COEFICIENTE DE REPRESENTATIVIDADE | K67: 105,53 | L67: CAIXA REFERENCIAL
A68: ASSENTAMENTO DE TUBOS E PECAS | B68: ASTU | C68: FORNEC E/OU ASSENT DE TUBO DE PVC COM JUNTA ELASTICA | D68: 0048 | G68: 90703 | H68: TUBO DE PVC CORRUGADO DE DUPLA PAREDE PARA REDE COLETORA DE ESGOTO, DN 250 MM, JUNTA ELÁSTICA - FORNECIMENTO E ASSENTAMENTO. AF_01/2021 | I68: M | J68: COEFICIENTE DE REPRESENTATIVIDADE | K68: 164,23 | L68: CAIXA REFERENCIAL
A69: ASSENTAMENTO DE TUBOS E PECAS | B69: ASTU | C69: FORNEC E/OU ASSENT DE TUBO DE PVC COM JUNTA ELASTICA | D69: 0048 | G69: 90704 | H69: TUBO DE PVC CORRUGADO DE DUPLA PAREDE PARA REDE COLETORA DE ESGOTO, DN 300 MM, JUNTA ELÁSTICA - FORNECIMENTO E ASSENTAMENTO. AF_01/2021 | I69: M | J69: COEFICIENTE DE REPRESENTATIVIDADE | K69: 243,67 | L69: CAIXA REFERENCIAL
A70: ASSENTAMENTO DE TUBOS E PECAS | B70: ASTU | C70: FORNEC E/OU ASSENT DE TUBO DE PVC COM JUNTA ELASTICA | D70: 0048 | G70: 90705 | H70: TUBO DE PVC CORRUGADO DE DUPLA PAREDE PARA REDE COLETORA DE ESGOTO, DN 350 MM, JUNTA ELÁSTICA - FORNECIMENTO E ASSENTAMENTO. AF_01/2021 | I70: M | J70: COEFICIENTE DE REPRESENTATIVIDADE | K70: 315,40 | L70: CAIXA REFERENCIAL
A71: ASSENTAMENTO DE TUBOS E PECAS | B71: ASTU | C71: FORNEC E/OU ASSENT DE TUBO DE PVC COM JUNTA ELASTICA | D71: 0048 | G71: 90706 | H71: TUBO DE PVC CORRUGADO DE DUPLA PAREDE PARA REDE COLETORA DE ESGOTO, DN 400 MM, JUNTA ELÁSTICA - FORNECIMENTO E ASSENTAMENTO. AF_01/2021 | I71: M | J71: COEFICIENTE DE REPRESENTATIVIDADE | K71: 415,92 | L71: CAIXA REFERENCIAL
A72: ASSENTAMENTO DE TUBOS E PECAS | B72: ASTU | C72: FORNEC E/OU ASSENT DE TUBO DE PVC COM JUNTA ELASTICA | D72: 0048 | G72: 90708 | H72: TUBO DE PEAD CORRUGADO DE DUPLA PAREDE PARA REDE COLETORA DE ESGOTO, DN 600 MM, JUNTA ELÁSTICA INTEGRADA - FORNECIMENTO E ASSENTAMENTO. AF_01/2021 | I72: M | J72: COEFICIENTE DE REPRESENTATIVIDADE | K72: 872,68 | L72: CAIXA REFERENCIAL
A73: ASSENTAMENTO DE TUBOS E PECAS | B73: ASTU | C73: FORNEC E/OU ASSENT DE TUBO DE PVC COM JUNTA ELASTICA | D73: 0048 | G73: 90724 | H73: JUNTA ARGAMASSADA ENTRE TUBO DN 100 MM E O POÇO DE VISITA/ CAIXA DE CONCRETO OU ALVENARIA EM REDES DE ESGOTO. AF_01/2021 | I73: UN | J73: COEFICIENTE DE REPRESENTATIVIDADE | K73: 38,80 | L73: CAIXA REFERENCIAL
A74: ASSENTAMENTO DE TUBOS E PECAS | B74: ASTU | C74: FORNEC E/OU ASSENT DE TUBO DE PVC COM JUNTA ELASTICA | D74: 0048 | G74: 90725 | H74: JUNTA ARGAMASSADA ENTRE TUBO DN 150 MM E O POÇO DE VISITA/ CAIXA DE CONCRETO OU ALVENARIA EM REDES DE ESGOTO. AF_01/2021 | I74: UN | J74: COEFICIENTE DE REPRESENTATIVIDADE | K74: 47,63 | L74: CAIXA REFERENCIAL
A75: ASSENTAMENTO DE TUBOS E PECAS | B75: ASTU | C75: FORNEC E/OU ASSENT DE TUBO DE PVC COM JUNTA ELASTICA | D75: 0048 | G75: 90726 | H75: JUNTA ARGAMASSADA ENTRE TUBO DN 200 MM E O POÇO/ CAIXA DE CONCRETO OU ALVENARIA EM REDES DE ESGOTO. AF_01/2021 | I75: UN | J75: COEFICIENTE DE REPRESENTATIVIDADE | K75: 56,53 | L75: CAIXA REFERENCIAL
A76: ASSENTAMENTO DE TUBOS E PECAS | B76: ASTU | C76: FORNEC E/OU ASSENT DE TUBO DE PVC COM JUNTA ELASTICA | D76: 0048 | G76: 90727 | H76: JUNTA ARGAMASSADA ENTRE TUBO DN 250 MM E O POÇO DE VISITA/ CAIXA DE CONCRETO OU ALVENARIA EM REDES DE ESGOTO. AF_01/2021 | I76: UN | J76: COEFICIENTE DE REPRESENTATIVIDADE | K76: 65,37 | L76: CAIXA REFERENCIAL
A77: ASSENTAMENTO DE TUBOS E PECAS | B77: ASTU | C77: FORNEC E/OU ASSENT DE TUBO DE PVC COM JUNTA ELASTICA | D77: 0048 | G77: 90728 | H77: JUNTA ARGAMASSADA ENTRE TUBO DN 300 MM E O POÇO DE VISITA/ CAIXA DE CONCRETO OU ALVENARIA EM REDES DE ESGOTO. AF_01/2021 | I77: UN | J77: COEFICIENTE DE REPRESENTATIVIDADE | K77: 74,20 | L77: CAIXA REFERENCIAL
A78: ASSENTAMENTO DE TUBOS E PECAS | B78: ASTU | C78: FORNEC E/OU ASSENT DE TUBO DE PVC COM JUNTA ELASTICA | D78: 0048 | G78: 90729 | H78: JUNTA ARGAMASSADA ENTRE TUBO DN 350 MM E O POÇO DE VISITA/ CAIXA DE CONCRETO OU ALVENARIA EM REDES DE ESGOTO. AF_01/2021 | I78: UN | J78: COEFICIENTE DE REPRESENTATIVIDADE | K78: 83,04 | L78: CAIXA REFERENCIAL
A79: ASSENTAMENTO DE TUBOS E PECAS | B79: ASTU | C79: FORNEC E/OU ASSENT DE TUBO DE PVC COM JUNTA ELASTICA | D79: 0048 | G79: 90730 | H79: JUNTA ARGAMASSADA ENTRE TUBO DN 400 MM E O POÇO DE VISITA/ CAIXA DE CONCRETO OU ALVENARIA EM REDES DE ESGOTO. AF_01/2021 | I79: UN | J79: COEFICIENTE DE REPRESENTATIVIDADE | K79: 91,86 | L79: CAIXA REFERENCIAL
A80: ASSENTAMENTO DE TUBOS E PECAS | B80: ASTU | C80: FORNEC E/OU ASSENT DE TUBO DE PVC COM JUNTA ELASTICA | D80: 0048 | G80: 90731 | H80: JUNTA ARGAMASSADA ENTRE TUBO DN 450 MM E O POÇO DE VISITA/ CAIXA DE CONCRETO OU ALVENARIA EM REDES DE ESGOTO. AF_01/2021 | I80: UN | J80: COEFICIENTE DE REPRESENTATIVIDADE | K80: 100,70 | L80: CAIXA REFERENCIAL
A81: ASSENTAMENTO DE TUBOS E PECAS | B81: ASTU | C81: FORNEC E/OU ASSENT DE TUBO DE PVC COM JUNTA ELASTICA | D81: 0048 | G81: 90732 | H81: JUNTA ARGAMASSADA ENTRE TUBO DN 600 MM E O POÇO DE VISITA/ CAIXA DE CONCRETO OU ALVENARIA EM REDES DE ESGOTO. AF_01/2021 | I81: UN | J81: COEFICIENTE DE REPRESENTATIVIDADE | K81: 127,21 | L81: CAIXA REFERENCIAL
A82: ASSENTAMENTO DE TUBOS E PECAS | B82: ASTU | C82: FORNEC E/OU ASSENT DE TUBO DE PVC COM JUNTA ELASTICA | D82: 0048 | G82: 90733 | H82: ASSENTAMENTO DE TUBO DE PVC PARA REDE COLETORA DE ESGOTO DE PAREDE MACIÇA, DN 100 MM, JUNTA ELÁSTICA (NÃO INCLUI FORNECIMENTO). AF_01/2021 | I82: M | J82: COEFICIENTE DE REPRESENTATIVIDADE | K82: 5,55 | L82: CAIXA REFERENCIAL
A83: ASSENTAMENTO DE TUBOS E PECAS | B83: ASTU | C83: FORNEC E/OU ASSENT DE TUBO DE PVC COM JUNTA ELASTICA | D83: 0048 | G83: 90734 | H83: ASSENTAMENTO DE TUBO DE PVC PARA REDE COLETORA DE ESGOTO DE PAREDE MACIÇA, DN 150 MM, JUNTA ELÁSTICA, (NÃO INCLUI FORNECIMENTO). AF_01/2021 | I83: M | J83: COEFICIENTE DE REPRESENTATIVIDADE | K83: 6,58 | L83: CAIXA REFERENCIAL
A84: ASSENTAMENTO DE TUBOS E PECAS | B84: ASTU | C84: FORNEC E/OU ASSENT DE TUBO DE PVC COM JUNTA ELASTICA | D84: 0048 | G84: 90735 | H84: ASSENTAMENTO DE TUBO DE PVC PARA REDE COLETORA DE ESGOTO DE PAREDE MACIÇA, DN 200 MM, JUNTA ELÁSTICA (NÃO INCLUI FORNECIMENTO). AF_01/2021 | I84: M | J84: COEFICIENTE DE REPRESENTATIVIDADE | K84: 7,61 | L84: CAIXA REFERENCIAL
A85: ASSENTAMENTO DE TUBOS E PECAS | B85: ASTU | C85: FORNEC E/OU ASSENT DE TUBO DE PVC COM JUNTA ELASTICA | D85: 0048 | G85: 90736 | H85: ASSENTAMENTO DE TUBO DE PVC PARA REDE COLETORA DE ESGOTO DE PAREDE MACIÇA, DN 250 MM, JUNTA ELÁSTICA (NÃO INCLUI FORNECIMENTO). AF_01/2021 | I85: M | J85: COEFICIENTE DE REPRESENTATIVIDADE | K85: 8,63 | L85: CAIXA REFERENCIAL
A86: ASSENTAMENTO DE TUBOS E PECAS | B86: ASTU | C86: FORNEC E/OU ASSENT DE TUBO DE PVC COM JUNTA ELASTICA | D86: 0048 | G86: 90737 | H86: ASSENTAMENTO DE TUBO DE PVC PARA REDE COLETORA DE ESGOTO DE PAREDE MACIÇA, DN 300 MM, JUNTA ELÁSTICA (NÃO INCLUI FORNECIMENTO). AF_01/2021 | I86: M | J86: COEFICIENTE DE REPRESENTATIVIDADE | K86: 9,65 | L86: CAIXA REFERENCIAL
A87: ASSENTAMENTO DE TUBOS E PECAS | B87: ASTU | C87: FORNEC E/OU ASSENT DE TUBO DE PVC COM JUNTA ELASTICA | D87: 0048 | G87: 90738 | H87: ASSENTAMENTO DE TUBO DE PVC PARA REDE COLETORA DE ESGOTO DE PAREDE MACIÇA, DN 350 MM, JUNTA ELÁSTICA (NÃO INCLUI FORNECIMENTO). AF_01/2021 | I87: M | J87: COEFICIENTE DE REPRESENTATIVIDADE | K87: 10,68 | L87: CAIXA REFERENCIAL
A88: ASSENTAMENTO DE TUBOS E PECAS | B88: ASTU | C88: FORNEC E/OU ASSENT DE TUBO DE PVC COM JUNTA ELASTICA | D88: 0048 | G88: 90739 | H88: ASSENTAMENTO DE TUBO DE PVC PARA REDE COLETORA DE ESGOTO DE PAREDE MACIÇA, DN 400 MM, JUNTA ELÁSTICA (NÃO INCLUI FORNECIMENTO). AF_01/2021 | I88: M | J88: COEFICIENTE DE REPRESENTATIVIDADE | K88: 12,34 | L88: CAIXA REFERENCIAL
A89: ASSENTAMENTO DE TUBOS E PECAS | B89: ASTU | C89: FORNEC E/OU ASSENT DE TUBO DE PVC COM JUNTA ELASTICA | D89: 0048 | G89: 90740 | H89: ASSENTAMENTO DE TUBO DE PVC CORRUGADO DE DUPLA PAREDE PARA REDE COLETORA DE ESGOTO, DN 150 MM, JUNTA ELÁSTICA (NÃO INCLUI FORNECIMENTO). AF_01/2021 | I89: M | J89: COEFICIENTE DE REPRESENTATIVIDADE | K89: 7,33 | L89: CAIXA REFERENCIAL
A90: ASSENTAMENTO DE TUBOS E PECAS | B90: ASTU | C90: FORNEC E/OU ASSENT DE TUBO DE PVC COM JUNTA ELASTICA | D90: 0048 | G90: 90741 | H90: ASSENTAMENTO DE TUBO DE PVC CORRUGADO DE DUPLA PAREDE PARA REDE COLETORA DE ESGOTO, DN 200 MM, JUNTA ELÁSTICA (NÃO INCLUI FORNECIMENTO). AF_01/2021 | I90: M | J90: COEFICIENTE DE REPRESENTATIVIDADE | K90: 8,36 | L90: CAIXA REFERENCIAL
A91: ASSENTAMENTO DE TUBOS E PECAS | B91: ASTU | C91: FORNEC E/OU ASSENT DE TUBO DE PVC COM JUNTA ELASTICA | D91: 0048 | G91: 90742 | H91: ASSENTAMENTO DE TUBO DE PVC CORRUGADO DE DUPLA PAREDE PARA REDE COLETORA DE ESGOTO, DN 250 MM, JUNTA ELÁSTICA (NÃO INCLUI FORNECIMENTO). AF_01/2021 | I91: M | J91: COEFICIENTE DE REPRESENTATIVIDADE | K91: 9,38 | L91: CAIXA REFERENCIAL
A92: ASSENTAMENTO DE TUBOS E PECAS | B92: ASTU | C92: FORNEC E/OU ASSENT DE TUBO DE PVC COM JUNTA ELASTICA | D92: 0048 | G92: 90743 | H92: ASSENTAMENTO DE TUBO DE PVC CORRUGADO DE DUPLA PAREDE PARA REDE COLETORA DE ESGOTO, DN 300 MM, JUNTA ELÁSTICA (NÃO INCLUI FORNECIMENTO). AF_01/2021 | I92: M | J92: COEFICIENTE DE REPRESENTATIVIDADE | K92: 10,41 | L92: CAIXA REFERENCIAL
A93: ASSENTAMENTO DE TUBOS E PECAS | B93: ASTU | C93: FORNEC E/OU ASSENT DE TUBO DE PVC COM JUNTA ELASTICA | D93: 0048 | G93: 90744 | H93: ASSENTAMENTO DE TUBO DE PVC CORRUGADO DE DUPLA PAREDE PARA REDE COLETORA DE ESGOTO, DN 350 MM, JUNTA ELÁSTICA (NÃO INCLUI FORNECIMENTO). AF_01/2021 | I93: M | J93: COEFICIENTE DE REPRESENTATIVIDADE | K93: 11,44 | L93: CAIXA REFERENCIAL
A94: ASSENTAMENTO DE TUBOS E PECAS | B94: ASTU | C94: FORNEC E/OU ASSENT DE TUBO DE PVC COM JUNTA ELASTICA | D94: 0048 | G94: 90745 | H94: ASSENTAMENTO DE TUBO DE PVC CORRUGADO DE DUPLA PAREDE PARA REDE COLETORA DE ESGOTO, DN 400 MM, JUNTA ELÁSTICA (NÃO INCLUI FORNECIMENTO). AF_01/2021 | I94: M | J94: COEFICIENTE DE REPRESENTATIVIDADE | K94: 13,78 | L94: CAIXA REFERENCIAL
A95: ASSENTAMENTO DE TUBOS E PECAS | B95: ASTU | C95: FORNEC E/OU ASSENT DE TUBO DE PVC COM JUNTA ELASTICA | D95: 0048 | G95: 90746 | H95: ASSENTAMENTO DE TUBO DE PEAD CORRUGADO DE DUPLA PAREDE PARA REDE COLETORA DE ESGOTO, DN 450 MM, JUNTA ELÁSTICA INTEGRADA (NÃO INCLUI FORNECIMENTO). AF_01/2021 | I95: M | J95: COEFICIENTE DE REPRESENTATIVIDADE | K95: 6,00 | L95: CAIXA REFERENCIAL
A96: ASSENTAMENTO DE TUBOS E PECAS | B96: ASTU | C96: FORNEC E/OU ASSENT DE TUBO DE PVC COM JUNTA ELASTICA | D96: 0048 | G96: 90747 | H96: ASSENTAMENTO DE TUBO DE PEAD CORRUGADO DE DUPLA PAREDE PARA REDE COLETORA DE ESGOTO, DN 600 MM, JUNTA ELÁSTICA INTEGRADA (NÃO INCLUI FORNECIMENTO). AF_01/2021 | I96: M | J96: COEFICIENTE DE REPRESENTATIVIDADE | K96: 21,89 | L96: CAIXA REFERENCIAL
A97: ASSENTAMENTO DE TUBOS E PECAS | B97: ASTU | C97: FORNEC E/OU ASSENT DE TUBO DE PVC COM JUNTA ELASTICA | D97: 0048 | G97: 94869 | H97: TUBO DE PEAD CORRUGADO DE DUPLA PAREDE PARA REDE COLETORA DE ESGOTO, DN 250 MM, JUNTA ELÁSTICA INTEGRADA - FORNECIMENTO E ASSENTAMENTO. AF_01/2021 | I97: M | J97: COEFICIENTE DE REPRESENTATIVIDADE | K97: 153,75 | L97: CAIXA REFERENCIAL
A98: ASSENTAMENTO DE TUBOS E PECAS | B98: ASTU | C98: FORNEC E/OU ASSENT DE TUBO DE PVC COM JUNTA ELASTICA | D98: 0048 | G98: 94870 | H98: ASSENTAMENTO DE TUBO DE PEAD CORRUGADO DE DUPLA PAREDE PARA REDE COLETORA DE ESGOTO, DN 250 MM, JUNTA ELÁSTICA INTEGRADA (NÃO INCLUI FORNECIMENTO). AF_01/2021 | I98: M | J98: COEFICIENTE DE REPRESENTATIVIDADE | K98: 2,49 | L98: CAIXA REFERENCIAL
A99: ASSENTAMENTO DE TUBOS E PECAS | B99: ASTU | C99: FORNEC E/OU ASSENT DE TUBO DE PVC COM JUNTA ELASTICA | D99: 0048 | G99: 94871 | H99: TUBO DE PEAD CORRUGADO DE DUPLA PAREDE PARA REDE COLETORA DE ESGOTO, DN 300 MM, JUNTA ELÁSTICA INTEGRADA - FORNECIMENTO E ASSENTAMENTO. AF_01/2021 | I99: M | J99: COEFICIENTE DE REPRESENTATIVIDADE | K99: 240,68 | L99: CAIXA REFERENCIAL
A100: ASSENTAMENTO DE TUBOS E PECAS | B100: ASTU | C100: FORNEC E/OU ASSENT DE TUBO DE PVC COM JUNTA ELASTICA | D100: 0048 | G100: 94872 | H100: ASSENTAMENTO DE TUBO DE PEAD CORRUGADO DE DUPLA PAREDE PARA REDE COLETORA DE ESGOTO, DN 300 MM, JUNTA ELÁSTICA INTEGRADA (NÃO INCLUI FORNECIMENTO). AF_01/2021 | I100: M | J100: COEFICIENTE DE REPRESENTATIVIDADE | K100: 3,71 | L100: CAIXA REFERENCIAL
A101: ASSENTAMENTO DE TUBOS E PECAS | B101: ASTU | C101: FORNEC E/OU ASSENT DE TUBO DE PVC COM JUNTA ELASTICA | D101: 0048 | G101: 94875 | H101: TUBO DE PEAD CORRUGADO DE DUPLA PAREDE PARA REDE COLETORA DE ESGOTO, DN 800 MM, JUNTA ELÁSTICA INTEGRADA - FORNECIMENTO E ASSENTAMENTO. AF_01/2021 | I101: M | J101: COEFICIENTE DE REPRESENTATIVIDADE | K101: 1.416,75 | L101: CAIXA REFERENCIAL
A102: ASSENTAMENTO DE TUBOS E PECAS | B102: ASTU | C102: FORNEC E/OU ASSENT DE TUBO DE PVC COM JUNTA ELASTICA | D102: 0048 | G102: 94876 | H102: ASSENTAMENTO DE TUBO DE PEAD CORRUGADO DE DUPLA PAREDE PARA REDE COLETORA DE ESGOTO, DN 800 MM, JUNTA ELÁSTICA INTEGRADA (NÃO INCLUI FORNECIMENTO). AF_01/2021 | I102: M | J102: COEFICIENTE DE REPRESENTATIVIDADE | K102: 35,98 | L102: CAIXA REFERENCIAL
A103: ASSENTAMENTO DE TUBOS E PECAS | B103: ASTU | C103: FORNEC E/OU ASSENT DE TUBO DE PVC COM JUNTA ELASTICA | D103: 0048 | G103: 94878 | H103: ASSENTAMENTO DE TUBO DE PEAD CORRUGADO DE DUPLA PAREDE PARA REDE COLETORA DE ESGOTO, DN 900 MM, JUNTA ELÁSTICA INTEGRADA (NÃO INCLUI FORNECIMENTO). AF_01/2021 | I103: M | J103: COEFICIENTE DE REPRESENTATIVIDADE | K103: 41,73 | L103: CAIXA REFERENCIAL
A104: ASSENTAMENTO DE TUBOS E PECAS | B104: ASTU | C104: FORNEC E/OU ASSENT DE TUBO DE PVC COM JUNTA ELASTICA | D104: 0048 | G104: 94879 | H104: TUBO DE PEAD CORRUGADO DE DUPLA PAREDE PARA REDE COLETORA DE ESGOTO, DN 1000 MM, JUNTA ELÁSTICA INTEGRADA - FORNECIMENTO E ASSENTAMENTO. AF_01/2021 | I104: M | J104: COEFICIENTE DE REPRESENTATIVIDADE | K104: 2.180,35 | L104: CAIXA REFERENCIAL
A105: ASSENTAMENTO DE TUBOS E PECAS | B105: ASTU | C105: FORNEC E/OU ASSENT DE TUBO DE PVC COM JUNTA ELASTICA | D105: 0048 | G105: 94880 | H105: ASSENTAMENTO DE TUBO DE PEAD CORRUGADO DE DUPLA PAREDE PARA REDE COLETORA DE ESGOTO, DN 1000 MM, JUNTA ELÁSTICA INTEGRADA (NÃO INCLUI FORNECIMENTO). AF_01/2021 | I105: M | J105: COEFICIENTE DE REPRESENTATIVIDADE | K105: 53,31 | L105: CAIXA REFERENCIAL
A106: ASSENTAMENTO DE TUBOS E PECAS | B106: ASTU | C106: FORNEC E/OU ASSENT DE TUBO DE PVC COM JUNTA ELASTICA | D106: 0048 | G106: 94881 | H106: TUBO DE PEAD CORRUGADO DE DUPLA PAREDE PARA REDE COLETORA DE ESGOTO, DN 1200 MM, JUNTA ELÁSTICA INTEGRADA - FORNECIMENTO E ASSENTAMENTO. AF_01/2021 | I106: M | J106: COEFICIENTE DE REPRESENTATIVIDADE | K106: 3.001,87 | L106: CAIXA REFERENCIAL
A107: ASSENTAMENTO DE TUBOS E PECAS | B107: ASTU | C107: FORNEC E/OU ASSENT DE TUBO DE PVC COM JUNTA ELASTICA | D107: 0048 | G107: 94882 | H107: ASSENTAMENTO DE TUBO DE PEAD CORRUGADO DE DUPLA PAREDE PARA REDE COLETORA DE ESGOTO, DN 1200 MM, JUNTA ELÁSTICA INTEGRADA (NÃO INCLUI FORNECIMENTO). AF_01/2021 | I107: M | J107: COEFICIENTE DE REPRESENTATIVIDADE | K107: 62,16 | L107: CAIXA REFERENCIAL
A108: ASSENTAMENTO DE TUBOS E PECAS | B108: ASTU | C108: FORNEC E/OU ASSENT DE TUBO DE PVC COM JUNTA ELASTICA | D108: 0048 | G108: 94884 | H108: ASSENTAMENTO DE TUBO DE PEAD CORRUGADO DE DUPLA PAREDE PARA REDE COLETORA DE ESGOTO, DN 1500 MM, JUNTA ELÁSTICA INTEGRADA (NÃO INCLUI FORNECIMENTO). AF_01/2021 | I108: M | J108: COEFICIENTE DE REPRESENTATIVIDADE | K108: 80,14 | L108: CAIXA REFERENCIAL
A109: ASSENTAMENTO DE TUBOS E PECAS | B109: ASTU | C109: FORNEC E/OU ASSENT DE TUBO DE PVC COM JUNTA ELASTICA | D109: 0048 | G109: 97121 | H109: ASSENTAMENTO DE TUBO DE PVC PBA PARA REDE DE ÁGUA, DN 50 MM, JUNTA ELÁSTICA INTEGRADA, INSTALADO EM LOCAL COM NÍVEL ALTO DE INTERFERÊNCIAS (NÃO INCLUI FORNECIMENTO). AF_11/2017 | I109: M | J109: COEFICIENTE DE REPRESENTATIVIDADE | K109: 3,25 | L109: CAIXA REFERENCIAL
A110: ASSENTAMENTO DE TUBOS E PECAS | B110: ASTU | C110: FORNEC E/OU ASSENT DE TUBO DE PVC COM JUNTA ELASTICA | D110: 0048 | G110: 97122 | H110: ASSENTAMENTO DE TUBO DE PVC PBA PARA REDE DE ÁGUA, DN 75 MM, JUNTA ELÁSTICA INTEGRADA, INSTALADO EM LOCAL COM NÍVEL ALTO DE INTERFERÊNCIAS (NÃO INCLUI FORNECIMENTO). AF_11/2017 | I110: M | J110: COEFICIENTE DE REPRESENTATIVIDADE | K110: 4,49 | L110: CAIXA REFERENCIAL
A111: ASSENTAMENTO DE TUBOS E PECAS | B111: ASTU | C111: FORNEC E/OU ASSENT DE TUBO DE PVC COM JUNTA ELASTICA | D111: 0048 | G111: 97123 | H111: ASSENTAMENTO DE TUBO DE PVC PBA PARA REDE DE ÁGUA, DN 100 MM, JUNTA ELÁSTICA INTEGRADA, INSTALADO EM LOCAL COM NÍVEL ALTO DE INTERFERÊNCIAS (NÃO INCLUI FORNECIMENTO). AF_11/2017 | I111: M | J111: COEFICIENTE DE REPRESENTATIVIDADE | K111: 5,70 | L111: CAIXA REFERENCIAL
A112: ASSENTAMENTO DE TUBOS E PECAS | B112: ASTU | C112: FORNEC E/OU ASSENT DE TUBO DE PVC COM JUNTA ELASTICA | D112: 0048 | G112: 97124 | H112: ASSENTAMENTO DE TUBO DE PVC PBA PARA REDE DE ÁGUA, DN 50 MM, JUNTA ELÁSTICA INTEGRADA, INSTALADO EM LOCAL COM NÍVEL BAIXO DE INTERFERÊNCIAS (NÃO INCLUI FORNECIMENTO). AF_11/2017 | I112: M | J112: COEFICIENTE DE REPRESENTATIVIDADE | K112: 1,40 | L112: CAIXA REFERENCIAL
A113: ASSENTAMENTO DE TUBOS E PECAS | B113: ASTU | C113: FORNEC E/OU ASSENT DE TUBO DE PVC COM JUNTA ELASTICA | D113: 0048 | G113: 97125 | H113: ASSENTAMENTO DE TUBO DE PVC PBA PARA REDE DE ÁGUA, DN 75 MM, JUNTA ELÁSTICA INTEGRADA, INSTALADO EM LOCAL COM NÍVEL BAIXO DE INTERFERÊNCIAS (NÃO INCLUI FORNECIMENTO). AF_11/2017 | I113: M | J113: COEFICIENTE DE REPRESENTATIVIDADE | K113: 1,97 | L113: CAIXA REFERENCIAL
A114: ASSENTAMENTO DE TUBOS E PECAS | B114: ASTU | C114: FORNEC E/OU ASSENT DE TUBO DE PVC COM JUNTA ELASTICA | D114: 0048 | G114: 97126 | H114: ASSENTAMENTO DE TUBO DE PVC PBA PARA REDE DE ÁGUA, DN 100 MM, JUNTA ELÁSTICA INTEGRADA, INSTALADO EM LOCAL COM NÍVEL BAIXO DE INTERFERÊNCIAS (NÃO INCLUI FORNECIMENTO). AF_11/2017 | I114: M | J114: COEFICIENTE DE REPRESENTATIVIDADE | K114: 2,50 | L114: CAIXA REFERENCIAL
A115: ASSENTAMENTO DE TUBOS E PECAS | B115: ASTU | C115: FORNEC E/OU ASSENT DE TUBO DE PVC COM JUNTA ELASTICA | D115: 0048 | G115: 102264 | H115: TUBO DE PVC BRANCO PARA REDE COLETORA DE ESGOTO CONDOMINIAL DE PAREDE MACIÇA, DN 100 MM, JUNTA ELÁSTICA - FORNECIMENTO E ASSENTAMENTO. AF_01/2021 | I115: M | J115: COEFICIENTE DE REPRESENTATIVIDADE | K115: 20,40 | L115: CAIXA REFERENCIAL
A116: ASSENTAMENTO DE TUBOS E PECAS | B116: ASTU | C116: FORNEC E/OU ASSENT DE TUBO DE PVC COM JUNTA ELASTICA | D116: 0048 | G116: 102265 | H116: JUNTA ARGAMASSADA ENTRE TUBO DN 800 MM E O POÇO DE VISITA/ CAIXA DE CONCRETO OU ALVENARIA EM REDES DE ESGOTO. AF_01/2021 | I116: UN | J116: COEFICIENTE DE REPRESENTATIVIDADE | K116: 162,54 | L116: CAIXA REFERENCIAL
